Workbook

Sheet Design Regulator
A1: LM(2)5145/46-Q1 DC-DC Controller Design Tool
A3: About | C3: xx | F3: = Input Box | O3: TERMS OF USE
A5: Step 1: Operating Specifications
D6: Input Voltage ‒ Min, VIN(min) | E6: 20 | F6: V
D7: Input Voltage ‒ Nom, VIN(nom) | E7: 51.2 | F7: V
D8: Input Voltage ‒ Max, VIN(max) | E8: 80 | F8: V
D9: Output Voltage, VOUT | E9: 12 | F9: V
D10: Maximum Output Current, IOUT | E10: 20 | F10: A
D11: Free-running Switching Frequency, FSW | E11: 400 | F11: kHz
D12: SYNC Frequency (if used), FSW-SYNC | E12: 400 | F12: kHz
D13: Frequency Set Resistor, RRT | E13: ='Standard Value Calculator'!S4/1000 -> 24.9 | F13: kΩ
A15: Step 2: Filter Inductor
D16: Recommended Filter Inductance | E16: =Lout1*1000000 -> 3.448761261 | F16: µH
D17: Inductance, LO | E17: 5.6 | F17: µH
D18: Inductor DCR | E18: 6 | F18: mΩ
D19: Pk-to-Pk Ripple Current at VIN(nom), DIL | E19: =Iripple1 -> 4.281175536 | F19: APK-PK
D20: Inductor Ripple Current as a % of Max IOUT | E20: =Iripple1/Iout*100 -> 21.40587768 | F20: %
D21: Estimate Core Loss at VIN(nom) | E21: 0.2 | F21: W
A23: Step 3: RDS(on) or Shunt-Based Current Limit
D24: Shunt, RS | E24: 6 | F24: mΩ | S24: \
D25: Required Current Limit Setpoint | E25: 13 | F25: A
D26: Current Limit Set Resistor, RILIM | E26: =IF(RDSON_sense=1, Rilim_Rdson, Rilim_shunt) -> 549 | F26: Ω
D27: Min Inductor Sat Current, IL(SAT) | E27: ='Variable Management'!B51 -> 18 | F27: A
D28: Power Loss in RS at Full Load, Max VIN | E28: =_Rs3 -> 1.73 | F28: W
A30: Step 4: Output Capacitance
D31: Output Voltage Ripple Specification | E31: 200 | F31: mVPK-PK
D32: Minimum Ideal Output Capacitance | E32: =Coutmin*1000000 -> 6.689336775 | F32: µF
D33: Total Output Capacitance (Derated), COUT | E33: 120 | F33: µF
D34: Maximum Permitted ESR | E34: =IF(ISERROR(Resrmax*1000),"N/A",Resrmax*1000) -> 46.64350058 | F34: mΩ
D35: Output Capacitor ESR | E35: 1 | F35: mΩ
D36: Resulting Output Voltage Ripple | E36: =Vripple2*1000 -> 11.94262598 | F36: mVPK-PK
D37: Output Capacitor Ripple Current | E37: =Icoutrms -> 1.235868924 | F37: ARMS
A39: Step 5: Input Capacitance
D40: Input Voltage Ripple Specification | E40: 480 | F40: mVPK-PK
D41: Minimum Ideal Input Capacitance | E41: ='Variable Management'!B80*1000000 -> 19.2490163 | F41: µF
D42: Total Input Capacitance (Derated), CIN | E42: 30 | F42: µF
D43: Maximum Permitted ESR | E43: =IF(CinEsrMax*1000<0,"N/A",CinEsrMax*1000) -> 7.769248995 | F43: mΩ
D44: Input Capacitor ESR | E44: 2 | F44: mΩ
D45: Resulting Input Voltage Ripple | E45: =Vinripple2*1000 -> 352.2654363 | F45: mVPK-PK
D46: Input Capacitor Ripple Current | E46: =Icinrms -> 8.597454424 | F46: ARMS
A48: Step 6: Soft-start, UVLO
D49: Soft-Start Time, tSS | E49: 20 | F49: ms
D50: Soft-Start Capacitance, CSS | E50: =Css_u*1000000000 -> 270 | F50: nF
D51: Input Voltage UVLO Turn-On | E51: 20 | F51: V
D52: Input Voltage UVLO Turn-Off | E52: 25 | F52: V
D53: UVLO Upper Resistor, RUV1 | E53: ='Variable Management'!F97 -> N/A | F53: kΩ
D54: UVLO Lower Resistor, RUV2 | E54: ='Variable Management'!F98 -> N/A | F54: kΩ
A55: If the SYNC feature is not required, connect SYNCIN to GND
A56: or VCC for diode emulation or FPWM modes, respectively
A58: Step 7: Compensation Design
D59: LC Complex Pole Frequency | E59: =Fo/1000 -> 6.165021805 | F59: kHz
D60: ESR Zero Frequency | E60: =Fesr/1000 -> 1326.291194 | F60: kHz
D61: Desired Crossover Frequency | E61: 35 | F61: kHz
D62: Appropriate Midband Gain | E62: =Kmidband -> 0.3784793318 | F62: V/V
D63: Upper Feedback Resistor, RFB1 | E63: 22.1 | F63: kΩ
D64: Lower Feedback Resistor, RFB2 | E64: =IF(Vout=Vref,"OPEN",Rfb2_u/1000) -> 1.58 | F64: =IF(Vout=Vref,"","kΩ") -> kΩ
D65: Actual Output Voltage, VOUT | E65: ='Variable Management'!B129 -> 11.98987342 | F65: V
A67: Pole & Zero Placement | D67: FZ1 | E67: =Fo/1000*0.7 -> 4.315515264 | F67: =" kHz " -> kHz
A68: =" Baseline P/Z Frequencies:" -> Baseline P/Z Frequencies: | D68: FZ2 | E68: =Fo/1000*0.9 -> 5.548519625 | F68: =" kHz" -> kHz
D69: FP1 | E69: =Fesr/1000 -> 1326.291194 | F69: =" kHz" -> kHz
D70: FP2 | E70: =Fsw/2000 -> 200 | F70: =" kHz" -> kHz
A72: Compensation Components
B73: Calculated / | C73: Std Values | D73: =" Selected" -> Selected | F73: Actual P/Z Frequencies
A74: RC1 | B74: =Rcea1/1000 -> 8.364393232 | C74: ='Standard Value Calculator'!S27 -> 8.45 | D74: =C74 -> 8.45 | E74: kΩ | F74: =Fz1_u/1000 -> 4.007426496 | G74: kHz (FZ1)
A75: CC1 | B75: =Cc1ea*1000000000000 -> 4409.131312 | C75: ='Standard Value Calculator'!S28 -> 4700 | D75: =C75 -> 4700 | E75: pF | F75: =Fz2_u/1000 -> 5.976142107 | G75: kHz (FZ2)
A76: CC2 | B76: =Cc2ea*1000000000000 -> 97.23649529 | C76: ='Standard Value Calculator'!S29 -> 100 | D76: =C76 -> 100 | E76: pF | F76: =Fp1_u/1000 -> 1424.587749 | G76: kHz (FP1)
A77: RC2 | B77: =Rcea2 -> 92.84343279 | C77: ='Standard Value Calculator'!S30 -> 93.1 | D77: =C77 -> 93.1 | E77: Ω | F77: =Fp2_u/1000 -> 192.3564718 | G77: kHz (FP2)
A78: CC3 | B78: =Cc3ea*1000000000000 -> 1292.498526 | C78: ='Standard Value Calculator'!S31 -> 1200 | D78: =C78 -> 1200 | E78: pF
A80: Efficiency / Power Loss Analyzer
A82: Step 8: Efficiency
D84: High-Side MOSFET (Q1) Specifications | E84: CSD19538Q3A
D85: On-State Resistance, RDS(on) | E85: 52 | F85: mΩ
D86: Total Gate Charge, QG | E86: 3.2 | F86: nC
D87: Gate-Drain Charge, QGD | E87: 0.8 | F87: nC
D88: Gate-Source Charge, QGS | E88: 1.6 | F88: nC
D89: Output Capacitance, COSS | E89: 69 | F89: pF
D90: Gate Resistance, RG | E90: 4.6 | F90: Ω
D91: Transconductance, gFS | E91: 45 | F91: S
D92: Gate-Source Plateau Voltage, VGS(MP) | E92: 5 | F92: V
D93: Body Diode Forward Voltage, VBD1 | E93: 0.8 | F93: V
D94: Thermal Resistance, θJA | E94: 55 | F94: °C/W
D96: Low-Side MOSFET (Q2) Specifications | E96: NVMFS6B14NL
D97: On-State Resistance, RDS(on) | E97: 10 | F97: mΩ
D98: Total Gate Charge, QG | E98: 13 | F98: nC
D99: Output Charge, QOSS | E99: 20 | F99: nC
D100: Output Capacitance, COSS | E100: 580 | F100: pF
D101: Body Diode Forward Voltage, VBD2 | E101: 0.9 | F101: V
D102: Body Diode Recovery Charge, QRR | E102: 50 | F102: nC
D103: Thermal Resistance, θJA | E103: 40 | F103: °C/W
A106: Step 9: IC Power Loss
D107: IC Power Dissipation | E107: ='Power Calculations'!AN9 -> 0.151 | F107: W
D108: IC Junction Temperature Rise (est) | E108: ='Power Calculations'!AN9*50 -> 7.55 | F108: °C

Sheet Schematic & BOM
B34: ** Tie SYNCIN to VCC and GND for CCM and DCM operation, respectively **
A35: ="VIN = "&Vin&"V, VOUT = "& Vout &"V, IOUT = " &Iout & "A, Fsw = " & Fsw/1000 &"kHz, Current Limit = "&ROUNDUP(DC_Current_Limit_Setpoint,0)&"A" -> VIN = 51.2V, VOUT = 12V, IOUT = 20A, Fsw = 400kHz, Current Limit = 13A
A36: Wide VIN, High Efficiency Synchronous Buck Regulator BOM
A37: Count | B37: Ref Des | C37: Value | D37: Description | H37: Size | I37: Part Number | J37: MFR | K37: Footprint (mm) | L37: Area (mm2)
A38: 1 | B38: CBOOT | C38: 0.1 | D38: =C38 -> 0.1 | I38: Std | J38: Std | K38: =CHOOSE(Q38, 'Variable Management'!N69,'Variable Management'!N70,'Variable Management'!N71) -> 1.6 x 0.8 | L38: =CHOOSE(Q38, 'Variable Management'!O69,'Variable Management'!O70,'Variable Management'!O71) -> 1.3 | Q38: 2
A39: 1 | B39: CC1 | C39: ='Design Regulator'!D75 -> 4700 | D39: 4700 | I39: Std | J39: Std | K39: =CHOOSE(Q39, 'Variable Management'!N69,'Variable Management'!N70,'Variable Management'!N71) -> 1.0 x 0.5 | L39: =CHOOSE(Q39, 'Variable Management'!O69,'Variable Management'!O70,'Variable Management'!O71) -> 0.5 | Q39: 1
A40: 1 | B40: CC2 | C40: ='Design Regulator'!D76 -> 100 | D40: 100 | I40: Std | J40: Std | K40: =CHOOSE(Q40, 'Variable Management'!N69,'Variable Management'!N70,'Variable Management'!N71) -> 1.0 x 0.5 | L40: =CHOOSE(Q40, 'Variable Management'!O69,'Variable Management'!O70,'Variable Management'!O71) -> 0.5 | Q40: 1
A41: 1 | B41: CC3 | C41: ='Design Regulator'!D78 -> 1200 | D41: 1200 | I41: Std | J41: Std | K41: =CHOOSE(Q41, 'Variable Management'!N69,'Variable Management'!N70,'Variable Management'!N71) -> 1.0 x 0.5 | L41: =CHOOSE(Q41, 'Variable Management'!O69,'Variable Management'!O70,'Variable Management'!O71) -> 0.5 | Q41: 1
A42: 1 | B42: CS | C42: ='Variable Management'!B270 -> 8.2pF | D42: ="Capacitor, Ceramic, "&'Variable Management'!B270&", 100V, X7R, 20%" -> Capacitor, Ceramic, 8.2pF, 100V, X7R, 20% | I42: Std | J42: Std | K42: =CHOOSE(Q42, 'Variable Management'!N69,'Variable Management'!N70,'Variable Management'!N71) -> 1.6 x 0.8 | L42: =CHOOSE(RDSON_sense,CHOOSE(Q42,'Variable Management'!O69,'Variable Management'!O70,'Variable Management'!O71),0) -> 1.3 | Q42: 2
A43: =ROUNDUP('Design Regulator'!E42/10,0) -> 3 | B43: CIN | C43: ='Variable Management'!B249 -> 4.7µF | D43: =CHOOSE(Cin_Voltage_Rating, "Capacitor, Ceramic, "&'Variable Management'!B249&", 10V, X7R, 10%", "Capacitor, Ceramic, "&'Variable Management'!B249&", 16V, X7R, 10%", "Capacitor, Ceramic, "&'Variable Management'!B249&", 25V, X7R, 10%", "Capacitor, Ceramic, "&'Variable Management'!B249&", 50V, X7R, 10%", "Capacitor, Ceramic, "&'Variable Management'!B249&", 100V, X7S, 10%") -> Capacitor, Ceramic, 4.7µF, 100V, X7S, 10% | I43: Std | J43: Std | K43: =CHOOSE(Q43, 'Variable Management'!N69,'Variable Management'!N70,'Variable Management'!N71,'Variable Management'!N72,'Variable Management'!N73) -> 3.2 x 2.5 | L43: =CHOOSE(Q43, 'Variable Management'!O69,'Variable Management'!O70,'Variable Management'!O71,'Variable Management'!O72,'Variable Management'!O73)*A43 -> 24 | Q43: 5
A44: ='Variable Management'!D242 -> 6 | B44: COUT | C44: ='Variable Management'!F243 -> 22µF | D44: =CHOOSE(Cout_Voltage_Rating, "Capacitor, Ceramic, "&'Variable Management'!B244&", 6.3V, X7R, 10%", "Capacitor, Ceramic, "&'Variable Management'!B244&", 10V, X7R, 10%", "Capacitor, Ceramic, "&'Variable Management'!B244&", 16V, X7R, 10%", "Capacitor, Ceramic, "&'Variable Management'!B244&", 25V, X7R, 10%", "Capacitor, Ceramic, "&'Variable Management'!B244&", 50V, X7R, 10%", "Capacitor, Ceramic, "&'Variable Management'!B244&", 100V, X7R, 10%") -> Capacitor, Ceramic, 22µF, 16V, X7R, 10% | I44: Std | J44: Std | K44: =CHOOSE(Q44, 'Variable Management'!N69,'Variable Management'!N70,'Variable Management'!N71,'Variable Management'!N72,'Variable Management'!N73) -> 3.2 x 2.5 | L44: =CHOOSE(Q44, 'Variable Management'!O69,'Variable Management'!O70,'Variable Management'!O71,'Variable Management'!O72,'Variable Management'!O73)*A44 -> 48 | Q44: 5
A45: 1 | B45: CSS | C45: ='Design Regulator'!E50 -> 270 | D45: =C45 -> 270 | I45: Std | J45: Std | K45: =CHOOSE(Q45, 'Variable Management'!N69,'Variable Management'!N70,'Variable Management'!N71) -> 1.6 x 0.8 | L45: =CHOOSE(Q45, 'Variable Management'!O69,'Variable Management'!O70,'Variable Management'!O71) -> 1.3 | Q45: 2
A46: 1 | B46: CVCC | C46: 2.2 | D46: 2.2 | I46: Std | J46: Std | K46: =CHOOSE(Q46, 'Variable Management'!N69,'Variable Management'!N70,'Variable Management'!N71) -> 2.0 x 1.25 | L46: =CHOOSE(Q46, 'Variable Management'!O69,'Variable Management'!O70,'Variable Management'!O71) -> 2.5 | Q46: 3
A47: 1 | B47: CVIN | C47: 0.1 | D47: 0.1 | I47: Std | J47: Std | K47: =CHOOSE(Q47, 'Variable Management'!N69,'Variable Management'!N70,'Variable Management'!N71) -> 1.6 x 0.8 | L47: =CHOOSE(Q47, 'Variable Management'!O69,'Variable Management'!O70,'Variable Management'!O71) -> 1.3 | Q47: 2
A48: 1 | B48: LO | C48: ='Design Regulator'!E17 -> 5.6 | D48: ="Inductor, "&Lout2*1000000&"µH, "&Rdcr*1000&"mΩ, >"&ROUNDUP(Ilsat,0)&"A" -> Inductor, 5.6µH, 6mΩ, >18A | I48: Various | J48: Various | K48: =CHOOSE(Q48, 'Variable Management'!N78,'Variable Management'!N79,'Variable Management'!N80, 'Variable Management'!N81, 'Variable Management'!N82, 'Variable Management'!N83, 'Variable Management'!N84, 'Variable Management'!N85) -> 10.0 x 10.0 | L48: =CHOOSE(Q48, 'Variable Management'!O78,'Variable Management'!O79,'Variable Management'!O80, 'Variable Management'!O81, 'Variable Management'!O82, 'Variable Management'!O83, 'Variable Management'!O84, 'Variable Management'!O85) -> 100 | Q48: 7
A49: =R49 -> 1 | B49: Q1 | C49: See description | D49: ='Design Regulator'!E85 -> 52 | I49: ='Design Regulator'!E84 -> CSD19538Q3A | J49: TI | K49: =CHOOSE(Q49, 'Variable Management'!N48,'Variable Management'!N49,'Variable Management'!N50,'Variable Management'!N51) -> 5.0 x 6.0 | L49: =CHOOSE(Q49, 'Variable Management'!O48,'Variable Management'!O49,'Variable Management'!O50,'Variable Management'!O51)*R49 -> 30 | Q49: 1 | R49: 1
A50: =R50 -> 1 | B50: Q2 | C50: See description | D50: ='Design Regulator'!E97 -> 10 | I50: ='Design Regulator'!E96 -> NVMFS6B14NL | J50: TI | K50: =CHOOSE(Q50, 'Variable Management'!N48,'Variable Management'!N49,'Variable Management'!N50,'Variable Management'!N51) -> 5.0 x 6.0 | L50: =CHOOSE(Q50, 'Variable Management'!O48,'Variable Management'!O49,'Variable Management'!O50,'Variable Management'!O51)*R50 -> 30 | Q50: 1 | R50: 1
A52: 1 | B52: RC1 | C52: ='Design Regulator'!D74 -> 8.45 | D52: =C52 -> 8.45 | I52: Std | J52: Std | K52: =CHOOSE(Q52, 'Variable Management'!N69,'Variable Management'!N70,'Variable Management'!N71) -> 1.0 x 0.5 | L52: =CHOOSE(Q52, 'Variable Management'!O69,'Variable Management'!O70,'Variable Management'!O71) -> 0.5 | Q52: 1
A53: 1 | B53: RC2 | C53: ='Design Regulator'!D77 -> 93.1 | D53: 93.1 | I53: Std | J53: Std | K53: =CHOOSE(Q52, 'Variable Management'!N69,'Variable Management'!N70,'Variable Management'!N71) -> 1.0 x 0.5 | L53: =CHOOSE(Q53, 'Variable Management'!O69,'Variable Management'!O70,'Variable Management'!O71) -> 0.5 | Q53: 1
A54: 1 | B54: RILIM | C54: ='Design Regulator'!E26 -> 549 | D54: 549 | I54: Std | J54: Std | K54: =CHOOSE(Q52, 'Variable Management'!N69,'Variable Management'!N70,'Variable Management'!N71) -> 1.0 x 0.5 | L54: =CHOOSE(Q54, 'Variable Management'!O69,'Variable Management'!O70,'Variable Management'!O71) -> 2.5 | Q54: 3
A55: 1 | B55: RRT | C55: ='Design Regulator'!E13 -> 24.9 | D55: 24.9 | I55: Std | J55: Std | K55: =CHOOSE(Q55, 'Variable Management'!N69,'Variable Management'!N70,'Variable Management'!N71) -> 1.0 x 0.5 | L55: =CHOOSE(Q55, 'Variable Management'!O69,'Variable Management'!O70,'Variable Management'!O71) -> 0.5 | Q55: 1
A56: 1 | B56: RFB1 | C56: ='Design Regulator'!E63 -> 22.1 | D56: 22.1 | I56: Std | J56: Std | K56: =CHOOSE(Q56, 'Variable Management'!N69,'Variable Management'!N70,'Variable Management'!N71) -> 1.0 x 0.5 | L56: =CHOOSE(Q56, 'Variable Management'!O69,'Variable Management'!O70,'Variable Management'!O71) -> 0.5 | Q56: 1
A57: 1 | B57: RFB2 | C57: ='Design Regulator'!E64 -> 1.58 | D57: 1.58 | I57: Std | J57: Std | K57: =CHOOSE(Q57, 'Variable Management'!N69,'Variable Management'!N70,'Variable Management'!N71) -> 1.0 x 0.5 | L57: =CHOOSE(Q57, 'Variable Management'!O69,'Variable Management'!O70,'Variable Management'!O71) -> 0.5 | Q57: 1
A58: 1 | B58: RPGOOD | C58: 20 | D58: 20 | I58: Std | J58: Std | K58: =CHOOSE(Q58, 'Variable Management'!N69,'Variable Management'!N70,'Variable Management'!N71) -> 1.0 x 0.5 | L58: =CHOOSE(Q58, 'Variable Management'!O69,'Variable Management'!O70,'Variable Management'!O71) -> 0.5 | Q58: 1
A59: 1 | B59: RS | C59: ='Design Regulator'!E24 -> 6 | D59: 6 | H59: 1206 | I59: Std | J59: Std | K59: 3.2 x 1.6 | L59: =CHOOSE(RDSON_sense, 0,5.1) -> 0
A60: 1 | B60: RUV1 | C60: ='Design Regulator'!E53 -> N/A | D60: N/A | I60: Std | J60: Std | K60: =CHOOSE(Q60, 'Variable Management'!N69,'Variable Management'!N70,'Variable Management'!N71) -> 1.6 x 0.8 | L60: =CHOOSE(Q60, 'Variable Management'!O69,'Variable Management'!O70,'Variable Management'!O71) -> 1.3 | Q60: 2
A61: 1 | B61: RUV2 | C61: ='Design Regulator'!E54 -> N/A | D61: N/A | I61: Std | J61: Std | K61: =CHOOSE(Q61, 'Variable Management'!N69,'Variable Management'!N70,'Variable Management'!N71) -> 1.0 x 0.5 | L61: =CHOOSE(Q61, 'Variable Management'!O69,'Variable Management'!O70,'Variable Management'!O71) -> 0.5 | Q61: 1
A62: 1 | B62: RVIN | C62: 2.2 | D62: 2.2 | I62: Std | J62: Std | K62: =CHOOSE(Q62, 'Variable Management'!N69,'Variable Management'!N70,'Variable Management'!N71) -> 1.0 x 0.5 | L62: =CHOOSE(Q62, 'Variable Management'!O69,'Variable Management'!O70,'Variable Management'!O71) -> 0.5 | Q62: 1
A63: 1 | B63: U1 | C63: =CHOOSE(VARIANT, "LM5145", "LM5145-Q1", "LM25145", "LM5146", "LM5146-Q1") -> LM5146 | D63: =CHOOSE(VARIANT, "IC, LM5145, PWM Controller, 6V-75V Input", "IC, LM5145-Q1, PWM Controller, 6V-75V Input", "IC, LM25145, PWM Controller, 6V-42V Input", "IC, LM5146 PWM Controller, 5.5V-100V Input", "IC, LM5146-Q1, PWM Controller, 5.5V-100V Input") -> IC, LM5146 PWM Controller, 5.5V-100V Input | H63: VQFN-20 | I63: =CHOOSE(VARIANT, "LM5145RGYR", "LM5145QRGYRQ1", "LM25145RGYR", "LM5146RGYR", "LM5146QRGYRQ1",) -> LM5146RGYR | J63: TI | K63: 3.5 x 4.5 x 1.0 | L63: 15.75
I65: Total Solution Size (buffered by 25%) | L65: =SUM(L38:L63)*1.25 -> 330.9375 | M65: mm2 = | N65: =L65/25.4/25.4 -> 0.5129541509 | O65: in2
A66: NOTES:
A67: ** Inductor saturation current should be higher than the current limit setpoint at all operating temperatures **
A68: ** Effective output capacitance should be appropriately derated for applied voltage and temperature, particularly with ceramics **
Q455: 2

Sheet EVMs
A1: LM(2)5145/6/-Q1 Quickstart Calculator
B3: LM5146-Q1-EVM12V
B46: LM5145EVM-HD-20A PCB Layout
O50: Top
O51: Layer | Y51: x
O76: Layer 2
O102: Layer 3
O129: Bottom

Sheet Variable Management (hidden)
A1: Excel Variables Names/Calculations
B2: Input from user =
B3: Output =
B4: Constant
A5: Variable Name | B5: Value | C5: STD Units | D5: Notes | H5: iteration
A6: Step 1: Operational Specs
A7: Vin | B7: ='Design Regulator'!E7 -> 51.2 | C7: V | D7: Nominal input voltage | H7: 1 | U7: LM5145 | V7: 1
A8: Vinmin | B8: ='Design Regulator'!E6 -> 20 | C8: V | D8: Min input voltage | U8: LM5145-Q1 | V8: 2
A9: Vinmax | B9: ='Design Regulator'!E8 -> 80 | C9: V | D9: Max input voltage | U9: LM25145 | V9: 3
A10: Vout | B10: ='Design Regulator'!E9 -> 12 | C10: V | D10: Output Voltage | H10: 1 | U10: LM5146 | V10: 4
A11: Iout | B11: ='Design Regulator'!E10 -> 20 | C11: A | D11: Maximum output Current | H11: 1 | U11: LM5146-Q1 | V11: 5
A12: Fsw | B12: =IF(AND('Design Regulator'!E12<='Design Regulator'!E11*1.5, 'Design Regulator'!E12>='Design Regulator'!E11*0.8), 'Design Regulator'!E12*1000, 'Design Regulator'!E11*1000) -> 400000 | C12: Hz | D12: Nominal Operational Frequency | H12: 1 | T12: VARIANT | U12: =CHOOSE(VARIANT, "LM5145", "LM5145-Q1", "LM25145", "LM5146", "LM5146-Q1") -> LM5146 | V12: 4
A13: Fsw_freerunning | B13: ='Design Regulator'!E11*1000 -> 400000 | C13: Hz | D13: Free-running switching frequency | T13: VIN-MAX | U13: =CHOOSE(VARIANT, 75, 75, 42, 100, 100) -> 100 | V13: V
A14: Vref | B14: 0.8 | C14: V | D14: Reference Voltage | T14: VIN-MIN | U14: =CHOOSE(VARIANT, 6, 6, 6, 5.5, 5.5) -> 5.5 | V14: V
A15: R_RT | B15: =1/(B13*0.0000000001) -> 25000 | C15: W | T15: VOUT-MAX | U15: =CHOOSE(VARIANT, 60, 60, 42, 60, 60) -> 60 | V15: V
A17: Ton at Vin-max | B17: =B38/Fsw*1000000000 -> 389.0853967 | C17: ns
A18: Toff at Vin-min | B18: =B37/Fsw*1000000000 -> 892.4843424 | C18: ns
U19: External VCC Applied | V19: 1
U20: No External VCC | V20: 2
U21: Ext_VCC | V21: 1
A22: Step 2: Inductor
A23: Don1 | B23: =Vout/Vin -> 0.234375 | C23: index | D23: ideal Duty Cycle | H23: 1
A24: Doff1 | B24: =1-23:23 -> 0.765625 | C24: index | D24: Ideal 1- Duty Cycle | H24: 1
A25: Don_Vinmin | B25: =Vout/Vinmin -> 0.6
A26: Doff_Vinmin | B26: =1-B25 -> 0.4
A27: Don_Vinmax | B27: =Vout/Vinmax -> 0.15
A28: Doff_Vinmax | B28: =1-B27 -> 0.85
A30: Lout1 | B30: =(Vin-Vout)*_Don1/(Fsw*Iout*0.333) -> 3.448761261e-06 | C30: H | D30: Calculated Inductor value for 30% ripple | H30: 1
A31: Lout2 | B31: ='Design Regulator'!E17/1000000 -> 5.6e-06 | C31: H | D31: Chosen Inductor Value | H31: 2
A32: Rdcr | B32: ='Design Regulator'!E18/1000 -> 0.006 | C32: W | D32: DCR | H32: 1
A34: Don2 | B34: =(Vout+(Rdcr+RdsonBot)*Iout)/(Vin+(RdsonBot-RdsonTop)*Iout) -> 0.2446386021 | D34: Duty Cycle with DCR accounted for | H34: 2
A35: Doff2 | B35: =1-_Don2 -> 0.7553613979 | D35: 1-Duty Cycle with DCR accounted for | H35: 2
A36: Don2_Vinmin | B36: =(Vout+(Rdcr+RdsonBot)*Iout)/(Vinmin+(RdsonBot-RdsonTop)*Iout) -> 0.643006263
A37: Doff2_Vinmin | B37: =1-B36 -> 0.356993737
A38: Don2_Vinmax | B38: =(Vout+(Rdcr+RdsonBot)*Iout)/(Vinmax+(RdsonBot-RdsonTop)*Iout) -> 0.1556341587 | L38: Vout<5V | M38: 100 | N38: 1
A39: Doff2_Vinmax | B39: =1-B38 -> 0.8443658413 | L39: Vout<=8V | M39: 47 | N39: 2
L40: Vout<=12V | M40: 22 | N40: 3
A41: Vripple1 | B41: ='Design Regulator'!E31/1000 -> 0.2 | C41: V | D41: Choosen Initial Voltage ripple Value | H41: 1 | L41: Vout<=20V | M41: 22 | N41: 4
A42: Irripple1 | B42: =(Vin-Vout)*_Don2/(Fsw*Lout2) -> 4.281175536 | C42: A | D42: Ripple Current after Chosen inductor (p-p) | H42: 1 | L42: Vout<=42V | M42: 10 | N42: 5
A43: DCR at hot | B43: =Rdcr*(1+0.0039*(F43-25)) -> 0.007755 | C43: Ohms | E43: Temp | F43: 100 | L43: Vout<60V | M43: 4.7 | N43: 6
A44: TL | B44: =Lout2/Rdcr -> 0.0009333333333 | C44: s | D44: L/R Time Constant | L44: Cout Capacitance | M44: =CHOOSE(N44,"100", "47","22","22","10", "4.7") -> 22 | N44: =IF(Vout<5, 1, IF(Vout<=8, 2, IF(Vout<=12, 3, IF(Vout<=20, 4, IF(Vout<=42, 5, 6))))) -> 3 | Q44: Quantity: 1 | R44: 1
Q45: Quantity: 2 | R45: 2
A46: Step 3: Current Limit
L48: SON 5 x 6 | M48: 1 | N48: 5.0 x 6.0 | O48: 30
A49: DC Current Limit Setpoint | B49: ='Design Regulator'!E25 -> 13 | L49: SON 3 x 3 | M49: 2 | N49: 3.3 x 3.3 | O49: 10.9
A50: Ilimit | B50: ='Design Regulator'!E25-Iripple1/2 -> 10.85941223 | C50: A | D50: Chosen current limit level - valley current | L50: DPAK, TO-252 | M50: 3 | N50: 10.0 x 6.6 | O50: 66
A51: Ilsat | B51: =ROUND('Design Regulator'!E25+Iripple1/2,0)*1.2 -> 18 | C51: A | L51: D2PAK, TO-263 | M51: 4 | N51: 15.0 x 10.0 | O51: 150
K52: MOSFET package | L52: =CHOOSE(M52, L48, L49, L50, L51) -> SON 5 x 6 | M52: 1
A53: Ilim1 | B53: 0.0002 | C53: A | D53: Current Limit Current Source - Rdson sensing
A54: Ilim2 | B54: 0.0001 | C54: A | D54: Current Limit Current Source - shunt sensing | L54: RDS(on) sensing | M54: 1
A55: Rilim_Rdson_ideal | B55: =ILimit*RdsonBot/Ilim1 -> 542.9706116 | C55: W | D55: Ideal Rset for the chosen current limit | L55: Shunt sensing | M55: 2
A56: Rilim_Rdson | B56: ='Standard Value Calculator'!S6 -> 549 | C56: W | D56: Standard value current limit set resistor | K56: Current Sensing | L56: =CHOOSE(RDSON_sense, L54,L55) -> RDS(on) sensing | M56: 1 | N56: 1 = Yes, 2 = No
A58: Rshunt | B58: ='Design Regulator'!E24/1000 -> 0.006 | C58: W
A59: Rilim_shunt_ideal | B59: =ILimit*Rshunt/Ilim2 -> 651.5647339 | C59: W | K59: Vout<5V | L59: 6.3V | M59: 1
A60: Rilim_shunt | B60: ='Standard Value Calculator'!S22 -> 649 | C60: W | D60: Standard value current limit set resistor | K60: Vout<=8V | L60: 10V | M60: 2 | Q60: Vin(max)<=8V | R60: 10V | S60: 1
K61: Vout<=12V | L61: 16V | M61: 3 | Q61: Vin(max)<=12V | R61: 16V | S61: 2
A62: Power dissipation in the shunt | B62: =ROUND(((1-Don_Vinmax)*Iout)^2*Rshunt,2) -> 1.73 | C62: W | K62: Vout<=20V | L62: 25V | M62: 4 | Q62: Vin(max)<=20V | R62: 25V | S62: 3
A64: Cilim | B64: =0.000000006/Rilim_Rdson_ideal - 0.000000000002 -> 9.050321826e-12 | C64: F | D64: Choose cap for 6ns time constant | K64: Vout<=42V | L64: 50V | M64: 5 | Q64: Vin(max)<=42V | R64: 50V | S64: 4
A65: Cilim_ideal | B65: ='Standard Value Calculator'!S23 -> 8.2 | C65: pF | K65: Vout<60V | L65: 100V | M65: 6 | Q65: Vin(max)<100V | R65: 100V | S65: 5
A66: Ilimit2 | B66: =Ics*Rset/Rdcr-Iripple1/2 ->  | C66: A | D66: Current limit setpoint after standard components are selected | K66: Cout Voltage Rating | L66: =CHOOSE(M66,"6.3V","10V","16V","25V","50V","100V") -> 16V | M66: =IF(Vout<5, 1, IF(Vout<=8, 2, IF(Vout<=12, 3, IF(Vout<=20, 4, IF(Vout<=42, 5, 6))))) -> 3 | Q66: Cin Voltage Rating | R66: =CHOOSE(S66,"10V","16V","25V","50V","100V") -> 100V | S66: =IF(Vinmax<=8,1,IF(Vinmax<=12,2,IF(Vinmax<=20,3,IF(Vinmax<=42,4,5)))) -> 5
A68: Step 4: Output Capacitor
A69: Icoutrms | B69: =Iripple1/SQRT(3)/2 -> 1.235868924 | C69: A | D69: Output Cap rms current | L69: 0402 | M69: 1 | N69: 1.0 x 0.5 | O69: 0.5
A70: Coutmin | B70: =(Iripple1/(Vripple1*Fsw*8)) -> 6.689336775e-06 | C70: F | D70: Minimum Output Capacitnace | H70: 1 | L70: 0603 | M70: 2 | N70: 1.6 x 0.8 | O70: 1.3
A71: Cout | B71: ='Design Regulator'!E33/1000000 -> 0.00012 | C71: F | D71: Choosen Output Capacitor | H71: 1 | L71: 0805 | M71: 3 | N71: 2.0 x 1.25 | O71: 2.5
A72: Resrmax | B72: =SQRT((Vripple1/Iripple1)^2-(1/(Fsw*Cout*8))^2) -> 0.04664350058 | C72: W | D72: Max ESR before ripple exceeds Vripple1 | H72: 1 | L72: 1206 | M72: 4 | N72: 3.2 x 1.6 | O72: 5.1
A73: CoutEsr | B73: ='Design Regulator'!E35/1000 -> 0.001 | C73: W | D73: Chosen ESR | H73: 1 | L73: 1210 | M73: 5 | N73: 3.2 x 2.5 | O73: 8
A74: Vripple | B74: =Iripple1*SQRT(CoutEsr^2+(1/(8*Fsw*Cout))^2) -> 0.01194262598 | C74: Vp-p | K74: Component Size | L74: =CHOOSE(M74,"0402","0603","0805","1206","1210") -> 1210 | M74: 5 | N74: =CHOOSE(M74,N69,N70, N71,N72,N73) -> 3.2 x 2.5
A77: Step 5: Input Capacitor
A78: Vinripple1 | B78: ='Design Regulator'!E40/1000 -> 0.48 | C78: Vp-p | L78: 3mm x 3mm | M78: 1 | N78: 3.0 x 3.0 | O78: 9
A79: Icinrms | B79: =Iout*SQRT(_Don2*Doff2) -> 8.597454424 | C79: A | L79: 4mm x 4mm | M79: 2 | N79: 4.0 x 4.0 | O79: 16
A80: Cinmin | B80: =Iout*_Don2*(1-_Don2)/(Vinripple1*Fsw) -> 1.92490163e-05 | C80: F | L80: 5mm x 5mm | M80: 3 | N80: 5.0 x 5.0 | O80: 25
A81: Cin | B81: ='Design Regulator'!E42/1000000 -> 3e-05 | C81: F | D81: Input capacitance | L81: 6mm x 6mm | M81: 4 | N81: 6.0 x 6.0 | O81: 36
A82: CinEsrMax | B82: =-(Iout*_Don2*(1-_Don2)/(Cin*Fsw)-Vinripple1)/(Iout+Iripple1/2) -> 0.007769248995 | C82: W | L82: 7mm x 7mm | M82: 5 | N82: 7.0 x 7.0 | O82: 49
A83: RCinEsr | B83: ='Design Regulator'!E44/1000 -> 0.002 | C83: W | D83: Input capacitance series resistance (ESR) | L83: 8mm x 8mm | M83: 6 | N83: 8.0 x 8.0 | O83: 64
A84: Vinripple2 | B84: =Iout*_Don2*(1-_Don2)/(Cin*Fsw)+(Iout +Iripple1/2)*RCinEsr -> 0.3522654363 | C84: Vp-p | L84: 10mm x 10mm | M84: 7 | N84: 10.0 x 10.0 | O84: 100
B85: =Iout*_Don1*(1-_Don1)/(Cin*Fsw) -> 0.2990722656 | L85: 12mm x 12mm | M85: 8 | N85: 12.0 x 12.0 | O85: 144
K86: Inductor Size | L86: =CHOOSE(M86,L78,L79, L80, L81, L82, L83, L84, L85) -> 12mm x 12mm | M86: 8 | N86: =CHOOSE(M86,N78,N79, N80,N81,N82, N83, N84, N85) -> 12.0 x 12.0
A87: Step 6: Soft Start
A88: Tss | B88: ='Design Regulator'!E49/1000 -> 0.02 | C88: s | D88: Soft Start Time
A89: Iss | B89: =Cout*Vout/Tss -> 0.072 | C89: A | D89: Load Cap current during soft start
A90: Css | B90: =0.00001*Tss/0.8 -> 2.5e-07 | C90: F
A91: Css_u | B91: ='Standard Value Calculator'!B4 -> 2.7e-07 | C91: F
A93: Step 7: Other Components
A95: VINUVLO_ON | B95: ='Design Regulator'!E51 -> 20 | C95: V
A96: VINUVLO_OFF | B96: ='Design Regulator'!E52 -> 25 | C96: V
A97: RUV1 | B97: =(VINuvlo_off-VINuvlo_on*Vuvlo_off/Vuvlo_on)/(Iuvlo1*Vuvlo_off/Vuvlo_on-Iuvlo2) -> -500 | C97: kΩ | D97: ='Standard Value Calculator'!S16 ->  | E97: kΩ | F97: =IF(Ruvlo1<0,"N/A",D97) -> N/A | G97: =IF(Ruvlo1<0,"N/A",D97&"kΩ") -> N/A
A98: RUV2 | B98: =D97*Vuvlo_on/(VINuvlo_on-Vuvlo_on+Ruvlo1*Iuvlo1) ->  | C98: kΩ | D98: ='Standard Value Calculator'!S17 ->  | E98: kΩ | F98: =IF(F97="N/A","N/A",D98) -> N/A | G98: =IF(G97="N/A","N/A",D98&"kΩ") -> N/A
A100: VINUVLO_ON_ACTUAL | B100: =(D97+D98)/D98*Vuvlo_on-Iuvlo1*D97 -> 
A101: VINUVLO_OFF_ACTUAL | B101: =(D97+D98)/D98*Vuvlo_off-Iuvlo2*D97 -> 
A104: Rising UVLO/EN Threshold | B104: 1.2
A105: Falling UVLO/EN Threshold | B105: 1.2
A106: Falling UVLO/EN Threshold | B106: =B104-B105 -> 0
A107: UVLO/EN Current Hysteresis | B107: 0
A108: Falling UVLO/EN Falling | B108: 0.01
A109: Rising UVLO/EN Hysteresis | B109: =B108-B107 -> 0.01
A111: RPG | C111: W
A112: RSB | C112: W
A113: Rh | C113: W
A114: Rotp | B114: =80700/(Totp+273)*398 ->  | C114: W
A117: CSBY | B117: 100 | C117: pF
A121: Step 8: Compensation
A122: Eadcg | B122: 10000 | C122: V/V | D122: Error Amplifier Finite DC Gain (AOL)
A123: GBP | B123: 5000000 | C123: Hz | D123: Error Amplifier Gain Bandwidth Product (GBW)
A124: Chosen Crossover | B124: ='Design Regulator'!E61*1000 -> 35000 | C124: Hz
A125: Kmidband | B125: =Fcross/Fo/15 -> 0.3784793318 | C125: V/V | D125: Midband Gain For the Error Amplifier | H125: 1
A126: Rfb1 | B126: ='Design Regulator'!E63*1000 -> 22100 | C126: W | D126: Top Feedback Resistor | H126: 1
A127: Rfb2 | B127: =IF(Vout=Vref,100000000,Vref/((Vout-Vref)/_Rfb1)) -> 1578.571429 | C127: W | D127: Lower Feedback Resistor
A128: Rfb2_u | B128: =IF(Vout=Vref,"N/A",'Standard Value Calculator'!S11) -> 1580 | C128: W | D128: Calculated Lower Feedback Resistor
A129: Vout_actual | B129: =0.8/Rfb2_u*(Rfb2_u+_Rfb1) -> 11.98987342 | C129: V | D129: Actual VOUT
A131: Vramp | B131: =Vin/15 -> 3.413333333 | C131: Vp-p | D131: Peak-to-Peak Ramp Voltage of PWM
A132: Rcea1 | B132: =Kmidband*_Rfb1 -> 8364.393232 | C132: W | D132: This component will first set the midband gain | H132: 1
A133: Cc1ea | B133: =1/(Rcea1*('Design Regulator'!E67*1000)*2*Pi) -> 4.409131312e-09 | C133: F | D133: This along with Rcea1 will set a zero | H133: 1
A134: Cc2ea | B134: =1/((Rcea1*2*Pi*'Design Regulator'!E70*1000)-1/Cc1ea) -> 9.723649529e-11 | C134: F | H134: 1
A135: Rcea2 | B135: =(1/(1000*2*Pi*'Design Regulator'!E69))*_Rfb1/(1/('Design Regulator'!E68*1000*2*Pi)-(1/(1000*2*Pi*'Design Regulator'!E69))) -> 92.84343279 | C135: W | H135: 1
A136: Cc3ea | B136: =(1/(1000*2*Pi*'Design Regulator'!E69))/Rcea2 -> 1.292498526e-09 | C136: F | H136: 1
A138: Choosen Compensation Components from the standard value sheet
A139: Rcea1_u | B139: ='Design Regulator'!D74*1000 -> 8450 | C139: W | H139: 2
A140: Cc1ea_u | B140: ='Design Regulator'!D75*0.000000000001 -> 4.7e-09 | C140: F | H140: 2
A141: Cc2ea_u | B141: ='Design Regulator'!D76*0.000000000001 -> 1e-10 | C141: F | H141: 2
A142: Rcea2_u | B142: ='Design Regulator'!D77 -> 93.1 | C142: W | H142: 2
A143: Cc3ea_u | B143: ='Design Regulator'!D78*0.000000000001 -> 1.2e-09 | C143: F | H143: 2
A145: Resulting Poles/Zero/Q Locations | D145: =Cout -> 0.00012 | E145: =CoutEsr -> 0.001
A146: Fo | B146: =SQRT((Rfets+Rdcr+Ro)/(Cout*Lout2*(CoutEsr+Ro)))/(2*Pi) -> 6165.021805 | C146: Hz | D146: LC Double Pole Location
A147: Q | B147: =(Rfets+Rdcr+Ro)/(Lout2+Cout*(Rdcr+Rfets)*(CoutEsr+Ro)+Cout*CoutEsr*Ro)/(Fo*2*Pi) -> 2.562609329 | C147: V/V | D147: Quality Factor of LC output Filter
A148: Fesr | B148: =1/(2*Pi*Cout*CoutEsr) -> 1326291.194 | C148: Hz | D148: Cout ESR Zero Location
A149: Fz1 | B149: =1/(2*Pi*Rcea1_u*Cc1ea_u) -> 4007.426496 | C149: Hz | D149: This zero is set at or below the double pole location
A150: Fz2 | B150: =1/(2*Pi*Cc3ea_u*(_Rfb1+Rcea2_u)) -> 5976.142107 | C150: Hz | D150: This zero is set at or below the double pole location
A151: Fp1 | B151: =1/(2*Pi*Rcea2_u*Cc3ea_u) -> 1424587.749 | C151: Hz | D151: This pole cancels the zero from the Output Cap ESR
A152: Fp2 | B152: =1/(2*Pi*Rcea1_u*(Cc1ea_u*Cc2ea_u/(Cc1ea_u+Cc2ea_u))) -> 192356.4718 | C152: Hz | D152: This pole is set at half the switching frequency
A153: Ro | B153: =Vout/(Iout+Vref/_Rfb2) -> 0.5999847968 | D153: Output Resistance
A154: Pi | B154: 3.14159265 | D154: PI
A155: Other Input Variables
A156: Rfets | B156: 0 | C156: W | D156: Series resistance due to FETs | G156: =_Don2*RdsonTop+Doff2*RdsonBot+B161*Vin^2*Fsw/2/(((Iripple1/SQRT(3))^2)) -> 0.4493516939
A158: Diode loss eq res | B158: =0.00000002*Fsw*0.6*4/Iripple1 -> 0.004484749536
A159: Fet loss eq res | B159: =_Don2*RdsonTop+Doff2*RdsonBot -> 0.02027482129
A160: cap loss eq res | B160: =B161*Vin^2*Fsw/2/(((Iripple1/SQRT(3))^2)) -> 0.4290768726
A161: Sw cap | B161: 5e-09
A164: Step 8: Efficiency
A166: Design
A167: Ta | B167: 25 | D167: Ambient Temperature
A168: Components
A169: LTc | B169: =4000/1000000 -> 0.004 | C169: %/°C | D169: Inductor Series Resistance Temp Co
A170: ThetaCa | B170: 20 | C170: °C/W | D170: Core to Ambient Thermal Resistance
A171: RCinEsr | B171: =RCinEsr -> 0.002 | C171: W | D171: Input Capacitor Series Resistance
A172: Part Characteristics
A173: Vcc | B173: 7.5
A174: Top Driver
A175: RdsonDRT | B175: 1 | C175: W | D175: Drain to Source Resistance of pull up Top FET Driver
A176: RdsonDRT2 | B176: 0.9 | C176: W | D176: Drain to Source Resistance of pull down Top FET Driver
A177: Bottom Driver
A178: RdsonDRB | B178: 1 | C178: W | D178: Drain to Source Resistance of pull up Top FET Driver
A179: RdsonDRB2 | B179: 0.9 | C179: W | D179: Drain to Source Resistance of pull down Top FET Driver
A180: Deadtime | D180: Output Capacitor Capcitance
A181: Deadtime | B181: 3e-08 | C181: s | D181: Total Deadtime
A182: IQ
A183: IQ | B183: 0.002 | C183: A | D183: Quiescent Current Of Controller (Not Switching!)
A184: Top FET
A185: RdsonTop | B185: ='Design Regulator'!E85/1000 -> 0.052 | C185: W | D185: Drain to Source Resistance of Top FET
A186: RdsonTopTc | B186: =4000/1000000 -> 0.004 | C186: %/°C | D186: Drain to Source Resistance Temp Co
A187: QgTop | B187: ='Design Regulator'!E86/1000000000 -> 3.2e-09 | C187: C | D187: Gate Charge Of Top FET
A188: QgdTop | B188: ='Design Regulator'!E87/1000000000 -> 8e-10 | C188: C | D188: Gate to Drain Charge
A189: QgsTop | B189: ='Design Regulator'!E88/1000000000 -> 1.6e-09 | C189: C | D189: Gate to Source Charge
A190: CossTop | B190: ='Design Regulator'!E89/1000000000000 -> 6.9e-11 | C190: F | D190: Output Capacitance of High-side FET
A191: RGateTop | B191: ='Design Regulator'!E90 -> 4.6 | C191: W | D191: Gate Resistance of High-side FET
A192: GfsTop | B192: ='Design Regulator'!E91 -> 45 | C192: S | D192: Transconductance of Top FET
A193: VthTop | B193: ='Design Regulator'!E92 -> 5 | C193: V | D193: Threshold Voltage of Top FET
A194: VspTop | B194: =VthTop+Iout/GmTop -> 5.444444444 | C194: V | D194: Switch Point Voltage of Top FET
A195: VsdTop | B195: ='Design Regulator'!E93 -> 0.8 | C195: V | D195: Diode Forward Voltage of Top FET Body diode
A196: ThetaJaTop | B196: ='Design Regulator'!E94 -> 55 | C196: °C/W | D196: Junction to Ambient Resistance
A197: Bottom FET
A198: RdsonBot | B198: ='Design Regulator'!E97/1000 -> 0.01 | C198: W | D198: Drain To Source Resistance of Bottom FET Driver
A199: RdsonBotTc | B199: =4000/1000000 -> 0.004 | C199: %/°C | D199: Drain To Source Resitance Temp Co
A200: QgBot | B200: ='Design Regulator'!E98/1000000000 -> 1.3e-08 | C200: C | D200: Gate Charge Of Bottom FET | J200: =RGateTop -> 4.6
A201: QossBot | B201: ='Design Regulator'!E99/1000000000 -> 2e-08 | C201: C | D201: Output Charge Of Bottom FET
A202: CossBot | B202: ='Design Regulator'!E100/1000000000000 -> 5.8e-10 | C202: F | D202: Output Capacitance Of Bottom FET
A203: RGateBot | B203: 1 | C203: W | D203: Gate Resistance
A204: VsdBot | B204: ='Design Regulator'!E101 -> 0.9 | C204: V | D204: Diode Forward Voltage of Bottom FET Body Diode
A205: QrrBot | B205: ='Design Regulator'!E102/1000000000 -> 5e-08 | C205: C | D205: Reverse Recovery Charge of Body Diode
A206: TrrBot | B206: 4e-08 | C206: s | D206: Reverse Recovery Time of Body Diode
A207: ThetaJaBot | B207: ='Design Regulator'!E103 -> 40 | C207: °C/W | D207: Junction to Ambient Resistance
A208: Bottom Schottky
A209: VfdSky | B209: ='Design Regulator'!E105 -> 0 | C209: V | D209: Diode Forward Voltage
A210: QrrSky | B210: 0 | C210: C | D210: Diode Reverse Recovery Charge
A211: Ireverse | B211: 0 | C211: A | D211: Reverse Leakage Current
A212: Controller
A213: ThetaJaCtrl | B213: 30
A214: Outputs
A215: Top FET
A216: Tr | B216: =(QgdTop+QgsTop/2)*(RdsonDRT+RGateTop)/(Vdd-VspTop) -> 4.358918919e-09 | C216: s
A217: Tf | B217: =(QgdTop+QgsTop/2)*(RdsonDRT+RGateTop)/(VspTop) -> 1.645714286e-09 | C217: s
A220: Part Power Disipation | B220: Value | C220: Units
A221: Power Dis | B221: ='Power Calculations'!AN9 -> 0.151 | C221: W
A222: Temp rise | B222: =B221*ThetaJaCtrl -> 4.53 | C222: °C
A223: Current (switching) | B223: =(QgBot+QgTop)*Fsw+Iq -> 0.00848 | C223: A
A224: Qrr Current | B224: =QrrBot*Fsw -> 0.02 | C224: A
A225: Diode Current | B225: =C225/Vin -> 0.0001515129603 | C225: =Deadtime*Fsw*(Ipp/2)*(VsdTop+VsdBot) -> 0.007757463568
A226: Total Application Switching IQ | B226: =SUM(B223:B225) -> 0.02863151296 | C226: A
A232: Bottom FET/Diode
A233: Part Power
A234: Power Dis
... 62 more rows

Sheet Standard Value Calculator (hidden)
A2: Capacitors | B2: Css | C2: Cc1ea | D2: Cc2ea | E2: Cc3ea | F2: Cout | G2: Cin | H2: Cilim | I2: Cdd | J2: Csb | K2: Csby | L2: Cby | M2: Cb | N2: Sugested Cs
A3: Inputs | B3: =Css -> 2.5e-07 | C3: =Cc1ea -> 4.409131312e-09 | D3: =Cc2ea -> 9.723649529e-11 | E3: =Cc3ea -> 1.292498526e-09 | F3: =Cout -> 0.00012 | G3: =Cin -> 3e-05 | H3: =Cilim -> 9.050321826e-12 | I3: =Cdd -> 0 | J3: =Csb -> 0 | K3: =Csby -> 100 | L3: =Cby -> 0 | M3: =Cb -> 0 | N3: ='Variable Management'!#REF! ->  | Q3: Resistors | R3: inputs | S3: Standard Result
A4: Standard Result | B4: =SUM(B6:B158)/1000000000000 -> 2.7e-07 | C4: =SUM(C6:C158)/1000000000000 -> 4.7e-09 | D4: 1e-10 | E4: 1.2e-09 | F4: 0.00012 | G4: 3.3e-05 | H4: 8.2e-12 | I4: =IF(I3="OPEN","OPEN",SUM(I6:I158)/1000000000000) -> 0 | J4: 0 | K4: 0 | L4: 0 | M4: 0 | Q4: Radj | R4: =Rfadj -> 25000 | S4: =IF(R4>(INT(0.5+100*POWER(10,IF(96*(LOG(R4)-INT(LOG(R4)))-ROUND(96*(LOG(R4)-INT(LOG(R4))),0)<0,ROUND(96*(LOG(R4)-INT(LOG(R4))),0)-1,ROUND(96*(LOG(R4)-INT(LOG(R4))),0))/96))*POWER(10,INT(LOG(R4))-2)+INT(0.5+100*POWER(10,(IF(96*(LOG(R4)-INT(LOG(R4)))-ROUND(96*(LOG(R4)-INT(LOG(R4))),0)<0,ROUND(96*(LOG(R4)-INT(LOG(R4))),0)-1,ROUND(96*(LOG(R4)-INT(LOG(R4))),0))+1)/96))*POWER(10,INT(LOG(R4))-2))/2,INT(0.5+100*POWER(10,(IF(96*(LOG(R4)-INT(LOG(R4)))-ROUND(96*(LOG(R4)-INT(LOG(R4))),0)<0,ROUND(96*(LOG(R4)-INT(LOG(R4))),0)-1,ROUND(96*(LOG(R4)-INT(LOG(R4))),0))+1)/96))*POWER(10,INT(LOG(R4))-2),INT(0.5+100*POWER(10,IF(96*(LOG(R4)-INT(LOG(R4)))-ROUND(96*(LOG(R4)-INT(LOG(R4))),0)<0,ROUND(96*(LOG(R4)-INT(LOG(R4))),0)-1,ROUND(96*(LOG(R4)-INT(LOG(R4))),0))/96))*POWER(10,INT(LOG(R4))-2)) -> 24900 | T4: Ω
A5: (pF) | Q5: Rilim_Rdson | R5: =Rilim_Rdson_ideal -> 542.9706116 | S5: 549 | T5: Ω
A6: 0.47 | B6: =IF(IF((B$3*10^12-$A7)*(B$3*10^12-$A6)*-1<0,0,1)*IF(ABS(B$3*10^12-$A7)>(B$3*10^12-$A6),$A6,$A7)=B7,0,IF((B$3*10^12-$A7)*(B$3*10^12-$A6)*-1<0,0,1)*IF(ABS(B$3*10^12-$A7)>(B$3*10^12-$A6),$A6,$A7)) -> 0 | C6: =IF(IF((C$3*10^12-$A7)*(C$3*10^12-$A6)*-1<0,0,1)*IF(ABS(C$3*10^12-$A7)>(C$3*10^12-$A6),$A6,$A7)=C7,0,IF((C$3*10^12-$A7)*(C$3*10^12-$A6)*-1<0,0,1)*IF(ABS(C$3*10^12-$A7)>(C$3*10^12-$A6),$A6,$A7)) -> 0 | D6: =IF(IF((D$3*10^12-$A7)*(D$3*10^12-$A6)*-1<0,0,1)*IF(ABS(D$3*10^12-$A7)>(D$3*10^12-$A6),$A6,$A7)=D7,0,IF((D$3*10^12-$A7)*(D$3*10^12-$A6)*-1<0,0,1)*IF(ABS(D$3*10^12-$A7)>(D$3*10^12-$A6),$A6,$A7)) -> 0 | E6: =IF(IF((E$3*10^12-$A7)*(E$3*10^12-$A6)*-1<0,0,1)*IF(ABS(E$3*10^12-$A7)>(E$3*10^12-$A6),$A6,$A7)=E7,0,IF((E$3*10^12-$A7)*(E$3*10^12-$A6)*-1<0,0,1)*IF(ABS(E$3*10^12-$A7)>(E$3*10^12-$A6),$A6,$A7)) -> 0 | F6: =IF(IF((F$3*10^12-$A7)*(F$3*10^12-$A6)*-1<0,0,1)*IF(ABS(F$3*10^12-$A7)>(F$3*10^12-$A6),$A6,$A7)=F7,0,IF((F$3*10^12-$A7)*(F$3*10^12-$A6)*-1<0,0,1)*IF(ABS(F$3*10^12-$A7)>(F$3*10^12-$A6),$A6,$A7)) -> 0 | G6: =IF(IF((G$3*10^12-$A7)*(G$3*10^12-$A6)*-1<0,0,1)*IF(ABS(G$3*10^12-$A7)>(G$3*10^12-$A6),$A6,$A7)=G7,0,IF((G$3*10^12-$A7)*(G$3*10^12-$A6)*-1<0,0,1)*IF(ABS(G$3*10^12-$A7)>(G$3*10^12-$A6),$A6,$A7)) -> 0 | H6: =IF(IF((H$3*10^12-$A7)*(H$3*10^12-$A6)*-1<0,0,1)*IF(ABS(H$3*10^12-$A7)>(H$3*10^12-$A6),$A6,$A7)=H7,0,IF((H$3*10^12-$A7)*(H$3*10^12-$A6)*-1<0,0,1)*IF(ABS(H$3*10^12-$A7)>(H$3*10^12-$A6),$A6,$A7)) -> 0 | I6: 0 | J6: 0 | K6: 0 | L6: =IF(IF((L$3*10^12-$A7)*(L$3*10^12-$A6)*-1<0,0,1)*IF(ABS(L$3*10^12-$A7)>(L$3*10^12-$A6),$A6,$A7)=L7,0,IF((L$3*10^12-$A7)*(L$3*10^12-$A6)*-1<0,0,1)*IF(ABS(L$3*10^12-$A7)>(L$3*10^12-$A6),$A6,$A7)) -> 0 | M6: =IF(IF((M$3*10^12-$A7)*(M$3*10^12-$A6)*-1<0,0,1)*IF(ABS(M$3*10^12-$A7)>(M$3*10^12-$A6),$A6,$A7)=M7,0,IF((M$3*10^12-$A7)*(M$3*10^12-$A6)*-1<0,0,1)*IF(ABS(M$3*10^12-$A7)>(M$3*10^12-$A6),$A6,$A7)) -> 0 | N6: =IF(IF((N$3*10^12-$A7)*(N$3*10^12-$A6)*-1<0,0,1)*IF(ABS(N$3*10^12-$A7)>(N$3*10^12-$A6),$A6,$A7)=N7,0,IF((N$3*10^12-$A7)*(N$3*10^12-$A6)*-1<0,0,1)*IF(ABS(N$3*10^12-$A7)>(N$3*10^12-$A6),$A6,$A7)) ->  | Q6: Rilim_Rdson | R6: =Rilim_Rdson_ideal -> 542.9706116 | S6: 549 | T6: Ω
A7: 0.56 | B7: =IF(IF((B$3*10^12-$A8)*(B$3*10^12-$A7)*-1<0,0,1)*IF(ABS(B$3*10^12-$A8)>(B$3*10^12-$A7),$A7,$A8)=B8,0,IF((B$3*10^12-$A8)*(B$3*10^12-$A7)*-1<0,0,1)*IF(ABS(B$3*10^12-$A8)>(B$3*10^12-$A7),$A7,$A8)) -> 0 | C7: =IF(IF((C$3*10^12-$A8)*(C$3*10^12-$A7)*-1<0,0,1)*IF(ABS(C$3*10^12-$A8)>(C$3*10^12-$A7),$A7,$A8)=C8,0,IF((C$3*10^12-$A8)*(C$3*10^12-$A7)*-1<0,0,1)*IF(ABS(C$3*10^12-$A8)>(C$3*10^12-$A7),$A7,$A8)) -> 0 | D7: 0 | E7: 0 | F7: 0 | G7: 0 | H7: 0 | I7: 0 | J7: 0 | K7: 0 | L7: 0 | M7: 0
A8: 0.68 | B8: 0 | C8: 0 | D8: 0 | E8: 0 | F8: 0 | G8: 0 | H8: 0 | I8: 0 | J8: 0 | K8: 0 | L8: 0 | M8: 0 | Q8: Rc1ea | R8: =Rcea1 -> 8364.393232 | S8: =IF(R8>(INT(0.5+100*POWER(10,IF(96*(LOG(R8)-INT(LOG(R8)))-ROUND(96*(LOG(R8)-INT(LOG(R8))),0)<0,ROUND(96*(LOG(R8)-INT(LOG(R8))),0)-1,ROUND(96*(LOG(R8)-INT(LOG(R8))),0))/96))*POWER(10,INT(LOG(R8))-2)+INT(0.5+100*POWER(10,(IF(96*(LOG(R8)-INT(LOG(R8)))-ROUND(96*(LOG(R8)-INT(LOG(R8))),0)<0,ROUND(96*(LOG(R8)-INT(LOG(R8))),0)-1,ROUND(96*(LOG(R8)-INT(LOG(R8))),0))+1)/96))*POWER(10,INT(LOG(R8))-2))/2,INT(0.5+100*POWER(10,(IF(96*(LOG(R8)-INT(LOG(R8)))-ROUND(96*(LOG(R8)-INT(LOG(R8))),0)<0,ROUND(96*(LOG(R8)-INT(LOG(R8))),0)-1,ROUND(96*(LOG(R8)-INT(LOG(R8))),0))+1)/96))*POWER(10,INT(LOG(R8))-2),INT(0.5+100*POWER(10,IF(96*(LOG(R8)-INT(LOG(R8)))-ROUND(96*(LOG(R8)-INT(LOG(R8))),0)<0,ROUND(96*(LOG(R8)-INT(LOG(R8))),0)-1,ROUND(96*(LOG(R8)-INT(LOG(R8))),0))/96))*POWER(10,INT(LOG(R8))-2)) -> 8450 | T8: Ω
A9: 0.82 | B9: 0 | C9: 0 | D9: 0 | E9: 0 | F9: 0 | G9: 0 | H9: 0 | I9: 0 | J9: 0 | K9: 0 | L9: 0 | M9: 0 | Q9: Rc2ea | R9: =Rcea2 -> 92.84343279 | S9: =IF(R9>(INT(0.5+100*POWER(10,IF(96*(LOG(R9)-INT(LOG(R9)))-ROUND(96*(LOG(R9)-INT(LOG(R9))),0)<0,ROUND(96*(LOG(R9)-INT(LOG(R9))),0)-1,ROUND(96*(LOG(R9)-INT(LOG(R9))),0))/96))*POWER(10,INT(LOG(R9))-2)+INT(0.5+100*POWER(10,(IF(96*(LOG(R9)-INT(LOG(R9)))-ROUND(96*(LOG(R9)-INT(LOG(R9))),0)<0,ROUND(96*(LOG(R9)-INT(LOG(R9))),0)-1,ROUND(96*(LOG(R9)-INT(LOG(R9))),0))+1)/96))*POWER(10,INT(LOG(R9))-2))/2,INT(0.5+100*POWER(10,(IF(96*(LOG(R9)-INT(LOG(R9)))-ROUND(96*(LOG(R9)-INT(LOG(R9))),0)<0,ROUND(96*(LOG(R9)-INT(LOG(R9))),0)-1,ROUND(96*(LOG(R9)-INT(LOG(R9))),0))+1)/96))*POWER(10,INT(LOG(R9))-2),INT(0.5+100*POWER(10,IF(96*(LOG(R9)-INT(LOG(R9)))-ROUND(96*(LOG(R9)-INT(LOG(R9))),0)<0,ROUND(96*(LOG(R9)-INT(LOG(R9))),0)-1,ROUND(96*(LOG(R9)-INT(LOG(R9))),0))/96))*POWER(10,INT(LOG(R9))-2)) -> 93.1 | T9: Ω
A10: 1 | B10: 0 | C10: 0 | D10: 0 | E10: 0 | F10: 0 | G10: 0 | H10: 0 | I10: 0 | J10: 0 | K10: 0 | L10: 0 | M10: 0 | Q10: Rfb1 | R10: =_Rfb1 -> 22100 | S10: =IF(R10>(INT(0.5+100*POWER(10,IF(96*(LOG(R10)-INT(LOG(R10)))-ROUND(96*(LOG(R10)-INT(LOG(R10))),0)<0,ROUND(96*(LOG(R10)-INT(LOG(R10))),0)-1,ROUND(96*(LOG(R10)-INT(LOG(R10))),0))/96))*POWER(10,INT(LOG(R10))-2)+INT(0.5+100*POWER(10,(IF(96*(LOG(R10)-INT(LOG(R10)))-ROUND(96*(LOG(R10)-INT(LOG(R10))),0)<0,ROUND(96*(LOG(R10)-INT(LOG(R10))),0)-1,ROUND(96*(LOG(R10)-INT(LOG(R10))),0))+1)/96))*POWER(10,INT(LOG(R10))-2))/2,INT(0.5+100*POWER(10,(IF(96*(LOG(R10)-INT(LOG(R10)))-ROUND(96*(LOG(R10)-INT(LOG(R10))),0)<0,ROUND(96*(LOG(R10)-INT(LOG(R10))),0)-1,ROUND(96*(LOG(R10)-INT(LOG(R10))),0))+1)/96))*POWER(10,INT(LOG(R10))-2),INT(0.5+100*POWER(10,IF(96*(LOG(R10)-INT(LOG(R10)))-ROUND(96*(LOG(R10)-INT(LOG(R10))),0)<0,ROUND(96*(LOG(R10)-INT(LOG(R10))),0)-1,ROUND(96*(LOG(R10)-INT(LOG(R10))),0))/96))*POWER(10,INT(LOG(R10))-2)) -> 22100 | T10: Ω
A11: 1.2 | B11: 0 | C11: 0 | D11: 0 | E11: 0 | F11: 0 | G11: 0 | H11: 0 | I11: 0 | J11: 0 | K11: 0 | L11: 0 | M11: 0 | Q11: Rfb2 | R11: =_Rfb2 -> 1578.571429 | S11: =IF(R11="OPEN","OPEN",IF(R11>(INT(0.5+100*POWER(10,IF(96*(LOG(R11)-INT(LOG(R11)))-ROUND(96*(LOG(R11)-INT(LOG(R11))),0)<0,ROUND(96*(LOG(R11)-INT(LOG(R11))),0)-1,ROUND(96*(LOG(R11)-INT(LOG(R11))),0))/96))*POWER(10,INT(LOG(R11))-2)+INT(0.5+100*POWER(10,(IF(96*(LOG(R11)-INT(LOG(R11)))-ROUND(96*(LOG(R11)-INT(LOG(R11))),0)<0,ROUND(96*(LOG(R11)-INT(LOG(R11))),0)-1,ROUND(96*(LOG(R11)-INT(LOG(R11))),0))+1)/96))*POWER(10,INT(LOG(R11))-2))/2,INT(0.5+100*POWER(10,(IF(96*(LOG(R11)-INT(LOG(R11)))-ROUND(96*(LOG(R11)-INT(LOG(R11))),0)<0,ROUND(96*(LOG(R11)-INT(LOG(R11))),0)-1,ROUND(96*(LOG(R11)-INT(LOG(R11))),0))+1)/96))*POWER(10,INT(LOG(R11))-2),INT(0.5+100*POWER(10,IF(96*(LOG(R11)-INT(LOG(R11)))-ROUND(96*(LOG(R11)-INT(LOG(R11))),0)<0,ROUND(96*(LOG(R11)-INT(LOG(R11))),0)-1,ROUND(96*(LOG(R11)-INT(LOG(R11))),0))/96))*POWER(10,INT(LOG(R11))-2))) -> 1580 | T11: Ω
A12: 1.5 | B12: 0 | C12: 0 | D12: 0 | E12: 0 | F12: 0 | G12: 0 | H12: 0 | I12: 0 | J12: 0 | K12: 0 | L12: 0 | M12: 0 | Q12: Rs1 | R12: =_Rs1 -> 8.2
A13: 1.8 | B13: 0 | C13: 0 | D13: 0 | E13: 0 | F13: 0 | G13: 0 | H13: 0 | I13: 0 | J13: 0 | K13: 0 | L13: 0 | M13: 0 | Q13: Rs2 | R13: =_Rs2 -> 9.050321826e-12
A14: 2.2 | B14: 0 | C14: 0 | D14: 0 | E14: 0 | F14: 0 | G14: 0 | H14: 0 | I14: 0 | J14: 0 | K14: 0 | L14: 0 | M14: 0 | Q14: Rs3 | R14: =_Rs3 -> 1.73
A15: 2.7 | B15: 0 | C15: 0 | D15: 0 | E15: 0 | F15: 0 | G15: 0 | H15: 0 | I15: 0 | J15: 0 | K15: 0 | L15: 0 | M15: 0
A16: 3.3 | B16: 0 | C16: 0 | D16: 0 | E16: 0 | F16: 0 | G16: 0 | H16: 0 | I16: 0 | J16: 0 | K16: 0 | L16: 0 | M16: 0 | Q16: Ruv1 | R16: =Ruvlo1 -> -500 | S16: =IF(R16="OPEN","OPEN",IF(R16>(INT(0.5+100*POWER(10,IF(96*(LOG(R16)-INT(LOG(R16)))-ROUND(96*(LOG(R16)-INT(LOG(R16))),0)<0,ROUND(96*(LOG(R16)-INT(LOG(R16))),0)-1,ROUND(96*(LOG(R16)-INT(LOG(R16))),0))/96))*POWER(10,INT(LOG(R16))-2)+INT(0.5+100*POWER(10,(IF(96*(LOG(R16)-INT(LOG(R16)))-ROUND(96*(LOG(R16)-INT(LOG(R16))),0)<0,ROUND(96*(LOG(R16)-INT(LOG(R16))),0)-1,ROUND(96*(LOG(R16)-INT(LOG(R16))),0))+1)/96))*POWER(10,INT(LOG(R16))-2))/2,INT(0.5+100*POWER(10,(IF(96*(LOG(R16)-INT(LOG(R16)))-ROUND(96*(LOG(R16)-INT(LOG(R16))),0)<0,ROUND(96*(LOG(R16)-INT(LOG(R16))),0)-1,ROUND(96*(LOG(R16)-INT(LOG(R16))),0))+1)/96))*POWER(10,INT(LOG(R16))-2),INT(0.5+100*POWER(10,IF(96*(LOG(R16)-INT(LOG(R16)))-ROUND(96*(LOG(R16)-INT(LOG(R16))),0)<0,ROUND(96*(LOG(R16)-INT(LOG(R16))),0)-1,ROUND(96*(LOG(R16)-INT(LOG(R16))),0))/96))*POWER(10,INT(LOG(R16))-2))) ->  | T16: kΩ
A17: 3.9 | B17: 0 | C17: 0 | D17: 0 | E17: 0 | F17: 0 | G17: 0 | H17: 0 | I17: 0 | J17: 0 | K17: 0 | L17: 0 | M17: 0 | Q17: Ruv2 | R17: =Ruvlo2 ->  | T17: kΩ
A18: 4.7 | B18: 0 | C18: 0 | D18: 0 | E18: 0 | F18: 0 | G18: 0 | H18: 0 | I18: 0 | J18: 0 | K18: 0 | L18: 0 | M18: 0
A19: 5.6 | B19: 0 | C19: 0 | D19: 0 | E19: 0 | F19: 0 | G19: 0 | H19: 0 | I19: 0 | J19: 0 | K19: 0 | L19: 0 | M19: 0
A20: 6.8 | B20: 0 | C20: 0 | D20: 0 | E20: 0 | F20: 0 | G20: 0 | H20: 0 | I20: 0 | J20: 0 | K20: 0 | L20: 0 | M20: 0
A21: 8.2 | B21: 0 | C21: 0 | D21: 0 | E21: 0 | F21: 0 | G21: 0 | H21: 8.2 | I21: 0 | J21: 0 | K21: 0 | L21: 0 | M21: 0
A22: 10 | B22: 0 | C22: 0 | D22: 0 | E22: 0 | F22: 0 | G22: 0 | H22: 0 | I22: 0 | J22: 0 | K22: 0 | L22: 0 | M22: 0 | Q22: Rilim_shunt | R22: =Rilim_shunt_ideal -> 651.5647339 | S22: =IF(R22=0,0,IF(R22>(INT(0.5+100*POWER(10,IF(96*(LOG(R22)-INT(LOG(R22)))-ROUND(96*(LOG(R22)-INT(LOG(R22))),0)<0,ROUND(96*(LOG(R22)-INT(LOG(R22))),0)-1,ROUND(96*(LOG(R22)-INT(LOG(R22))),0))/96))*POWER(10,INT(LOG(R22))-2)+INT(0.5+100*POWER(10,(IF(96*(LOG(R22)-INT(LOG(R22)))-ROUND(96*(LOG(R22)-INT(LOG(R22))),0)<0,ROUND(96*(LOG(R22)-INT(LOG(R22))),0)-1,ROUND(96*(LOG(R22)-INT(LOG(R22))),0))+1)/96))*POWER(10,INT(LOG(R22))-2))/2,INT(0.5+100*POWER(10,(IF(96*(LOG(R22)-INT(LOG(R22)))-ROUND(96*(LOG(R22)-INT(LOG(R22))),0)<0,ROUND(96*(LOG(R22)-INT(LOG(R22))),0)-1,ROUND(96*(LOG(R22)-INT(LOG(R22))),0))+1)/96))*POWER(10,INT(LOG(R22))-2),INT(0.5+100*POWER(10,IF(96*(LOG(R22)-INT(LOG(R22)))-ROUND(96*(LOG(R22)-INT(LOG(R22))),0)<0,ROUND(96*(LOG(R22)-INT(LOG(R22))),0)-1,ROUND(96*(LOG(R22)-INT(LOG(R22))),0))/96))*POWER(10,INT(LOG(R22))-2))) -> 649 | T22: Ω
A23: 12 | B23: 0 | C23: 0 | D23: 0 | E23: 0 | F23: 0 | G23: 0 | H23: 0 | I23: 0 | J23: 0 | K23: 0 | L23: 0 | M23: 0 | Q23: Cilim | R23: =Cilim -> 9.050321826e-12 | S23: =H4*1000000000000 -> 8.2 | T23: pF
A24: 15 | B24: 0 | C24: 0 | D24: 0 | E24: 0 | F24: 0 | G24: 0 | H24: 0 | I24: 0 | J24: 0 | K24: 0 | L24: 0 | M24: 0
A25: 18 | B25: 0 | C25: 0 | D25: 0 | E25: 0 | F25: 0 | G25: 0 | H25: 0 | I25: 0 | J25: 0 | K25: 0 | L25: 0 | M25: 0
A26: 22 | B26: 0 | C26: 0 | D26: 0 | E26: 0 | F26: 0 | G26: 0 | H26: 0 | I26: 0 | J26: 0 | K26: 0 | L26: 0 | M26: 0
A27: 27 | B27: 0 | C27: 0 | D27: 0 | E27: 0 | F27: 0 | G27: 0 | H27: 0 | I27: 0 | J27: 0 | K27: 0 | L27: 0 | M27: 0 | Q27: Rc1 | R27: =S8/1000&" kΩ" -> 8.45 kΩ | S27: =S8/1000 -> 8.45 | T27: kΩ
A28: 33 | B28: 0 | C28: 0 | D28: 0 | E28: 0 | F28: 0 | G28: 0 | H28: 0 | I28: 0 | J28: 0 | K28: 0 | L28: 0 | M28: 0 | Q28: Cc1 | R28: =C4*1000000000000&" pF" -> 4700 pF | S28: =C4*1000000000000 -> 4700 | T28: pF
A29: 39 | B29: 0 | C29: 0 | D29: 0 | E29: 0 | F29: 0 | G29: 0 | H29: 0 | I29: 0 | J29: 0 | K29: 0 | L29: 0 | M29: 0 | Q29: Cc2 | R29: =D4*1000000000000&" pF" -> 100 pF | S29: =D4*1000000000000 -> 100 | T29: pF
A30: 47 | B30: 0 | C30: 0 | D30: 0 | E30: 0 | F30: 0 | G30: 0 | H30: 0 | I30: 0 | J30: 0 | K30: 0 | L30: 0 | M30: 0 | Q30: Rc2 | R30: =S9&" Ω" -> 93.1 Ω | S30: =S9 -> 93.1 | T30: Ω
A31: 56 | B31: 0 | C31: 0 | D31: 0 | E31: 0 | F31: 0 | G31: 0 | H31: 0 | I31: 0 | J31: 0 | K31: 0 | L31: 0 | M31: 0 | Q31: Cc3 | R31: =E4*1000000000000&" pF" -> 1200 pF | S31: =E4*1000000000000 -> 1200 | T31: pF
A32: 68 | B32: 0 | C32: 0 | D32: 0 | E32: 0 | F32: 0 | G32: 0 | H32: 0 | I32: 0 | J32: 0 | K32: 0 | L32: 0 | M32: 0
A33: 82 | B33: 0 | C33: 0 | D33: 100 | E33: 0 | F33: 0 | G33: 0 | H33: 0 | I33: 0 | J33: 0 | K33: 0 | L33: 0 | M33: 0
A34: =A22*10 -> 100 | B34: 0 | C34: 0 | D34: 0 | E34: 0 | F34: 0 | G34: 0 | H34: 0 | I34: 0 | J34: 0 | K34: 0 | L34: 0 | M34: 0
A35: =A23*10 -> 120 | B35: 0 | C35: 0 | D35: 0 | E35: 0 | F35: 0 | G35: 0 | H35: 0 | I35: 0 | J35: 0 | K35: 0 | L35: 0 | M35: 0
A36: 150 | B36: 0 | C36: 0 | D36: 0 | E36: 0 | F36: 0 | G36: 0 | H36: 0 | I36: 0 | J36: 0 | K36: 0 | L36: 0 | M36: 0
A37: 180 | B37: 0 | C37: 0 | D37: 0 | E37: 0 | F37: 0 | G37: 0 | H37: 0 | I37: 0 | J37: 0 | K37: 0 | L37: 0 | M37: 0
A38: 220 | B38: 0 | C38: 0 | D38: 0 | E38: 0 | F38: 0 | G38: 0 | H38: 0 | I38: 0 | J38: 0 | K38: 0 | L38: 0 | M38: =IF(IF((M$3*10^12-$A39)*(M$3*10^12-$A38)*-1<0,0,1)*IF(ABS(M$3*10^12-$A39)>(M$3*10^12-$A38),$A38,$A39)=M39,0,IF((M$3*10^12-$A39)*(M$3*10^12-$A38)*-1<0,0,1)*IF(ABS(M$3*10^12-$A39)>(M$3*10^12-$A38),$A38,$A39)) -> 0 | N38: =IF(IF((N$3*10^12-$A39)*(N$3*10^12-$A38)*-1<0,0,1)*IF(ABS(N$3*10^12-$A39)>(N$3*10^12-$A38),$A38,$A39)=N39,0,IF((N$3*10^12-$A39)*(N$3*10^12-$A38)*-1<0,0,1)*IF(ABS(N$3*10^12-$A39)>(N$3*10^12-$A38),$A38,$A39)) -> 
A39: 270 | B39: 0 | C39: =IF(IF((C$3*10^12-$A40)*(C$3*10^12-$A39)*-1<0,0,1)*IF(ABS(C$3*10^12-$A40)>(C$3*10^12-$A39),$A39,$A40)=C40,0,IF((C$3*10^12-$A40)*(C$3*10^12-$A39)*-1<0,0,1)*IF(ABS(C$3*10^12-$A40)>(C$3*10^12-$A39),$A39,$A40)) -> 0 | D39: 0 | E39: 0 | F39: 0 | G39: 0 | H39: 0 | I39: 0 | J39: 0 | K39: 0 | L39: 0 | M39: 0
A40: 330 | B40: 0 | C40: 0 | D40: 0 | E40: 0 | F40: 0 | G40: 0 | H40: 0 | I40: 0 | J40: 0 | K40: 0 | L40: 0 | M40: 0
A41: 390 | B41: 0 | C41: 0 | D41: 0 | E41: 0 | F41: 0 | G41: 0 | H41: 0 | I41: 0 | J41: 0 | K41: 0 | L41: 0 | M41: 0
A42: 470 | B42: 0 | C42: 0 | D42: 0 | E42: 0 | F42: 0 | G42: 0 | H42: 0 | I42: 0 | J42: 0 | K42: 0 | L42: 0 | M42: 0
A43: 560 | B43: 0 | C43: 0 | D43: 0 | E43: 0 | F43: 0 | G43: 0 | H43: 0 | I43: 0 | J43: 0 | K43: 0 | L43: 0 | M43: 0
A44: 680 | B44: 0 | C44: 0 | D44: 0 | E44: 0 | F44: 0 | G44: 0 | H44: 0 | I44: 0 | J44: 0 | K44: 0 | L44: 0 | M44: 0
A45: =A33*10 -> 820 | B45: 0 | C45: 0 | D45: 0 | E45: 0 | F45: 0 | G45: 0 | H45: 0 | I45: 0 | J45: 0 | K45: 0 | L45: 0 | M45: 0
A46: 1000 | B46: 0 | C46: 0 | D46: 0 | E46: 0 | F46: 0 | G46: 0 | H46: 0 | I46: 0 | J46: 0 | K46: 0 | L46: 0 | M46: 0
A47: 1200 | B47: 0 | C47: 0 | D47: 0 | E47: 1200 | F47: 0 | G47: 0 | H47: 0 | I47: 0 | J47: 0 | K47: 0 | L47: 0 | M47: 0
A48: 1500 | B48: 0 | C48: 0 | D48: 0 | E48: 0 | F48: 0 | G48: 0 | H48: 0 | I48: 0 | J48: 0 | K48: 0 | L48: 0 | M48: 0
A49: 1800 | B49: 0 | C49: 0 | D49: 0 | E49: 0 | F49: 0 | G49: 0 | H49: 0 | I49: 0 | J49: 0 | K49: 0 | L49: 0 | M49: 0
A50: 2200 | B50: 0 | C50: 0 | D50: 0 | E50: 0 | F50: 0 | G50: 0 | H50: 0 | I50: 0 | J50: 0 | K50: 0 | L50: 0 | M50: 0
A51: 2700 | B51: 0 | C51: 0 | D51: 0 | E51: 0 | F51: 0 | G51: 0 | H51: 0 | I51: 0 | J51: 0 | K51: 0 | L51: 0 | M51: 0
A52: 3300 | B52: 0 | C52: 0 | D52: 0 | E52: 0 | F52: 0 | G52: 0 | H52: 0 | I52: 0 | J52: 0 | K52: 0 | L52: 0 | M52: 0
A53: 3900 | B53: 0 | C53: 4700 | D53: 0 | E53: 0 | F53: 0 | G53: 0 | H53: 0 | I53: 0 | J53: 0 | K53: 0 | L53: 0 | M53: 0
A54: 4700 | B54: 0 | C54: 0 | D54: 0 | E54: 0 | F54: 0 | G54: 0 | H54: 0 | I54: 0 | J54: 0 | K54: 0 | L54: 0 | M54: 0
A55: 5600 | B55: 0 | C55: 0 | D55: 0 | E55: 0 | F55: 0 | G55: 0 | H55: 0 | I55: 0 | J55: 0 | K55: 0 | L55: 0 | M55: 0
A56: 6800 | B56: 0 | C56: 0 | D56: 0 | E56: 0 | F56: 0 | G56: 0 | H56: 0 | I56: 0 | J56: 0 | K56: 0 | L56: 0 | M56: 0
A57: 8200 | B57: 0 | C57: 0 | D57: 0 | E57: 0 | F57: 0 | G57: 0 | H57: 0 | I57: 0 | J57: 0 | K57: 0 | L57: 0 | M57: 0
A58: 10000 | B58: 0 | C58: 0 | D58: 0 | E58: 0 | F58: 0 | G58: 0 | H58: 0 | I58: 0 | J58: 0 | K58: 0 | L58: 0 | M58: 0
A59: 12000 | B59: 0 | C59: 0 | D59: 0 | E59: 0 | F59: 0 | G59: 0 | H59: 0 | I59: 0 | J59: 0 | K59: 0 | L59: 0 | M59: 0
A60: 15000 | B60: 0 | C60: 0 | D60: 0 | E60: 0 | F60: 0 | G60: 0 | H60: 0 | I60: 0 | J60: 0 | K60: 0 | L60: 0 | M60: 0
A61: 18000 | B61: 0 | C61: 0 | D61: 0 | E61: 0 | F61: 0 | G61: 0 | H61: 0 | I61: 0 | J61: 0 | K61: 0 | L61: 0 | M61: 0
A62: 22000 | B62: 0 | C62: 0 | D62: 0 | E62: 0 | F62: 0 | G62: 0 | H62: 0 | I62: 0 | J62: 0 | K62: 0 | L62: 0 | M62: 0
A63: 27000 | B63: 0 | C63: 0 | D63: 0 | E63: 0 | F63: 0 | G63: 0 | H63: 0 | I63: 0 | J63: 0 | K63: 0 | L63: 0 | M63: 0
A64: 33000 | B64: 0 | C64: 0 | D64: 0 | E64: 0 | F64: 0 | G64: 0 | H64: 0 | I64: 0 | J64: 0 | K64: 0 | L64: 0 | M64: 0
A65: 39000 | B65: 0 | C65: 0 | D65: 0 | E65: 0 | F65: 0 | G65: 0 | H65: 0 | I65: 0 | J65: 0 | K65: 0 | L65: 0 | M65: 0
A66: 47000 | B66: 0 | C66: 0 | D66: 0 | E66: 0 | F66: 0 | G66: 0 | H66: 0 | I66: 0 | J66: 0 | K66: 0 | L66: 0 | M66: 0
A67: 56000 | B67: 0 | C67: 0 | D67: 0 | E67: 0 | F67: 0 | G67: 0 | H67: 0 | I67: 0 | J67: 0 | K67: 0 | L67: 0 | M67: 0
A68: 68000 | B68: 0 | C68: 0 | D68: 0 | E68: 0 | F68: 0 | G68: 0 | H68: 0 | I68: 0 | J68: 0 | K68: 0 | L68: 0 | M68: 0
A69: 82000 | B69: 0 | C69: 0 | D69: 0 | E69: 0 | F69: 0 | G69: 0 | H69: 0 | I69: 0 | J69: 0 | K69: =IF(IF((K$3*10^12-$A70)*(K$3*10^12-$A69)*-1<0,0,1)*IF(ABS(K$3*10^12-$A70)>(K$3*10^12-$A69),$A69,$A70)=K70,0,IF((K$3*10^12-$A70)*(K$3*10^12-$A69)*-1<0,0,1)*IF(ABS(K$3*10^12-$A70)>(K$3*10^12-$A69),$A69,$A70)) -> 0 | L69: 0 | M69: 0
A70: 100000 | B70: 0 | C70: 0 | D70: =IF(IF((D$3*10^12-$A71)*(D$3*10^12-$A70)*-1<0,0,1)*IF(ABS(D$3*10^12-$A71)>(D$3*10^12-$A70),$A70,$A71)=D71,0,IF((D$3*10^12-$A71)*(D$3*10^12-$A70)*-1<0,0,1)*IF(ABS(D$3*10^12-$A71)>(D$3*10^12-$A70),$A70,$A71)) -> 0 | E70: 0 | F70: 0 | G70: 0 | H70: 0 | I70: 0 | J70: 0 | K70: 0 | L70: 0 | M70: =IF(IF((M$3*10^12-$A71)*(M$3*10^12-$A70)*-1<0,0,1)*IF(ABS(M$3*10^12-$A71)>(M$3*10^12-$A70),$A70,$A71)=M71,0,IF((M$3*10^12-$A71)*(M$3*10^12-$A70)*-1<0,0,1)*IF(ABS(M$3*10^12-$A71)>(M$3*10^12-$A70),$A70,$A71)) -> 0 | N70: =IF(IF((N$3*10^12-$A71)*(N$3*10^12-$A70)*-1<0,0,1)*IF(ABS(N$3*10^12-$A71)>(N$3*10^12-$A70),$A70,$A71)=N71,0,IF((N$3*10^12-$A71)*(N$3*10^12-$A70)*-1<0,0,1)*IF(ABS(N$3*10^12-$A71)>(N$3*10^12-$A70),$A70,$A71)) -> 
A71: 120000 | B71: =IF(IF((B$3*10^12-$A72)*(B$3*10^12-$A71)*-1<0,0,1)*IF(ABS(B$3*10^12-$A72)>(B$3*10^12-$A71),$A71,$A72)=B72,0,IF((B$3*10^12-$A72)*(B$3*10^12-$A71)*-1<0,0,1)*IF(ABS(B$3*10^12-$A72)>(B$3*10^12-$A71),$A71,$A72)) -> 0 | C71: =IF(IF((C$3*10^12-$A72)*(C$3*10^12-$A71)*-1<0,0,1)*IF(ABS(C$3*10^12-$A72)>(C$3*10^12-$A71),$A71,$A72)=C72,0,IF((C$3*10^12-$A72)*(C$3*10^12-$A71)*-1<0,0,1)*IF(ABS(C$3*10^12-$A72)>(C$3*10^12-$A71),$A71,$A72)) -> 0 | D71: 0 | E71: 0 | F71: 0 | G71: =IF(IF((G$3*10^12-$A72)*(G$3*10^12-$A71)*-1<0,0,1)*IF(ABS(G$3*10^12-$A72)>(G$3*10^12-$A71),$A71,$A72)=G72,0,IF((G$3*10^12-$A72)*(G$3*10^12-$A71)*-1<0,0,1)*IF(ABS(G$3*10^12-$A72)>(G$3*10^12-$A71),$A71,$A72)) -> 0 | H71: =IF(IF((H$3*10^12-$A72)*(H$3*10^12-$A71)*-1<0,0,1)*IF(ABS(H$3*10^12-$A72)>(H$3*10^12-$A71),$A71,$A72)=H72,0,IF((H$3*10^12-$A72)*(H$3*10^12-$A71)*-1<0,0,1)*IF(ABS(H$3*10^12-$A72)>(H$3*10^12-$A71),$A71,$A72)) -> 0 | I71: =IF(IF((I$3*10^12-$A72)*(I$3*10^12-$A71)*-1<0,0,1)*IF(ABS(I$3*10^12-$A72)>(I$3*10^12-$A71),$A71,$A72)=I72,0,IF((I$3*10^12-$A72)*(I$3*10^12-$A71)*-1<0,0,1)*IF(ABS(I$3*10^12-$A72)>(I$3*10^12-$A71),$A71,$A72)) -> 0 | J71: =IF(IF((J$3*10^12-$A72)*(J$3*10^12-$A71)*-1<0,0,1)*IF(ABS(J$3*10^12-$A72)>(J$3*10^12-$A71),$A71,$A72)=J72,0,IF((J$3*10^12-$A72)*(J$3*10^12-$A71)*-1<0,0,1)*IF(ABS(J$3*10^12-$A72)>(J$3*10^12-$A71),$A71,$A72)) -> 0 | K71: 0 | L71: 0 | M71: 0
A72: 150000 | B72: 0 | C72: 0 | D72: 0 | E72: 0 | F72: 0 | G72: 0 | H72: 0 | I72: 0 | J72: 0 | K72: 0 | L72: 0 | M72: 0
A73: 180000 | B73: 0 | C73: 0 | D73: 0 | E73: 0 | F73: 0 | G73: 0 | H73: 0 | I73: 0 | J73: 0 | K73: 0 | L73: 0 | M73: 0
A74: 220000 | B74: 270000 | C74: 0 | D74: 0 | E74: 0 | F74: 0 | G74: 0 | H74: 0 | I74: 0 | J74: 0 | K74: 0 | L74: 0 | M74: 0
A75: 270000 | B75: 0 | C75: 0 | D75: 0 | E75: 0 | F75: 0 | G75: 0 | H75: 0 | I75: 0 | J75: 0 | K75: 0 | L75: 0 | M75: 0
A76: 330000 | B76: 0 | C76: 0 | D76: 0 | E76: 0 | F76: 0 | G76: 0 | H76: 0 | I76: 0 | J76: 0 | K76: 0 | L76: 0 | M76: 0
A77: 390000 | B77: 0 | C77: 0 | D77: 0 | E77: 0 | F77: 0 | G77: 0 | H77: 0 | I77: 0 | J77: 0 | K77: 0 | L77: 0 | M77: 0
A78: 470000 | B78: 0 | C78: 0 | D78: 0 | E78: 0 | F78: 0 | G78: 0 | H78: 0 | I78: 0 | J78: 0 | K78: 0 | L78: 0 | M78: 0
A79: 560000 | B79: 0 | C79: 0 | D79: 0 | E79: 0 | F79: 0 | G79: 0 | H79: 0 | I79: 0 | J79: 0 | K79: 0 | L79: 0 | M79: 0
A80: 680000 | B80: 0 | C80: 0 | D80: 0 | E80: 0 | F80: 0 | G80: 0 | H80: 0 | I80: 0 | J80: 0 | K80: 0 | L80: 0 | M80: 0
A81: 820000 | B81: 0 | C81: 0 | D81: 0 | E81: 0 | F81: 0 | G81: 0 | H81: 0 | I81: 0 | J81: 0 | K81: 0 | L81: 0 | M81: 0
A82: 1000000 | B82: 0 | C82: 0 | D82: 0 | E82: 0 | F82: 0 | G82: 0 | H82: 0 | I82: 0 | J82: 0 | K82: 0 | L82: 0 | M82: 0
A83: 1200000 | B83: 0 | C83: 0 | D83: 0 | E83: 0 | F83: 0 | G83: 0 | H83: 0 | I83: 0 | J83: 0 | K83: 0 | L83: 0 | M83: 0
A84: 1500000 | B84: 0 | C84: 0 | D84: 0 | E84: 0 | F84: 0 | G84: 0 | H84: 0 | I84: 0 | J84: 0 | K84: 0 | L84: 0 | M84: 0
A85: 1800000 | B85: 0 | C85: 0 | D85: 0 | E85: 0 | F85: 0 | G85: 0 | H85: 0 | I85: 0 | J85: 0 | K85: 0 | L85: 0 | M85: 0
A86: 2200000 | B86: 0 | C86: 0 | D86: 0 | E86: 0 | F86: 0 | G86: 0 | H86: 0 | I86: 0 | J86: 0 | K86: 0 | L86: 0 | M86: 0
A87: 2700000 | B87: 0 | C87: 0 | D87: 0 | E87: 0 | F87: 0 | G87: 0 | H87: 0 | I87: 0 | J87: 0 | K87: 0 | L87: 0 | M87: 0
A88: 3300000 | B88: 0 | C88: 0 | D88: 0 | E88: 0 | F88: 0 | G88: 0 | H88: 0 | I88: 0 | J88: 0 | K88: 0 | L88: 0 | M88: 0
A89: 3900000 | B89: 0 | C89: 0 | D89: 0 | E89: 0 | F89: 0 | G89: 0 | H89: 0 | I89: 0 | J89: 0 | K89: 0 | L89: 0 | M89: 0
A90: 4700000 | B90: 0 | C90: 0 | D90: 0 | E90: 0 | F90: 0 | G90: 0 | H90: 0 | I90: 0 | J90: 0 | K90: 0 | L90: 0 | M90: 0
A91: 5600000 | B91: 0 | C91: 0 | D91: 0 | E91: 0 | F91: 0 | G91: 0 | H91: 0 | I91: 0 | J91: 0 | K91: 0 | L91: 0 | M91: 0
A92: 6800000 | B92: 0 | C92: 0 | D92: 0 | E92: 0 | F92: 0 | G92: 0 | H92: 0 | I92: 0 | J92: 0 | K92: 0 | L92: 0 | M92: 0
A93: 8200000 | B93: 0 | C93: 0 | D93: 0 | E93: 0 | F93: 0 | G93: 0 | H93: 0 | I93: 0 | J93: 0 | K93: 0 | L93: 0 | M93: 0
A94: 10000000 | B94: 0 | C94: 0 | D94: 0 | E94: 0 | F94: 0 | G94: 0 | H94: 0 | I94: 0 | J94: 0 | K94: 0 | L94: 0 | M94: 0
A95: 12000000 | B95: 0 | C95: 0 | D95: 0 | E95: 0 | F95: 0 | G95: 0 | H95: 0 | I95: 0 | J95: 0 | K95: 0 | L95: 0 | M95: 0
A96: 15000000 | B96: 0 | C96: 0 | D96: 0 | E96: 0 | F96: 0 | G96: 0 | H96: 0 | I96: 0 | J96: 0 | K96: 0 | L96: 0 | M96: 0
A97: 18000000 | B97: 0 | C97: 0 | D97: 0 | E97: 0 | F97: 0 | G97: 0 | H97: 0 | I97: 0 | J97: 0 | K97: 0 | L97: 0 | M97: 0
A98: 22000000 | B98: 0 | C98: 0 | D98: 0 | E98: 0 | F98: 0 | G98: 0 | H98: 0 | I98: 0 | J98: 0 | K98: 0 | L98: 0 | M98: 0
A99: =A87*10 -> 27000000 | B99: 0 | C99: 0 | D99: 0 | E99: 0 | F99: 0 | G99: 33000000 | H99: 0 | I99: 0 | J99: 0 | K99: 0 | L99: 0 | M99: 0
A100: 33000000 | B100: 0 | C100: 0 | D100: 0 | E100: 0 | F100: 0 | G100: 0 | H100: 0 | I100: 0 | J100: 0 | K100: 0 | L100: 0 | M100: 0
A101: 39000000 | B101: 0 | C101: 0 | D101: 0 | E101: 0 | F101: 0 | G101: 0 | H101: 0 | I101: 0 | J101: 0 | K101: 0 | L101: 0 | M101: 0
A102: 47000000 | B102: 0 | C102: 0 | D102: 0 | E102: 0 | F102: 0 | G102: 0 | H102: 0 | I102: 0 | J102: 0 | K102: 0 | L102: 0 | M102: =IF(IF((M$3*10^12-$A103)*(M$3*10^12-$A102)*-1<0,0,1)*IF(ABS(M$3*10^12-$A103)>(M$3*10^12-$A102),$A102,$A103)=M103,0,IF((M$3*10^12-$A103)*(M$3*10^12-$A102)*-1<0,0,1)*IF(ABS(M$3*10^12-$A103)>(M$3*10^12-$A102),$A102,$A103)) -> 0 | N102: =IF(IF((N$3*10^12-$A103)*(N$3*10^12-$A102)*-1<0,0,1)*IF(ABS(N$3*10^12-$A103)>(N$3*10^12-$A102),$A102,$A103)=N103,0,IF((N$3*10^12-$A103)*(N$3*10^12-$A102)*-1<0,0,1)*IF(ABS(N$3*10^12-$A103)>(N$3*10^12-$A102),$A102,$A103)) -> 
A103: 56000000 | B103: 0 | C103: 0 | D103: 0 | E103: 0 | F103: 0 | G103: =IF(IF((G$3*10^12-$A104)*(G$3*10^12-$A103)*-1<0,0,1)*IF(ABS(G$3*10^12-$A104)>(G$3*10^12-$A103),$A103,$A104)=G104,0,IF((G$3*10^12-$A104)*(G$3*10^12-$A103)*-1<0,0,1)*IF(ABS(G$3*10^12-$A104)>(G$3*10^12-$A103),$A103,$A104)) -> 0 | H103: =IF(IF((H$3*10^12-$A104)*(H$3*10^12-$A103)*-1<0,0,1)*IF(ABS(H$3*10^12-$A104)>(H$3*10^12-$A103),$A103,$A104)=H104,0,IF((H$3*10^12-$A104)*(H$3*10^12-$A103)*-1<0,0,1)*IF(ABS(H$3*10^12-$A104)>(H$3*10^12-$A103),$A103,$A104)) -> 0 | I103: =IF(IF((I$3*10^12-$A104)*(I$3*10^12-$A103)*-1<0,0,1)*IF(ABS(I$3*10^12-$A104)>(I$3*10^12-$A103),$A103,$A104)=I104,0,IF((I$3*10^12-$A104)*(I$3*10^12-$A103)*-1<0,0,1)*IF(ABS(I$3*10^12-$A104)>(I$3*10^12-$A103),$A103,$A104)) -> 0 | J103: =IF(IF((J$3*10^12-$A104)*(J$3*10^12-$A103)*-1<0,0,1)*IF(ABS(J$3*10^12-$A104)>(J$3*10^12-$A103),$A103,$A104)=J104,0,IF((J$3*10^12-$A104)*(J$3*10^12-$A103)*-1<0,0,1)*IF(ABS(J$3*10^12-$A104)>(J$3*10^12-$A103),$A103,$A104)) -> 0 | K103: 0 | L103: 0 | M103: 0
A104: 68000000 | B104: 0 | C104: 0 | D104: 0 | E104: 0 | F104: 0 | G104: 0 | H104: 0 | I104: 0 | J104: 0 | K104: 0 | L104: 0 | M104: 0
A105: 82000000 | B105: 0 | C105: 0 | D105: 0 | E105: 0 | F105: 0 | G105: 0 | H105: 0 | I105: 0 | J105: 0 | K105: 0 | L105: 0 | M105: 0
A106: 100000000 | B106: 0 | C106: 0 | D106: 0 | E106: 0 | F106: 0 | G106: 0 | H106: 0 | I106: 0 | J106: 0 | K106: 0 | L106: 0 | M106: 0
A107: 120000000 | B107: 0 | C107: 0 | D107: 0 | E107: 0 | F107: 120000000 | G107: 0 | H107: 0 | I107: 0 | J107: 0 | K107: 0 | L107: 0 | M107: 0
A108: 150000000 | B108: 0 | C108: 0 | D108: 0 | E108: 0 | F108: 0 | G108: 0 | H108: 0 | I108: 0 | J108: 0 | K108: 0 | L108: 0 | M108: 0
A109: 180000000 | B109: 0 | C109: 0 | D109: 0 | E109: 0 | F109: 0 | G109: 0 | H109: 0 | I109: 0 | J109: 0 | K109: 0 | L109: 0 | M109: 0
A110: 220000000 | B110: 0 | C110: 0 | D110: 0 | E110: 0 | F110: 0 | G110: 0 | H110: 0 | I110: 0 | J110: 0 | K110: 0 | L110: 0 | M110: 0
A111: 270000000 | B111: 0 | C111: 0 | D111: 0 | E111: 0 | F111: 0 | G111: 0 | H111: 0 | I111: 0 | J111: 0 | K111: 0 | L111: 0 | M111: 0
A112: 330000000 | B112: 0 | C112: 0 | D112: 0 | E112: 0 | F112: 0 | G112: 0 | H112: 0 | I112: 0 | J112: 0 | K112: 0 | L112: 0 | M112: 0
A113: 390000000 | B113: 0 | C113: 0 | D113: 0 | E113: 0 | F113: 0 | G113: 0 | H113: 0 | I113: 0 | J113: 0 | K113: 0 | L113: 0 | M113: 0
A114: 470000000 | B114: 0 | C114: 0 | D114: 0 | E114: 0 | F114: 0 | G114: 0 | H114: 0 | I114: 0 | J114: 0 | K114: 0 | L114: 0 | M114: 0
A115: 560000000 | B115: 0 | C115: 0 | D115: 0 | E115: 0 | F115: 0 | G115: 0 | H115: 0 | I115: 0 | J115: 0 | K115: 0 | L115: 0 | M115: 0
A116: 680000000 | B116: 0 | C116: 0 | D116: 0 | E116: 0 | F116: 0 | G116: 0 | H116: 0 | I116: 0 | J116: 0 | K116: 0 | L116: 0 | M116: 0
A117: 820000000 | B117: 0 | C117: 0 | D117: 0 | E117: 0 | F117: 0 | G117: 0 | H117: 0 | I117: 0 | J117: 0 | K117: 0 | L117: 0 | M117: 0
A118: 1000000000 | B118: 0 | C118: 0 | D118: 0 | E118: 0 | F118: 0 | G118: 0 | H118: 0 | I118: 0 | J118: 0 | K118: 0 | L118: 0 | M118: 0
A119: 1200000000 | B119: 0 | C119: 0 | D119: 0 | E119: 0 | F119: 0 | G119: 0 | H119: 0 | I119: 0 | J119: 0 | K119: 0 | L119: 0 | M119: 0
A120: 1500000000 | B120: 0 | C120: 0 | D120: 0 | E120: 0 | F120: 0 | G120: 0 | H120: 0 | I120: 0 | J120: 0 | K120: 0 | L120: 0 | M120: 0
A121: 1800000000 | B121: 0 | C121: 0 | D121: 0 | E121: 0 | F121: 0 | G121: 0 | H121: 0 | I121: 0 | J121: 0 | K121: 0 | L121: 0 | M121: 0
A122: 2200000000 | B122: 0 | C122: 0 | D122: 0 | E122: 0 | F122: 0 | G122: 0 | H122: 0 | I122: 0 | J122: 0 | K122: 0 | L122: 0 | M122: 0
A123: 2700000000 | B123: 0 | C123: 0 | D123: 0 | E123: 0 | F123: 0 | G123: 0 | H123: 0 | I123: 0 | J123: 0 | K123: 0 | L123: 0 | M123: 0
A124: 3300000000 | B124: 0 | C124: 0 | D124: 0 | E124: 0 | F124: 0 | G124: 0 | H124: 0 | I124: 0 | J124: 0 | K124: 0 | L124: 0 | M124: 0
A125: 3900000000 | B125: 0 | C125: 0 | D125: 0 | E125: 0 | F125: 0 | G125: 0 | H125: 0 | I125: 0 | J125: 0 | K125: 0 | L125: 0 | M125: 0
A126: 4700000000 | B126: 0 | C126: 0 | D126: 0 | E126: 0 | F126: 0 | G126: 0 | H126: 0 | I126: 0 | J126: 0 | K126: 0 | L126: 0 | M126: 0
A127: 5600000000 | B127: 0 | C127: 0 | D127: 0 | E127: 0 | F127: 0 | G127: 0 | H127: 0 | I127: 0 | J127: 0 | K127: 0 | L127: 0 | M127: 0
A128: 6800000000 | B128: 0 | C128: 0 | D128: 0 | E128: 0 | F128: 0 | G128: 0 | H128: 0 | I128: 0 | J128: 0 | K128: 0 | L128: 0 | M128: 0
A129: 8200000000 | B129: 0 | C129: 0 | D129: 0 | E129: 0 | F129: 0 | G129: 0 | H129: 0 | I129: 0 | J129: 0 | K129: 0 | L129: 0 | M129: 0
A130: 10000000000 | B130: 0 | C130: 0 | D130: 0 | E130: 0 | F130: 0 | G130: 0 | H130: 0 | I130: 0 | J130: 0 | K130: 0 | L130: 0 | M130: 0
A131: 12000000000 | B131: 0 | C131: 0 | D131: 0 | E131: 0 | F131: 0 | G131: 0 | H131: 0 | I131: 0 | J131: 0 | K131: 0 | L131: 0 | M131: 0
A132: 15000000000 | B132: 0 | C132: 0 | D132: 0 | E132: 0 | F132: 0 | G132: 0 | H132: 0 | I132: 0 | J132: 0 | K132: 0 | L132: 0 | M132: 0
A133: 18000000000 | B133: 0 | C133: 0 | D133: 0 | E133: 0 | F133: 0 | G133: 0 | H133: 0 | I133: 0 | J133: 0 | K133: =IF(IF((K$3*10^12-$A134)*(K$3*10^12-$A133)*-1<0,0,1)*IF(ABS(K$3*10^12-$A134)>(K$3*10^12-$A133),$A133,$A134)=K134,0,IF((K$3*10^12-$A134)*(K$3*10^12-$A133)*-1<0,0,1)*IF(ABS(K$3*10^12-$A134)>(K$3*10^12-$A133),$A133,$A134)) -> 0 | L133: =IF(IF((L$3*10^12-$A134)*(L$3*10^12-$A133)*-1<0,0,1)*IF(ABS(L$3*10^12-$A134)>(L$3*10^12-$A133),$A133,$A134)=L134,0,IF((L$3*10^12-$A134)*(L$3*10^12-$A133)*-1<0,0,1)*IF(ABS(L$3*10^12-$A134)>(L$3*10^12-$A133),$A133,$A134)) -> 0 | M133: 0
A134: 22000000000 | B134: 0 | C134: 0 | D134: 0 | E134: 0 | F134: =IF(IF((F$3*10^12-$A135)*(F$3*10^12-$A134)*-1<0,0,1)*IF(ABS(F$3*10^12-$A135)>(F$3*10^12-$A134),$A134,$A135)=F135,0,IF((F$3*10^12-$A135)*(F$3*10^12-$A134)*-1<0,0,1)*IF(ABS(F$3*10^12-$A135)>(F$3*10^12-$A134),$A134,$A135)) -> 0 | G134: 0 | H134: 0 | I134: 0 | J134: 0 | K134: =IF(IF((K$3*10^12-$A135)*(K$3*10^12-$A134)*-1<0,0,1)*IF(ABS(K$3*10^12-$A135)>(K$3*10^12-$A134),$A134,$A135)=K135,0,IF((K$3*10^12-$A135)*(K$3*10^12-$A134)*-1<0,0,1)*IF(ABS(K$3*10^12-$A135)>(K$3*10^12-$A134),$A134,$A135)) -> 0 | L134: =IF(IF((L$3*10^12-$A135)*(L$3*10^12-$A134)*-1<0,0,1)*IF(ABS(L$3*10^12-$A135)>(L$3*10^12-$A134),$A134,$A135)=L135,0,IF((L$3*10^12-$A135)*(L$3*10^12-$A134)*-1<0,0,1)*IF(ABS(L$3*10^12-$A135)>(L$3*10^12-$A134),$A134,$A135)) -> 0 | M134: =IF(IF((M$3*10^12-$A135)*(M$3*10^12-$A134)*-1<0,0,1)*IF(ABS(M$3*10^12-$A135)>(M$3*10^12-$A134),$A134,$A135)=M135,0,IF((M$3*10^12-$A135)*(M$3*10^12-$A134)*-1<0,0,1)*IF(ABS(M$3*10^12-$A135)>(M$3*10^12-$A134),$A134,$A135)) -> 0 | N134: =IF(IF((N$3*10^12-$A135)*(N$3*10^12-$A134)*-1<0,0,1)*IF(ABS(N$3*10^12-$A135)>(N$3*10^12-$A134),$A134,$A135)=N135,0,IF((N$3*10^12-$A135)*(N$3*10^12-$A134)*-1<0,0,1)*IF(ABS(N$3*10^12-$A135)>(N$3*10^12-$A134),$A134,$A135)) -> 
A135: 27000000000 | B135: =IF(IF((B$3*10^12-$A136)*(B$3*10^12-$A135)*-1<0,0,1)*IF(ABS(B$3*10^12-$A136)>(B$3*10^12-$A135),$A135,$A136)=B136,0,IF((B$3*10^12-$A136)*(B$3*10^12-$A135)*-1<0,0,1)*IF(ABS(B$3*10^12-$A136)>(B$3*10^12-$A135),$A135,$A136)) -> 0 | C135: =IF(IF((C$3*10^12-$A136)*(C$3*10^12-$A135)*-1<0,0,1)*IF(ABS(C$3*10^12-$A136)>(C$3*10^12-$A135),$A135,$A136)=C136,0,IF((C$3*10^12-$A136)*(C$3*10^12-$A135)*-1<0,0,1)*IF(ABS(C$3*10^12-$A136)>(C$3*10^12-$A135),$A135,$A136)) -> 0 | D135: 0 | E135: 0 | F135: 0 | G135: 0 | H135: 0 | I135: 0 | J135: 0 | K135: 0 | L135: 0 | M135: 0
A136: 33000000000 | B136: 0 | C136: 0 | D136: 0 | E136: 0 | F136: 0 | G136: 0 | H136: 0 | I136: 0 | J136: 0 | K136: 0 | L136: 0 | M136: 0
A137: 39000000000 | B137: 0 | C137: 0 | D137: 0 | E137: 0 | F137: 0 | G137: 0 | H137: 0 | I137: 0 | J137: 0 | K137: 0 | L137: 0 | M137: 0
A138: 47000000000 | B138: 0 | C138: 0 | D138: 0 | E138: 0 | F138: 0 | G138: 0 | H138: 0 | I138: 0 | J138: 0 | K138: 0 | L138: 0 | M138: 0
A139: 56000000000 | B139: 0 | C139: 0 | D139: 0 | E139: 0 | F139: 0 | G139: 0 | H139: 0 | I139: 0 | J139: 0 | K139: 0 | L139: 0 | M139: 0
A140: 68000000000 | B140: 0 | C140: 0 | D140: 0 | E140: 0 | F140: 0 | G140: 0 | H140: 0 | I140: 0 | J140: 0 | K140: 0 | L140: 0 | M140: 0
A141: 82000000000 | B141: 0 | C141: 0 | D141: 0 | E141: 0 | F141: 0 | G141: 0 | H141: 0 | I141: 0 | J141: 0 | K141: 0 | L141: 0 | M141: 0
A142: 100000000000 | B142: 0 | C142: 0 | D142: 0 | E142: 0 | F142: 0 | G142: 0 | H142: 0 | I142: 0 | J142: 0 | K142: 0 | L142: 0 | M142: 0
A143: 120000000000 | B143: 0 | C143: 0 | D143: 0 | E143: 0 | F143: 0 | G143: 0 | H143: 0 | I143: 0 | J143: 0 | K143: 0 | L143: 0 | M143: 0
A144: 150000000000 | B144: 0 | C144: 0 | D144: 0 | E144: 0 | F144: 0 | G144: 0 | H144: 0 | I144: 0 | J144: 0 | K144: 0 | L144: 0 | M144: 0
A145: 180000000000 | B145: 0 | C145: 0 | D145: 0 | E145: 0 | F145: 0 | G145: 0 | H145: 0 | I145: 0 | J145: 0 | K145: 0 | L145: 0 | M145: 0
A146: 220000000000 | B146: 0 | C146: 0 | D146: 0 | E146: 0 | F146: 0 | G146: 0 | H146: 0 | I146: 0 | J146: 0 | K146: 0 | L146: 0 | M146: 0
A147: 270000000000 | B147: 0 | C147: 0 | D147: 0 | E147: 0 | F147: 0 | G147: 0 | H147: 0 | I147: 0 | J147: 0 | K147: 0 | L147: 0 | M147: 0
A148: 330000000000 | B148: 0 | C148: 0 | D148: 0 | E148: 0 | F148: 0 | G148: 0 | H148: 0 | I148: 0 | J148: 0 | K148: 0 | L148: 0 | M148: 0
A149: 390000000000 | B149: 0 | C149: 0 | D149: 0 | E149: 0 | F149: 0 | G149: 0 | H149: 0 | I149: 0 | J149: 0 | K149: 0 | L149: 0 | M149: 0
A150: 470000000000 | B150: 0 | C150: 0 | D150: 0 | E150: 0 | F150: 0 | G150: 0 | H150: 0 | I150: 0 | J150: 0 | K150: 0 | L150: 0 | M150: 0
A151: 560000000000 | B151: 0 | C151: 0 | D151: 0 | E151: 0 | F151: 0 | G151: 0 | H151: 0 | I151: 0 | J151: 0 | K151: 0 | L151: 0 | M151: 0
A152: 680000000000 | B152: 0 | C152: 0 | D152: 0 | E152: 0 | F152: 0 | G152: 0 | H152: 0 | I152: 0 | J152: 0 | K152: 0 | L152: 0 | M152: 0
A153: 820000000000 | B153: 0 | C153: 0 | D153: 0 | E153: 0 | F153: 0 | G153: 0 | H153: 0 | I153: 0 | J153: 0 | K153: 0 | L153: 0 | M153: 0
A154: 1000000000000 | B154: 0 | C154: 0 | D154: 0 | E154: 0 | F154: 0 | G154: 0 | H154: 0 | I154: 0 | J154: 0 | K154: 0 | L154: 0 | M154: 0
A155: 1200000000000 | B155: 0 | C155: 0 | D155: 0 | E155: 0 | F155: 0 | G155: 0 | H155: 0 | I155: 0 | J155: 0 | K155: 0 | L155: 0 | M155: 0
A156: 1500000000000 | B156: 0 | C156: 0 | D156: 0 | E156: 0 | F156: 0 | G156: 0 | H156: 0 | I156: 0 | J156: 0 | K156: 0 | L156: 0 | M156: 0
A157: 1800000000000 | B157: 0 | C157: 0 | D157: 0 | E157: 0 | F157: 0 | G157: 0 | H157: 0 | I157: 0 | J157: 0 | K157: 0 | L157: 0 | M157: 0
A158: 2200000000000 | B158: 0 | C158: 0 | D158: 0 | E158: 0 | F158: 0 | G158: 0 | H158: 0 | I158: 0 | J158: 0 | K158: 0 | L158: 0 | M158: 0
A159: 2700000000000 | B159: 2700000000000 | C159: 2700000000000 | D159: 2700000000000 | E159: 2700000000000 | F159: 2700000000000 | G159: 2700000000000 | H159: 2700000000000 | I159: 2700000000000 | J159: 2700000000000 | K159: 0 | L159: 2700000000000 | M159: 2700000000000

Sheet Bode Plots Calculations (hidden)
A1: Bode Plot Setup | AC1: EA MODELING
AT3: =AT9/10000000000000 -> -5.821274273e-05 | AU3: =AU9/10000000000000 -> -0.03315716347
AT4: =AT3*1000 -> -0.05821274273 | AU4: =AU3*1000 -> -33.15716347 | BJ4: XOVER SEARCH
AC5: a | AD5: b | AE5: c | AF5: d | AJ5: a | AK5: b | AL5: c | AM5: d | BJ5: xover | BK5: =SUM(BJ9:BJ626)/1000 -> 36
C6: Output Filter | J6: Pwm | M6: Compensation | X6: Design Output | AC6: Z1 | AJ6: Z3 | AQ6: Ea Gain BW | AT6: Complex EA | BA6: Actual EA Response | BF6: Actual Open Loop System Response | BJ6: phase margin | BK6: =SUM(BK10:BK627) -> 64.76614128 | BM6: Comp To Output
C7: Esr zero | F7: LC Double Pole | M7: Origin Pole | O7: Fz1 | Q7: Fz2 | S7: Fp1 | U7: Fp2 | AC7: Num | AE7: Den | AG7: Total | AJ7: Num | AL7: Den | AN7: Total | AQ7: A(s) | AT7: Num | AW7: Den
A8: Frequency | C8: Gain | D8: Phase | F8: Gain | H8: Phase | J8: Gain | M8: Gain | N8: Phase | O8: Gain | P8: Phase | Q8: Gain | R8: Phase | S8: Gain | T8: Phase | U8: Gain | V8: Phase | X8: Total Gain | Y8: Total Phase | Z8: Phase margin | AC8: Real | AD8: Imag | AE8: Real | AF8: Imag | AG8: Z1 Real | AH8: Z1 Imag | AJ8: Real | AK8: Imag | AL8: Real | AM8: Imag | AN8: Z3 Real | AO8: Z3 Imag | AQ8: Real | AR8: Imag | AT8: Real | AU8: Imag | AV8: Phase | AW8: Real | AX8: Imag | AY8: Phase | BA8: EAGain | BB8: Ea Gain (db) | BC8: Ea Phase | BF8: Total Gain | BG8: Total Phase | BH8: Total Phase Margin | BM8: Total Gain | BN8: Total Phase margin | BT8: Output to Comp 5V In @ 500kHz 0A Iout 25DegC
A9: 1 | B9: =A9/1000 -> 0.001 | C9: =SQRT((A9/Fesr)^2+1) -> 1 | D9: =ATAN(A9/Fesr) -> 7.53982236e-07 | F9: =(Ro/(Ro+Rdcr))/SQRT((A9/(Q*Fo))^2+(1-(A9^2/Fo^2))^2) -> 0.9900987856 | G9: =-ATAN(A9*Fo/(Q*(Fo^2-A9^2))) -> -6.32969802e-05 | H9: =IF(G9>0,G9-Pi,G9) -> -6.32969802e-05 | J9: =Vin/Vramp -> 15 | M9: =1/(2*Pi*_Rfb1*(Cc1ea_u+Cc2ea_u)*A9) -> 1500.329405 | N9: =-Pi/2 -> -1.570796325 | O9: =SQRT(1+(A9/Fz1_u)^2) -> 1.000000031 | P9: =ATAN2(Fz1_u,A9) -> 0.000249536699 | Q9: =SQRT(1+(A9/Fz2_u)^2) -> 1.000000014 | R9: =ATAN2(Fz2_u,A9) -> 0.0001673320301 | S9: =1/SQRT(1+(A9/Fp1_u)^2) -> 1 | T9: =-ATAN2(Fp1_u,A9) -> -7.019574617e-07 | U9: =1/SQRT(1+(A9/Fp2_u)^2) -> 1 | V9: =-ATAN2(Fp2_u,A9) -> -5.198681337e-06 | X9: =20*LOG(C9*J9*O9*Q9*F9*M9*S9*U9) -> 86.95912855 | Y9: =(180/Pi)*(D9+H9+N9+P9+R9+T9+V9) -> -89.98003671 | Z9: =Y9+180 -> 90.01996329 | AC9: 1 | AD9: =Rcea1_u*Cc1ea_u*A9*2*Pi -> 0.0002495367042 | AE9: =-Rcea1_u*Cc1ea_u*Cc2ea_u*(A9*2*Pi)^2 -> -1.567885352e-13 | AF9: =(Cc2ea_u+Cc1ea_u)*A9*2*Pi -> 3.015928944e-08 | AG9: =AC9*AE9/(AE9^2+AF9^2)+AD9*AF9/(AE9^2+AF9^2) -> 8101.584201 | AH9: =AD9*AE9/(AE9^2+AF9^2)-AC9*AF9/(AE9^2+AF9^2) -> -33157279.89 | AI9: =SQRT(AG9^2+AH9^2) -> 33157280.88 | AJ9: =_Rfb1 -> 22100 | AK9: =_Rfb1*Rcea2_u*Cc3ea_u*A9*2*Pi -> 0.0155132599 | AL9: 1 | AM9: =(_Rfb1+Rcea2_u)*Cc3ea_u*A9*2*Pi -> 0.0001673320316 | AN9: =AJ9*AL9/(AL9^2+AM9^2)+AK9*AM9/(AL9^2+AM9^2) -> 22099.99938 | AO9: =AK9*AL9/(AL9^2+AM9^2)-AJ9*AM9/(AL9^2+AM9^2) -> -3.682524536 | AP9: =SQRT(AN9^2+AO9^2) -> 22099.99969 | AQ9: =Eadcg/(1+(Eadcg*A9/GBP)^2) -> 9999.96 | AR9: =-(A9*Eadcg*Eadcg/GBP)/(1+(Eadcg*A9/GBP)^2) -> -19.99992 | AT9: =-AR9*AH9+AG9*AQ9 -> -582127427.3 | AU9: =AQ9*AH9+AG9*AR9 -> -3.315716347e+11 | AV9: =ATAN2(AT9,AU9) -> -1.572551986 | AW9: =AG9-AH9*AO9/_Rfb2+AG9*AN9/_Rfb2+AN9-AO9*AR9+AQ9*AN9 -> 221065310 | AX9: =AH9+AH9*AN9/_Rfb2+AG9*AO9/_Rfb2+AO9+AO9*AQ9+AN9*AR9 -> -497838031.3 | AY9: =ATAN2(AW9,AX9) -> -1.15290087 | BA9: =SQRT(AT9^2+AU9^2)/SQRT(AW9^2+AX9^2) -> 608.7094754 | BB9: =20*LOG(BA9) -> 55.68820124 | BC9: =AV9-AY9 -> -0.4196511165 | BD9: =BC9*180/Pi-180 -> -204.0442379 | BF9: =20*LOG(BA9*J9*F9*C9) -> 79.12359698 | BG9: =(180/Pi)*(D9+H9+BC9) -> -24.04782132 | BH9: =IF(BG9>180,BG9-180,BG9+180) -> 155.9521787 | BI9: =IF(BH9>180,BH9-360,BH9) -> 155.9521787 | BJ9: =SUM((BF10<0)*(BF9>0))*A9 -> 0 | BK9: =IF(BJ9>0,BI9,0) -> 0 | BM9: =20*LOG(J9*F9*C9) -> 23.43539574 | BN9: =(H9+D9)*180/Pi -> -0.003583449825 | BQ9: =20*LOG(BA9*7) -> 72.59016204 | BT9: Frequency | BU9: Gain | BV9: Phase
A10: 2 | B10: =A10/1000 -> 0.002 | C10: 1 | D10: 1.507964472e-06 | F10: 0.9900988578 | G10: -0.0001265939699 | H10: -0.0001265939699 | J10: 15 | M10: 750.1647025 | N10: -1.570796325 | O10: 1.000000125 | P10: 0.0004990733669 | Q10: 1.000000056 | R10: 0.0003346640507 | S10: 1 | T10: -1.403914923e-06 | U10: 0.9999999999 | V10: -1.039736267e-05 | X10: =20*LOG(C10*J10*O10*Q10*F10*M10*S10*U10) -> 80.93853045 | Y10: -89.96007343 | Z10: =Y10+180 -> 90.03992657 | AC10: 1 | AD10: 0.0004990734084 | AE10: -6.271541406e-13 | AF10: 6.031857888e-08 | AG10: =AC10*AE10/(AE10^2+AF10^2)+AD10*AF10/(AE10^2+AF10^2) -> 8101.584201 | AH10: =AD10*AE10/(AE10^2+AF10^2)-AC10*AF10/(AE10^2+AF10^2) -> -16578640.01 | AJ10: 22100 | AK10: 0.03102651981 | AL10: 1 | AM10: 0.0003346640632 | AN10: =AJ10*AL10/(AL10^2+AM10^2)+AK10*AM10/(AL10^2+AM10^2) -> 22099.99754 | AO10: =AK10*AL10/(AL10^2+AM10^2)-AJ10*AM10/(AL10^2+AM10^2) -> -7.365048453 | AQ10: 9999.840003 | AR10: -39.99936001 | AT10: =-AR10*AH10+AG10*AQ10 -> -582120444.4 | AU10: =AQ10*AH10+AG10*AR10 -> -1.657840716e+11 | AV10: =ATAN2(AT10,AU10) -> -1.574307629 | AW10: 221062418.6 | AX10: -249637254.5 | AY10: =ATAN2(AW10,AX10) -> -0.8460309025 | BA10: 497.1847346 | BB10: =20*LOG(BA10) -> 53.93035571 | BC10: =AV10-AY10 -> -0.7282767269 | BD10: -221.7271828 | BF10: 77.36575208 | BG10: -41.73434972 | BH10: =IF(BG10>180,BG10-180,BG10+180) -> 138.2656503 | BI10: =IF(BH10>180,BH10-360,BH10) -> 138.2656503 | BJ10: 0 | BK10: =IF(BJ10>0,BI10,0) -> 0 | BM10: =20*LOG(J10*F10*C10) -> 23.43539637 | BN10: -0.007166900194 | BQ10: =20*LOG(BA10*7) -> 70.83231651 | BT10: 100 | BU10: 35.3593 | BV10: -267.6677
A11: 3 | B11: 0.003 | C11: 1 | D11: 2.261946708e-06 | F11: 0.9900989781 | G11: -0.0001898909785 | H11: -0.0001898909785 | J11: 15 | M11: 500.1098016 | N11: -1.570796325 | O11: 1.00000028 | P11: 0.0007486099727 | Q11: 1.000000126 | R11: 0.0005019960527 | S11: 1 | T11: -2.105872385e-06 | U11: 0.9999999999 | V11: -1.559604401e-05 | X11: 77.41670828 | Y11: -89.94011015 | Z11: 90.05988985 | AC11: 1 | AD11: 0.0007486101126 | AE11: -1.411096816e-12 | AF11: 9.047786832e-08 | AG11: 8101.584199 | AH11: -11052426.74 | AJ11: 22100 | AK11: 0.04653977971 | AL11: 1 | AM11: 0.0005019960949 | AN11: 22099.99445 | AO11: -11.04757113 | AQ11: 9999.640013 | AR11: -59.99784008 | AT11: -582108806.6 | AU11: -1.105207748e+11 | AV11: -1.576063241 | AW11: 221057599.7 | AX11: -167222853.7 | AY11: =ATAN2(AW11,AX11) -> -0.6476273715 | BA11: 398.7352976 | BB11: 52.01369366 | BC11: -0.9284358694 | BD11: -233.1954569 | BF11: 75.44909108 | BG11: -53.20620728 | BH11: 126.7937927 | BI11: 126.7937927 | BJ11: 0 | BK11: 0 | BM11: 23.43539743 | BN11: -0.01075035165 | BQ11: 68.91565446 | BT11: 102.329 | BU11: 34.9368 | BV11: -265.9149
A12: 4 | B12: 0.004 | C12: 1 | D12: 3.015928944e-06 | F12: 0.9900991466 | G12: -0.0002531880156 | H12: -0.0002531880156 | J12: 15 | M12: 375.0823512 | N12: -1.570796325 | O12: 1.000000498 | P12: 0.0009981464853 | Q12: 1.000000224 | R12: 0.0006693280265 | S12: 1 | T12: -2.807829847e-06 | U12: 0.9999999998 | V12: -2.079472535e-05 | X12: 74.91793777 | Y12: -89.92014688 | Z12: 90.07985312 | AC12: 1 | AD12: 0.0009981468168 | AE12: -2.508616563e-12 | AF12: 1.206371578e-07 | AG12: 8101.584198 | AH12: -8289320.131 | AJ12: 22100 | AK12: 0.06205303962 | AL12: 1 | AM12: 0.0006693281265 | AN12: 22099.99014 | AO12: -14.73009196 | AQ12: 9999.360041 | AR12: -79.99488033 | AT12: -582092514.6 | AU12: -8.288854457e+10 | AV12: -1.577818804 | AW12: 221050853.7 | AX12: -126255018.1 | AY12: -0.5189423074 | BA12: 325.6154132 | BB12: 50.25409909 | BC12: -1.058876497 | BD12: -240.6691544 | BF12: 73.68949799 | BG12: -60.68348818 | BH12: 119.3165118 | BI12: 119.3165118 | BJ12: 0 | BK12: 0 | BM12: 23.4353989 | BN12: -0.01433380474 | BQ12: 67.15605989 | BT12: 104.713 | BU12: 34.1908 | BV12: -264.9322
A13: 5 | B13: 0.005 | C13: 1 | D13: 3.76991118e-06 | F13: 0.9900993632 | G13: -0.0003164850907 | H13: -0.0003164850907 | J13: 15 | M13: 300.065881 | N13: -1.570796325 | O13: 1.000000778 | P13: 0.001247682874 | Q13: 1.00000035 | R13: 0.0008366599629 | S13: 1 | T13: -3.509787309e-06 | U13: 0.9999999997 | V13: -2.599340668e-05 | X13: 72.97974294 | Y13: -89.90018362 | Z13: 90.09981638 | AC13: 1 | AD13: 0.001247683521 | AE13: -3.919713379e-12 | AF13: 1.507964472e-07 | AG13: 8101.584196 | AH13: -6631456.18 | AJ13: 22100 | AK13: 0.07756629952 | AL13: 1 | AM13: 0.0008366601581 | AN13: 22099.98459 | AO13: -18.41261031 | AQ13: 9999.0001 | AR13: -99.990001 | AT13: -582071568.9 | AU13: -6.630874109e+10 | AV13: -1.579574304 | AW13: 221042180.8 | AX13: -101865776.1 | AY13: -0.4318344203 | BA13: 272.4542699 | BB13: 48.70587237 | BC13: -1.147739884 | BD13: -245.7606514 | BF13: 72.14127318 | BG13: -65.77856865 | BH13: 114.2214313 | BI13: 114.2214313 | BJ13: 0 | BK13: 0 | BM13: 23.4354008 | BN13: -0.01791726 | BQ13: 65.60783317 | BT13: 107.152 | BU13: 34.4777 | BV13: -262.3057
A14: 6 | B14: 0.006 | C14: 1 | D14: 4.523893416e-06 | F14: 0.9900996279 | G14: -0.0003797822132 | H14: -0.0003797822132 | J14: 15 | M14: 250.0549008 | N14: -1.570796325 | O14: 1.000001121 | P14: 0.001497219106 | Q14: 1.000000504 | R14: 0.001003991852 | S14: 1 | T14: -4.21174477e-06 | U14: 0.9999999995 | V14: -3.119208801e-05 | X14: 71.39612465 | Y14: -89.88022038 | Z14: 90.11977962 | AC14: 1 | AD14: 0.001497220225 | AE14: -5.644387266e-12 | AF14: 1.809557366e-07 | AG14: 8101.584194 | AH14: -5526213.561 | AJ14: 22100 | AK14: 0.09307955942 | AL14: 1 | AM14: 0.00100399219 | AN14: 22099.97782 | AO14: -22.09512556 | AQ14: 9998.560207 | AR14: -119.9827225 | AT14: -582045970.7 | AU14: -5.525515106e+10 | AV14: -1.581329724 | AW14: 221031581.4 | AX14: -85765796.19 | AY14: -0.3701407338 | BA14: 233.0704659 | BB14: 47.34974489 | BC14: -1.21118899 | BD14: -249.3960174 | BF14: 70.78514801 | BG14: -69.41751812 | BH14: 110.5824819 | BI14: 110.5824819 | BJ14: 0 | BK14: 0 | BM14: 23.43540313 | BN14: -0.02150071797 | BQ14: 64.25170569 | BT14: 109.648 | BU14: 34.1144 | BV14: -262.7662
A15: 7 | B15: 0.007 | C15: 1 | D15: 5.277875652e-06 | F15: 0.9900999408 | G15: -0.0004430793926 | H15: -0.0004430793926 | J15: 15 | M15: 214.3327721 | N15: -1.570796325 | O15: 1.000001526 | P15: 0.001746755153 | Q15: 1.000000686 | R15: 0.001171323686 | S15: 1 | T15: -4.913702232e-06 | U15: 0.9999999993 | V15: -3.639076934e-05 | X15: 70.0571967 | Y15: -89.86025715 | Z15: 90.13974285 | AC15: 1 | AD15: 0.001746756929 | AE15: -7.682638223e-12 | AF15: 2.111150261e-07 | AG15: 8101.584191 | AH15: -4736754.559 | AJ15: 22100 | AK15: 0.1085928193 | AL15: 1 | AM15: 0.001171324221 | AN15: 22099.96981 | AO15: -25.77763711 | AQ15: 9998.040384 | AR15: -139.9725654 | AT15: -582015721.3 | AU15: -4.735939737e+10 | AV15: -1.583085048 | AW15: 221019056.1 | AX15: -74402501.18 | AY15: -0.3247180943 | BA15: 203.0947858 | BB15: 46.15397547 | BC15: -1.258366954 | BD15: -252.0991156 | BF15: 69.58938134 | BG15: -72.12419978 | BH15: 107.8758002 | BI15: 107.8758002 | BJ15: 0 | BK15: 0 | BM15: 23.43540587 | BN15: -0.02508417921 | BQ15: 63.05593627 | BT15: 112.202 | BU15: 34.2977 | BV15: -267.0128
A16: 8 | B16: 0.008 | C16: 1 | D16: 6.031857888e-06 | F16: 0.9901003018 | G16: -0.0005063766383 | H16: -0.0005063766383 | J16: 15 | M16: 187.5411756 | N16: -1.570796325 | O16: 1.000001993 | P16: 0.001996290982 | Q16: 1.000000896 | R16: 0.001338655453 | S16: 1 | T16: -5.615659694e-06 | U16: 0.9999999991 | V16: -4.158945067e-05 | X16: 68.8973668 | Y16: -89.84029394 | Z16: 90.15970606 | AC16: 1 | AD16: 0.001996293634 | AE16: -1.003446625e-11 | AF16: 2.412743155e-07 | AG16: 8101.584187 | AH16: -4144660.318 | AJ16: 22100 | AK16: 0.1241060792 | AL16: 1 | AM16: 0.001338656253 | AN16: 22099.96056 | AO16: -29.46014432 | AQ16: 9997.440655 | AR16: -159.9590505 | AT16: -581980821.9 | AU16: -4.143729149e+10 | AV16: -1.58484026 | AW16: 221004605.4 | AX16: -65999596.63 | AY16: -0.2902035585 | BA16: 179.6728794 | BB16: 45.08965055 | BC16: -1.294636702 | BD16: -254.1772191 | BF16: 68.52505959 | BG16: -74.20588674 | BH16: 105.7941133 | BI16: 105.7941133 | BJ16: 0 | BK16: 0 | BM16: 23.43540904 | BN16: -0.02866764425 | BQ16: 61.99161135 | BT16: 114.815 | BU16: 33.3465 | BV16: -266.2048
A17: 9 | B17: 0.009 | C17: 1 | D17: 6.785840124e-06 | F17: 0.9901007109 | G17: -0.00056967396 | H17: -0.00056967396 | J17: 15 | M17: 166.7032672 | N17: -1.570796325 | O17: 1.000002522 | P17: 0.002245826562 | Q17: 1.000001134 | R17: 0.001505987146 | S17: 1 | T17: -6.317617155e-06 | U17: 0.9999999989 | V17: -4.6788132e-05 | X17: 67.87432661 | Y17: -89.82033076 | Z17: 90.17966924 | AC17: 1 | AD17: 0.002245830338 | AE17: -1.269987135e-11 | AF17: 2.71433605e-07 | AG17: 8101.584184 | AH17: -3684142.584 | AJ17: 22100 | AK17: 0.1396193391 | AL17: 1 | AM17: 0.001505988285 | AN17: 22099.95009 | AO17: -33.14264658 | AQ17: 9996.761049 | AR17: -179.9416989 | AT17: -581941274.4 | AU17: -3.68309509e+10 | AV17: -1.586595345 | AW17: 220988230.1 | AX17: -59570247.2 | AY17: -0.2633044694 | BA17: 160.9407787 | BB17: 44.13332196 | BC17: -1.323290875 | BD17: -255.8189823 | BF17: 67.56873459 | BG17: -75.85123342 | BH17: 104.1487666 | BI17: 104.1487666 | BJ17: 0 | BK17: 0 | BM17: 23.43541263 | BN17: -0.03225111364 | BQ17: 61.03528276 | BT17: 117.49 | BU17: 33.0246 | BV17: -264.9049
A18: 10 | B18: 0.01 | C18: 1 | D18: 7.53982236e-06 | F18: 0.9901011682 | G18: -0.000632971367 | H18: -0.000632971367 | J18: 15 | M18: 150.0329405 | N18: -1.570796325 | O18: 1.000003113 | P18: 0.002495361862 | Q18: 1.0000014 | R18: 0.001673318754 | S18: 1 | T18: -7.019574617e-06 | U18: 0.9999999986 | V18: -5.198681333e-05 | X18: 66.95918825 | Y18: -89.8003676 | Z18: 90.1996324 | AC18: 1 | AD18: 0.002495367042 | AE18: -1.567885352e-11 | AF18: 3.015928944e-07 | AG18: 8101.584179 | AH18: -3315728.406 | AJ18: 22100 | AK18: 0.155132599 | AL18: 1 | AM18: 0.001673320316 | AN18: 22099.93838 | AO18: -36.82514328 | AQ18: 9996.001599 | AR18: -199.920032 | AT18: -581897080.6 | AU18: -3.314564612e+10 | AV18: -1.588350286 | AW18: 220969930.9 | AX18: -54522347.06 | AY18: -0.2419090475 | BA18: 145.6554911 | BB18: 43.26653724 | BC18: -1.346441238 | BD18: -257.1454004 | BF18: 66.70195388 | BG18: -77.18123499 | BH18: 102.818765 | BI18: 102.818765 | BJ18: 0 | BK18: 0 | BM18: 23.43541664 | BN18: -0.03583458793 | BQ18: 60.16849804 | BT18: 120.226 | BU18: 33.736 | BV18: -269.9808
A19: =A10*10 -> 20 | B19: 0.02 | C19: 1 | D19: 1.507964472e-05 | F19: 0.9901083883 | G19: -0.001265952219 | H19: -0.001265952219 | J19: 15 | M19: 75.01647025 | N19: -1.570796325 | O19: 1.000012454 | P19: 0.004990692649 | Q19: 1.0000056 | R19: 0.003346628138 | S19: 0.9999999999 | T19: -1.403914923e-05 | U19: 0.9999999946 | V19: -0.0001039736264 | X19: 60.93876925 | Y19: -89.60073806 | Z19: 90.39926194 | AC19: 1 | AD19: 0.004990734084 | AE19: -6.271541406e-11 | AF19: 6.031857888e-07 | AG19: 8101.584114 | AH19: -1657864.835 | AJ19: 22100 | AK19: 0.3102651981 | AL19: 1 | AM19: 0.003346640632 | AN19: 22099.75352 | AO19: -73.6496679 | AQ19: 9984.025559 | AR19: -399.3610224 | AT19: -581200172.5 | AU19: -1.655540034e+10 | AV19: -1.605888295 | AW19: 220681364.3 | AX19: -34429265.63 | AY19: -0.1547658416 | BA19: 74.16847989 | BB19: 37.40438756 | BC19: -1.451122453 | BD19: -263.1431922 | BF19: 60.83986754 | BG19: -83.21486194 | BH19: 96.78513806 | BI19: 96.78513806 | BJ19: 0 | BK19: 0 | BM19: 23.43547998 | BN19: -0.07166971931 | BQ19: 54.30634836 | BT19: 123.027 | BU19: 32.7649 | BV19: -265.7341
A20: =A11*10 -> 30 | B20: 0.03 | C20: 1 | D20: 2.261946708e-05 | F20: 0.9901204219 | G20: -0.001898952042 | H20: -0.001898952042 | J20: 15 | M20: 50.01098016 | N20: -1.570796325 | O20: 1.00002802 | P20: 0.007485961286 | Q20: 1.0000126 | R20: 0.005019918781 | S20: 0.9999999998 | T20: -2.105872385e-05 | U20: 0.9999999878 | V20: -0.0001559604389 | X20: 57.41724559 | Y20: -89.40111424 | Z20: 90.59888576 | AC20: 1 | AD20: 0.007486101126 | AE20: -1.411096816e-10 | AF20: 9.047786832e-07 | AG20: 8101.584004 | AH20: -1105243.925 | AJ20: 22100 | AK20: 0.4653977971 | AL20: 1 | AM20: 0.005019960949 | AN20: 22099.44543 | AO20: -110.4729552 | AQ20: 9964.129135 | AR20: -597.8477481 | AT20: -580042362.5 | AU20: -1.101763671e+10 | AV20: -1.623394481 | AW20: 220201954.3 | AX20: -30891818.51 | AY20: -0.1393789585 | BA20: 49.61764751 | BB20: 33.91272339 | BC20: -1.484015523 | BD20: -265.0278263 | BF20: 57.34830894 | BG20: -85.13533221 | BH20: 94.86466779 | BI20: 94.86466779 | BJ20: 0 | BK20: 0 | BM20: 23.43558555 | BN20: -0.1075059376 | BQ20: 50.81468419 | BT20: 125.893 | BU20: 32.2472 | BV20: -266.3711
A21: 40 | B21: 0.04 | C21: 1 | D21: 3.015928943e-05 | F21: 0.9901372695 | G21: -0.002531980323 | H21: -0.002531980323 | J21: 15 | M21: 37.50823512 | N21: -1.570796325 | O21: 1.000049814 | P21: 0.009981136704 | Q21: 1.0000224 | R21: 0.006693181314 | S21: 0.9999999996 | T21: -2.807829846e-05 | U21: 0.9999999784 | V21: -0.0002079472505 | X21: 54.91889297 | Y21: -89.201499 | Z21: 90.798501 | AC21: 1 | AD21: 0.009981468168 | AE21: -2.508616563e-10 | AF21: 1.206371578e-06 | AG21: 8101.583851 | AH21: -828933.6809 | AJ21: 22100 | AK21: 0.6205303962 | AL21: 1 | AM21: 0.006693281265 | AN21: 22099.01412 | AO21: -147.2943868 | AQ21: 9936.406995 | AR21: -794.9125596 | AT21: -578429159.6 | AU21: -8243062476 | AV21: -1.640853123 | AW21: 219533983.3 | AX21: -31464751.6 | AY21: -0.1423557185 | BA21: 37.25958304 | BB21: 31.42475981 | BC21: -1.498497405 | BD21: -265.857577 | BF21: 54.86049316 | BG21: -86.00092078 | BH21: 93.99907922 | BI21: 93.99907922 | BJ21: 0 | BK21: 0 | BM21: 23.43573335 | BN21: -0.1433437865 | BQ21: 48.32672061 | BT21: 128.825 | BU21: 32.3142 | BV21: -268.0596
A22: 50 | B22: 0.05 | C22: 1.000000001 | D22: 3.769911178e-05 | F22: 0.9901589315 | G22: -0.003165046549 | H22: -0.003165046549 | J22: 15 | M22: 30.0065881 | N22: -1.570796325 | O22: 1.000077833 | P22: 0.01247618784 | Q22: 1.000034999 | R22: 0.008366406368 | S22: 0.9999999994 | T22: -3.509787307e-05 | U22: 0.9999999662 | V22: -0.000259934061 | X22: 52.98123542 | Y22: -89.00189521 | Z22: 90.99810479 | AC22: 1 | AD22: 0.01247683521 | AE22: -3.919713379e-10 | AF22: 1.507964472e-06 | AG22: 8101.583654 | AH22: -663147.7029 | AJ22: 22100 | AK22: 0.7756629952 | AL22: 1 | AM22: 0.008366601581 | AN22: 22098.4596 | AO22: -184.113344 | AQ22: 9900.990099 | AR22: -990.0990099 | AT22: =-AR22*AH22+AG22*AQ22 -> -576368184.5 | AU22: =AQ22*AH22+AG22*AR22 -> -6573840210 | AV22: -1.658248726 | AW22: 218680608.7 | AX22: -33650264.82 | AY22: -0.1526810193 | BA22: 29.82564874 | BB22: 29.49179798 | BC22: -1.505567706 | BD22: -266.2626754 | BF22: 52.92772135 | BG22: -86.44185925 | BH22: 93.55814075 | BI22: 93.55814075 | BJ22: 0 | BK22: 0 | BM22: 23.43592337 | BN22: -0.1791838094 | BQ22: 46.39375878 | BT22: 131.826 | BU22: 32.1558 | BV22: -263.3605
A23: 60 | B23: 0.06 | C23: 1.000000001 | D23: 4.523893413e-05 | F23: 0.9901854085 | G23: -0.003798160209 | H23: -0.003798160209 | J23: 15 | M23: 25.00549008 | N23: -1.570796325 | O23: 1.000112077 | P23: 0.01497108364 | Q23: 1.000050399 | R23: 0.01003958458 | S23: 0.9999999991 | T23: -4.211744768e-05 | U23: 0.9999999514 | V23: -0.0003119208701 | X23: 51.3982738 | Y23: -88.80230572 | Z23: 91.19769428 | AC23: 1 | AD23: 0.01497220225 | AE23: -5.644387266e-10 | AF23: 1.809557366e-06 | AG23: 8101.583413 | AH23: -552623.8579 | AJ23: 22100 | AK23: 0.9307955942 | AL23: 1 | AM23: 0.0100399219 | AN23: 22097.78189 | AO23: -220.9292087 | AQ23: 9858.044164 | AR23: -1182.9653 | AT23: -573869080.5 | AU23: -5457374289 | AV23: -1.67556609 | AW23: 217645825.8 | AX23: -36608775.21 | AY23: -0.1666435365 | BA23: 24.86354333 | BB23: 27.91126041 | BC23: -1.508922554 | BD23: -266.454894 | BF23: 51.34741604 | BG23: -86.66992058 | BH23: 93.33007942 | BI23: 93.33007942 | BJ23: 0 | BK23: 0 | BM23: 23.43615563 | BN23: -0.2150265502 | BQ23: 44.81322121 | BT23: 134.896 | BU23: 32.8753 | BV23: -269.4654
A24: 70 | B24: 0.07 | C24: 1.000000001 | D24: 5.277875647e-05 | F24: 0.990216701 | G24: -0.004431330797 | H24: -0.004431330797 | J24: 15 | M24: 21.43327721 | N24: -1.570796325 | O24: 1.000152546 | P24: 0.01746579307 | Q24: 1.000068598 | R24: 0.01171270657 | S24: 0.9999999988 | T24: -4.913702228e-05 | U24: 0.9999999338 | V24: -0.0003639076775 | X24: 50.06012188 | Y24: -88.60273339 | Z24: 91.39726661 | AC24: 1 | AD24: 0.01746756929 | AE24: -7.682638223e-10 | AF24: 2.111150261e-06 | AG24: 8101.583129 | AH24: -473678.3746 | AJ24: 22100 | AK24: 1.085928193 | AL24: 1 | AM24: 0.01171324221 | AN24: 22096.98101 | AO24: -257.7413626 | AQ24: 9807.767752 | AR24: -1373.087485 | AT24: -570943402.5 | AU24: -4656851670 | AV24: -1.692790383 | AW24: 216434421.7 | AX24: -39974805.76 | AY24: -0.182638855 | BA24: 21.31679085 | BB24: 26.57443648 | BC24: -1.510151528 | BD24: -266.5253091 | BF24: 50.01086661 | BG24: -86.77618162 | BH24: 93.22381838 | BI24: 93.22381838 | BJ24: 0 | BK24: 0 | BM24: 23.43643013 | BN24: -0.2508725526 | BQ24: 43.47639728 | BT24: 138.038 | BU24: 32.5387 | BV24: -267.9507
A25: 80 | B25: 0.08 | C25: 1.000000002 | D25: 6.031857881e-05 | F25: 0.9902528101 | G25: -0.005064567806 | H25: -0.005064567806 | J25: 15 | M25: 18.75411756 | N25: -1.570796325 | O25: 1.00019924 | P25: 0.0199602851 | Q25: 1.000089596 | R25: 0.01338576299 | S25: 0.9999999984 | T25: -5.615659688e-05 | U25: 0.9999999135 | V25: -0.000415894483 | X25: 48.90118737 | Y25: -88.40318107 | Z25: 91.59681893 | AC25: 1 | AD25: 0.01996293634 | AE25: -1.003446625e-09 | AF25: 2.412743155e-06 | AG25: 8101.5828 | AH25: -414469.3675 | AJ25: 22100 | AK25: 1.241060792 | AL25: 1 | AM25: 0.01338656253 | AN25: 22096.057 | AO25: -294.5491879 | AQ25: 9750.390016 | AR25: -1560.062402 | AT25: -567604485.2 | AU25: -4053876957 | AV25: -1.709907198 | AW25: 215051921.2 | AX25: -43561008.71 | AY25: -0.199856291 | BA25: 18.65568858 | BB25: 25.41622567 | BC25: -1.510050907 | BD25: -266.5195439 | BF25: 48.85297254 | BG25: -86.8062663 | BH25: 93.1937337 | BI25: 93.1937337 | BJ25: 0 | BK25: 0 | BM25: 23.43674687 | BN25: -0.2867223607 | BQ25: 42.31818647 | BT25: 141.254 | BU25: 32.377 | BV25: -263.1143
A26: 90 | B26: 0.09 | C26: 1.000000002 | D26: 6.785840114e-05 | F26: 0.9902937367 | G26: -0.005697880735 | H26: -0.005697880735 | J26: 15 | M26: 16.67032672 | N26: -1.570796325 | O26: 1.000252156 | P26: 0.02245452871 | Q26: 1.000113394 | R26: 0.01505874447 | S26: 0.999999998 | T26: -6.317617147e-05 | U26: 0.9999998905 | V26: -0.0004678812862 | X26: 47.8791619 | Y26: -88.20365164 | Z26: 91.79634836 | AC26: 1 | AD26: 0.02245830338 | AE26: -1.269987135e-09 | AF26: 2.71433605e-06 | AG26: 8101.582428 | AH26: -368418.0111 | AJ26: 22100 | AK26: 1.396193391 | AL26: 1 | AM26: 0.01505988285 | AN26: 22095.00988 | AO26: -331.3520668 | AQ26: 9686.168152 | AR26: -1743.510267 | AT26: -563867295.4 | AU26: -3582683998 | AV26: -1.726902618 | AW26: 213504525.1 | AX26: -47259545.88 | AY26: -0.2178390414 | BA26: 16.58546818 | BB26: 24.39455471 | BC26: -1.509063576 | BD26: -266.462974 | BF26: 47.83166056 | BG26: -86.78555055 | BH26: 93.21444945 | BI26: 93.21444945 | BJ26: 0 | BK26: 0 | BM26: 23.43710585 | BN26: -0.3225765186 | BQ26: 41.29651551 | BT26: 144.544 | BU26: 31.4991 | BV26: -266.2885
A27: 100 | B27: 0.1 | C27: 1.000000003 | D27: 7.539822346e-05 | F27: 0.9903394817 | G27: -0.006331279084 | H27: -0.006331279084 | J27: 15 | M27: 15.00329405 | N27: -1.570796325 | O27: 1.000311294 | P27: 0.02494849292 | Q27: 1.00013999 | R27: 0.01673164166 | S27: 0.9999999975 | T27: -7.019574606e-05 | U27: 0.9999998649 | V27: -0.0005198680869 | X27: 46.9651576 | Y27: -88.00414793 | Z27: 91.99585207 | AC27: 1 | AD27: 0.02495367042 | AE27: -1.567885352e-09 | AF27: 3.015928944e-06 | AG27: 8101.582012 | AH27: -331577.0102 | AJ27: 22100 | AK27: 1.55132599 | AL27: 1 | AM27: 0.01673320316 | AN27: 22093.83968 | AO27: -368.149382 | AQ27: 9615.384615 | AR27: -1923.076923 | AT27: -559748269.6 | AU27: -3203820448 | AV27: -1.743763262 | AW27: 211799043.2 | AX27: -51002669.9 | AY27: -0.2363077898 | BA27: 14.92907783 | BB27: 23.48065964 | BC27: -1.507455472 | BD27: -266.3708365 | BF27: 46.91816672 | BG27: -86.72927202 | BH27: 93.27072798 | BI27: 93.27072798 | BJ27: 0 | BK27: 0 | BM27: 23.43750707 | BN27: -0.3584355708 | BQ27: 40.38262044 | BT27: 147.911 | BU27: 31.4819 | BV27: -266.3463
A28: 200 | B28: 0.2 | C28: 1.000000011 | D28: 0.0001507964461 | F28: 0.9910622848 | G28: -0.01267205447 | H28: -0.01267205447 | J28: 15 | M28: 7.501647025 | N28: -1.570796325 | O28: 1.001244597 | P28: 0.0498659672 | Q28: 1.000559843 | R28: 0.03345392058 | S28: 0.9999999901 | T28: -0.0001403914914 | U28: 0.9999994595 | V28: -0.001039735893 | X28: 40.96263708 | Y28: -86.01115363 | Z28: 93.98884637 | AC28: 1 | AD28: 0.04990734084 | AE28: -6.271541406e-09 | AF28: 6.031857888e-06 | AG28: 8101.575443 | AH28: -165794.8227 | AJ28: 22100 | AK28: 3.102651981 | AL28: 1 | AM28: 0.03346640632 | AN28: 22075.3794 | AO28: -735.6809648 | AQ28: 8620.689655 | AR28: -3448.275862 | AT28: -501865117.7 | AU28: -1457202180 | AV28: -1.902476473 | AW28: 187834369.2 | AX28: -84952923.06 | AY28: -0.4247447975 | BA28: 7.476042818 | BB28: 17.4734356 | BC28: -1.477731675 | BD28: -264.6677883 | BF28: 40.91727987 | BG28: -85.38520357 | BH28: 94.61479643 | BI28: 94.61479643 | BJ28: 0 | BK28: 0 | BM28: 23.44384426 | BN28: -0.7174152399 | BQ28: 34.3753964 | BT28: 151.356 | BU28: 31.0519 | BV28: -267.0283
A29: 300 | B29: 0.3 | C29: 1.000000026 | D29: 0.0002261946669 | F29: 0.9922691018 | G29: -0.01903186743 | H29: -0.01903186743 | J29: 15 | M29: 5.001098016 | N29: -1.570796325 | O29: 1.002798171 | P29: 0.07472163497 | Q29: 1.001259208 | R29: 0.05015750544 | S29: 0.9999999778 | T29: -0.0002105872354 | U29: 0.9999987838 | V29: -0.001559603137 | X29: 37.47091245 | Y29: -84.02386242 | Z29: 95.97613758 | AC29: 1 | AD29: 0.07486101126 | AE29: -1.411096816e-08 | AF29: 9.047786832e-06 | AG29: 8101.564495 | AH29: -110536.9014 | AJ29: 22100 | AK29: 4.653977971 | AL29: 1 | AM29: 0.05019960949 | AN29: 22044.68101 | AO29: -1101.9804 | AQ29: 7352.941176 | AR29: -4411.764706 | AT29: -428092473.1 | AU29: -848513530.1 | AV29: -2.038053795 | AW29: 157297684.4 | AX29: -107019680.2 | AY29: -0.5974255152 | BA29: 4.995422896 | BB29: 13.9714452 | BC29: -1.44062828 | BD29: -262.5419204 | BF29: 37.42585997 | BG29: -83.61940607 | BH29: 96.38059393 | BI29: 96.38059393 | BJ29: 0 | BK29: 0 | BM29: 23.45441476 | BN29: -1.077485681 | BQ29: 30.873406 | BT29: 154.882 | BU29: 31.2487 | BV29: -260.6973
A30: 400 | B30: 0.4 | C30: 1.000000045 | D30: 0.0003015928853 | F30: 0.9939631636 | G30: -0.02542034954 | H30: -0.02542034954 | J30: 15 | M30: 3.750823512 | N30: -1.570796325 | O30: 1.004969139 | P30: 0.09948516564 | Q30: 1.002237498 | R30: 0.06683312743 | S30: 0.9999999606 | T30: -0.0002807829773 | U30: 0.9999978379 | V30: -0.002079469538 | X30: 35.0142123 | Y30: -82.04509499 | Z30: 97.95490501 | AC30: 1 | AD30: 0.09981468168 | AE30: -2.508616563e-08 | AF30: 1.206371578e-05 | AG30: 8101.549169 | AH30: -82910.04657 | AJ30: 22100 | AK30: 6.205303962 | AL30: 1 | AM30: 0.06693281265 | AN30: 22001.84703 | AO30: -1466.440201 | AQ30: 6097.560976 | AR30: -4878.04878 | AT30: -355039561.5 | AU30: -545068816.5 | AV30: -2.148131573 | AW30: 127070237.7 | AX30: -117515279.6 | AY30: -0.7463520994 | BA30: 3.758390317 | BB30: 11.50003761 | BC30: -1.401779474 | BD30: -260.3160477 | BF30: 34.96926898 | BG30: -81.75524648 | BH30: 98.24475352 | BI30: 98.24475352 | BJ30: 0 | BK30: 0 | BM30: 23.46923137 | BN30: -1.439198745 | BQ30: 28.40199841 | BT30: 158.489 | BU30: 31.0037 | BV30: -259.869
A31: 500 | B31: 0.5 | C31: 1.000000071 | D31: 0.0003769911001 | F31: 0.9961490206 | G31: -0.03184726897 | H31: -0.03184726897 | J31: 15 | M31: 3.00065881 | N31: -1.570796325 | O31: 1.007753512 | P31: 0.124126904 | Q31: 1.003493897 | R31: 0.08347161089 | S31: 0.9999999384 | T31: -0.0003509787164 | U31: 0.9999966217 | V31: -0.002599334814 | X31: 33.12999563 | Y31: -80.07763587 | Z31: 99.92236413 | AC31: 1 | AD31: 0.1247683521 | AE31: -3.919713379e-08 | AF31: 1.507964472e-05 | AG31: 8101.529463 | AH31: -66335.61833 | AJ31: 22100 | AK31: 7.756629952 | AL31: 1 | AM31: 0.08366601581 | AN31: 21947.01978 | AO31: -1828.463074 | AQ31: 5000 | AR31: -5000 | AT31: -291170444.3 | AU31: -372185739 | AV31: -2.234666921 | AW31: 100658631.7 | AX31: -119877232.4 | AY31: -0.8723235757 | BA31: 3.018837091 | BB31: 9.596793545 | BC31: -1.362343345 | BD31: -258.056524 | BF31: 33.08510559 | BG31: -79.85963813 | BH31: 100.1403619 | BI31: 100.1403619 | BJ31: 0 | BK31: 0 | BM31: 23.48831204 | BN31: -1.803114104 | BQ31: 26.49875435 | BT31: 162.181 | BU31: 30.4293 | BV31: -262.3986
A32: 600 | B32: 0.6 | C32: 1.000000102 | D32: 0.0004523893107 | F32: 0.9988325697 | G32: -0.03832257793 | H32: -0.03832257793 | J32: 15 | M32: 2.500549008 | N32: -1.570796325 | O32: 1.011146223 | P32: 0.1486180759 | Q32: 1.005027364 | R32: 0.1000639032 | S32: 0.9999999113 | T32: -0.0004211744521 | U32: 0.9999951353 | V32: -0.003119198686 | X32: 31.61218138 | Y32: -78.12422256 | Z32: 101.8757774 | AC32: 1 | AD32: 0.1497220225 | AE32: -5.644387266e-08 | AF32: 1.809557366e-05 | AG32: 8101.505378 | AH32: -55287.40337 | AJ32: 22100 | AK32: 9.307955942 | AL32: 1 | AM32: 0.100399219 | AN32: 21880.38021 | AO32: -2187.465128 | AQ32: 4098.360656 | AR32: -4918.032787 | AT32: -238702371.6 | AU32: -266431187.8 | AV32: -2.3013555 | AW32: 78981326.89 | AX32: -117408481.4 | AY32: -0.9786246616 | BA32: 2.52802964 | BB32: 8.055643231 | BC32: -1.322730839 | BD32: -255.7868946 | BF32: 31.56732321 | BG32: -77.95669655 | BH32: 102.0433035 | BI32: 102.0433035 | BJ32: 0 | BK32: 0 | BM32: 23.51167998 | BN32: -2.16980198 | BQ32: 24.95760403 | BT32: 165.959 | BU32: 29.9194 | BV32: -264.8295
A33: 700 | B33: 0.7 | C33: 1.000000139 | D33: 0.0005277875162 | F33: 1.002021089 | G33: -0.04485646194 | H33: -0.04485646194 | J33: 15 | M33: 2.143327721 | N33: -1.570796325 | O33: 1.015141171 | P33: 0.1729309788 | Q33: 1.006836632 | R33: 0.1166011034 | S33: 0.9999998793 | T33: -0.0004913701837 | U33: 0.9999933786 | V33: -0.003639060872 | X33: 30.3507857 | Y33: -76.18753586 | Z33: 103.8124641 | AC33: 1 | AD33: 0.1746756929 | AE33: -7.682638223e-08 | AF33: 2.111150261e-05 | AG33: 8101.476914 | AH33: -47397.02454 | AJ33: 22100 | AK33: 10.85928193 | AL33: 1 | AM33: 0.1171324221 | AN33: 21802.14643 | AO33: -2542.878937 | AQ33: 3378.378378 | AR33: -4729.72973 | AT33: -196805261.6 | AU33: -198442879.1 | AV33: -2.35205125 | AW33: 61694215.05 | AX33: -112426672.9 | AY33: -1.06891278 | BA33: 2.179361667 | BB33: 6.766586155 | BC33: -1.283138469 | BD33: -253.5184189 | BF33: 30.30594979 | BG33: -76.05826487 | BH33: 103.9417351 | BI33: 103.9417351 | BJ33: 0 | BK33: 0 | BM33: 23.53936363 | BN33: -2.539845959 | BQ33: 23.66854695 | BT33: 169.824 | BU33: 29.8089 | BV33: -267.7277
A34: 800 | B34: 0.8 | C34: 1.000000182 | D34: 0.0006031857156 | F34: 1.005723284 | G34: -0.05145939133 | H34: -0.05145939133 | J34: 15 | M34: 1.875411756 | N34: -1.570796325 | O34: 1.01973128 | P34: 0.1970391531 | Q34: 1.008920218 | R34: 0.1330744901 | S34: 0.9999998423 | T34: -0.0005615659103 | U34: 0.9999913517 | V34: -0.004158921091 | X34: 29.28010437 | Y34: -74.2701914 | Z34: 105.7298086 | AC34: 1 | AD34: 0.1996293634 | AE34: -1.003446625e-07 | AF34: 2.412743155e-05 | AG34: 8101.444072 | AH34: -41480.29327 | AJ34: 22100 | AK34: 12.41060792 | AL34: 1 | AM34: 0.1338656253 | AN34: 21712.57194 | AO34: -2894.156412 | AQ34: 2808.988764 | AR34: -4494.382022 | AT34: -163671419 | AU34: -152928662.3 | AV34: -2.390113106 | AW34: 48048121.91 | AX34: -106344017.1 | AY34: -1.146431729 | BA34: 1.919528035 | BB34: 5.663889189 | BC34: -1.243681377 | BD34: -251.257694 | BF34: 29.23528604 | BG34: -74.17153998 | BH34: 105.82846 | BI34: 105.82846 | BJ34: 0 | BK34: 0 | BM34: 23.57139685 | BN34: -2.913845947 | BQ34: 22.56584999 | BT34: 173.78 | BU34: 30.0709 | BV34: -269.952
A35: 900 | B35: 0.9 | C35: 1.00000023 | D35: 0.0006785839082 | F35: 1.009949335 | G35: -0.05814217543 | H35: -0.05814217543 | J35: 15 | M35: 1.667032672 | N35: -1.570796325 | O35: 1.024908552 | P35: 0.2209175325 | Q35: 1.011276425 | R35: 0.1494755474 | S35: 0.9999998004 | T35: -0.0006317616315 | U35: 0.9999890545 | V35: -0.004678779062 | X35: 28.35770435 | Y35: -72.37473258 | Z35: 107.6252674 | AC35: 1 | AD35: 0.2245830338 | AE35: -1.269987135e-07 | AF35: 2.71433605e-05 | AG35: 8101.406851 | AH35: -36879.32702 | AJ35: 22100 | AK35: 13.96193391 | AL35: 1 | AM35: 0.1505988285 | AN35: 21611.94362 | AO35: -3240.771455 | AQ35: 2358.490566 | AR35: -4245.283019 | AT35: -137456089.1 | AU35: -121372309.8 | AV35: -2.418255396 | AW35: 37278488.97 | AX35: -99953806.62 | AY35: -1.213817831 | BA35: 1.718913878 | BB35: 4.70508236 | BC35: -1.204437564 | BD35: -249.0091892 | BF35: 28.31290129 | BG35: -72.30161048 | BH35: 107.6983895 | BI35: 107.6983895 | BJ35: 0 | BK35: 0 | BM35: 23.60781893 | BN35: -3.292421273 | BQ35: 21.60704316 | BT35: 177.828 | BU35: 29.7201 | BV35: -271.5601
A36: 1000 | B36: 1 | C36: 1.000000284 | D36: 0.0007539820931 | F36: 1.014710967 | G36: -0.06491602007 | H36: -0.06491602007 | J36: 15 | M36: 1.500329405 | N36: -1.570796325 | O36: 1.030664139 | P36: 0.2445425725 | Q36: 1.013903353 | R36: 0.1657959896 | S36: 0.9999997536 | T36: -0.0007019573464 | U36: 0.9999864871 | V36: -0.005198634504 | X36: 27.55456213 | Y36: -70.50362519 | Z36: 109.4963748 | AC36: 1 | AD36: 0.2495367042 | AE36: -1.567885352e-07 | AF36: 3.015928944e-05 | AG36: 8101.365252 | AH36: -33199.39627 | AJ36: 22100 | AK36: 15.5132599 | AL36: 1 | AM36: 0.1673320316 | AN36: 21500.57945 | AO36: -3582.222381 | AQ36: 2000 | AR36: -4000 | AT36: -116594854.6 | AU36: -98804253.54 | AV36: -2.438601107 | AW36: 28736875.4 | AX36: -93674113.42 | AY36: -1.273135591 | BA36: 1.559749756 | BB36: 3.861098528 | BC36: -1.165465515 | BD36: -246.7762553 | BF36: 27.50977326 | BG36: -70.45246925 | BH36: 109.5475307 | BI36: 109.5475307 | BJ36: 0 | BK36: 0 | BM36: 23.64867473 | BN36: -3.676213985 | BQ36: 20.76305933 | BT36: 181.97 | BU36: 30.0421 | BV36: -268.8459
A37: =A36+500 -> 1500 | B37: 1.5 | C37: 1.00000064 | D37: 0.001130972872 | F37: 1.047080959 | G37: -0.1005792668 | H37: -0.1005792668 | J37: 15 | M37: 1.000219603 | N37: -1.570796325 | O37: 1.067756655 | P37: 0.3581612654 | Q37: 1.031018923 | R37: 0.2459177811 | S37: 0.9999994457 | T37: -0.001052935803 | U37: 0.9999695968 | V37: -0.007797863948 | X37: 24.75785279 | Y37: -61.59390111 | Z37: 118.4060989 | AC37: 1 | AD37: 0.3743050563 | AE37: -3.527742041e-07 | AF37: 4.523893416e-05 | AG37: 8101.091581 | AH37: -22168.02572 | AJ37: 22100 | AK37: 23.26988986 | AL37: 1 | AM37: 0.2509980474 | AN37: 20795.71052 | AO37: -5196.412846 | AQ37: 1000 | AR37: -3000 | AT37: -58402985.59 | AU37: -46471300.47 | AV37: -2.469478698 | AW37: 5269116.858 | AX37: -67929612.49 | AY37: -1.49338403 | BA37: 1.095430905 | BB37: 0.7916997874 | BC37: -0.9760946674 | BD37: -235.9261049 | BF37: 24.71313577 | BG37: -61.62407244 | BH37: 118.3759276 | BI37: 118.3759276 | BJ37: 0 | BK37: 0 | BM37: 23.92143598 | BN37: -5.69796753 | BQ37: 17.69366059 | BT37: 186.209 | BU37: 29.9018 | BV37: -265.3796
A38: =A37+500 -> 2000 | B38: 2 | C38: 1.000001137 | D38: 0.001507963329 | F38: 1.095643482 | G38: -0.1405511971 | H38: -0.1405511971 | J38: 15 | M38: 0.7501647025 | N38: -1.570796325 | O38: 1.117619912 | P38: 0.462906061 | Q38: 1.054514123 | R38: 0.3229477328 | S38: 0.9999990145 | T38: -0.001403914001 | U38: 0.9999459518 | V38: -0.01039698803 | X38: 23.24480534 | Y38: -53.61662661 | Z38: 126.3833734 | AC38: 1 | AD38: 0.4990734084 | AE38: -6.271541406e-07 | AF38: 6.031857888e-05 | AG38: 8100.708473 | AH38: -16662.86593 | AJ38: 22100 | AK38: 31.02651981 | AL38: 1 | AM38: 0.3346640632 | AN38: 19883.43773 | AO38: -6623.245544 | AQ38: 588.2352941 | AR38: -2352.941176 | AT38: -34441620.73 | AU38: -28862176.37 | AV38: -2.444104917 | AW38: -3827860.659 | AX38: -50947743.43 | AY38: -1.645788504 | BA38: 0.8795242084 | BB38: -1.115044047 | BC38: -0.7983164131 | BD38: -225.7401612 | BF38: 23.2001762 | BG38: -53.70675171 | BH38: 126.2932483 | BI38: 126.2932483 | BJ38: 0 | BK38: 0 | BM38: 24.31522024 | BN38: -7.966590476 | BQ38: 15.78691675 | BT38: 190.546 | BU38: 29.5667 | BV38: -265.8945
A39: 2500 | B39: 2.5 | C39: 1.000001777 | D39: 0.001884953358 | F39: 1.164258943 | G39: -0.1871684851 | H39: -0.1871684851 | J39: 15 | M39: 0.600131762 | N39: -1.570796325 | O39: 1.178634185 | P39: 0.5577659904 | Q39: 1.083974195 | R39: 0.3962076277 | S39: 0.9999984602 | T39: -0.001754891853 | U39: 0.9999155535 | V39: -0.01299597164 | X39: 22.53497714 | Y39: -46.80246447 | Z39: 133.1975355 | AC39: 1 | AD39: 0.6238417605 | AE39: -9.799283447e-07 | AF39: 7.53982236e-05 | AG39: 8100.215959 | AH39: -13368.18804 | AJ39: 22100 | AK39: 38.78314976 | AL39: 1 | AM39: 0.418330079 | AN39: 18822.31755 | AO39: -7835.158439 | AQ39: 384.6153846 | AR39: -1923.076923 | AT39: -22592586.25 | AU39: -20718949.17 | AV39: -2.399427075 | AW39: -7771105.202 | AX39: -39431092.81 | AY39: -1.765383245 | BA39: 0.7627483216 | BB39: -2.352374787 | BC39: -0.6340438299 | BD39: -216.3280355 | BF39: 22.49045747 | BG39: -46.94399992 | BH39: 133.0560001 | BI39: 133.0560001 | BJ39: 0 | BK39: 0 | BM39: 24.84283226 | BN39: -10.6159644 | BQ39: 14.54958601 | BT39: 194.984 | BU39: 29.6856 | BV39: -265.6327
A40: 3000 | B40: 3 | C40: 1.000002558 | D40: 0.00226194285 | F40: 1.258910009 | G40: -0.2438558836 | H40: -0.2438558836 | J40: 15 | M40: 0.5001098016 | N40: -1.570796325 | O40: 1.249166562 | P40: 0.6426109872 | Q40: 1.118928094 | R40: 0.4652432095 | S40: 0.9999977827 | T40: -0.002105869272 | U40: 0.9998784039 | V40: -0.01559477969 | X40: 22.41042354 | Y40: -41.3811158 | Z40: 138.6188842 | AA40: =20*LOG(7) -> 16.9019608 | AC40: 1 | AD40: 0.7486101126 | AE40: -1.411096816e-06 | AF40: 9.047786832e-05 | AG40: 8099.614079 | AH40: -11178.74855 | AJ40: 22100 | AK40: 46.53977971 | AL40: 1 | AM40: 0.5019960949 | AN40: 17670.41644 | AO40: -8823.940269 | AQ40: 270.2702703 | AR40: -1621.621622 | AT40: -15938615.47 | AU40: -16155792.71 | AV40: -2.349427769 | AW40: -9479354.829 | AX40: -31229990.33 | AY40: -1.865491896 | BA40: 0.6953680929 | BB40: -3.155704818 | BC40: -0.4839358729 | BD40: -207.7274831 | BF40: 22.36603631 | BG40: -41.56979628 | BH40: 138.4302037 | BI40: 138.4302037 | BJ40: 0 | BK40: 0 | BM40: 25.52174113 | BN40: -13.84231318 | BQ40: 13.74625598 | BT40: 199.526 | BU40: 29.051 | BV40: -267.8015
A41: 3500 | B41: 3.5 | C41: 1.000003482 | D41: 0.0026389317 | F41: 1.388663192 | G41: -0.3159506016 | H41: -0.3159506016 | J41: 15 | M41: 0.4286655443 | N41: -1.570796325 | O41: 1.327700999 | P41: 0.7179108696 | Q41: 1.158878815 | R41: 0.5298102207 | S41: 0.999996982 | T41: -0.002456846173 | U41: 0.9998345051 | V41: -0.01819337708 | X41: 22.75746776 | Y41: -37.64545446 | Z41: 142.3545455 | AC41: 1 | AD41: 0.8733784647 | AE41: -1.920659556e-06 | AF41: 0.000105557513 | AG41: 8098.902881 | AH41: -9620.871182 | AJ41: 22100 | AK41: 54.29640966 | AL41: 1 | AM41: 0.5856621107 | AN41: 16479.37273 | AO41: -9597.047804 | AQ41: 200 | AR41: -1400 | AT41: -11849439.08 | AU41: -13262638.27 | AV41: -2.299978106 | AW41: -10089357.08 | AX41: -25159423.54 | AY41: -1.952179139 | BA41: 0.656103152 | BB41: -3.660557517 | BC41: -0.3477989679 | BD41: -199.927413 | BF41: 22.71323639 | BG41: -37.87884939 | BH41: 142.1211506 | BI41: 142.1211506 | BJ41: 0 | BK41: 0 | BM41: 26.37379391 | BN41: -17.95143638 | BQ41: 13.24140328 | BT41: 204.174 | BU41: 28.4243 | BV41: -264.1684
A42: 4000 | B42: 4 | C42: 1.000004548 | D42: 0.0030159198 | F42: 1.566697654 | G42: -0.4122105581 | H42: -0.4122105581 | J42: 15 | M42: 0.3750823512 | N42: -1.570796325 | O42: 1.412903772 | P42: 0.7844707127 | Q42: 1.203328775 | R42: 0.58984289 | S42: 0.9999960581 | T42: -0.002807822468 | U42: 0.9997838598 | V42: -0.02079172877 | X42: 23.51212706 | Y42: -36.05491124 | Z42: 143.9450888 | AC42: 1 | AD42: 0.9981468168 | AE42: -2.508616563e-06 | AF42: 0.0001206371578 | AG42: 8098.082424 | AH42: -8457.717362 | AJ42: 22100 | AK42: 62.05303962 | AL42: 1 | AM42: 0.6693281265 | AN42: 15291.11305 | AO42: -10172.71901 | AQ42: 153.8461538 | AR42: -1230.769231 | AT42: -9163639.457 | AU42: -11268057.96 | AV42: -2.253558675 | AW42: -10120461.6 | AX42: -20537608.87 | AY42: -2.02864887 | BA42: 0.6343447214 | BB42: -3.953493395 | BC42: -0.2249098054 | BD42: -192.8863826 | BF42: 23.46807515 | BG42: -36.33150844 | BH42: 143.6684916 | BI42: 143.6684916 | BJ42: 0 | BK42: 0 | BM42: 27.42156855 | BN42: -23.4451258 | BQ42: 12.94846741 | BT42: 208.93 | BU42: 28.5109 | BV42: -267.6911
A43: 4500 | B43: 4.5 | C43: 1.000005756 | D43: 0.003392907042 | F43: 1.809422942 | G43: -0.5474874251 | H43: -0.5474874251 | J43: 15 | M43: 0.3334065344 | N43: -1.570796325 | O43: 1.503641738 | P43: 0.8432328314 | Q43: 1.251798777 | R43: 0.6454146075 | S43: 0.999995011 | T43: -0.003158798072 | U43: 0.9997264711 | V43: -0.0233897997 | X43: 24.62331758 | Y43: -37.40222666 | Z43: 142.5977733 | AC43: 1 | AD43: 1.122915169 | AE43: -3.174967837e-06 | AF43: 0.0001357168025 | AG43: 8097.152773 | AH43: -7557.709737 | AJ43: 22100 | AK43: 69.80966957 | AL43: 1 | AM43: 0.7529941423 | AN43: 14136.92645 | AO43: -10575.21314 | AQ43: 121.9512195 | AR43: -1097.560976 | AT43: -7307589.617 | AU43: -9808790.816 | AV43: -2.211092401 | AW43: -9838808.381 | AX43: -16945859.75 | AY43: -2.096830834 | BA43: 0.6242227434 | BB43: -4.093208239 | BC43: -0.1142615671 | BD43: -186.5467056 | BF43: 24.57946879 | BG43: -37.72102514 | BH43: 142.2789749 | BI43: 142.2789749 | BJ43: 0 | BK43: 0 | BM43: 28.67267703 | BN43: -31.17431958 | BQ43: 12.80875256 | BT43: 213.796 | BU43: 28.179 | BV43: -266.9667
A44: 5000 | B44: 5 | C44: 1.000007106 | D44: 0.003769893321 | F44: 2.124032596 | G44: -0.7463269548 | H44: -0.7463269548 | J44: 15 | M44: 0.300065881 | N44: -1.570796325 | O44: 1.598972848 | P44: 0.8951503703 | Q44: 1.303840565 | R44: 0.6966984386 | S44: 0.9999938408 | T44: -0.003509772897 | U44: 0.9996623425 | V44: -0.02598755485 | X44: 25.98776749 | Y44: -43.02923963 | Z44: 136.9707604 | AC44: 1 | AD44: 1.247683521 | AE44: -3.919713379e-06 | AF44: 0.0001507964472 | AG44: 8096.114004 | AH44: -6841.901554 | AJ44: 22100 | AK44: 77.56629952 | AL44: 1 | AM44: 0.8366601581 | AN44: 13038.1728 | AO44: -10830.95342 | AQ44: 99.00990099 | AR44: -990.0990099 | AT44: -5972564.508 | AU44: -8693370.455 | AV44: -2.172761186 | AW44: -9391748.022 | AX44: -14111186.34 | AY44: -2.15802781 | BA44: 0.6222311552 | BB44: -4.12096495 | BC44: -0.01473337574 | BD44: -180.8441602 | BF44: 25.9441455 | BG44: -43.38954597 | BH44: 136.610454 | BI44: 136.610454 | BJ44: 0 | BK44: 0 | BM44: 30.06511045 | BN44: -42.54538572 | BQ44: 12.78099585 | BT44: 218.776 | BU44: 27.7064 | BV44: -263.5369
A45: 5500 | B45: 5.5 | C45: 1.000008598 | D45: 0.004146878527 | F45: 2.453451059 | G45: -1.040524684 | H45: -1.040524684 | J45: 15 | M45: 0.2727871645 | N45: -1.570796325 | O45: 1.698123713 | P45: 0.9411174567 | Q45: 1.359043879 | R45: 0.7439322096 | S45: 0.9999925473 | T45: -0.003860746857 | U45: 0.9995914779 | V45: -0.02858495922 | X45: 27.29436876 | Y45: -54.69284208 | Z45: 125.3071579 | AC45: 1 | AD45: 1.372451873 | AE45: -4.742853189e-06 | AF45: 0.0001658760919 | AG45: 8094.966201 | AH45: -6260.05366 | AJ45: 22100 | AK45: 85.32292947 | AL45: 1 | AM45: 0.9203261739 | AN45: 12007.86233 | AO45: -10965.82707 | AQ45: 81.96721311 | AR45: -901.6393443 | AT45: -4980788.857 | AU45: -7811859.169 | AV45: -2.138400269 | AW45: -8864777.149 | AX45: -11846677.32 | AY45: -2.213203597 | BA45: 0.6261486799 | BB45: -4.066450614 | BC45: 0.07480332775 | BD45: -175.714085 | BF45: 27.25099723 | BG45: -55.09415933 | BH45: 124.9058407 | BI45: 124.9058407 | BJ45: 0 | BK45: 0 | BM45: 31.31744785 | BN45: -59.38007431 | BQ45: 12.83551019 | BT45: 223.872 | BU45: 27.9371 | BV45: -265.1945
A46: 6000 | B46: 6 | C46: 1.000010233 | D46: 0.004523862555 | F46: 2.582166996 | G46: -1.432607187 | H46: -1.432607187 | J46: 15 | M46: 0.2500549008 | N46: -1.570796325 | O46: 1.800463386 | P46: 0.9819373094 | Q46: 1.417039279 | R46: 0.7873902792 | S46: 0.9999911307 | T46: -0.004211719867 | U46: 0.9995138815 | V46: -0.03118197785 | X46: 27.85333121 | Y46: -72.47605337 | Z46: 107.5239466 | AC46: 1 | AD46: 1.497220225 | AE46: -5.644387266e-06 | AF46: 0.0001809557366 | AG46: 8093.709456 | AH46: -5778.673006 | AJ46: 22100 | AK46: 93.07955942 | AL46: 1 | AM46: 1.00399219 | AN46: 11052.51377 | AO46: -11003.55794 | AQ46: 68.96551724 | AR46: -827.5862069 | AT46: -4224163.215 | AU46: -7096771.481 | AV46: -2.10769609 | AW46: -8308616.072 | AX46: -10019434 | AY46: -2.263119948 | BA46: 0.6345000515 | BB46: -3.951366766 | BC46: 0.1554238575 | BD46: -171.0948689 | BF46: 27.81023381 | BG46: -72.9180163 | BH46: 107.0819837 | BI46: 107.0819837 | BJ46: 0 | BK46: 0 | BM46: 31.76160058 | BN46: -81.82314738 | BQ46: 12.95059403 | BT46: 229.087 | BU46: 27.6763 | BV46: -266.7544
A47: 6500 | B47: 6.5 | C47: 1.000012009 | D47: 0.004900845297 | F47: 2.322521243 | G47: 1.30586908 | H47: -1.83572357 | J47: 15 | M47: 0.2308199084 | N47: -1.570796325 | O47: 1.905478141 | P47: 1.018313059 | Q47: 1.477498011 | R47: 0.8273622858 | S47: 0.9999895909 | T47: -0.004562691839 | U47: 0.9994295582 | V47: -0.0337785758 | X47: 27.09215957 | Y47: -91.34580036 | Z47: 88.65419964 | AC47: 1 | AD47: 1.621988577 | AE47: -6.62431561e-06 | AF47: 0.0001960353814 | AG47: 8092.343872 | AH47: -5374.571838 | AJ47: 22100 | AK47: 100.8361894 | AL47: 1 | AM47: 1.087658206 | AN47: 10173.92191 | AO47: -10964.91346 | AQ47: 58.82352941 | AR47: -764.7058824 | AT47: -3633946.472 | AU47: -6504414.246 | AV47: -2.080286279 | AW47: -7753378.562 | AX47: -8532241.76 | AY47: -2.308405694 | BA47: 0.6462667722 | BB47: -3.791763455 | BC47: 0.2281194149 | BD47: -166.9297203 | BF47: 27.04935994 | BG47: -91.82813557 | BH47: 88.17186443 | BI47: 88.17186443 | BJ47: 0 | BK47: 0 | BM47: 30.84112339 | BN47: -104.8984153 | BQ47: 13.11019735 | BT47: 234.423 | BU47: 27.6703 | BV47: -266.7612
A48: 7000 | B48: 7 | C48: 1.000013928 | D48: 0.005277826646 | F48: 1.871221881 | G48: 0.9924907591 | H48: -2.149101891 | J48: 15 | M48: 0.2143327721 | N48: -1.570796325 | O48: 2.012749306 | P48: 1.050850802 | Q48: 1.540130005 | R48: 0.8641381342 | S48: 0.999987928 | T48: -0.004913662686 | U48: 0.9993385129 | V48: -0.03637471816 | X48: 25.40731251 | Y48: -105.476937 | Z48: 74.52306295 | AC48: 1 | AD48: 1.746756929 | AE48: -7.682638223e-06 | AF48: 0.0002111150261 | AG48: 8090.869559 | AH48: -5031.187232 | AJ48: 22100 | AK48: 108.5928193 | AL48: 1 | AM48: 1.171324221 | AN48: 9370.654872 | AO48: -10867.4822 | AQ48: 50.76142132 | AR48: -710.6598985 | AT48: -3164758.969 | AU48: -6005246.754 | AV48: -2.055809105 | AW48: -7216562.4 | AX48: -7312462.695 | AY48: -2.349593985 | BA48: 0.6607225292 | BB48: -3.599617689 | BC48: 0.2937848798 | BD48: -163.1673663 | BF48: 25.36483421 | BG48: -105.9994373 | BH48: 74.00056268 | BI48: 74.00056268 | BJ48: 0 | BK48: 0 | BM48: 28.9644519 | BN48: -122.832071 | BQ48: 13.30234311 | BT48: 239.883 | BU48: 27.2761 | BV48: -267.5957
A49: 7500 | B49: 7.5 | C49: 1.000015989 | D49: 0.005654806495 | F49: 1.466630327 | G49: 0.7799054301 | H49: -2.36168722 | J49: 15 | M49: 0.2000439207 | N49: -1.570796325 | O49: 2.121934702 | P49: 1.080068401 | Q49: 1.604680808 | R49: 0.8979980627 | S49: 0.9999861419 | T49: -0.005264632324 | U49: 0.9992407512 | V49: -0.03897037007 | X49: 23.50658028 | Y49: -114.1903327 | Z49: 65.80966731 | AC49: 1 | AD49: 1.871525281 | AE49: -8.819355103e-06 | AF49: 0.0002261946708 | AG49: 8089.286636 | AH49: -4736.372822 | AJ49: 22100 | AK49: 116.3494493 | AL49: 1 | AM49: 1.254990237 | AN49: 8639.228405 | AO49: -10725.79786 | AQ49: 44.24778761 | AR49: -663.7168142 | AT49: -2785677.243 | AU49: -5578569.573 | AV49: -2.033926459 | AW49: -6707807.827 | AX49: -6304941.093 | AY49: -2.387143992 | BA49: 0.6773349407 | BB49: -3.38393041 | BC49: 0.353217533 | BD49: -159.7621261 | BF49: 23.46444687 | BG49: -114.7528399 | BH49: 65.24716008 | BI49: 65.24716008 | BJ49: 0 | BK49: 0 | BM49: 26.84837728 | BN49: -134.9907138 | BQ49: 13.51803039 | BT49: 245.471 | BU49: 27.0755 | BV49: -266.8096
A50: 8000 | B50: 8 | C50: 1.000018191 | D50: 0.006031784737 | F50: 1.163529445 | G50: 0.6373591769 | H50: -2.504233473 | J50: 15 | M50: 0.1875411756 | N50: -1.570796325 | O50: 2.232753518 | P50: 1.106406344 | Q50: 1.670928055 | R50: 0.9292065832 | S50: 0.9999842326 | T50: -0.005615600664 | U50: 0.9991362791 | V50: -0.04156549671 | X50: 21.72779172 | Y50: -119.2076615 | Z50: 60.79233855 | AC50: 1 | AD50: 1.996293634 | AE50: -1.003446625e-05 | AF50: 0.0002412743155 | AG50: 8087.59523 | AH50: -4481.018624 | AJ50: 22100 | AK50: 124.1060792 | AL50: 1 | AM50: 1.338656253 | AN50: 7974.975245 | AO50: -10551.6444 | AQ50: 38.91050584 | AR50: -622.5680934 | AT50: -2475046.8 | AU50: -5209437.444 | AV50: -2.014332996 | AW50: -6231838.019 | AX50: -5467265.725 | AY50: -2.421454752 | BA50: 0.6957044748 | BB50: -3.151504064 | BC50: 0.4071217557 | BD50: -156.6736416 | BF50: 21.68602669 | BG50: -119.8100549 | BH50: 60.18994509 | BI50: 60.18994509 | BJ50: 0 | BK50: 0 | BM50: 24.83753075 | BN50: -143.1364133 | BQ50: 13.75045674 | BT50: 251.189 | BU50: 27.0434 | BV50: -265.9205
A51: 8500 | B51: 8.5 | C51: 1.000020536 | D51: 0.006408761264 | F51: 0.9435227549 | G51: 0.5383437387 | H51: -2.603248911 | J51: 15 | M51: 0.1765093418 | N51: -1.570796325 | O51: 2.344974189 | P51: 1.130238685 | Q51: 1.738677841 | R51: 0.9580092213 | S51: 0.9999822001 | T51: -0.00596656762 | U51: 0.9990251029 | V51: -0.04416006328 | X51: 20.15092217 | Y51: -122.0122335 | Z51: 57.98776651 | AC51: 1 | AD51: 2.121061986 | AE51: -1.132797167e-05 | AF51: 0.0002563539602 | AG51: 8085.795479 | AH51: -4258.157982 | AJ51: 22100 | AK51: 131.8627092 | AL51: 1 | AM51: 1.422322269 | AN51: 7372.658477 | AO51: -10354.43362 | AQ51: 34.48275862 | AR51: -586.2068966 | AT51: -2217341.042 | AU51: -4886782.108 | AV51: -1.996758209 | AW51: -5790318.772 | AX51: -4766490.561 | AY51: -2.452874865 | BA51: 0.7155251316 | BB51: -2.907502155 | BC51: 0.4561166557 | BD51: -153.8664406 | BF51: 20.10954897 | BG51: -122.6544215 | BH51: 57.34557853 | BI51: 57.34557853 | BJ51: 0 | BK51: 0 | BM51: 23.01705113 | BN51: -148.7879808 | BQ51: 13.99445865 | BT51: 257.04 | BU51: 26.6776 | BV51: -267.6031
A52: 9000 | B52: 9 | C52: 1.000023024 | D52: 0.00678573597 | F52: 0.7817537391 | G52: 0.4665384821 | H52: -2.675054168 | J52: 15 | M52: 0.1667032672 | N52: -1.570796325 | O52: 2.458404748 | P52: 1.151883152 | Q52: 1.807761243 | R52: 0.9846311918 | S52: 0.9999800445 | T52: -0.006317533107 | U52: 0.9989072292 | V52: -0.04675403505 | X52: 18.76852567 | Y52: -123.5080419 | Z52: 56.49195811 | AC52: 1 | AD52: 2.245830338 | AE52: -1.269987135e-05 | AF52: 0.000271433605 | AG52: 8083.887526 | AH52: -4062.372202 | AJ52: 22100 | AK52: 139.6193391 | AL52: 1 | AM52: 1.505988285 | AN52: 6826.885012 | AO52: -10141.58951 | AQ52: 30.76923077 | AR52: -553.8461538 | AT52: -2001194.219 | AU52: -4602226.082 | AV52: -1.980965031 | AW52: -5383049.85 | AX52: -4176800.742 | AY52: -2.48170984 | BA52: 0.7365583542 | BB52: -2.655856805 | BC52: 0.5007448082 | BD52: -151.3094358 | BF52: 18.7275677 | BG52: -124.1899558 | BH52: 55.81004422 | BI52: 55.81004422 | BJ52: 0 | BK52: 0 | BM52: 21.3834245 | BN52: -152.8805199 | BQ52: 14.246104 | BT52: 263.027 | BU52: 26.2703 | BV52: -267.3229
A53: 9500 | B53: 9.5 | C53: 1.000025653 | D53: 0.007162708747 | F53: 0.6599302366 | G53: 0.4123882548 | H53: -2.729204395 | J53: 15 | M53: 0.157929411 | N53: -1.570796325 | O53: 2.57288518 | P53: 1.171610051 | Q53: 1.878031095 | R53: 1.009277349 | S53: 0.9999777657 | T53: -0.006668497038 | U53: 0.9987826652 | V53: -0.04934737734 | X53: 17.55295934 | Y53: -124.2153299 | Z53: 55.78467006 | AC53: 1 | AD53: 2.37059869 | AE53: -1.41501653e-05 | AF53: 0.0002865132497 | AG53: 8081.871527 | AH53: -3889.383194 | AJ53: 22100 | AK53: 147.3759691 | AL53: 1 | AM53: 1.5896543 | AN53: 6332.3708 | AO53: -9918.904504 | AQ53: 27.62430939 | AR53: -524.8618785 | AT53: -1818132.849 | AU53: -4349307.796 | AV53: -1.966746919 | AW53: -5008731.979 | AX53: -3677815.488 | AY53: -2.508228 | BA53: 0.7586152493 | BB53: -2.399568631 | BC53: 0.5414810819 | BD53: -148.9754193 | BF53: 17.51243991 | BG53: -124.9369198 | BH53: 55.06308024 | BI53: 55.06308024 | BJ53: 0 | BK53: 0 | BM53: 19.91200854 | BN53: -155.9615005 | BQ53: 14.50239217 | BT53: 269.153 | BU53: 26.2359 | BV53: -265.677
A54: 10000 | B54: 10 | C54: 1.000028424 | D54: 0.007539679488 | F54: 0.5659086116 | G54: 0.3701820693 | H54: -2.771410581 | J54: 15 | M54: 0.1500329405 | N54: -1.570796325 | O54: 2.688281361 | P54: 1.189649899 | Q54: 1.949359095 | R54: 1.03213293 | S54: 0.9999753637 | T54: -0.007019459325 | U54: 0.9986514185 | V54: -0.05194005549 | X54: 16.47612641 | Y54: -124.4374901 | Z54: 55.56250991 | AC54: 1 | AD54: 2.495367042 | AE54: -1.567885352e-05 | AF54: 0.0003015928944 | AG54: 8079.747643 | AH54: -3735.768318 | AJ54: 22100 | AK54: 155.132599 | AL54: 1 | AM54: 1.673320316 | AN54: 5884.100355 | AO54: -9690.852067 | AQ54: 24.93765586 | AR54: -498.7531172 | AT54: -1661736.127 | AU54: -4122960.628 | AV54: -1.953924415 | AW54: -4665459.913 | AX54: -3253333.748 | AY54: -2.532665414 | BA54: 0.7815441807 | BB54: -2.140929325 | BC54: 0.5787409996 | BD54: -146.8405833 | BF54: 16.4360688 | BG54: -125.1987212 | BH54: 54.80127881 | BI54: 54.80127881 | BJ54: 0 | BK54: 0 | BM54: 18.57699812 | BN54: -158.3581379 | BQ54: 14.76103147 | BT54: 275.423 | BU54: 25.8456 | BV54: -266.4657
A55: 10500 | B55: 10.5 | C55: 1.000031337 | D55: 0.007916648086 | F55: 0.4917082513 | G55: 0.3363738695 | H55: -2.80521878 | J55: 15 | M55: 0.1428885148 | N55: -1.570796325 | O55: 2.804480252 | P55: 1.206199867 | Q55: 2.021633243 | R55: 1.053364763 | S55: 0.9999728386 | T55: -0.007370419884 | U55: 0.998513497 | V55: -0.05453203492 | X55: 15.51413174 | Y55: -124.3568388 | Z55: 55.64316118 | AC55: 1 | AD55: 2.620135394 | AE55: -1.7285936e-05 | AF55: 0.0003166725391 | AG55: 8077.516045 | AH55: -3598.756711 | AJ55: 22100 | AK55: 162.889229 | AL55: 1 | AM55: 1.756986332 | AN55: 5477.413465 | AO55: -9460.851364 | AQ55: 22.62443439 | AR55: -475.1131222 | AT55: -1527067.305 | AU55: -3919153.703 | AV55: -1.942341719 | AW55: -4351036.939 | AX55: -2890395.168 | AY55: -2.55523009 | BA55: 0.8052219262 | BB55: -1.881688155 | BC55: 0.6128883711 | BD55: -144.884083 | BF55: 15.47455914 | BG55: -125.1576894 | BH55: 54.84231062 | BI55: 54.84231062 | BJ55: 0 | BK55: 0 | BM55: 17.35624729 | BN55: -160.2736064 | BQ55: 15.02027265 | BT55: 281.838 | BU55: 26.1068 | BV55: -266.6757
A56: 11000 | B56: 11 | C56: 1.000034393 | D56: 0.008293614435 | F56: 0.431998485 | G56: 0.3086724794 | H56: -2.832920171 | J56: 15 | M56: 0.1363935823 | N56: -1.570796325 | O56: 2.921386071 | P56: 1.221429165 | Q56: 2.09475561 | R56: 1.073122701 | S56: 0.9999701903 | T56: -0.007721378626 | U56: 0.998368909 | V56: -0.0571232811 | X56: 14.64765546 | Y56: -124.086368 | Z56: 55.91363205 | AC56: 1 | AD56: 2.744903746 | AE56: -1.897141275e-05 | AF56: 0.0003317521838 | AG56: 8075.176913 | AH56: -3476.081155 | AJ56: 22100 | AK56: 170.6458589 | AL56: 1 | AM56: 1.840652348 | AN56: 5108.043359 | AO56: -9231.486142 | AQ56: 20.6185567 | AR56: -453.6082474 | AT56: -1410280.587 | AU56: -3734638.623 | AV56: -1.931863491 | AW56: -4063172.493 | AX56: -2578569.848 | AY56: -2.576105594 | BA56: 0.8295472557 | BB56: -1.623177381 | BC56: 0.6442421037 | BD56: -143.0876464 | BF56: 14.608591 | BG56: -124.926827 | BH56: 55.07317301 | BI56: 55.07317301 | BJ56: 0 | BK56: 0 | BM56: 16.23176838 | BN56: -161.8391806 | BQ56: 15.27878342 | BT56: 288.403 | BU56: 25.7844 | BV56: -268.0599
A57: 11500 | B57: 11.5 | C57: 1.000037591 | D57: 0.008670578426 | F57: 0.3831334102 | G57: 0.285542067 | H57: -2.856050583 | J57: 15 | M57: 0.1304634265 | N57: -1.570796325 | O57: 3.038917233 | P57: 1.235483519 | Q57: 2.168640395 | R57: 1.091541137 | S57: 0.9999674189 | T57: -0.008072335467 | U57: 0.9982176632 | V57: -0.05971375956 | X57: 13.86127811 | Y57: -123.6980225 | Z57: 56.30197748 | AC57: 1 | AD57: 2.869672098 | AE57: -2.073528377e-05 | AF57: 0.0003468318286 | AG57: 8072.730434 | AH57: -3365.868586 | AJ57: 22100 | AK57: 178.4024889 | AL57: 1 | AM57: 1.924318364 | AN57: 4772.123672 | AO57: -9004.682726 | AQ57: 18.86792453 | AR57: -433.9622642 | AT57: -1308344.284 | AU57: -3566767.331 | AV57: -1.922371998 | AW57: -3799603.198 | AX57: -2309416.527 | AY57: -2.595454188 | BA57: 0.8544361863 | BB57: -1.366407342 | BC57: 0.6730821892 | BD57: -141.4352313 | BF57: 13.82274485 | BG57: -124.5780884 | BH57: 55.42191163 | BI57: 55.42191163 | BJ57: 0 | BK57: 0 | BM57: 15.18915219 | BN57: -163.1428571 | BQ57: 15.53555346 | BT57: 295.121 | BU57: 25.5811 | BV57: -265.88
A58: 12000 | B58: 12 | C58: 1.00004093 | D58: 0.009047539953 | F58: 0.3425571458 | G58: 0.2659189133 | H58: -2.875673737 | J58: 15 | M58: 0.1250274504 | N58: -1.570796325 | O58: 3.157003898 | P58: 1.248488889 | Q58: 2.243212265 | R58: 1.108740509 | S58: 0.9999645243 | T58: -0.008423290319 | U58: 0.9980597687 | V58: -0.06230343589 | X58: 13.14268145 | Y58: -123.2386297 | Z58: 56.76137034 | AC58: 1 | AD58: 2.99444045 | AE58: -2.257754906e-05 | AF58: 0.0003619114733 | AG58: 8070.176805 | AH58: -3266.557985 | AJ58: 22100 | AK58: 186.1591188 | AL58: 1 | AM58: 2.007984379 | AN58: 4466.17626 | AO58: -8781.853047 | AQ58: 17.33102253 | AR58: -415.9445407 | AT58: -1218842.545 | AU58: -3413358.775 | AV58: -1.913764622 | AW58: -3558163.915 | AX58: -2076066.176 | AY58: -2.613419539 | BA58: 0.8798184231 | BB58: -1.112138965 | BC58: 0.6996549172 | BD58: -139.9127261 | BF58: 13.10470235 | BG58: -124.1583088 | BH58: 55.84169121 | BI58: 55.84169121 | BJ58: 0 | BK58: 0 | BM58: 14.21684132 | BN58: -164.2455827 | BQ58: 15.78982183 | BT58: 301.995 | BU58: 24.917 | BV58: -267.1358
A59: 12500 | B59: 12.5 | C59: 1.000044412 | D59: 0.009424498908 | F59: 0.3084355005 | G59: 0.2490448421 | H59: -2.892547808 | J59: 15 | M59: 0.1200263524 | N59: -1.570796325 | O59: 3.275585986 | P59: 1.260554542 | Q59: 2.318404921 | R59: 1.124828735 | S59: 0.9999615066 | T59: -0.008774243096 | U59: 0.997895235 | V59: -0.06489227574 | X59: 12.48196078 | Y59: -122.7391838 | Z59: 57.26081622 | AC59: 1 | AD59: 3.119208802 | AE59: -2.449820862e-05 | AF59: 0.000376991118 | AG59: 8067.51623 | AH59: -3176.837964 | AJ59: 22100 | AK59: 193.9157488 | AL59: 1 | AM59: 2.091650395 | AN59: 4187.088036 | AO59: -8564.008596 | AQ59: 15.97444089 | AR59: -399.3610224 | AT59: -1139831.196 | AU59: -3272599.74 | AV59: -1.9059517 | AW59: -3336826.385 | AX59: -1872899.868 | AY59: -2.630129085 | BA59: 0.9056346521 | BB59: -0.8609393705 | BC59: 0.7241773851 | BD59: -138.5076922 | BF59: 12.44455874 | BG59: -123.6984898 | BH59: 56.30151022 | BI59: 56.30151022 | BJ59: 0 | BK59: 0 | BM59: 13.30549811 | BN59: -165.1907976 | BQ59: 16.04102143 | BT59: 309.03 | BU59: 24.8252 | BV59: -265.0361
A60: 13000 | B60: 13 | C60: 1.000048036 | D60: 0.009801455185 | F60: 0.2794236596 | G60: 0.2343657074 | H60: -2.907226943 | J60: 15 | M60: 0.1154099542 | N60: -1.570796325 | O60: 3.39461158 | P60: 1.271775617 | Q60: 2.394159871 | R60: 1.139902547 | S60: 0.9999583657 | T60: -0.009125193711 | U60: 0.9977240721 | V60: -0.06748024484 | X60: 11.87108339 | Y60: -122.2204399 | Z60: 57.77956011 | AC60: 1 | AD60: 3.243977154 | AE60: -2.649726244e-05 | AF60: 0.0003920707627 | AG60: 8064.748923 | AH60: -3095.598765 | AJ60: 22100 | AK60: 201.6723788 | AL60: 1 | AM60: 2.175316411 | AN60: 3932.082237 | AO60: -8351.850641 | AQ60: 14.77104874 | AR60: -384.0472674 | AT60: -1069731.447 | AU60: -3142970.026 | AV60: -1.898854691 | AW60: -3133717.114 | AX60: -1695298.036 | AY60: -2.645696076 | BA60: 0.9318344544 | BB60: -0.6132247123 | BC60: 0.7468413849 | BD60: -137.2091406 | BF60: 11.83428122 | BG60: -123.2193927 | BH60: 56.7806073 | BI60: 56.7806073 | BJ60: 0 | BK60: 0 | BM60: 12.44750593 | BN60: -166.0102521 | BQ60: 16.28873609 | BT60: 316.228 | BU60: 24.722 | BV60: -265.2184
A61: 13500 | B61: 13.5 | C61: 1.000051802 | D61: 0.01017840868 | F61: 0.2545163397 | G61: 0.2214674593 | H61: -2.920125191 | J61: 15 | M61: 0.1111355115 | N61: -1.570796325 | O61: 3.514035613 | P61: 1.282235242 | Q61: 2.470425389 | R61: 1.154048711 | S61: 0.9999551017 | T61: -0.009476142079 | U61: 0.9975462902 | V61: -0.07006730897 | X61: 11.30347473 | Y61: -121.6963851 | Z61: 58.3036149 | AC61: 1 | AD61: 3.368745507 | AE61: -2.857471053e-05 | AF61: 0.0004071504074 | AG61: 8061.875106 | AH61: -3021.894919 | AJ61: 22100 | AK61: 209.4290087 | AL61: 1 | AM61: 2.258982427 | AN61: 3698.687615 | AO61: -8145.841316 | AQ61: 13.69863014 | AR61: -369.8630137 | AT61: -1007250.517 | AU61: -3023185.243 | AV61: -1.892404605 | AW61: -2947122.213 | AX61: -1539444.216 | AY61: -2.660221351 | BA61: 0.9583746818 | BB61: -0.3692933587 | BC61: 0.767816746 | BD61: -136.007341 | BF61: 11.26729514 | BG61: -122.7350104 | BH61: 57.26498963 | BI61: 57.26498963 | BJ61: 0 | BK61: 0 | BM61: 11.6365885 | BN61: -166.7276694 | BQ61: 16.53266744 | BT61: 323.594 | BU61: 24.5962 | BV61: -266.9949
A62: 14000 | B62: 14 | C62: 1.00005571 | D62: 0.01055535928 | F62: 0.2329488858 | G62: 0.2100346575 | H62: -2.931557993 | J62: 15 | M62: 0.1071663861 | N62: -1.570796325 | O62: 3.633818801 | P62: 1.292006308 | Q62: 2.547155615 | R62: 1.167345129 | S62: 0.9999517146 | T62: -0.009827088112 | U62: 0.9973619 | V62: -0.072653434 | X62: 10.7737045 | Y62: -121.176451 | Z62: 58.82354897 | AC62: 1 | AD62: 3.493513859 | AE62: -3.073055289e-05 | AF62: 0.0004222300522 | AG62: 8058.895007 | AH62: -2954.915911 | AJ62: 22100 | AK62: 217.1856387 | AL62: 1 | AM62: 2.342648443 | AN62: 3484.707704 | AO62: -7946.259437 | AQ62: 12.7388535 | AR62: -356.6878981 | AT62: -951321.6624 | AU62: -2912152.562 | AV62: -1.886540667 | AW62: -2775484.267 | AX62: -1402170.578 | AY62: -2.673794873 | BA62: 0.9852181766 | BB62: -0.1293516863 | BC62: 0.7872542053 | BD62: -134.8936566 | BF62: 10.73817013 | BG62: -122.2547796 | BH62: 57.74522039 | BI62: 57.74522039 | BJ62: 0 | BK62: 0 | BM62: 10.86752181 | BN62: -167.361123 | BQ62: 16.77260911 | BT62: 331.131 | BU62: 24.3868 | BV62: -265.0934
A63: 14500 | B63: 14.5 | C63: 1.000059761 | D63: 0.01093230688 | F63: 0.2141305271 | G63: 0.1998228167 | H63: -2.941769833 | J63: 15 | M63: 0.1034709934 | N63: -1.570796325 | O63: 3.753926765 | P63: 1.301152944 | Q63: 2.624309786 | R63: 1.179861829 | S63: 0.9999482043 | T63: -0.01017803172 | U63: 0.9971709126 | V63: -0.07523858586 | X63: 10.27724838 | Y63: -120.666957 | Z63: 59.333043 | AC63: 1 | AD63: 3.618282211 | AE63: -3.296478952e-05 | AF63: 0.0004373096969 | AG63: 8055.808864 | AH63: -2893.962911 | AJ63: 22100 | AK63: 224.9422686 | AL63: 1 | AM63: 2.426314458 | AN63: 3288.191461 | AO63: -7753.244215 | AQ63: 11.87648456 | AR63: -344.4180523 | AT63: -901058.3797 | AU63: -2808936.104 | AV63: -1.881209194 | AW63: -2617394.592 | AX63: -1280835.733 | AY63: -2.686497067 | BA63: 1.012332755 | BB63: 0.106465783 | BC63: 0.8052878724 | BD63: -133.8604036 | BF63: 10.24238174 | BG63: -121.7850245 | BH63: 58.21497554 | BI63: 58.21497554 | BJ63: 0 | BK63: 0 | BM63: 10.13591596 | BN63: -167.9246209 | BQ63: 17.00842658 | BT63: 338.844 | BU63: 24.1369 | BV63: -266.4201
A64: 15000 | B64: 15 | C64: 1.000063953 | D64: 0.01130925137 | F64: 0.1975983904 | G64: 0.1906395235 | H64: -2.950953127 | J64: 15 | M64: 0.1000219603 | N64: -1.570796325 | O64: 3.874329299 | P64: 1.309731762 | Q64: 2.701851584 | R64: 1.191661845 | S64: 0.9999445709 | T64: -0.01052897283 | U64: 0.9969733393 | V64: -0.07782273058 | X64: 9.81030577 | Y64: -120.1720705 | Z64: 59.82792949 | AC64: 1 | AD64: 3.743050563 | AE64: -3.527742041e-05 | AF64: 0.0004523893416 | AG64: 8052.616925 | AH64: -2838.430163 | AJ64: 22100 | AK64: 232.6988986 | AL64: 1 | AM64: 2.509980474 | AN64: 3107.405964 | AO64: -7566.829396 | AQ64: 11.09877913 | AR64: -332.963374 | AT64: -855719.0673 | AU64: -2712729.61 | AV64: -1.876362626 | AW64: -2471583.015 | AX64: -1173227.58 | AY64: -2.698399975 | BA64: 1.039690391 | BB64: 0.3380806059 | BC64: 0.8220373482 | BD64: -132.9007293 | BF64: 9.776129309 | BG64: -121.3299168 | BH64: 58.6700832 | BI64: 58.6700832 | BJ64: 0 | BK64: 0 | BM64: 9.438048703 | BN64: -168.4291875 | BQ64: 17.24004141 | BT64: 346.737 | BU64: 24.0404 | BV64: -265.8794
A65: 15500 | B65: 15.5 | C65: 1.000068287 | D65: 0.01168619265 | F65: 0.1829851995 | G65: 0.1823312577 | H65: -2.959261392 | J65: 15 | M65: 0.09679544548 | N65: -1.570796325 | O65: 3.99499977 | P65: 1.317792891 | Q65: 2.779748571 | R65: 1.202801995 | S65: 0.9999408143 | T65: -0.01087991134 | U65: 0.9967691921 | V65: -0.08040583425 | X65: 9.369659548 | Y65: -119.6944579 | Z65: 60.3055421 | AC65: 1 | AD65: 3.867818915 | AE65: -3.766844557e-05 | AF65: 0.0004674689863 | AG65: 8049.319442 | AH65: -2787.78997 | AJ65: 22100 | AK65: 240.4555285 | AL65: 1 | AM65: 2.59364649 | AN65: 2940.811494 | AO65: -7386.969882 | AQ65: 10.3950104 | AR65: -322.2453222 | AT65: -814679.5179 | AU65: -2622834.643 | AV65: -1.871958715 | AW65: -2336906.595 | AX65: -1077485.69 | AY65: -2.70956826 | BA65: 1.067266557 | BB65: 0.5654580194 | BC65: 0.8376095456 | BD65: -132.0085081 | BF65: 9.336195592 | BG65: -120.892127 | BH65: 59.10787297 | BI65: 59.10787297 | BJ65: 0 | BK65: 0 | BM65: 8.770737573 | BN65: -168.8836189 | BQ65: 17.46741882 | BT65: 354.813 | BU65: 23.629 | BV65: -265.9549
A66: 16000 | B66: 16 | C66: 1.000072764 | D66: 0.0120631306 | F66: 0.1699961833 | G66: 0.1747740146 | H66: -2.966818635 | J66: 15 | M66: 0.09377058781 | N66: -1.570796325 | O66: 4.115914611 | P66: 1.325380859 | Q66: 2.857971703 | R66: 1.213333579 | S66: 0.9999369347 | T66: -0.01123084717 | U66: 0.9965584831 | V66: -0.08298786304 | X66: 8.952566992 | Y66: -119.2357317 | Z66: 60.76426826 | AC66: 1 | AD66: 3.992587267 | AE66: -4.0137865e-05 | AF66: 0.000482548631 | AG66: 8045.916679 | AH66: -2741.580501 | AJ66: 22100 | AK66: 248.2121585 | AL66: 1 | AM66: 2.677312506 | AN66: 2787.039083 | AO66: -7213.562434 | AQ66: 9.756097561 | AR66: -312.195122 | AT66: -777411.3106 | AU66: -2538643.066 | AV66: -1.867959824 | AW66: -2212338.133 | AX66: -992038.9973 | AY66: -2.720060083 | BA66: 1.095039685 | BB66: 0.7885971701 | BC66: 0.8521002581 | BD66: -131.1782514 | BF66: 8.919837766 | BG66: -120.4732715 | BH66: 59.52672845 | BI66: 59.52672845 | BJ66: 0 | BK66: 0 | BM66: 8.131240596 | BN66: -169.2950201 | BQ66: 17.69055797 | BT66: 363.078 | BU66: 23.6126 | BV66: -265.3916
A67: 16500 | B67: 16.5 | C67: 1.000077383 | D67: 0.01244006513 | F67: 0.1583922986 | G67: 0.1678665109 | H67: -2.973726139 | J67: 15 | M67: 0.09092905484 | N67: -1.570796325 | O67: 4.237052902 | P67: 1.332535336 | Q67: 2.936494917 | R67: 1.223302981 | S67: 0.9999329319 | T67: -0.01158178024 | U67: 0.996341225 | V67: -0.08556878323 | X67: 8.556674293 | Y67: -118.7967626 | Z67: 61.20323739 | AC67: 1 | AD67: 4.117355619 | AE67: -4.26856787e-05 | AF67: 0.0004976282758 | AG67: 8042.408906 | AH67: -2699.39581 | AJ67: 22100 | AK67: 255.9687884 | AL67: 1 | AM67: 2.760978522 | AN67: 2644.870461 | AO67: -7046.461748 | AQ67: 9.174311927 | AR67: -302.7522936 | AT67: -743464.7048 | AU67: -2459622.841 | AV67: -1.864332341 | AW67: -2096955.008 | AX67: -915555.5684 | AY67: -2.729927853 | BA67: 1.122990726 | BB67: 1.007523394 | BC67: 0.8655955124 | BD67: -130.4050303 | BF67: 8.524701914 | BG67: -120.0742245 | BH67: 59.92577552 | BI67: 59.92577552 | BJ67: 0 | BK67: 0 | BM67: 7.517178519 | BN67: -169.6691942 | BQ67: 17.90948419 | BT67: 371.535 | BU67: 23.316 | BV67: -265.2439
A68: 17000 | B68: 17 | C68: 1.000082143 | D68: 0.01281699613 | F68: 0.1479778567 | G68: 0.161525185 | H68: -2.980067465 | J68: 15 | M68: 0.08825467088 | N68: -1.570796325 | O68: 4.358396011 | P68: 1.339291764 | Q68: 3.015294769 | R68: 1.232752213 | S68: 0.9999288061 | T68: -0.01193271045 | U68: 0.9961174306 | V68: -0.08814856116 | X68: 8.17994893 | Y68: -118.3778985 | Z68: 61.62210148 | AC68: 1 | AD68: 4.242123971 | AE68: -4.531188666e-05 | AF68: 0.0005127079205 | AG68: 8038.796401 | AH68: -2660.87762 | AJ68: 22100 | AK68: 263.7254184 | AL68: 1 | AM68: 2.844644538 | AN68: 2513.220268 | AO68: -6885.492888 | AQ68: 8.643042351 | AR68: -293.8634399 | AT68: -712454.993 | AU68: -2385306.441 | AV68: -1.861046162 | AW68: -1989928.642 | AX68: -846901.904 | AY68: -2.739218899 | BA68: 1.151102787 | BB68: 1.222282109 | BC68: 0.878172737 | BD68: -129.6844084 | BF68: 8.148755402 | BG68: -119.6953372 | BH68: 60.30466275 | BI68: 60.30466275 | BJ68: 0 | BK68: 0 | BM68: 6.926473293 | BN68: -170.0109288 | BQ68: 18.12424291 | BT68: 380.189 | BU68: 23.2133 | BV68: -265.4987
A69: 17500 | B69: 17.5 | C69: 1.000087046 | D69: 0.01319392348 | F69: 0.1385912741 | G69: 0.1556804607 | H69: -2.985912189 | J69: 15 | M69: 0.08573310885 | N69: -1.570796325 | O69: 4.479927294 | P69: 1.345681895 | Q69: 3.094350125 | R69: 1.241719389 | S69: 0.9999245571 | T69: -0.01228363773 | U69: 0.9958871133 | V69: -0.09072716328 | X69: 7.820625723 | Y69: -117.979121 | Z69: 62.02087896 | AC69: 1 | AD69: 4.366892323 | AE69: -4.801648889e-05 | AF69: 0.0005277875652 | AG69: 8035.079451 | AH69: -2625.708513 | AJ69: 22100 | AK69: 271.4820483 | AL69: 1 | AM69: 2.928310553 | AN69: 2391.120345 | AO69: -6730.460891 | AQ69: 8.156606852 | AR69: -285.4812398 | AT69: -684051.5377 | AU69: -2315281.316 | AV69: -1.858074264 | AW69: -1890514.737 | AX69: -785109.84 | AY69: -2.747976038 | BA69: 1.179360827 | BB69: 1.432933966 | BC69: 0.8899017741 | BD69: -129.0123841 | BF69: 7.790232936 | BG69: -119.3365946 | BH69: 60.66340538 | BI69: 60.66340538 | BJ69: 0 | BK69: 0 | BM69: 6.357298969 | BN69: -170.3242105 | BQ69: 18.33489477 | BT69: 389.045 | BU69: 22.9552 | BV69: -266.0672
A70: 18000 | B70: 18 | C70: 1.000092091 | D70: 0.01357084708 | F70: 0.1300980708 | G70: 0.1502739197 | H70: -2.99131873 | J70: 15 | M70: 0.08335163361 | N70: -1.570796325 | O70: 4.601631843 | P70: 1.351734248 | Q70: 3.173641891 | R70: 1.250239141 | S70: 0.999920185 | T70: -0.01263456197 | U70: 0.9956502869 | V70: -0.09330455612 | X70: 7.477163453 | Y70: -117.600157 | Z70: 62.39984304 | AC70: 1 | AD70: 4.491660675 | AE70: -5.079948539e-05 | AF70: 0.0005428672099 | AG70: 8031.25835 | AH70: -2593.606255 | AJ70: 22100 | AK70: 279.2386783 | AL70: 1 | AM70: 3.011976569 | AN70: 2277.705903 | AO70: -6581.158134 | AQ70: 7.710100231 | AR70: -277.5636083 | AT70: -657968.9038 | AU70: -2249182.011 | AV70: -1.855392325 | AW70: -1798044.365 | AX70: -729349.5061 | AY70: -2.756238082 | BA70: 1.207751403 | BB70: 1.639551011 | BC70: 0.9008457564 | BD70: -128.3853401 | BF70: 7.447593177 | BG70: -118.9977265 | BH70: 61.00227353 | BI70: 61.00227353 | BJ70: 0 | BK70: 0 | BM70: 5.808042166 | BN70: -170.6123864 | BQ70: 18.54151181 | BT70: 398.107 | BU70: 22.7385 | BV70: -265.2319
A71: 18500 | B71: 18.5 | C71: 1.000097278 | D71: 0.01394776683 | F71: 0.1223855078 | G71: 0.1452561344 | H71: -2.996336516 | J71: 15 | M71: 0.08109888675 | N71: -1.570796325 | O71: 4.723496265 | P71: 1.357474505 | Q71: 3.253152781 | R71: 1.258342992 | S71: 0.9999156898 | T71: -0.01298548311 | U71: 0.9954069654 | V71: -0.09588070632 | X71: 7.148209713 | Y71: -117.2405588 | Z71: 62.75944121 | AC71: 1 | AD71: 4.616429028 | AE71: -5.366087616e-05 | AF71: 0.0005579468546 | AG71: 8027.333399 | AH71: -2564.319041 | AJ71: 22100 | AK71: 286.9953082 | AL71: 1 | AM71: 3.095642585 | AN71: 2172.203378 | AO71: -6437.369972 | AQ71: 7.299270073 | AR71: -270.0729927 | AT71: -633959.6433 | AU71: -2186683.612 | AV71: -1.852978405 | AW71: -1711915.895 | AX71: -678907.1461 | AY71: -2.764040276 | BA71: 1.236262459 | BB71: 1.842213629 | BC71: 0.9110618705 | BD71: -127.7999999 | BF71: 7.119483597 | BG71: -118.6782883 | BH71: 61.32171175 | BI71: 61.32171175 | BJ71: 0 | BK71: 0 | BM71: 5.277269967 | BN71: -170.8782884 | BQ71: 18.74417443 | BT71: 407.38 | BU71: 22.7593 | BV71: -265.7319
A72: 19000 | B72: 19 | C72: 1.000102607 | D72: 0.01432468261 | F72: 0.1153584375 | G72: 0.1405849881 | H72: -3.001007662 | J72: 15 | M72: 0.07896470552 | N72: -1.570796325 | O72: 4.845508497 | P72: 1.36292585 | Q72: 3.332867111 | R72: 1.26605968 | S72: 0.9999110715 | T72: -0.01333640105 | U72: 0.9951571632 | V72: -0.09845558061 | X72: 6.832572222 | Y72: -116.8997629 | Z72: 63.10023708 | AC72: 1 | AD72: 4.74119738 | AE72: -5.660066119e-05 | AF72: 0.0005730264994 | AG72: 8023.304909 | AH72: -2537.621496 | AJ72: 22100 | AK72: 294.7519382 | AL72: 1 | AM72: 3.179308601 | AN72: 2073.919768 | AO72: -6298.879017 | AQ72: 6.920415225 | AR72: -262.9757785 | AT72: -611808.3872 | AU72: -2127496.249 | AV72: -1.850812667 | AW72: -1631587.741 | AX72: -633166.8526 | AY72: -2.771414687 | BA72: 1.264883147 | BB72: 2.041008125 | BC72: 0.9206020207 | BD72: -127.2533895 | BF72: 6.80471179 | BG72: -118.3777192 | BH72: 61.62228081 | BI72: 61.62228081 | BJ72: 0 | BK72: 0 | BM72: 4.763703665 | BN72: -171.1243297 | BQ72: 18.94296893 | BT72: 416.869 | BU72: 22.4206 | BV72: -265.2494
A73: 19500 | B73: 19.5 | C73: =SQRT((A73/Fesr)^2+1) -> 1.000108078 | D73: =ATAN(A73/Fesr) -> 0.01470159432 | F73: =(Ro/(Ro+Rdcr))/SQRT((A73/(Q*Fo))^2+(1-(A73^2/Fo^2))^2) -> 0.1089360593 | G73: =-ATAN(A73*Fo/(Q*(Fo^2-A73^2))) -> 0.136224359 | H73: =IF(G73>0,G73-Pi,G73) -> -3.005368291 | J73: =Vin/Vramp -> 15 | M73: =1/(2*Pi*_Rfb1*(Cc1ea_u+Cc2ea_u)*A73) -> 0.07693996948 | N73: =-Pi/2 -> -1.570796325 | O73: =SQRT(1+(A73/Fz1_u)^2) -> 4.967657647 | P73: =ATAN2(Fz1_u,A73) -> 1.368109258 | Q73: =SQRT(1+(A73/Fz2_u)^2) -> 3.412770626 | R73: =ATAN2(Fz2_u,A73) -> 1.273415446 | S73: =1/SQRT(1+(A73/Fp1_u)^2) -> 0.9999063302 | T73: =-ATAN2(Fp1_u,A73) -> -0.0136873157 | U73: =1/SQRT(1+(A73/Fp2_u)^2) -> 0.9949008952 | V73: =-ATAN2(Fp2_u,A73) -> -0.1010291458 | X73: 6.529195256 | Y73: =(180/Pi)*(D73+H73+N73+P73+R73+T73+V73) -> -116.5771317 | Z73: 63.42286826 | AC73: 1 | AD73: =Rcea1_u*Cc1ea_u*A73*2*Pi -> 4.865965732 | AE73: =-Rcea1_u*Cc1ea_u*Cc2ea_u*(A73*2*Pi)^2 -> -5.961884049e-05 | AF73: =(Cc2ea_u+Cc1ea_u)*A73*2*Pi -> 0.0005881061441 | AG73: 8019.173196 | AH73: -2513.311283 | AJ73: =_Rfb1 -> 22100 | AK73: =_Rfb1*Rcea2_u*Cc3ea_u*A73*2*Pi -> 302.5085681 | AL73: 1 | AM73: =(_Rfb1+Rcea2_u)*Cc3ea_u*A73*2*Pi -> 3.262974617 | AN73: 1982.233291 | AO73: -6165.468345 | AQ73: =Eadcg/(1+(Eadcg*A73/GBP)^2) -> 6.570302234 | AR73: =-(A73*Eadcg*Eadcg/GBP)/(1+(Eadcg*A73/GBP)^2) -> -256.2417871 | AT73: -591326.9833 | AU73: -2071360.486 | AV73: -1.848877133 | AW73: -1556571.872 | AX73: -591595.4674 | AY73: -2.778390543 | BA73: =SQRT(AT73^2+AU73^2)/SQRT(AW73^2+AX73^2) -> 1.293603673 | BB73: 2.236024799 | BC73: 0.9295134095 | BD73: =BC73*180/Pi-180 -> -126.7428046 | BF73: =20*LOG(BA73*J73*F73*C73) -> 6.502221904 | BG73: =(180/Pi)*(D73+H73+BC73) -> -118.0953844 | BH73: 61.90461558 | BI73: 61.90461558 | BJ73: =SUM((BF74<0)*(BF73>0))*A73 -> 0 | BK73: 0 | BM73: 4.266197105 | BN73: =(H73+D73)*180/Pi -> -171.3525798 | BQ73: 19.1379856 | BT73: 426.58 | BU73: 22.3737 | BV73: -265.1406
A74: 20000 | B74: =A74/1000 -> 20 | C74: 1.000113691 | D74: 0.01507850186 | F74: 0.1030493612 | G74: 0.1321430802 | H74: -3.00944957 | J74: 15 | M74: 0.07501647025 | N74: -1.570796325 | O74: 5.08993386 | P74: 1.373043749 | Q74: 3.492850344 | R74: 1.28043429 | S74: 0.9999014657 | T74: -0.01403822698 | U74: 0.9946381766 | V74: -0.1036013689 | X74: =20*LOG(C74*J74*O74*Q74*F74*M74*S74*U74) -> 6.237140156 | Y74: -116.2719842 | Z74: =Y74+180 -> 63.72801583 | AC74: 1 | AD74: 4.990734084 | AE74: -6.271541406e-05 | AF74: 0.0006031857888 | AG74: =AC74*AE74/(AE74^2+AF74^2)+AD74*AF74/(AE74^2+AF74^2) -> 8014.938587 | AH74: =AD74*AE74/(AE74^2+AF74^2)-AC74*AF74/(AE74^2+AF74^2) -> -2491.206225 | AJ74: 22100 | AK74: 310.2651981 | AL74: 1 | AM74: 3.346640632 | AN74: =AJ74*AL74/(AL74^2+AM74^2)+AK74*AM74/(AL74^2+AM74^2) -> 1896.5852 | AO74: =AK74*AL74/(AL74^2+AM74^2)-AJ74*AM74/(AL74^2+AM74^2) -> -6036.923895 | AQ74: 6.24609619 | AR74: -249.8438476 | AT74: -572350.4712 | AU74: -2018043.409 | AV74: =ATAN2(AT74,AU74) -> -1.847155479 | AW74: =AG74-AH74*AO74/_Rfb2+AG74*AN74/_Rfb2+AN74-AO74*AR74+AQ74*AN74 -> -1486428.024 | AX74: =AH74+AH74*AN74/_Rfb2+AG74*AO74/_Rfb2+AO74+AO74*AQ74+AN74*AR74 -> -553730.0525 | AY74: -2.784994524 | BA74: 1.322415167 | BB74: =20*LOG(BA74) -> 2.42735643 | BC74: =AV74-AY74 -> 0.9378390445 | BD74: -126.2657808 | BF74: 6.211075148 | BG74: -117.8306055 | BH74: =IF(BG74>180,BG74-180,BG74+180) -> 62.16939449 | BI74: =IF(BH74>180,BH74-360,BH74) -> 62.16939449 | BJ74: 0 | BK74: =IF(BJ74>0,BI74,0) -> 0 | BM74: =20*LOG(J74*F74*C74) -> 3.783718718 | BN74: -171.5648247 | BQ74: =20*LOG(BA74*7) -> 19.32931723 | BT74: 436.516 | BU74: 22.0741 | BV74: -264.9151
A75: 20500 | B75: 20.5 | C75: 1.000119447 | D75: 0.01545540511 | F75: 0.09763908354 | G75: 0.1283141094 | H75: -3.013278541 | J75: 15 | M75: 0.07318680024 | N75: -1.570796325 | O75: 5.212328191 | P75: 1.37774661 | Q75: 3.573094415 | R75: 1.287138195 | S75: 0.9998964782 | T75: -0.01438913481 | U75: 0.9943690228 | V75: -0.1061722168 | X75: 5.955569113 | Y75: -115.9836178 | Z75: 64.01638222 | AC75: 1 | AD75: 5.115502436 | AE75: -6.58903819e-05 | AF75: 0.0006182654335 | AG75: 8010.601414 | AH75: -2471.141849 | AJ75: 22100 | AK75: 318.021828 | AL75: 1 | AM75: 3.430306648 | AN75: 1816.472599 | AO75: -5913.036204 | AQ75: 5.94530321 | AR75: -243.7574316 | AT75: -554733.7359 | AU75: -1967335.314 | AV75: -1.845632851 | AW75: -1420758.551 | AX75: -519167.455 | AY75: =ATAN2(AW75,AX75) -> -2.791251034 | BA75: 1.351309574 | BB75: 2.615097072 | BC75: 0.9456181833 | BD75: -125.820069 | BF75: 5.93043358 | BG75: -117.5826826 | BH75: 62.41731741 | BI75: 62.41731741 | BJ75: 0 | BK75: 0 | BM75: 3.315336507 | BN75: -171.7626136 | BQ75: 19.51705787 | BT75: 446.684 | BU75: 21.7611 | BV75: -265.3082
A76: 21000 | B76: 21 | C76: 1.000125344 | D76: 0.01583230397 | F76: 0.09265408671 | G76: 0.124713861 | H76: -3.016878789 | J76: 15 | M76: 0.07144425738 | N76: -1.570796325 | O76: 5.334832512 | P76: 1.382233582 | Q76: 3.653492012 | R76: 1.29354733 | S76: 0.9998913676 | T76: -0.01474003909 | U76: 0.9940934498 | V76: -0.1087416568 | X76: 5.683731606 | Y76: -115.7113246 | Z76: 64.28867543 | AC76: 1 | AD76: 5.240270788 | AE76: -6.9143744e-05 | AF76: 0.0006333450782 | AG76: 8006.162016 | AH76: -2452.969274 | AJ76: 22100 | AK76: 325.778458 | AL76: 1 | AM76: 3.513972664 | AN76: 1741.442151 | AO76: -5793.601657 | AQ76: 5.66572238 | AR76: -237.9603399 | AT76: -538348.7111 | AU76: -1919046.878 | AV76: -1.844295702 | AW76: -1359203.859 | AX76: -487555.5874 | AY76: -2.797182426 | BA76: 1.380279556 | BB76: 2.799341111 | BC76: 0.9528867245 | BD76: -125.4036123 | BF76: 5.659546539 | BG76: -117.3509102 | BH76: 62.64908982 | BI76: 62.64908982 | BJ76: 0 | BK76: 0 | BM76: 2.860205429 | BN76: -171.9472979 | BQ76: 19.70130191 | BT76: 457.088 | BU76: 21.6126 | BV76: -265.6514
A77: 21500 | B77: 21.5 | C77: 1.000131383 | D77: 0.01620919833 | F77: 0.08805003267 | G77: 0.1213216646 | H77: -3.020270985 | J77: 15 | M77: 0.06978276302 | N77: -1.570796325 | O77: 5.457439416 | P77: 1.386519029 | Q77: 3.734033218 | R77: 1.299680224 | S77: 0.9998861339 | T77: -0.01509093974 | U77: 0.9938114738 | V77: -0.1113096561 | X77: 5.42095299 | Y77: -115.4544024 | Z77: 64.54559764 | AC77: 1 | AD77: 5.36503914 | AE77: -7.247550038e-05 | AF77: 0.000648424723 | AG77: 8001.620742 | AH77: -2436.553406 | AJ77: 22100 | AK77: 333.5350879 | AL77: 1 | AM77: 3.59763868 | AN77: 1671.084554 | AO77: -5678.423339 | AQ77: 5.405405405 | AR77: -232.4324324 | AT77: -523082.0308 | AU77: -1873006.731 | AV77: -1.843131658 | AW77: -1301438.342 | AX77: -458586.1138 | AY77: -2.80280921 | BA77: 1.409318413 | BB77: 2.980182524 | BC77: 0.9596775518 | BD77: -125.0145265 | BF77: 5.397739241 | BG77: -117.1345885 | BH77: 62.86541148 | BI77: 62.86541148 | BJ77: 0 | BK77: 0 | BM77: 2.417556717 | BN77: -172.120062 | BQ77: 19.88214332 | BT77: 467.735 | BU77: 21.3672 | BV77: -265.0501
A78: 22000 | B78: 22 | C78: 1.000137565 | D78: 0.01658608809 | F78: 0.0837883122 | G78: 0.1181193227 | H78: -3.023473327 | J78: 15 | M78: 0.06819679113 | N78: -1.570796325 | O78: 5.58014214 | P78: 1.390616081 | Q78: 3.814708935 | R78: 1.305553928 | S78: 0.9998807772 | T78: -0.01544183667 | U78: 0.9935231114 | V78: -0.113876182 | X78: 5.166624852 | Y78: -115.2121627 | Z78: 64.78783733 | AC78: 1 | AD78: 5.489807492 | AE78: -7.588565102e-05 | AF78: 0.0006635043677 | AG78: 7996.977946 | AH78: -2421.771364 | AJ78: 22100 | AK78: 341.2917179 | AL78: 1 | AM78: 3.681304696 | AN78: 1605.029684 | AO78: -5567.311595 | AQ78: 5.162622612 | AR78: -227.1553949 | AT78: -508833.0515 | AU78: -1829059.375 | AV78: -1.842129394 | AW78: -1247166.792 | AX78: -431988.2975 | AY78: -2.808150232 | BA78: 1.438420009 | BB78: 3.157714311 | BC78: 0.9660208374 | BD78: -124.651083 | BF78: 5.144403128 | BG78: -116.9330315 | BH78: 63.06696849 | BI78: 63.06696849 | BJ78: 0 | BK78: 0 | BM78: 1.986688817 | BN78: -172.2819485 | BQ78: 20.05967511 | BT78: 478.63 | BU78: 21.1958 | BV78: -264.3513
A79: 22500 | B79: 22.5 | C79: 1.000143888 | D79: 0.01696297313 | F79: 0.0798351668 | G79: 0.1150907474 | H79: -3.026501903 | J79: 15 | M79: 0.06668130689 | N79: -1.570796325 | O79: 5.7029345 | P79: 1.394536765 | Q79: 3.895510808 | R79: 1.31118415 | S79: 0.9998752974 | T79: -0.0157927298 | U79: 0.9932283795 | V79: -0.1164412021 | X79: 4.920196819 | Y79: -114.9839362 | Z79: 65.01606382 | AC79: 1 | AD79: 5.614575844 | AE79: -7.937419592e-05 | AF79: 0.0006785840124 | AG79: 7992.233991 | AH79: -2408.51113 | AJ79: 22100 | AK79: 349.0483478 | AL79: 1 | AM79: 3.764970711 | AN79: 1542.942335 | AO79: -5460.084352 | AQ79: 4.935834156 | AR79: -222.112537 | AT79: -495512.1761 | AU79: -1787063.38 | AV79: -1.841278525 | AW79: -1196121.202 | AX79: -407523.8067 | AY79: -2.813222836 | BA79: 1.467578709 | BB79: 3.332028049 | BC79: 0.9719443105 | BD79: -124.311693 | BF79: 4.898987681 | BG79: -116.7455722 | BH79: 63.25442784 | BI79: 63.25442784 | BJ79: 0 | BK79: 0 | BM79: 1.566959631 | BN79: -172.4338791 | BQ79: 20.23398885 | BT79: 489.779 | BU79: 20.9448 | BV79: -263.9108
A80: 23000 | B80: 23 | C80: 1.000150354 | D80: 0.01733985336 | F80: 0.07616096548 | G80: 0.1122216591 | H80: -3.029370991 | J80: 15 | M80: 0.06523171326 | N80: -1.570796325 | O80: 5.825810828 | P80: 1.398292118 | Q80: 3.976431146 | R80: 1.316585388 | S80: 0.9998696946 | T80: -0.01614361904 | U80: 0.9929272955 | V80: -0.119004684 | X80: 4.681169566 | Y80: -114.7690764 | Z80: 65.23092364 | AC80: 1 | AD80: 5.739344196 | AE80: -8.29411351e-05 | AF80: 0.0006936636571 | AG80: 7987.389247 | AH80: -2396.670365 | AJ80: 22100 | AK80: 356.8049778 | AL80: 1 | AM80: 3.848636727 | AN80: 1484.518456 | AO80: -5356.567274 | AQ80: 4.723665564 | AR80: -217.288616 | AT80: -483039.4311 | AU80: -1746889.824 | AV80: -1.840569513 | AW80: -1148057.944 | AX80: -384982.3171 | AY80: -2.818043008 | BA80: 1.496789329 | BB80: 3.503213564 | BC80: 0.9774734951 | BD80: -123.9948941 | BF80: 4.660993424 | BG80: -116.5715662 | BH80: 63.42843378 | BI80: 63.42843378 | BJ80: 0 | BK80: 0 | BM80: 1.15777986 | BN80: -172.5766721 | BQ80: 20.40517436 | BT80: 501.187 | BU80: 20.7819 | BV80: -264.7826
A81: 23500 | B81: 23.5 | C81: 1.000156962 | D81: 0.01771672866 | F81: 0.07273960559 | G81: 0.1094993363 | H81: -3.032093314 | J81: 15 | M81: 0.06384380446 | N81: -1.570796325 | O81: 5.948765921 | P81: 1.40189228 | Q81: 4.05746286 | R81: 1.321771036 | S81: 0.9998639687 | T81: -0.01649450431 | U81: 0.9926198771 | V81: -0.1215665953 | X81: 4.449088828 | Y81: -114.5669617 | Z81: 65.4330383 | AC81: 1 | AD81: 5.864112548 | AE81: -8.658646854e-05 | AF81: 0.0007087433018 | AG81: 7982.444089 | AH81: -2386.155382 | AJ81: 22100 | AK81: 364.5616077 | AL81: 1 | AM81: 3.932302743 | AN81: 1429.481848 | AO81: -5256.593783 | AQ81: 4.524886878 | AR81: -212.6696833 | AT81: -471343.2527 | AU81: -1708420.939 | AV81: -1.839993583 | AW81: -1102755.253 | AX81: -364177.7767 | AY81: -2.822625504 | BA81: 1.526047085 | BB81: 3.671358675 | BC81: 0.9826319214 | BD81: -123.699338 | BF81: 4.42996594 | BG81: -116.4103944 | BH81: 63.58960559 | BI81: 63.58960559 | BJ81: 0 | BK81: 0 | BM81: 0.7586072648 | BN81: -172.7110564 | BQ81: 20.57331948 | BT81: 512.861 | BU81: 20.6348 | BV81: -265.043
A82: 24000 | B82: 24 | C82: 1.000163711 | D82: 0.01809359892 | F82: 0.06954801389 | G82: 0.1069124058 | H82: -3.034680244 | J82: 15 | M82: 0.0625137252 | N82: -1.570796325 | O82: 6.071794993 | P82: 1.40534659 | Q82: 4.138599409 | R82: 1.326753486 | S82: 0.9998581198 | T82: -0.01684538551 | U82: 0.9923061421 | V82: -0.124126904 | X82: 4.223540246 | Y82: -114.376997 | Z82: 65.62300302 | AC82: 1 | AD82: 5.988880901 | AE82: -9.031019625e-05 | AF82: 0.0007238229466 | AG82: 7977.398902 | AH82: -2376.880242 | AJ82: 22100 | AK82: 372.3182377 | AL82: 1 | AM82: 4.015968759 | AN82: 1377.581237 | AO82: -5160.004972 | AQ82: 4.338394794 | AR82: -208.2429501 | AT82: -460359.4478 | AU82: -1671548.926 | AV82: -1.839542647 | AW82: -1060011.005 | AX82: -344945.2242 | AY82: -2.82698396 | BA82: 1.555347556 | BB82: 3.836549025 | BC82: 0.9874413129 | BD82: -123.4237802 | BF82: 4.205490713 | BG82: -116.2614637 | BH82: 63.7385363 | BI82: 63.7385363 | BJ82: 0 | BK82: 0 | BM82: 0.3689416879 | BN82: -172.8376835 | BQ82: 20.73850983 | BT82: 524.807 | BU82: 20.2436 | BV82: -263.9557
A83: 24500 | B83: 24.5 | C83: 1.000170603 | D83: 0.01847046405 | F83: 0.06656572885 | G83: 0.1044506662 | H83: -3.037141984 | J83: 15 | M83: 0.06123793489 | N83: -1.570796325 | O83: 6.194893638 | P83: 1.408663658 | Q83: 4.219834746 | R83: 1.331544218 | S83: 0.9998521479 | T83: -0.01719626257 | U83: 0.9919861089 | V83: -0.1266855779 | X83: 4.004144914 | Y83: -114.1986138 | Z83: 65.80138623 | AC83: 1 | AD83: 6.113649253 | AE83: -9.411231823e-05 | AF83: 0.0007389025913 | AG83: 7972.254077 | AH83: -2368.765969 | AJ83: 22100 | AK83: 380.0748676 | AL83: 1 | AM83: 4.099634775 | AN83: 1328.587697 | AO83: -5066.649457 | AQ83: 4.163197336 | AR83: -203.9966694 | AT83: -450030.3015 | AU83: -1636174.92 | AV83: -1.839209243 | AW83: -1019640.729 | AX83: -327138.0717 | AY83: -2.831130998 | BA83: 1.584686643 | BB83: 3.998867949 | BC83: 0.9919217544 | BD83: -123.1670698 | BF83: 3.987188678 | BG83: -116.1242078 | BH83: 63.87579218 | BI83: 63.87579218 | BJ83: 0 | BK83: 0 | BM83: -0.01167927168 | BN83: -172.957138 | BQ83: 20.90082875 | BT83: 537.032 | BU83: 20.2926 | BV83: -264.5682
A84: 25000 | B84: 25 | C84: 1.000177637 | D84: 0.01884732392 | F84: 0.06377454943 | G84: 0.1021049389 | H84: -3.039487711 | J84: 15 | M84: 0.0600131762 | N84: -1.570796325 | O84: 6.318057788 | P84: 1.411851433 | Q84: 4.301163273 | R84: 1.336153882 | S84: 0.999846053 | T84: -0.01754713539 | U84: 0.9916597961 | V84: -0.1292425852 | X84: 3.79055552 | Y84: -114.0312705 | Z84: 65.96872954 | AC84: 1 | AD84: 6.238417605 | AE84: -9.799283447e-05 | AF84: 0.000753982236 | AG84: 7967.010011 | AH84: -2361.73985 | AJ84: 22100 | AK84: 387.8314976 | AL84: 1 | AM84: 4.18330079 | AN84: 1282.292365 | AO84: -4976.383167 | AQ84: 3.99840064 | AR84: -199.920032 | AT84: -440303.8085 | AU84: -1602208.078 | AV84: -1.838986472 | AW84: -981475.854 | AX84: -310625.7765 | AY84: -2.835078312 | BA84: 1.614060539 | BB84: 4.1583964 | BC84: 0.9960918407 | BD84: -122.9281415 | BF84: 3.774712361 | BG84: -115.9980873 | BH84: 64.00191274 | BI84: 64.00191274 | BJ84: 0 | BK84: 0 | BM84: -0.3836840396 | BN84: -173.0699458 | BQ84: 21.0603572 | BT84: 549.541 | BU84: 19.992 | BV84: -264.4762
A85: 25500 | B85: 25.5 | C85: 1.000184813 | D85: 0.01922417845 | F85: 0.06115823821 | G85: 0.09986694134 | H85: -3.041725709 | J85: 15 | M85: 0.05883644725 | N85: -1.570796325 | O85: 6.441283686 | P85: 1.41491727 | Q85: 4.382579803 | R85: 1.340592367 | S85: 0.999839835 | T85: -0.01789800389 | U85: 0.9913272228 | V85: -0.1317978942 | X85: 3.582452989 | Y85: -113.8744518 | Z85: 66.12554819 | AC85: 1 | AD85: 6.363185957 | AE85: -0.000101951745 | AF85: 0.0007690618807 | AG85: 7961.667109 | AH85: -2355.734825 | AJ85: 22100 | AK85: 395.5881276 | AL85: 1 | AM85: 4.266966806 | AN85: 1238.504416 | AO85: -4889.069105 | AQ85: 3.84319754 | AR85: -196.0030746 | AT85: -431133.009 | AU85: -1569564.786 | AV85: -1.838867946 | AW85: -945362.1382 | AX85: -295291.8416 | AY85: -2.838836757 | BA85: 1.643465702 | BB85: 4.315212901 | BC85: 0.9999688107 | BD85: -122.7060074 | BF85: 3.567742522 | BG85: -115.8825889 | BH85: 64.11741111 | BI85: 64.11741111 | BJ85: 0 | BK85: 0 | BM85: -0.7474703791 | BN85: -173.1765815 | BQ85: 21.2171737 | BT85: 562.341 | BU85: 19.6823 | BV85: -264.604
A86: 26000 | B86: 26 | C86: 1.000192131 | D86: 0.01960102751 | F86: 0.05870226955 | G86: 0.0977291783 | H86: -3.043863472 | J86: 15 | M86: 0.05770497711 | N86: -1.570796325 | O86: 6.564567854 | P86: 1.41786798 | Q86: 4.464079519 | R86: 1.344868869 | S86: 0.999833494 | T86: -0.01824886798 | U86: 0.9909884083 | V86: -0.1343514731 | X86: 3.379543551 | Y86: -113.7276684 | Z86: 66.27233165 | AC86: 1 | AD86: 6.487954309 | AE86: -0.0001059890498 | AF86: 0.0007841415254 | AG86: 7956.225783 | AH86: -2350.688939 | AJ86: 22100 | AK86: 403.3447575 | AL86: 1 | AM86: 4.350632822 | AN86: 1197.049268 | AO86: -4804.577078 | AQ86: 3.696857671 | AR86: -192.2365989 | AT86: =-AR86*AH86+AG86*AQ86 -> -422475.4124 | AU86: =AQ86*AH86+AG86*AR86 -> -1538167.947 | AV86: -1.838847747 | AW86: -911158.2733 | AX86: -281032.0944 | AY86: -2.842416414 | BA86: 1.672898826 | BB86: 4.469393529 | BC86: 1.003568667 | BD86: -122.4997509 | BF86: 3.365985223 | BG86: -115.7772253 | BH86: 64.22277473 | BI86: 64.22277473 | BJ86: 0 | BK86: 0 | BM86: -1.103408306 | BN86: -173.2774744 | BQ86: 21.37135433 | BT86: 575.44 | BU86: 19.596 | BV86: -264.9076
A87: 26500 | B87: 26.5 | C87: 1.000199591 | D87: 0.019977871 | F87: 0.05639361505 | G87: 0.09568484956 | H87: -3.0459078 | J87: 15 | M87: 0.05661620396 | N87: -1.570796325 | O87: 6.687907071 | P87: 1.420709879 | Q87: 4.545657948 | R87: 1.348991948 | S87: 0.9998270301 | T87: -0.01859972758 | U87: 0.9906433721 | V87: -0.1369032904 | X87: 3.181556177 | Y87: -113.5904555 | Z87: 66.40954448 | AC87: 1 | AD87: 6.612722661 | AE87: -0.0001101047488 | AF87: 0.0007992211702 | AG87: 7950.68645 | AH87: -2346.544867 | AJ87: 22100 | AK87: 411.1013875 | AL87: 1 | AM87: 4.434298838 | AN87: 1157.766987 | AO87: -4722.783416 | AQ87: 3.558718861 | AR87: -188.6120996 | AT87: -414292.4964 | AU87: -1507946.358 | AV87: -1.838920379 | AW87: -878734.64 | AX87: -267753.1997 | AY87: -2.845826661 | BA87: 1.702356824 | BB87: 4.621011921 | BC87: 1.006906282 | BD87: -122.3085196 | BF87: 3.169169263 | BG87: -115.6815339 | BH87: 64.31846615 | BI87: 64.31846615 | BJ87: 0 | BK87: 0 | BM87: -1.451842658 | BN87: -173.3730143 | BQ87: 21.52297272 | BT87: 588.844 | BU87: 19.3732 | BV87: -263.8817
A88: 27000 | B88: 27 | C88: 1.000207193 | D88: 0.02035470882 | F88: 0.05422055998 | G88: 0.0937277699 | H88: -3.04786488 | J88: 15 | M88: 0.05556775574 | N88: -1.570796325 | O88: 6.811298346 | P88: 1.423448834 | Q88: 4.627310927 | R88: 1.352969582 | S88: 0.9998204431 | T88: -0.0189505826 | U88: 0.9902921344 | V88: -0.1394533148 | X88: 2.988240318 | Y88: -113.4623727 | Z88: 66.53762732 | AC88: 1 | AD88: 6.737491013 | AE88: -0.0001142988421 | AF88: 0.0008143008149 | AG88: 7945.049535 | AH88: -2343.249482 | AJ88: 22100 | AK88: 418.8580174 | AL88: 1 | AM88: 4.517964854 | AN88: 1120.510863 | AO88: -4643.570682 | AQ88: 3.428179637 | AR88: -185.1217004 | AT88: -406549.2715 | AU88: -1478834.16 | AV88: -1.839080732 | AW88: -847972.1951 | AX88: -255371.3741 | AY88: -2.849076231 | BA88: 1.731836805 | BB88: 4.7701393 | BC88: 1.009995498 | BD88: -122.1315206 | BF88: 2.977043921 | BG88: -115.595076 | BH88: 64.40492399 | BI88: 64.40492399 | BJ88: 0 | BK88: 0 | BM88: -1.79309538 | BN88: -173.4635554 | BQ88: 21.6721001 | BT88: 602.56 | BU88: 19.198 | BV88: -264.0026
A89: 27500 | B89: 27.5 | C89: 1.000214937 | D89: 0.02073154086 | F89: 0.05217254572 | G89: 0.0918523001 | H89: -3.04974035 | J89: 15 | M89: 0.05455743291 | N89: -1.570796325 | O89: 6.934738899 | P89: 1.426090299 | Q89: 4.709034578 | R89: 1.356809214 | S89: 0.9998137331 | T89: -0.01930143295 | U89: 0.9899347153 | V89: -0.1420015151 | X89: 2.799363925 | Y89: -113.3430021 | Z89: 66.65699786 | AC89: 1 | AD89: 6.862259365 | AE89: -0.0001185713297 | AF89: 0.0008293804596 | AG89: 7939.31547 | AH89: -2340.753474 | AJ89: 22100 | AK89: 426.6146474 | AL89: 1 | AM89: 4.601630869 | AN89: 1085.146151 | AO89: -4566.82738 | AQ89: 3.304692664 | AR89: -181.7580965 | AT89: -399213.8983 | AU89: -1450770.338 | AV89: -1.839324054 | AW89: -818761.4781 | AX89: -243811.2697 | AY89: -2.852173264 | BA89: 1.761336055 | BB89: 4.916844506 | BC89: 1.01284921 | BD89: -121.9680149 | BF89: 2.789376971 | BG89: -115.517436 | BH89: 64.482564 | BI89: 64.482564 | BJ89: 0 | BK89: 0 | BM89: -2.127467535 | BN89: -173.5494211 | BQ89: 21.81880531 | BT89: 616.595 | BU89: 18.9837 | BV89: -264.1331
A90: 28000 | B90: 28 | C90: 1.000222823 | D90: 0.02110836701 | F90: 0.05024003406 | G90: 0.09005328714 | H90: -3.051539363 | J90: 15 | M90: 0.05358319303 | N90: -1.570796325 | O90: 7.058226146 | P90: 1.428639355 | Q90: 4.790825284 | R90: 1.360517795 | S90: 0.9998069002 | T90: -0.01965227855 | U90: 0.9895711355 | V90: -0.1445478601 | X90: 2.614711692 | Y90: -113.231948 | Z90: 66.76805195 | AC90: 1 | AD90: 6.987027717 | AE90: -0.0001229222116 | AF90: 0.0008444601043 | AG90: 7933.484692 | AH90: -2339.011013 | AJ90: 22100 | AK90: 434.3712773 | AL90: 1 | AM90: 4.685296885 | AN90: 1051.548934 | AO90: -4492.447668 | AQ90: 3.187759005 | AR90: -178.5145043 | AT90: -392257.3542 | AU90: -1423698.291 | AV90: -1.839645914 | AW90: -791001.7205 | AX90: -233005.0038 | AY90: -2.855125359 | BA90: 1.790852024 | BB90: 5.061194043 | BC90: 1.015479445 | BD90: -121.8173135 | BF90: 2.605952926 | BG90: -115.4482199 | BH90: 64.55178009 | BI90: 64.55178009 | BJ90: 0 | BK90: 0 | BM90: -2.455241116 | BN90: -173.6309064 | BQ90: 21.96315484 | BT90: 630.957 | BU90: 18.8029 | BV90: -263.7485
A91: 28500 | B91: 28.5 | C91: 1.000230851 | D91: 0.02148518717 | F91: 0.04841438981 | G91: 0.08832601213 | H91: -3.053266638 | J91: 15 | M91: 0.05264313701 | N91: -1.570796325 | O91: 7.181757677 | P91: 1.431100734 | Q91: 4.872679669 | R91: 1.364101827 | S91: 0.9997999443 | T91: -0.02000311932 | U91: 0.9892014159 | V91: -0.1470923189 | X91: 2.434083501 | Y91: -113.1288353 | Z91: 66.87116468 | AC91: 1 | AD91: 7.111796069 | AE91: -0.0001273514877 | AF91: 0.000859539749 | AG91: 7927.557646 | AH91: -2337.979439 | AJ91: 22100 | AK91: 442.1279073 | AL91: 1 | AM91: 4.768962901 | AN91: 1019.605117 | AO91: -4420.33107 | AQ91: 3.076923077 | AR91: -175.3846154 | AT91: -385653.1396 | AU91: -1397565.432 | AV91: -1.840042178 | AW91: -764600.0493 | AX91: -222891.3141 | AY91: -2.857939615 | BA91: 1.820382312 | BB91: 5.203252138 | BC91: 1.017897437 | BD91: -121.6787728 | BF91: 2.426571487 | BG91: -115.3870546 | BH91: 64.61294543 | BI91: 64.61294543 | BJ91: 0 | BK91: 0 | BM91: -2.776680651 | BN91: -173.7082817 | BQ91: 22.10521294 | BT91: 645.654 | BU91: 18.5986 | BV91: -263.7636
A92: 29000 | B92: 29 | C92: 1.000239021 | D92: 0.02186200122 | F92: 0.04668777914 | G92: 0.08666614488 | H92: -3.054926505 | J92: 15 | M92: 0.05173549672 | N92: -1.570796325 | O92: 7.305331247 | P92: 1.433478856 | Q92: 4.954594575 | R92: 1.367567391 | S92: 0.9997928654 | T92: -0.02035395515 | U92: 0.9888255778 | V92: -0.1496348606 | X92: 2.257293039 | Y92: -113.0333086 | Z92: 66.96669141 | AC92: 1 | AD92: 7.236564421 | AE92: -0.0001318591581 | AF92: 0.0008746193938 | AG92: 7921.534782 | AH92: -2337.618994 | AJ92: 22100 | AK92: 449.8845372 | AL92: 1 | AM92: 4.852628917 | AN92: 989.2095238 | AO92: -4350.382203 | AQ92: 2.971768202 | AR92: -172.3625557 | AT92: -379377.0189 | AU92: -1372322.842 | AV92: -1.840508987 | AW92: -739470.7707 | AX92: -213414.8196 | AY92: -2.86062267 | BA92: 1.849924652 | BB92: 5.343080796 | BC92: 1.020113684 | BD92: -121.5517912 | BF92: 2.251046155 | BG92: -115.3335865 | BH92: 64.6664135 | BI92: 64.6664135 | BJ92: 0 | BK92: 0 | BM92: -3.092034641 | BN92: -173.7817953 | BQ92: 22.2450416 | BT92: 660.693 | BU92: 18.468 | BV92: -263.6098
A93: 29500 | B93: 29.5 | C93: 1.000247333 | D93: 0.02223880906 | F93: 0.04505308099 | G93: 0.08506970411 | H93: -3.056522946 | J93: 15 | M93: 0.0508586239 | N93: -1.570796325 | O93: 7.428944757 | P93: 1.43577785 | Q93: 5.036567051 | R93: 1.370920188 | S93: 0.9997856636 | T93: -0.02070478598 | U93: 0.9884436426 | V93: -0.1521754546 | X93: 2.084166572 | Y93: -112.9450311 | Z93: 67.05496886 | AC93: 1 | AD93: 7.361332774 | AE93: -0.0001364452227 | AF93: 0.0008896990385 | AG93: 7915.416558 | AH93: -2337.892574 | AJ93: 22100 | AK93: 457.6411672 | AL93: 1 | AM93: 4.936294933 | AN93: 960.2650852 | AO93: -4282.510507 | AQ93: 2.871912694 | AR93: -169.4428489 | AT93: -373406.793 | AU93: -1347924.955 | AV93: -1.841042728 | AW93: -715534.728 | AX93: -204525.375 | AY93: -2.863180741 | BA93: 1.879476904 | BB93: 5.480739866 | BC93: 1.022138012 | BD93: -121.4358058 | BF93: 2.07920301 | BG93: -115.2874808 | BH93: 64.71251916 | BI93: 64.71251916 | BJ93: 0 | BK93: 0 | BM93: -3.401536856 | BN93: -173.8516751 | BQ93: 22.38270067 | BT93: 676.083 | BU93: 18.2744 | BV93: -263.3252
A94: 30000 | B94: 30 | C94: 1.000255787 | D94: 0.02261561059 | F94: 0.04350380996 | G94: 0.08353302247 | H94: -3.058059628 | J94: 15 | M94: 0.05001098016 | N94: -1.570796325 | O94: 7.552596247 | P94: 1.438001577 | Q94: 5.118594331 | R94: 1.37416556 | S94: 0.9997783388 | T94: -0.02105561171 | U94: 0.9880556322 | V94: -0.1547140704 | X94: 1.914541846 | Y94: -112.8636839 | Z94: 67.1363161 | AC94: 1 | AD94: 7.486101126 | AE94: -0.0001411096816 | AF94: 0.0009047786832 | AG94: 7909.203435 | AH94: -2338.76551 | AJ94: 22100 | AK94: 465.3977971 | AL94: 1 | AM94: 5.019960949 | AN94: 932.6821136 | AO94: -4216.62999 | AQ94: 2.777006387 | AR94: -166.6203832 | AT94: -367722.0972 | AU94: -1324329.274 | AV94: -1.841640024 | AW94: -692718.7229 | AX94: -196177.5034 | AY94: -2.86561965 | BA94: 1.909037042 | BB94: 5.616287105 | BC94: 1.023979626 | BD94: -121.330289 | BF94: 1.910879605 | BG94: -115.2484204 | BH94: 64.75157965 | BI94: 64.75157965 | BJ94: 0 | BK94: 0 | BM94: -3.705407501 | BN94: -173.9181313 | BQ94: 22.51824791 | BT94: 691.831 | BU94: 18.0926 | BV94: -263.5782
A95: 30500 | B95: 30.5 | C95: 1.000264384 | D95: 0.02299240569 | F95: 0.04203404868 | G95: 0.08205271576 | H95: -3.059539934 | J95: 15 | M95: 0.04919112803 | N95: -1.570796325 | O95: 7.67628388 | P95: 1.440153652 | Q95: 5.200673821 | R95: 1.377308524 | S95: 0.9997708911 | T95: -0.02140643225 | U95: 0.9876615688 | V95: -0.1572506776 | X95: 1.748267105 | Y95: -112.7889644 | Z95: 67.21103556 | AC95: 1 | AD95: 7.610869478 | AE95: -0.0001458525348 | AF95: 0.0009198583279 | AG95: 7902.895883 | AH95: -2340.205368 | AJ95: 22100 | AK95: 473.1544271 | AL95: 1 | AM95: 5.103626964 | AN95: 906.3776488 | AO95: -4152.658981 | AQ95: 2.686727566 | AR95: -163.8903815 | AT95: -362304.2224 | AU95: -1301496.116 | AV95: -1.842297705 | AW95: -670954.9957 | AX95: -188329.8991 | AY95: -2.867944862 | BA95: 1.938603143 | BB95: 5.749778251 | BC95: 1.025647157 | BD95: -121.2347466 | BF95: 1.745923992 | BG95: -115.2161044 | BH95: 64.78389556 | BI95: 64.78389556 | BJ95: 0 | BK95: 0 | BM95: -4.003854259 | BN95: -173.9813579 | BQ95: 22.65173905 | BT95: 707.946 | BU95: 17.887 | BV95: -262.8499
A96: 31000 | B96: 31 | C96: 1.000273122 | D96: 0.02336919426 | F96: 0.04063838866 | G96: 0.08062565574 | H96: -3.060966994 | J96: 15 | M96: 0.04839772274 | N96: -1.570796325 | O96: 7.800005938 | P96: 1.442237465 | Q96: 5.282803088 | R96: 1.380353794 | S96: 0.9997633204 | T96: -0.02175724753 | U96: 0.9872614748 | V96: -0.159785246 | X96: 1.585200212 | Y96: -112.7205861 | Z96: 67.27941392 | AC96: 1 | AD96: 7.73563783 | AE96: -0.0001506737823 | AF96: 0.0009349379726 | AG96: 7896.494377 | AH96: -2342.181769 | AJ96: 22100 | AK96: 480.911057 | AL96: 1 | AM96: 5.18729298 | AN96: 881.2748708 | AO96: -4090.519894 | AQ96: 2.600780234 | AR96: -161.2483745 | AT96: -357135.9566 | AU96: -1279388.383 | AV96: -1.843012801 | AW96: -650180.7551 | AX96: -180944.9883 | AY96: -2.870161506 | BA96: 1.968173383 | BB96: 5.881267084 | BC96: 1.027148705 | BD96: -121.1487142 | BF96: 1.584193837 | BG96: -115.1902482 | BH96: 64.8097518 | BI96: 64.8097518 | BJ96: 0 | BK96: 0 | BM96: -4.297073247 | BN96: -174.041534 | BQ96: 22.78322788 | BT96: 724.436 | BU96: 17.7536 | BV96: -262.8169
A97: 31500 | B97: 31.5 | C97: 1.000282002 | D97: 0.0237459762 | F97: 0.03931187813 | G97: 0.079248946 | H97: -3.062343704 | J97: 15 | M97: 0.04762950492 | N97: -1.570796325 | O97: 7.923760808 | P97: 1.444256196 | Q97: 5.364979845 | R97: 1.383305799 | S97: 0.9997556269 | T97: -0.02210805745 | U97: 0.986855373 | V97: -0.1623177455 | X97: 1.425207857 | Y97: -112.6582769 | Z97: 67.34172305 | AC97: 1 | AD97: 7.860406182 | AE97: -0.000155573424 | AF97: 0.0009500176174 | AG97: 7889.999398 | AH97: -2344.666226 | AJ97: 22100 | AK97: 488.667687 | AL97: 1 | AM97: 5.270958996 | AN97: 857.3025692 | AO97: -4030.139003 | AQ97: 2.518891688 | AR97: -158.6901763 | AT97: -352201.443 | AU97: -1257971.356 | AV97: -1.84378252 | AW97: -630337.7552 | AX97: -173988.543 | AY97: -2.872274401 | BA97: 1.997746025 | BB97: 6.010805503 | BC97: 1.028491881 | BD97: -121.0717559 | BF97: 1.425555633 | BG97: -115.1705815 | BH97: 64.82941847 | BI97: 64.82941847 | BJ97: 0 | BK97: 0 | BM97: -4.58524987 | BN97: -174.0988256 | BQ97: 22.9127663 | BT97: 741.31 | BU97: 17.4164 | BV97: -262.1972
A98: 32000 | B98: 32 | C98: 1.000291024 | D98: 0.0241227514 | F98: 0.03804997616 | G98: 0.07791990059 | H98: -3.063672749 | J98: 15 | M98: 0.0468852939 | N98: -1.570796325 | O98: 8.047546977 | P98: 1.446212831 | Q98: 5.447201944 | R98: 1.386168712 | S98: 0.9997478104 | T98: -0.02245886193 | U98: 0.9864432863 | V98: -0.1648481462 | X98: 1.268164844 | Y98: -112.6017792 | Z98: 67.39822084 | AC98: 1 | AD98: 7.985174534 | AE98: -0.00016055146 | AF98: 0.0009650972621 | AG98: 7883.411432 | AH98: -2347.632 | AJ98: 22100 | AK98: 496.4243169 | AL98: 1 | AM98: 5.354625012 | AN98: 834.3946664 | AO98: -3971.446233 | AQ98: 2.440810349 | AR98: -156.2118623 | AT98: -347486.0545 | AU98: -1237212.506 | AV98: -1.84460424 | AW98: -611371.9124 | AX98: -167429.3387 | AY98: -2.874288081 | BA98: 2.027319414 | BB98: 6.138443585 | BC98: 1.029683841 | BD98: -121.0034616 | BF98: 1.269883982 | BG98: -115.1568483 | BH98: 64.84315169 | BI98: 64.84315169 | BJ98: 0 | BK98: 0 | BM98: -4.868559603 | BN98: -174.1533867 | BQ98: 23.04040439 | BT98: 758.578 | BU98: 17.2832 | BV98: -262.5669
A99: 32500 | B99: 32.5 | C99: 1.000300188 | D99: 0.02449951974 | F99: 0.03684851202 | G99: 0.07663602495 | H99: -3.064956625 | J99: 15 | M99: 0.04616398169 | N99: -1.570796325 | O99: 8.171363021 | P99: 1.448110178 | Q99: 5.529467361 | R99: 1.38894646 | S99: 0.999739871 | T99: -0.02280966087 | U99: 0.9860252381 | V99: -0.1673764183 | X99: 1.113953454 | Y99: -112.550848 | Z99: 67.449152 | AC99: 1 | AD99: 8.109942886 | AE99: -0.0001656078903 | AF99: 0.0009801769068 | AG99: 7876.730972 | AH99: -2351.05396 | AJ99: 22100 | AK99: 504.1809469 | AL99: 1 | AM99: 5.438291028 | AN99: 812.4897846 | AO99: -3914.374959 | AQ99: 2.366303833 | AR99: -153.8097492 | AT99: -342976.2812 | AU99: -1217081.323 | AV99: -1.845475492 | AW99: -593232.959 | AX99: -161238.8523 | AY99: -2.876206813 | BA99: 2.056891972 | BB99: 6.264229661 | BC99: 1.030731321 | BD99: -120.9434454 | BF99: 1.117060959 | BG99: -115.1488055 | BH99: 64.85119446 | BI99: 64.85119446 | BJ99: 0 | BK99: 0 | BM99: -5.147168702 | BN99: -174.2053601 | BQ99: 23.16619046 | BT99: 776.247 | BU99: 17.0071 | BV99: -262.7177
A100: 33000 | B100: 33 | C100: 1.000309494 | D100: 0.02487628113 | F100: 0.03570364927 | G100: 0.07539499893 | H100: -3.066197651 | J100: 15 | M100: 0.04546452742 | N100: -1.570796325 | O100: 8.295207603 | P100: 1.449950877 | Q100: 5.611774193 | R100: 1.391642747 | S100: 0.9997318087 | T100: -0.02316045421 | U100: 0.985601252 | V100: -0.1699025323 | X100: 0.9624628552 | Y100: -112.5052512 | Z100: 67.49474883 | AC100: 1 | AD100: 8.234711238 | AE100: -0.0001707427148 | AF100: 0.0009952565515 | AG100: 7869.958516 | AH100: -2354.908469 | AJ100: 22100 | AK100: 511.9375768 | AL100: 1 | AM100: 5.521957043 | AN100: 791.530856 | AO100: -3858.861809 | AQ100: 2.295157218 | AR100: -151.4803764 | AT100: -338659.6292 | AU100: -1197549.163 | AV100: -1.846393953 | AW100: -575874.1291 | AX100: -155390.9931 | AY100: -2.878034618 | BA100: 2.086462189 | BB100: 6.388210376 | BC100: 1.031640666 | BD100: -120.8913438 | BF100: 0.9669755287 | BG100: -115.1462226 | BH100: 64.85377736 | BI100: 64.85377736 | BJ100: 0 | BK100: 0 | BM100: -5.421234847 | BN100: -174.2548788 | BQ100: 23.29017118 | BT100: 794.328 | BU100: 16.8354 | BV100: -262.7938
A101: 33500 | B101: 33.5 | C101: 1.000318943 | D101: 0.02525303545 | F101: 0.03461185386 | G101: 0.07419466163 | H101: -3.067397988 | J101: 15 | M101: 0.04478595239 | N101: -1.570796325 | O101: 8.419079464 | P101: 1.451737418 | Q101: 5.694120642 | R101: 1.394261068 | S101: 0.9997236235 | T101: -0.02351124184 | U101: 0.9851713519 | V101: -0.1724264587 | X101: 0.8135885863 | Y101: -112.4647681 | Z101: 67.53523192 | AC101: 1 | AD101: 8.35947959 | AE101: -0.0001759559336 | AF101: 0.001010336196 | AG101: 7863.094567 | AH101: -2359.173268 | AJ101: 22100 | AK101: 519.6942068 | AL101: 1 | AM101: 5.605623059 | AN101: 771.464769 | AO101: -3804.846492 | AQ101: 2.227171492 | AR101: -149.22049 | AT101: -334524.5309 | AU101: -1178589.107 | AV101: -1.84735743 | AW101: -559251.8745 | AX101: -149861.8649 | AY101: -2.879775287 | BA101: 2.116028621 | BB101: 6.510430753 | BC101: 1.032417857 | BD101: -120.846814 | BF101: 0.8195230193 | BG101: -115.1488807 | BH101: 64.85111931 | BI101: 64.85111931 | BJ101: 0 | BK101: 0 | BM101: -5.690907734 | BN101: -174.3020667 | BQ101: 23.41239155 | BT101: 812.831 | BU101: 16.6614 | BV101: -262.2369
A102: =A101+500 -> 34000 | B102: 34 | C102: 1.000328533 | D102: 0.0256297826 | F102: 0.03356986569 | G102: 0.07303299769 | H102: -3.068559652 | J102: 15 | M102: 0.04412733544 | N102: -1.570796325 | O102: 8.542977417 | P102: 1.453472143 | Q102: 5.776505014 | R102: 1.39680472 | S102: 0.9997153154 | T102: -0.02386202368 | U102: 0.9847355619 | V102: -0.1749481682 | X102: 0.6672320742 | Y102: -112.4291891 | Z102: 67.57081087 | AC102: 1 | AD102: 8.484247942 | AE102: -0.0001812475466 | AF102: 0.001025415841 | AG102: 7856.139635 | AH102: -2363.827374 | AJ102: 22100 | AK102: 527.4508367 | AL102: 1 | AM102: 5.689289075 | AN102: 752.2420471 | AO102: -3752.271623 | AQ102: 2.162162162 | AR102: -147.027027 | AT102: -330560.2634 | AU102: -1160175.832 | AV102: -1.848363856 | AW102: -543325.6059 | AX102: -144629.5537 | AY102: -2.881432395 | BA102: 2.145589885 | BB102: 6.630934261 | BC102: 1.033068539 | BD102: -120.8095327 | BF102: 0.6746046464 | BG102: -115.1565718 | BH102: 64.84342822 | BI102: 64.84342822 | BJ102: 0 | BK102: 0 | BM102: -5.956329614 | BN102: -174.3470391 | BQ102: 23.53289506 | BT102: 831.764 | BU102: 16.5098 | BV102: -262.3432
A103: 34500 | B103: 34.5 | C103: 1.000338265 | D103: 0.02600652248 | F103: 0.03257467338 | G103: 0.07190812516 | H103: -3.069684525 | J103: 15 | M103: 0.04348780884 | N103: -1.570796325 | O103: 8.666900343 | P103: 1.455157266 | Q103: 5.85892571 | R103: 1.399276822 | S103: 0.9997068845 | T103: -0.02421279966 | U103: 0.9842939065 | V103: -0.1774676317 | X103: 0.5233002022 | Y103: -112.3983151 | Z103: 67.60168485 | AC103: 1 | AD103: 8.609016295 | AE103: -0.000186617554 | AF103: 0.001040495486 | AG103: 7849.094233 | AH103: -2368.850995 | AJ103: 22100 | AK103: 535.2074667 | AL103: 1 | AM103: 5.772955091 | AN103: 733.8165578 | AO103: -3701.082566 | AQ103: 2.099958001 | AR103: -144.8971021 | AT103: -326756.8762 | AU103: -1142285.496 | AV103: -1.84941128 | AW103: -528057.4585 | AX103: -139673.9383 | AY103: -2.883009322 | BA103: 2.17514465 | BB103: 6.749762868 | BC103: 1.033598042 | BD103: -120.7791944 | BF103: 0.5321270792 | BG103: -115.1690984 | BH103: 64.83090164 | BI103: 64.83090164 | BJ103: 0 | BK103: 0 | BM103: -6.217635789 | BN103: -174.3899039 | BQ103: 23.65172367 | BT103: 851.138 | BU103: 16.2768 | BV103: -262.197
A104: 35000 | B104: 35 | C104: 1.000348139 | D104: 0.02638325497 | F104: 0.0316234916 | G104: 0.07081828443 | H104: -3.070774366 | J104: 15 | M104: 0.04286655443 | N104: -1.570796325 | O104: 8.790847186 | P104: 1.456794875 | Q104: 5.941381219 | R104: 1.401680322 | S104: 0.9996983307 | T104: -0.02456356967 | U104: 0.9838464103 | V104: -0.1799848204 | X104: 0.381704915 | Y104: -112.3719567 | Z104: 67.62804329 | AC104: 1 | AD104: 8.733784647 | AE104: -0.0001920659556 | AF104: 0.00105557513 | AG104: 7841.958882 | AH104: -2374.225438 | AJ104: 22100 | AK104: 542.9640966 | AL104: 1 | AM104: 5.856621107 | AN104: 716.1452483 | AO104: -3651.22728 | AQ104: 2.040399918 | AR104: -142.8279943 | AT104: -323105.125 | AU104: -1124895.628 | AV104: -1.850497857 | AW104: -513412.0776 | AX104: -134976.5219 | AY104: -2.884509259 | BA104: 2.20469164 | BB104: 6.866957105 | BC104: 1.034011402 | BD104: -120.7555106 | BF104: 0.3920020458 | BG104: -115.1862726 | BH104: 64.81372736 | BI104: 64.81372736 | BJ104: 0 | BK104: 0 | BM104: -6.474955059 | BN104: -174.430762 | BQ104: 23.76891791 | BT104: 870.964 | BU104: 16.1061 | BV104: -261.768
A105: 35500 | B105: 35.5 | C105: 1.000358155 | D105: 0.02675997997 | F105: 0.03071374092 | G105: 0.06976182832 | H105: -3.071830822 | J105: 15 | M105: 0.04226280014 | N105: -1.570796325 | O105: 8.914816949 | P105: 1.458386942 | Q105: 6.02387011 | R105: 1.404018009 | S105: 0.999689654 | T105: -0.02491433364 | U105: 0.9833930983 | V105: -0.1824997053 | X105: 0.2423628593 | Y105: -112.3499336 | Z105: 67.65006635 | AC105: 1 | AD105: 8.858552999 | AE105: -0.0001975927514 | AF105: 0.001070654775 | AG105: 7834.734106 | AH105: -2379.933035 | AJ105: 22100 | AK105: 550.7207266 | AL105: 1 | AM105: 5.940287122 | AN105: 699.1879042 | AO105: -3602.656177 | AQ105: 1.983339944 | AR105: -140.8171361 | AT105: -319596.4129 | AU105: -1107985.035 | AV105: -1.851621841 | AW105: -499356.4245 | AX105: -130520.2809 | AY105: -2.885935225 | BA105: 2.234229625 | BB105: 6.982556123 | BC105: 1.034313384 | BD105: -120.7382083 | BF105: 0.2541459742 | BG105: -115.2079161 | BH105: 64.79208394 | BI105: 64.79208394 | BJ105: 0 | BK105: 0 | BM105: -6.728410148 | BN105: -174.4697077 | BQ105: 23.88451692 | BT105: 891.251 | BU105: 15.8824 | BV105: -261.3831
A106: 36000 | B106: 36 | C106: 1.000368313 | D106: 0.02713669738 | F106: 0.02984302963 | G106: 0.06873721316 | H106: -3.072855437 | J106: 15 | M106: 0.0416758168 | N106: -1.570796325 | O106: 9.038808688 | P106: 1.459935334 | Q106: 6.10639103 | R106: 1.406292527 | S106: 0.9996808546 | T106: -0.02526509147 | U106: 0.9829339957 | V106: -0.185012258 | X106: 0.1051950551 | Y106: -112.3320745 | Z106: 67.66792553 | AC106: 1 | AD106: 8.983321351 | AE106: -0.0002031979416 | AF106: 0.00108573442 | AG106: 7827.420435 | AH106: -2385.957075 | AJ106: 22100 | AK106: 558.4773565 | AL106: 1 | AM106: 6.023953138 | AN106: 682.9069307 | AO106: -3555.321992 | AQ106: 1.928640309 | AR106: -138.8621022 | AT106: -316222.7366 | AU106: -1091533.71 | AV106: -1.852781581 | AW106: -485859.599 | AX106: -126289.5298 | AY106: -2.887290079 | BA106: 2.263757421 | BB106: 7.096597741 | BC106: 1.034508497 | BD106: -120.7270292 | BF106: 0.1184796626 | BG106: -115.2338587 | BH106: 64.76614128 | BI106: 64.76614128 | BJ106: 36000 | BK106: 64.76614128 | BM106: -6.978118079 | BN106: -174.5068296 | BQ106: 23.99855854 | BT106: 912.011 | BU106: 15.6715 | BV106: -261.7487
A107: 36500 | B107: 36.5 | C107: 1.000378613 | D107: 0.02751340708 | F107: 0.02900913746 | G107: 0.0677429906 | H107: -3.073849659 | J107: 15 | M107: 0.0411049152 | N107: -1.570796325 | O107: 9.162821511 | P107: 1.461441817 | Q107: 6.188942699 | R107: 1.408506377 | S107: 0.9996719322 | T107: -0.02561584309 | U107: 0.9824691281 | V107: -0.1875224499 | X107: -0.02987340523 | Y107: -112.3182159 | Z107: 67.68178408 | AC107: 1 | AD107: 9.108089703 | AE107: -0.000208881526 | AF107: 0.001100814065 | AG107: 7820.018404 | AH107: -2392.281732 | AJ107: 22100 | AK107: 566.2339865 | AL107: 1 | AM107: 6.107619154 | AN107: 667.2671518 | AO107: -3509.17965 | AQ107: 1.876172608 | AR107: -136.9606004 | AT107: -312976.638 | AU107: -1075522.749 | AV107: -1.853975513 | AW107: -472892.6768 | AX107: -122269.7999 | AY107: -2.888576525 | BA107: 2.293273885 | BB107: 7.20911851 | BC107: 1.034601012 | BD107: -120.7217285 | BF107: -0.01507201984 | BG107: -115.2639389 | BH107: 64.73606109 | BI107: 64.73606109 | BJ107: 0 | BK107: 0 | BM107: -7.224190529 | BN107: -174.5422104 | BQ107: 24.11107931 | BT107: 933.254 | BU107: 15.4714 | BV107: -261.2073
A108: 37000 | B108: 37 | C108: 1.000389055 | D108: 0.02789010896 | F108: 0.02821000098 | G108: 0.06677780034 | H108: -3.07481485 | J108: 15 | M108: 0.04054944338 | N108: -1.570796325 | O108: 9.286854573 | P108: 1.462908063 | Q108: 6.271523902 | R108: 1.410661936 | S108: 0.9996628871 | T108: -0.0259665884 | U108: 0.9819985212 | V108: -0.1900302528 | X108: -0.1629136314 | Y108: -112.3082025 | Z108: 67.69179754 | AC108: 1 | AD108: 9.232858055 | AE108: -0.0002146435046 | AF108: 0.001115893709 | AG108: 7812.528553 | AH108: -2398.892015 | AJ108: 22100 | AK108: 573.9906164 | AL108: 1 | AM108: 6.19128517 | AN108: 652.2356282 | AO108: -3464.186156 | AQ108: 1.825817053 | AR108: -135.1104619 | AT108: -309851.1604 | AU108: -1059934.28 | AV108: -1.855202152 | AW108: -460428.5622 | AX108: -118447.7309 | AY108: -2.889797128 | BA108: 2.322777912 | BB108: 7.32015375 | BC108: 1.034594976 | BD108: -120.7220743 | BF108: -0.1465804092 | BG108: -115.2980027 | BH108: 64.70199734 | BI108: 64.70199734 | BJ108: 0 | BK108: 0 | BM108: -7.46673416 | BN108: -174.5759283 | BQ108: 24.22211455 | BT108: 954.993 | BU108: 15.3525 | BV108: -261.2661
A109: 37500 | B109: 37.5 | C109: 1.000399639 | D109: 0.02826680294 | F109: 0.02744370037 | G109: 0.06584036342 | H109: -3.075752287 | J109: 15 | M109: 0.04000878413 | N109: -1.570796325 | O109: 9.410907075 | P109: 1.464335656 | Q109: 6.354133488 | R109: 1.412761456 | S109: 0.9996537191 | T109: -0.02631732732 | U109: 0.9815222008 | V109: -0.1925356386 | X109: -0.2939931883 | Y109: -112.3018859 | Z109: 67.69811413 | AC109: 1 | AD109: 9.357626407 | AE109: -0.0002204838776 | AF109: 0.001130973354 | AG109: 7804.951426 | AH109: -2405.773704 | AJ109: 22100 | AK109: 581.7472464 | AL109: 1 | AM109: 6.274951186 | AN109: 637.7814904 | AO109: -3420.300473 | AQ109: 1.777461785 | AR109: -133.3096338 | AT109: -306839.8087 | AU109: -1044751.388 | AV109: -1.856460093 | AW109: -448441.8519 | AX109: -114810.9725 | AY109: -2.890954321 | BA109: 2.352268434 | BB109: 7.429737612 | BC109: 1.034494228 | BD109: -120.7278467 | BF109: -0.2761132988 | BG109: -115.3359033 | BH109: 64.66409673 | BI109: 64.66409673 | BJ109: 0 | BK109: 0 | BM109: -7.70585091 | BN109: -174.6080565 | BQ109: 24.33169841 | BT109: 977.237 | BU109: 15.0807 | BV109: -260.9324
A110: 38000 | B110: 38 | C110: 1.000410365 | D110: 0.02864348888 | F110: 0.02670844749 | G110: 0.06492947614 | H110: -3.076663174 | J110: 15 | M110: 0.03948235276 | N110: -1.570796325 | O110: 9.534978257 | P110: 1.4657261 | Q110: 6.436770364 | R110: 1.414807077 | S110: 0.9996444284 | T110: -0.02666805977 | U110: 0.9810401934 | V110: -0.1950385794 | X110: -0.4231763279 | Y110: -112.2991248 | Z110: 67.70087518 | AC110: 1 | AD110: 9.482394759 | AE110: -0.0002264026448 | AF110: 0.001146052999 | AG110: 7797.287573 | AH110: -2412.913305 | AJ110: 22100 | AK110: 589.5038763 | AL110: 1 | AM110: 6.358617201 | AN110: 623.8757858 | AO110: -3377.483427 | AQ110: 1.73100225 | AR110: -131.556171 | AT110: -303936.5131 | AU110: -1029958.056 | AV110: -1.857747998 | AW110: -436908.7117 | AX110: -111348.0965 | AY110: -2.892050412 | BA110: 2.381744416 | BB110: 7.537903112 | BC110: 1.034302414 | BD110: -120.7388369 | BF110: -0.4037351711 | BG110: -115.3775009 | BH110: 64.62249909 | BI110: 64.62249909 | BJ110: 0 | BK110: 0 | BM110: -7.941638284 | BN110: -174.638664 | BQ110: 24.43986391 | BT110: 1000 | BU110: 14.8838 | BV110: -260.5154
A111: 38500 | B111: 38.5 | C111: 1.000421233 | D111: 0.0290201667 | F111: 0.02600257516 | G111: 0.06404400453 | H111: -3.077548645 | J111: 15 | M111: 0.03896959493 | N111: -1.570796325 | O111: 9.6590674 | P111: 1.46708082 | Q111: 6.519433492 | R111: 1.41680083 | S111: 0.9996350148 | T111: -0.02701878565 | U111: 0.9805525253 | V111: -0.1975390475 | X111: -0.5505242021 | Y111: -112.2997845 | Z111: 67.70021549 | AC111: 1 | AD111: 9.607163111 | AE111: -0.0002323998062 | AF111: 0.001161132643 | AG111: 7789.537548 | AH111: -2420.298002 | AJ111: 22100 | AK111: 597.2605063 | AL111: 1 | AM111: 6.442283217 | AN111: 610.4913387 | AO111: -3335.697599 | AQ111: 1.686340641 | AR111: -129.8482293 | AT111: -301135.5963 | AU111: -1015539.105 | AV111: -1.859064598 | AW111: -425806.7622 | AX111: -108048.5174 | AY111: -2.893087591 | BA111: 2.411204855 | BB111: 7.644682188 | BC111: 1.034022993 | BD111: -120.7548465 | BF111: -0.5295074111 | BG111: -115.4226623 | BH111: 64.57733773 | BI111: 64.57733773 | BJ111: 0 | BK111: 0 | BM111: -8.174189599 | BN111: -174.6678158 | BQ111: 24.54664299 | BT111: 1023.293 | BU111: 14.7437 | BV111: -261.1239
A112: 39000 | B112: 39 | C112: 1.000432243 | D112: 0.02939683628 | F112: 0.02532452738 | G112: 0.06318287936 | H112: -3.078409771 | J112: 15 | M112: 0.03846998474 | N112: -1.570796325 | O112: 9.783173821 | P112: 1.468401172 | Q112: 6.602121886 | R112: 1.41874465 | S112: 0.9996254785 | T112: -0.02736950489 | U112: 0.9800592234 | V112: -0.2000370153 | X112: -0.6760950597 | Y112: -112.3037363 | Z112: 67.69626372 | AC112: 1 | AD112: 9.731931463 | AE112: -0.000238475362 | AF112: 0.001176212288 | AG112: 7781.701909 | AH112: -2427.915614 | AJ112: 22100 | AK112: 605.0171363 | AL112: 1 | AM112: 6.525949233 | AN112: 597.6026226 | AO112: -3294.90724 | AQ112: 1.643385374 | AR112: -128.1840592 | AT112: -298431.7436 | AU112: -1001480.139 | AV112: -1.860408687 | AW112: -415114.975 | AX112: -104902.4206 | AY112: -2.894067942 | BA112: 2.440648778 | BB112: 7.750105733 | BC112: 1.033659255 | BD112: -120.7756871 | BF112: -0.6534885028 | BG112: -115.4712602 | BH112: 64.52873984 | BI112: 64.52873984 | BJ112: 0 | BK112: 0 | BM112: -8.403594236 | BN112: -174.695573 | BQ112: 24.65206653 | BT112: 1047.129 | BU112: 14.5866 | BV112: -260.4077
A113: 39500 | B113: 39.5 | C113: 1.000443394 | D113: 0.02977349752 | F113: 0.02467285051 | G113: 0.06234509144 | H113: -3.079247559 | J113: 15 | M113: 0.03798302291 | N113: -1.570796325 | O113: 9.907296869 | P113: 1.469688442 | Q113: 6.684834608 | R113: 1.420640374 | S113: 0.9996158194 | T113: -0.02772021739 | U113: 0.9795603144 | V113: -0.2025324555 | X113: -0.7999444276 | Y113: -112.3108573 | Z113: 67.6891427 | AC113: 1 | AD113: 9.856699815 | AE113: -0.000244629312 | AF113: 0.001191291933 | AG113: 7773.781219 | AH113: -2435.754554 | AJ113: 22100 | AK113: 612.7737662 | AL113: 1 | AM113: 6.609615249 | AN113: 585.1856421 | AO113: -3255.078177 | AQ113: 1.602050625 | AR113: -126.5619994 | AT113: -295819.9753 | AU113: -987767.4958 | AV113: -1.861779116 | AW113: -404813.5767 | AX113: -101900.6976 | AY113: -2.894993444 | BA113: 2.470075238 | BB113: 7.854203641 | BC113: 1.033214329 | BD113: -120.8011796 | BF113: -0.7757342102 | BG113: -115.5231732 | BH113: 64.4768268 | BI113: 64.4768268 | BJ113: 0 | BK113: 0 | BM113: -8.629937851 | BN113: -174.7219936 | BQ113: 24.75616444 | BT113: 1071.519 | BU113: 14.3581 | BV113: -260.5301
A114: 40000 | B114: 40 | C114: 1.000454688 | D114: 0.0301501503 | F114: 0.02404618521 | G114: 0.0615296875 | H114: -3.080062963 | J114: 15 | M114: 0.03750823512 | N114: -1.570796325 | O114: 10.03143593 | P114: 1.470943854 | Q114: 6.767570767 | R114: 1.422489753 | S114: 0.9996060375 | T114: -0.02807092307 | U114: 0.9790558257 | V114: -0.2050253407 | X114: -0.9221252776 | Y114: -112.3210302 | Z114: 67.67896976 | AC114: 1 | AD114: 9.981468168 | AE114: -0.0002508616563 | AF114: 0.001206371578 | AG114: 7765.776046 | AH114: -2443.803796 | AJ114: 22100 | AK114: 620.5303962 | AL114: 1 | AM114: 6.693281265 | AN114: 573.2178253 | AO114: -3216.177735 | AQ114: 1.562255898 | AR114: -124.9804718 | AT114: -293295.622 | AU114: -974388.201 | AV114: -1.863174792 | AW114: -394883.9611 | AX114: -99034.88718 | AY114: -2.895865981 | BA114: 2.499483317 | BB114: 7.957004846 | BC114: 1.032691189 | BD114: -120.8311533 | BF114: -0.8962977447 | BG114: -115.5782855 | BH114: 64.42171451 | BI114: 64.42171451 | BJ114: 0 | BK114: 0 | BM114: -8.853302591 | BN114: -174.7471322 | BQ114: 24.85896565 | BT114: 1096.478 | BU114: 14.1501 | BV114: -260.5471
A115: 40500 | B115: 40.5 | C115: 1.000466124 | D115: 0.03052679453 | F115: 0.0234432592 | G115: 0.06073576625 | H115: -3.080856884 | J115: 15 | M115: 0.03704517049 | N115: -1.570796325 | O115: 10.15559041 | P115: 1.472168572 | Q115: 6.850329513 | R115: 1.424294453 | S115: 0.9995961329 | T115: -0.02842162184 | U115: 0.9785457846 | V115: -0.2075156441 | X115: -1.042688182 | Y115: -112.334143 | Z115: 67.66585701 | AC115: 1 | AD115: 10.10623652 | AE115: -0.0002571723948 | AF115: 0.001221451222 | AG115: 7757.68696 | AH115: -2452.052836 | AJ115: 22100 | AK115: 628.2870261 | AL115: 1 | AM115: 6.776947281 | AN115: 561.677924 | AO115: -3178.174654 | AQ115: 1.523925632 | AR115: -123.4379762 | AT115: -290854.3017 | AU115: -961329.9247 | AV115: -1.864594674 | AW115: -385308.608 | AX115: -96297.12243 | AY115: -2.896687344 | BA115: 2.528872116 | BB115: 8.058537357 | BC115: 1.03209267 | BD115: -120.8654459 | BF115: -1.01522992 | BG115: -115.6364863 | BH115: 64.36351369 | BI115: 64.36351369 | BJ115: 0 | BK115: 0 | BM115: -9.073767277 | BN115: -174.7710404 | BQ115: 24.96049816 | BT115: 1122.018 | BU115: 13.9679 | BV115: -259.931
A116: 41000 | B116: 41 | C116: 1.000477701 | D116: 0.0309034301 | F116: 0.02286288058 | G116: 0.05996247488 | H116: -3.081630175 | J116: 15 | M116: 0.03659340012 | N116: -1.570796325 | O116: 10.27975976 | P116: 1.473363705 | Q116: 6.933110038 | R116: 1.426056063 | S116: 0.9995861055 | T116: -0.02877231362 | U116: 0.9780302187 | V116: -0.2100033388 | X116: -1.161681455 | Y116: -112.3500883 | Z116: 67.64991167 | AC116: 1 | AD116: 10.23100487 | AE116: -0.0002635615276 | AF116: 0.001236530867 | AG116: 7749.514538 | AH116: -2460.491663 | AJ116: 22100 | AK116: 636.0436561 | AL116: 1 | AM116: 6.860613296 | AN116: 550.5459228 | AO116: -3141.039022 | AQ116: 1.486988848 | AR116: -121.9330855 | AT116: -288491.8987 | AU116: -948580.9424 | AV116: -1.866037769 | AW116: -376071.0089 | AX116: -93680.08226 | AY116: -2.897459241 | BA116: 2.558240765 | BB116: 8.158828299 | BC116: 1.031421471 | BD116: -120.9039027 | BF116: -1.132579295 | BG116: -115.6976699 | BH116: 64.30233013 | BI116: 64.30233013 | BJ116: 0 | BK116: 0 | BM116: -9.291407594 | BN116: -174.7937671 | BQ116: 25.0607891 | BT116: 1148.154 | BU116: 13.7508 | BV116: -259.948
A117: 41500 | B117: 41.5 | C117: 1.000489421 | D117: 0.03128005689 | F117: 0.02230393177 | G117: 0.05920900579 | H117: -3.082383644 | J117: 15 | M117: 0.03615251578 | N117: -1.570796325 | O117: 10.40394344 | P117: 1.47453031 | Q117: 7.01591157 | R117: 1.427776097 | S117: 0.9995759555 | T117: -0.02912299832 | U117: 0.977509156 | V117: -0.2124883981 | X117: -1.279151287 | Y117: -112.3687638 | Z117: 67.63123624 | AC117: 1 | AD117: 10.35577322 | AE117: -0.0002700290547 | AF117: 0.001251610512 | AG117: 7741.259358 | AH117: -2469.110732 | AJ117: 22100 | AK117: 643.800286 | AL117: 1 | AM117: 6.944279312 | AN117: 539.8029543 | AO117: -3104.742202 | AQ117: 1.45137881 | AR117: -120.4644412 | AT117: -286204.5448 | AU117: -936130.0979 | AV117: -1.867503132 | AW117: -367155.5981 | AX117: -91176.94774 | AY117: -2.898183298 | BA117: 2.587588409 | BB117: 8.257903943 | BC117: 1.030680166 | BD117: -120.9463764 | BF117: -1.248392305 | BG117: -115.761735 | BH117: 64.23826501 | BI117: 64.23826501 | BJ117: 0 | BK117: 0 | BM117: -9.506296247 | BN117: -174.8153586 | BQ117: 25.15986474 | BT117: 1174.898 | BU117: 13.6038 | BV117: -260.1987
A118: 42000 | B118: 42 | C118: 1.000501282 | D118: 0.03165667481 | F118: 0.02176536403 | G118: 0.05847459362 | H118: -3.083118056 | J118: 15 | M118: 0.03572212869 | N118: -1.570796325 | O118: 10.52814094 | P118: 1.475669391 | Q118: 7.098733375 | R118: 1.429456001 | S118: 0.9995656827 | T118: -0.02947367586 | U118: 0.9769826245 | V118: -0.2149707955 | X118: -1.395141868 | Y118: -112.3900712 | Z118: 67.60992885 | AC118: 1 | AD118: 10.48054158 | AE118: -0.000276574976 | AF118: 0.001266690156 | AG118: 7732.922006 | AH118: -2477.900931 | AJ118: 22100 | AK118: 651.556916 | AL118: 1 | AM118: 7.027945328 | AN118: 529.4312224 | AO118: -3069.25677 | AQ118: 1.417032733 | AR118: -119.0307496 | AT118: -283988.6017 | AU118: -923966.7697 | AV118: -1.868989858 | AW118: -358547.6895 | AX118: -88781.36217 | AY118: -2.898861067 | BA118: 2.616914219 | BB118: 8.355789739 | BC118: 1.029871209 | BD118: -120.9927262 | BF118: -1.362713388 | BG118: -115.8285849 | BH118: 64.17141507 | BI118: 64.17141507 | BJ118: 0 | BK118: 0 | BM118: -9.718503127 | BN118: -174.8358587 | BQ118: 25.25775054 | BT118: 1202.264 | BU118: 13.4128 | BV118: -259.341
A119: 42500 | B119: 42.5 | C119: 1.000513285 | D119: 0.03203328375 | F119: 0.02124619234 | G119: 0.05775851246 | H119: -3.083834138 | J119: 15 | M119: 0.03530186835 | N119: -1.570796325 | O119: 10.65235179 | P119: 1.47678191 | Q119: 7.181574751 | R119: 1.431097152 | S119: 0.9995552872 | T119: -0.02982434614 | U119: 0.9764506524 | V119: -0.2174505049 | X119: -1.509695501 | Y119: -112.4139166 | Z119: 67.58608341 | AC119: 1 | AD119: 10.60530993 | AE119: -0.0002831992916 | AF119: 0.001281769801 | AG119: 7724.503067 | AH119: -2486.853563 | AJ119: 22100 | AK119: 659.3135459 | AL119: 1 | AM119: 7.111611344 | AN119: 519.4139298 | AO119: -3034.55645 | AQ119: 1.383891503 | AR119: -117.6307777 | AT119: -281840.6446 | AU119: -912080.839 | AV119: -1.870497085 | AW119: -350233.4181 | AX119: -86487.39487 | AY119: -2.899494027 | BA119: 2.646217381 | BB119: 8.452510353 | BC119: 1.028996942 | BD119: -121.042818 | BF119: -1.475585096 | BG119: -115.8981271 | BH119: 64.10187292 | BI119: 64.10187292 | BJ119: 0 | BK119: 0 | BM119: -9.928095449 | BN119: -174.855309 | BQ119: 25.35447115 | BT119: 1230.269 | BU119: 13.1837 | BV119: -259.551
A120: 43000 | B120: 43 | C120: 1.00052543 | D120: 0.03240988359 | F120: 0.02074549084 | G120: 0.05706007331 | H120: -3.084532577 | J120: 15 | M120: 0.03489138151 | N120: -1.570796325 | O120: 10.77657552 | P120: 1.477868782 | Q120: 7.264435028 | R120: 1.432700869 | S120: 0.999544769 | T120: -0.03017500909 | U120: 0.9759132684 | V120: -0.2199275002 | X120: -1.622852706 | Y120: -112.4402101 | Z120: 67.55978987 | AC120: 1 | AD120: 10.73007828 | AE120: -0.0002899020015 | AF120: 0.001296849446 | AG120: 7716.003134 | AH120: -2495.960315 | AJ120: 22100 | AK120: 667.0701759 | AL120: 1 | AM120: 7.19527736 | AN120: 509.7352125 | AO120: -3000.616058 | AQ120: 1.351899419 | AR120: -116.26335 | AT120: -279757.4476 | AU120: -900462.6603 | AV120: -1.872023989 | AW120: -342199.6857 | AX120: -84289.50804 | AY120: -2.900083589 | BA120: 2.6754971 | BB120: 8.54808969 | BC120: 1.0280596 | BD120: -121.0965237 | BF120: -1.587048202 | BG120: -115.9702728 | BH120: 64.02972718 | BI120: 64.02972718 | BJ120: 0 | BK120: 0 | BM120: -10.13513789 | BN120: -174.8737491 | BQ120: 25.45005049 | BT120: 1258.925 | BU120: 13.0792 | BV120: -259.272
A121: 43500 | B121: 43.5 | C121: 1.000537717 | D121: 0.03278647424 | F121: 0.02026238858 | G121: 0.05637862178 | H121: -3.085214028 | J121: 15 | M121: 0.03449033115 | N121: -1.570796325 | O121: 10.90081169 | P121: 1.478930881 | Q121: 7.347313568 | R121: 1.43426841 | S121: 0.9995341281 | T121: -0.03052566461 | U121: 0.975370501 | V121: -0.2224017553 | X121: -1.734652323 | Y121: -112.4688656 | Z121: 67.53113442 | AC121: 1 | AD121: 10.85484663 | AE121: -0.0002966831057 | AF121: 0.001311929091 | AG121: 7707.422801 | AH121: -2505.213244 | AJ121: 22100 | AK121: 674.8268058 | AL121: 1 | AM121: 7.278943375 | AN121: 500.3800784 | AO121: -2967.411451 | AQ121: 1.321003963 | AR121: -114.9273448 | AT121: -277735.9702 | AU121: -889103.0343 | AV121: -1.873569782 | AW121: -334434.1114 | AX121: -82182.52668 | AY121: -2.900631103 | BA121: 2.704752597 | BB121: 8.642550928 | BC121: 1.027061321 | BD121: -121.1537209 | BF121: -1.697141799 | BG121: -116.0449372 | BH121: 63.95506276 | BI121: 63.95506276 | BJ121: 0 | BK121: 0 | BM121: -10.33969273 | BN121: -174.8912163 | BQ121: 25.54451173 | BT121: 1288.25 | BU121: 12.807 | BV121: -258.861
A122: 44000 | B122: 44 | C122: 1.000550146 | D122: 0.03316305559 | F122: 0.0197960656 | G122: 0.05571353586 | H122: -3.085879114 | J122: 15 | M122: 0.03409839557 | N122: -1.570796325 | O122: 11.02505987 | P122: 1.479969042 | Q122: 7.430209758 | R122: 1.435800978 | S122: 0.9995233645 | T122: -0.03087631263 | U122: 0.9748223792 | V122: -0.2248732447 | X122: -1.845131602 | Y122: -112.4998003 | Z122: 67.50019965 | AC122: 1 | AD122: 10.97961498 | AE122: -0.0003035426041 | AF122: 0.001327008735 | AG122: 7698.762667 | AH122: -2514.604749 | AJ122: 22100 | AK122: 682.5834358 | AL122: 1 | AM122: 7.362609391 | AN122: 491.3343508 | AO122: -2934.91947 | AQ122: 1.291155584 | AR122: -113.6216914 | AT122: -275773.3444 | AU122: -877993.182 | AV122: -1.875133709 | AW122: -326924.9849 | AX122: -80161.611 | AY122: -2.901137855 | BA122: 2.73398311 | BB122: 8.735916544 | BC122: 1.026004146 | BD122: -121.2142926 | BF122: -1.805903393 | BG122: -116.122039 | BH122: 63.87796098 | BI122: 63.87796098 | BJ122: 0 | BK122: 0 | BM122: -10.54181994 | BN122: -174.9077464 | BQ122: 25.63787734 | BT122: 1318.257 | BU122: 12.6826 | BV122: -258.683
A123: 44500 | B123: 44.5 | C123: 1.000562717 | D123: 0.03353962752 | F123: 0.01934574943 | G123: 0.05506422397 | H123: -3.086528426 | J123: 15 | M123: 0.03371526753 | N123: -1.570796325 | O123: 11.14931968 | P123: 1.480984063 | Q123: 7.513123015 | R123: 1.437299722 | S123: 0.9995124783 | T123: -0.03122695305 | U123: 0.974268932 | V123: -0.2273419428 | X123: -1.954326288 | Y123: -112.5329352 | Z123: 67.4670648 | AC123: 1 | AD123: 11.10438334 | AE123: -0.0003104804967 | AF123: 0.00134208838 | AG123: 7690.023334 | AH123: -2524.127557 | AJ123: 22100 | AK123: 690.3400657 | AL123: 1 | AM123: 7.446275407 | AN123: 482.5846164 | AO123: -2903.117895 | AQ123: 1.262307498 | AR123: -112.3453673 | AT123: -273866.8635 | AU123: -867124.7213 | AV123: -1.876715051 | AW123: -319661.2239 | AX123: -78222.23127 | AY123: -2.901605078 | BA123: 2.76318789 | BB123: 8.828208339 | BC123: 1.024890027 | BD123: -121.2781269 | BF123: -1.913368987 | BG123: -116.2015002 | BH123: 63.79849981 | BI123: 63.79849981 | BJ123: 0 | BK123: 0 | BM123: -10.74157733 | BN123: -174.9233733 | BQ123: 25.73016914 | BT123: 1348.963 | BU123: 12.4759 | BV123: -258.797
A124: 45000 | B124: 45 | C124: 1.00057543 | D124: 0.03391618995 | F124: 0.01891071178 | G124: 0.05443012306 | H124: -3.087162527 | J124: 15 | M124: 0.03334065344 | N124: -1.570796325 | O124: 11.27359072 | P124: 1.481976708 | Q124: 7.59605278 | R124: 1.438765745 | S124: 0.9995014695 | T124: -0.03157758579 | U124: 0.9737101887 | V124: -0.2298078244 | X124: -2.062270703 | Y124: -112.5681942 | Z124: 67.43180583 | AC124: 1 | AD124: 11.22915169 | AE124: -0.0003174967837 | AF124: 0.001357168025 | AG124: 7681.205406 | AH124: -2533.774705 | AJ124: 22100 | AK124: 698.0966957 | AL124: 1 | AM124: 7.529941423 | AN124: 474.1181763 | AO124: -2871.985399 | AQ124: 1.234415504 | AR124: -111.0973954 | AT124: -272013.9711 | AU124: -856489.6448 | AV124: -1.878313116 | AW124: -312632.3344 | AX124: -76360.14477 | AY124: -2.902033948 | BA124: 2.792366205 | BB124: 8.919447466 | BC124: 1.023720832 | BD124: -121.3451169 | BF124: -2.019573162 | BG124: -116.283246 | BH124: 63.71675401 | BI124: 63.71675401 | BJ124: 0 | BK124: 0 | BM124: -10.93902063 | BN124: -174.9381291 | BQ124: 25.82140827 | BT124: 1380.384 | BU124: 12.2584 | BV124: -258.41
A125: 45500 | B125: 45.5 | C125: 1.000588284 | D125: 0.03429274275 | F125: 0.0184902655 | G125: 0.05381069693 | H125: -3.087781953 | J125: 15 | M125: 0.03297427264 | N125: -1.570796325 | O125: 11.39787262 | P125: 1.482947706 | Q125: 7.678998517 | R125: 1.4402001 | S125: 0.999490338 | T125: -0.03192821076 | U125: 0.9731461789 | V125: -0.2322708642 | X125: -2.16899782 | Y125: -112.6055043 | Z125: 67.39449569 | AC125: 1 | AD125: 11.35392004 | AE125: -0.0003245914649 | AF125: 0.00137224767 | AG125: 7672.309493 | AH125: -2543.539519 | AJ125: 22100 | AK125: 705.8533256 | AL125: 1 | AM125: 7.613607439 | AN125: 465.9230016 | AO125: -2841.501505 | AQ125: 1.207437817 | AR125: -109.8768413 | AT125: -270212.2516 | AU125: -846080.2987 | AV125: -1.879927243 | AW125: -305828.3739 | AX125: -74571.3747 | AY125: -2.902425592 | BA125: 2.821517334 | BB125: 9.009654453 | BC125: 1.022498349 | BD125: -121.41516 | BF125: -2.124549151 | BG125: -116.3672047 | BH125: 63.6327953 | BI125: 63.6327953 | BJ125: 0 | BK125: 0 | BM125: -11.1342036 | BN125: -174.9520447 | BQ125: 25.91161525 | BT125: 1412.538 | BU125: 12.0929 | BV125: -258.136
A126: 46000 | B126: 46 | C126: 1.000601281 | D126: 0.03466928582 | F126: 0.01808376187 | G126: 0.0532054346 | H126: -3.088387215 | J126: 15 | M126: 0.03261585663 | N126: -1.570796325 | O126: 11.52216504 | P126: 1.483897756 | Q126: 7.761959716 | R126: 1.441603797 | S126: 0.9994790839 | T126: -0.03227882788 | U126: 0.9725769322 | V126: -0.2347310374 | X126: -2.274539332 | Y126: -112.6447956 | Z126: 67.35520439 | AC126: 1 | AD126: 11.47868839 | AE126: -0.0003317645404 | AF126: 0.001387327314 | AG126: 7663.336207 | AH126: -2553.415606 | AJ126: 22100 | AK126: 713.6099556 | AL126: 1 | AM126: 7.697273454 | AN126: 457.9876915 | AO126: -2811.646544 | AQ126: 1.181334908 | AR126: -108.6828116 | AT126: -268459.4206 | AU126: -835889.364 | AV126: -1.881556797 | AW126: -299239.9171 | AX126: -72852.19085 | AY126: -2.902781089 | BA126: 2.850640567 | BB126: 9.098849226 | BC126: 1.021224291 | BD126: -121.4881581 | BF126: -2.228328911 | BG126: -116.4533075 | BH126: 63.5466925 | BI126: 63.5466925 | BJ126: 0 | BK126: 0 | BM126: -11.32717814 | BN126: -174.9651494 | BQ126: 26.00081003 | BT126: 1445.44 | BU126: 11.9189 | BV126: -257.929
A127: 46500 | B127: 46.5 | C127: 1.000614419 | D127: 0.03504581905 | F127: 0.017690588 | G127: 0.05261384884 | H127: -3.088978801 | J127: 15 | M127: 0.03226514849 | N127: -1.570796325 | O127: 11.64646764 | P127: 1.484827528 | Q127: 7.844935885 | R127: 1.442977802 | S127: 0.9994677071 | T127: -0.03262943706 | U127: 0.9720024784 | V127: -0.2371883193 | X127: -2.37892572 | Y127: -112.6860008 | Z127: 67.31399917 | AC127: 1 | AD127: 11.60345674 | AE127: -0.0003390160101 | AF127: 0.001402406959 | AG127: 7654.286161 | AH127: -2563.396831 | AJ127: 22100 | AK127: 721.3665855 | AL127: 1 | AM127: 7.78093947 | AN127: 450.3014342 | AO127: -2782.401617 | AQ127: 1.156069364 | AR127: -107.5144509 | AT127: -266753.3169 | AU127: -825909.838 | AV127: -1.883201171 | AW127: -292858.0241 | AX127: -71199.09183 | AY127: -2.903101469 | BA127: 2.87973521 | BB127: 9.18705113 | BC127: 1.019900298 | BD127: -121.5640173 | BF127: -2.330943186 | BG127: -116.5414883 | BH127: 63.45851168 | BI127: 63.45851168 | BJ127: 0 | BK127: 0 | BM127: -11.51799432 | BN127: -174.977471 | BQ127: 26.08901193 | BT127: 1479.108 | BU127: 11.7147 | BV127: -257.745
A128: 47000 | B128: 47 | C128: 1.000627699 | D128: 0.03542234235 | F128: 0.01731016445 | G128: 0.05203547479 | H128: -3.089557175 | J128: 15 | M128: 0.03192190223 | N128: -1.570796325 | O128: 11.77078009 | P128: 1.485737661 | Q128: 7.927926554 | R128: 1.444323044 | S128: 0.9994562078 | T128: -0.03298003822 | U128: 0.9714228475 | V128: -0.2396426853 | X128: -2.48218631 | Y128: -112.7290554 | Z128: 67.27094464 | AC128: 1 | AD128: 11.7282251 | AE128: -0.0003463458742 | AF128: 0.001417486604 | AG128: 7645.159975 | AH128: -2573.477312 | AJ128: 22100 | AK128: 729.1232155 | AL128: 1 | AM128: 7.864605486 | AN128: 442.8539717 | AO128: -2753.74856 | AQ128: 1.131605749 | AR128: -106.3709404 | AT128: -265091.8947 | AU128: -816135.0175 | AV128: -1.884859781 | AW128: -286674.2113 | AX128: -69608.78878 | AY128: -2.903387724 | BA128: 2.908800577 | BB128: 9.274278955 | BC128: 1.018527943 | BD128: -121.6426475 | BF128: -2.432421571 | BG128: -116.6316837 | BH128: 63.36831632 | BI128: 63.36831632 | BJ128: 0 | BK128: 0 | BM128: -11.70670053 | BN128: -174.9890362 | BQ128: 26.17623975 | BT128: 1513.561 | BU128: 11.5252 | BV128: -257.61
A129: 47500 | B129: 47.5 | C129: 1.000641121 | D129: 0.0357988556 | F129: 0.01694194311 | G129: 0.05146986868 | H129: -3.090122781 | J129: 15 | M129: 0.03158588221 | N129: -1.570796325 | O129: 11.89510209 | P129: 1.486628771 | Q129: 8.010931273 | R129: 1.44564041 | S129: 0.9994445859 | T129: -0.03333063127 | U129: 0.9708380697 | V129: -0.2420941111 | X129: -2.584349336 | Y129: -112.7738971 | Z129: 67.22610292 | AC129: 1 | AD129: 11.85299345 | AE129: -0.0003537541324 | AF129: 0.001432566248 | AG129: 7635.958268 | AH129: -2583.6514 | AJ129: 22100 | AK129: 736.8798454 | AL129: 1 | AM129: 7.948271502 | AN129: 435.6355656 | AO129: -2725.669906 | AQ129: 1.107910481 | AR129: -105.2514957 | AT129: -263473.2159 | AU129: -806558.4832 | AV129: -1.886532067 | AW129: -280680.4234 | AX129: -68078.19039 | AY129: -2.9036408 | BA129: 2.937835994 | BB129: 9.360550948 | BC129: 1.017108733 | BD129: -121.7239622 | BF129: -2.532792565 | BG129: -116.7238326 | BH129: 63.27616737 | BI129: 63.27616737 | BJ129: 0 | BK129: 0 | BM129: -11.89334351 | BN129: -174.9998704 | BQ129: 26.26251175 | BT129: 1548.817 | BU129: 11.3354 | BV129: -257.471
A130: 48000 | B130: 48 | C130: 1.000654685 | D130: 0.03617535869 | F130: 0.01658540512 | G130: 0.05091660664 | H130: -3.090676043 | J130: 15 | M130: 0.0312568626 | N130: -1.570796325 | O130: 12.01943334 | P130: 1.487501445 | Q130: 8.09394961 | R130: 1.446930755 | S130: 0.9994328415 | T130: -0.03368121612 | U130: 0.9702481754 | V130: -0.2445425725 | X130: -2.685441989 | Y130: -112.8204663 | Z130: 67.17953371 | AC130: 1 | AD130: 11.9777618 | AE130: -0.000361240785 | AF130: 0.001447645893 | AG130: 7626.681665 | AH130: -2593.91367 | AJ130: 22100 | AK130: 744.6364754 | AL130: 1 | AM130: 8.031937518 | AN130: 428.6369665 | AO130: -2698.148857 | AQ130: 1.08495172 | AR130: -104.1553651 | AT130: -261895.4439 | AU130: -797174.0843 | AV130: -1.888217491 | AW130: -274869.0082 | AX130: -66604.38911 | AY130: -2.903861607 | BA130: 2.966840795 | BB130: 9.44588484 | BC130: 1.015644116 | BD130: -121.8078786 | BF130: -2.632083631 | BG130: -116.8178765 | BH130: 63.18212346 | BI130: 63.18212346 | BJ130: 0 | BK130: 0 | BM130: -12.07796847 | BN130: -175.009998 | BQ130: 26.34784564 | BT130: 1584.893 | BU130: 11.1604 | BV130: -256.942
A131: 48500 | B131: 48.5 | C131: 1.000668391 | D131: 0.03655185152 | F131: 0.01624005905 | G131: 0.05037528356 | H131: -3.091217366 | J131: 15 | M131: 0.03093462691 | N131: -1.570796325 | O131: 12.14377355 | P131: 1.48835625 | Q131: 8.176981149 | R131: 1.448194896 | S131: 0.9994209744 | T131: -0.03403179268 | U131: 0.9696531951 | V131: -0.2469880457 | X131: -2.785490472 | Y131: -112.8687056 | Z131: 67.13129445 | AC131: 1 | AD131: 12.10253015 | AE131: -0.0003688058318 | AF131: 0.001462725538 | AG131: 7617.330791 | AH131: -2604.258913 | AJ131: 22100 | AK131: 752.3931053 | AL131: 1 | AM131: 8.115603533 | AN131: 421.8493847 | AO131: -2671.169251 | AQ131: 1.062699256 | AR131: -103.0818278 | AT131: -260356.8371 | AU131: -787975.9253 | AV131: -1.889915536 | AW131: -269232.6926 | AX131: -65184.64842 | AY131: -2.904051017 | BA131: 2.995814325 | BB131: 9.530297863 | BC131: 1.01413548 | BD131: -121.8943171 | BF131: -2.730321242 | BG131: -116.9137591 | BH131: 63.08624092 | BI131: 63.08624092 | BJ131: 0 | BK131: 0 | BM131: -12.26061911 | BN131: -175.019442 | BQ131: 26.43225866 | BT131: 1621.81 | BU131: 10.9787 | BV131: -256.753
A132: 49000 | B132: 49 | C132: 1.000682239 | D132: 0.03692833399 | F132: 0.01590543916 | G132: 0.04984551209 | H132: -3.091747138 | J132: 15 | M132: 0.03061896745 | N132: -1.570796325 | O132: 12.26812246 | P132: 1.489193727 | Q132: 8.260025493 | R132: 1.449433621 | S132: 0.9994089849 | T132: -0.03438236088 | U132: 0.9690531594 | V132: -0.2494305068 | X132: -2.884520043 | Y132: -112.9185596 | Z132: 67.08144042 | AC132: 1 | AD132: 12.22729851 | AE132: -0.0003764492729 | AF132: 0.001477805183 | AG132: 7607.906276 | AH132: -2614.682119 | AJ132: 22100 | AK132: 760.1497353 | AL132: 1 | AM132: 8.199269549 | AN132: 415.2644632 | AO132: -2644.715533 | AQ132: 1.041124414 | AR132: -102.0301926 | AT132: -258855.7432 | AU132: -778958.3521 | AV132: -1.891625706 | AW132: -263764.5606 | AX132: -63816.3912 | AY132: -2.904209866 | BA132: 3.02475594 | BB132: 9.613806766 | BC132: 1.012584159 | BD132: -121.9832012 | BF132: -2.827530929 | BG132: -117.011426 | BH132: 62.98857397 | BI132: 62.98857397 | BJ132: 0 | BK132: 0 | BM132: -12.44133769 | BN132: -175.0282248 | BQ132: 26.51576757 | BT132: 1659.587 | BU132: 10.7578 | BV132: -256.857
A133: 49500 | B133: 49.5 | C133: 1.000696228 | D133: 0.03730480598 | F133: 0.01558110378 | G133: 0.04932692165 | H133: -3.092265728 | J133: 15 | M133: 0.03030968495 | N133: -1.570796325 | O133: 12.3924798 | P133: 1.490014396 | Q133: 8.343082259 | R133: 1.450647684 | S133: 0.9993968727 | T133: -0.03473292063 | U133: 0.9684480993 | V133: -0.2518699325 | X133: -2.982555065 | Y133: -112.9699752 | Z133: 67.03002483 | AC133: 1 | AD133: 12.35206686 | AE133: -0.0003841711083 | AF133: 0.001492884827 | AG133: 7598.40875 | AH133: -2625.178473 | AJ133: 22100 | AK133: 767.9063652 | AL133: 1 | AM133: 8.282935565 | AN133: 408.8742529 | AO133: -2618.772726 | AQ133: 1.020199959 | AR133: -100.999796 | AT133: -257390.5938 | AU133: -770115.9403 | AV133: -1.893347524 | AW133: -258458.0324 | AX133: -62497.18886 | AY133: -2.904338958 | BA133: 3.053665001 | BB133: 9.69642783 | BC133: 1.010991434 | BD133: -122.0744576 | BF133: -2.923737329 | BG133: -117.1108252 | BH133: 62.88917475 | BI133: 62.88917475 | BJ133: 0 | BK133: 0 | BM133: -12.62016516 | BN133: -175.0363676 | BQ133: 26.59838863 | BT133: 1698.244 | BU133: 10.5805 | BV133: -256.313
A134: 50000 | B134: 50 | C134: 1.000710359 | D134: 0.0376812674 | F134: 0.01526663385 | G134: 0.04881915751 | H134: -3.092773492 | J134: 15 | M134: 0.0300065881 | N134: -1.570796325 | O134: 12.51684532 | P134: 1.490818757 | Q134: 8.426151079 | R134: 1.451837812 | S134: 0.9993846381 | T134: -0.03508347183 | U134: 0.9678380457 | V134: -0.2543062993 | X134: -3.079619042 | Y134: -113.0229011 | Z134: 66.9770989 | AC134: 1 | AD134: 12.47683521 | AE134: -0.0003919713379 | AF134: 0.001507964472 | AG134: 7588.838847 | AH134: -2635.743341 | AJ134: 22100 | AK134: 775.6629952 | AL134: 1 | AM134: 8.366601581 | AN134: 402.6711884 | AO134: -2593.326406 | AQ134: 0.99990001 | AR134: -99.990001 | AT134: -255959.8993 | AU134: -761443.4837 | AV134: -1.895080529 | AW134: -253306.8452 | AX134: -61224.75142 | AY134: -2.904439065 | BA134: 3.082540878 | BB134: 9.778176892 | BC134: 1.009358536 | BD134: -122.1680158 | BF134: -3.018964222 | BG134: -117.2119065 | BH134: 62.78809348 | BI134: 62.78809348 | BJ134: 0 | BK134: 0 | BM134: -12.79714111 | BN134: -175.0438907 | BQ134: 26.68013769 | BT134: 1737.801 | BU134: 10.4643 | BV134: -256.379
A135: 50500 | B135: 50.5 | C135: 1.000724632 | D135: 0.03805771813 | F135: 0.01496163152 | G135: 0.04832187996 | H135: -3.09327077 | J135: 15 | M135: 0.02970949317 | N135: -1.570796325 | O135: 12.64121878 | P135: 1.491607292 | Q135: 8.509231602 | R135: 1.453004701 | S135: 0.999372281 | T135: -0.03543401441 | U135: 0.9672230297 | V135: -0.2567395841 | X135: -3.175734665 | Y135: -113.077288 | Z135: 66.92271199 | AC135: 1 | AD135: 12.60160356 | AE135: -0.0003998499618 | AF135: 0.001523044117 | AG135: 7579.197204 | AH135: -2646.372267 | AJ135: 22100 | AK135: 783.4196251 | AL135: 1 | AM135: 8.450267597 | AN135: 396.6480667 | AO135: -2568.36268 | AQ135: 0.9801999608 | AR135: -99.00019604 | AT135: -254562.2445 | AU135: -752935.9831 | AV135: -1.896824279 | AW135: -248305.0351 | AX135: -59996.9183 | AY135: -2.904510928 | BA135: 3.111382951 | BB135: 9.859069352 | BC135: 1.007686648 | BD135: -122.2638079 | BF135: -3.113234576 | BG135: -117.3146215 | BH135: 62.68537851 | BI135: 62.68537851 | BJ135: 0 | BK135: 0 | BM135: -12.97230393 | BN135: -175.0508136 | BQ135: 26.76103015 | BT135: 1778.279 | BU135: 10.2137 | BV135: -256.015
A136: 51000 | B136: 51 | C136: 1.000739047 | D136: 0.03843415807 | F136: 0.0146657189 | G136: 0.04783476351 | H136: -3.093757886 | J136: 15 | M136: 0.02941822363 | N136: -1.570796325 | O136: 12.76559995 | P136: 1.492380461 | Q136: 8.592323487 | R136: 1.454149023 | S136: 0.9993598014 | T136: -0.03578454828 | U136: 0.9666030826 | V136: -0.2591697641 | X136: -3.270923845 | Y136: -113.1330884 | Z136: 66.86691165 | AC136: 1 | AD136: 12.72637191 | AE136: -0.0004078069799 | AF136: 0.001538123761 | AG136: 7569.484459 | AH136: -2657.060959 | AJ136: 22100 | AK136: 791.1762551 | AL136: 1 | AM136: 8.533933613 | AN136: 390.7980263 | AO136: -2543.868157 | AQ136: 0.9610764056 | AR136: -98.02979337 | AT136: -253196.2839 | AU136: -744588.636 | AV136: -1.89857835 | AW136: -243446.9202 | AX136: -58811.64979 | AY136: -2.904555259 | BA136: 3.140190604 | BB136: 9.939120194 | BC136: 1.00597691 | BD136: -122.3617687 | BF136: -3.20657058 | BG136: -117.4189236 | BH136: 62.58107639 | BI136: 62.58107639 | BJ136: 0 | BK136: 0 | BM136: -13.14569077 | BN136: -175.0571549 | BQ136: 26.84108099 | BT136: 1819.701 | BU136: 10.0452 | BV136: -255.833
A137: 51500 | B137: 51.5 | C137: =SQRT((A137/Fesr)^2+1) -> 1.000753604 | D137: =ATAN(A137/Fesr) -> 0.03881058711 | F137: =(Ro/(Ro+Rdcr))/SQRT((A137/(Q*Fo))^2+(1-(A137^2/Fo^2))^2) -> 0.01437853683 | G137: =-ATAN(A137*Fo/(Q*(Fo^2-A137^2))) -> 0.04735749615 | H137: =IF(G137>0,G137-Pi,G137) -> -3.094235154 | J137: =Vin/Vramp -> 15 | M137: =1/(2*Pi*_Rfb1*(Cc1ea_u+Cc2ea_u)*A137) -> 0.0291326098 | N137: =-Pi/2 -> -1.570796325 | O137: =SQRT(1+(A137/Fz1_u)^2) -> 12.8899886 | P137: =ATAN2(Fz1_u,A137) -> 1.493138708 | Q137: =SQRT(1+(A137/Fz2_u)^2) -> 8.675426408 | R137: =ATAN2(Fz2_u,A137) -> 1.455271423 | S137: =1/SQRT(1+(A137/Fp1_u)^2) -> 0.9993471993 | T137: =-ATAN2(Fp1_u,A137) -> -0.03613507335 | U137: =1/SQRT(1+(A137/Fp2_u)^2) -> 0.9659782358 | V137: =-ATAN2(Fp2_u,A137) -> -0.2615968164 | X137: -3.365207748 | Y137: =(180/Pi)*(D137+H137+N137+P137+R137+T137+V137) -> -113.1902563 | Z137: 66.80974372 | AC137: 1 | AD137: =Rcea1_u*Cc1ea_u*A137*2*Pi -> 12.85114027 | AE137: =-Rcea1_u*Cc1ea_u*Cc2ea_u*(A137*2*Pi)^2 -> -0.0004158423924 | AF137: =(Cc2ea_u+Cc1ea_u)*A137*2*Pi -> 0.001553203406 | AG137: 7559.701252 | AH137: -2667.805284 | AJ137: =_Rfb1 -> 22100 | AK137: =_Rfb1*Rcea2_u*Cc3ea_u*A137*2*Pi -> 798.9328851 | AL137: 1 | AM137: =(_Rfb1+Rcea2_u)*Cc3ea_u*A137*2*Pi -> 8.617599628 | AN137: 385.1145282 | AO137: -2519.82993 | AQ137: =Eadcg/(1+(Eadcg*A137/GBP)^2) -> 0.9425070688 | AR137: =-(A137*Eadcg*Eadcg/GBP)/(1+(Eadcg*A137/GBP)^2) -> -97.07822809 | AT137: -251860.738 | AU137: -736396.8277 | AV137: -1.90034233 | AW137: -238727.085 | AX137: -57667.01919 | AY137: -2.904572744 | BA137: =SQRT(AT137^2+AU137^2)/SQRT(AW137^2+AX137^2) -> 3.16896323 | BB137: 10.018344 | BC137: 1.004230415 | BD137: =BC137*180/Pi-180 -> -122.4618355 | BF137: =20*LOG(BA137*J137*F137*C137) -> -3.298993681 | BG137: =(180/Pi)*(D137+H137+BC137) -> -117.524768 | BH137: 62.475232 | BI137: 62.475232 | BJ137: =SUM((BF138<0)*(BF137>0))*A137 -> 0 | BK137: 0 | BM137: -13.31733768 | BN137: =(H137+D137)*180/Pi -> -175.0629325 | BQ137: 26.9203048 | BT137: 1862.087 | BU137: 9.87672 | BV137: -255.47
A138: 52000 | B138: =A138/1000 -> 52 | C138: 1.000768302 | D138: 0.03918700514 | F138: 0.01409974378 | G138: 0.04688977866 | H138: -3.094702871 | J138: 15 | M138: 0.02885248856 | N138: -1.570796325 | O138: 13.01438452 | P138: 1.49388246 | Q138: 8.75854005 | R138: 1.456372523 | S138: 0.9993344747 | T138: -0.03648558953 | U138: 0.9653485209 | V138: -0.2640207187 | X138: =20*LOG(C138*J138*O138*Q138*F138*M138*S138*U138) -> -3.458606832 | Y138: -113.2487476 | Z138: =Y138+180 -> 66.75125241 | AC138: 1 | AD138: 12.97590862 | AE138: -0.0004239561991 | AF138: 0.001568283051 | AG138: =AC138*AE138/(AE138^2+AF138^2)+AD138*AF138/(AE138^2+AF138^2) -> 7549.848225 | AH138: =AD138*AE138/(AE138^2+AF138^2)-AC138*AF138/(AE138^2+AF138^2) -> -2678.601261 | AJ138: 22100 | AK138: 806.689515 | AL138: 1 | AM138: 8.701265644 | AN138: =AJ138*AL138/(AL138^2+AM138^2)+AK138*AM138/(AL138^2+AM138^2) -> 379.591338 | AO138: =AK138*AL138/(AL138^2+AM138^2)-AJ138*AM138/(AL138^2+AM138^2) -> -2496.235554 | AQ138: 0.9244707405 | AR138: -96.14495701 | AT138: -250554.3893 | AU138: -728356.1216 | AV138: =ATAN2(AT138,AU138) -> -1.902115824 | AW138: =AG138-AH138*AO138/_Rfb2+AG138*AN138/_Rfb2+AN138-AO138*AR138+AQ138*AN138 -> -234140.3653 | AX138: =AH138+AH138*AN138/_Rfb2+AG138*AO138/_Rfb2+AO138+AO138*AQ138+AN138*AR138 -> -56561.2055 | AY138: -2.904564043 | BA138: 3.197700228 | BB138: =20*LOG(BA138) -> 10.09675496 | BC138: =AV138-AY138 -> 1.002448219 | BD138: -122.5639478 | BF138: -3.390524618 | BG138: -117.6321114 | BH138: =IF(BG138>180,BG138-180,BG138+180) -> 62.3678886 | BI138: =IF(BH138>180,BH138-360,BH138) -> 62.3678886 | BJ138: 0 | BK138: =IF(BJ138>0,BI138,0) -> 0 | BM138: =20*LOG(J138*F138*C138) -> -13.48727958 | BN138: -175.0681636 | BQ138: =20*LOG(BA138*7) -> 26.99871576 | BT138: 1905.461 | BU138: 9.71342 | BV138: -255.059
A139: 52500 | B139: 52.5 | C139: 1.000783143 | D139: 0.03956341207 | F139: 0.01382901484 | G139: 0.04643132394 | H139: -3.095161326 | J139: 15 | M139: 0.02857770295 | N139: -1.570796325 | O139: 13.1387875 | P139: 1.494612128 | Q139: 8.841664112 | R139: 1.45745292 | S139: 0.9993216277 | T139: -0.03683609675 | U139: 0.9647139697 | V139: -0.2664414486 | X139: -3.551140877 | Y139: -113.3085197 | Z139: 66.69148035 | AC139: 1 | AD139: 13.10067697 | AE139: -0.0004321484 | AF139: 0.001583362696 | AG139: 7539.926024 | AH139: -2689.445052 | AJ139: 22100 | AK139: 814.446145 | AL139: 1 | AM139: 8.78493166 | AN139: 374.222509 | AO139: -2473.073022 | AQ139: 0.9069472157 | AR139: -95.22945765 | AT139: -249276.0788 | AU139: -720462.2506 | AV139: -1.903898452 | AW139: -229681.8348 | AX139: -55492.48669 | AY139: =ATAN2(AW139,AX139) -> -2.904529788 | BA139: 3.226401004 | BB139: 10.17436688 | BC139: 1.000631336 | BD139: -122.6680475 | BF139: -3.481183453 | BG139: -117.7409121 | BH139: 62.2590879 | BI139: 62.2590879 | BJ139: 0 | BK139: 0 | BM139: -13.65555033 | BN139: -175.0728646 | BQ139: 27.07632768 | BT139: 1949.845 | BU139: 9.52685 | BV139: -254.971
A140: 53000 | B140: 53 | C140: 1.000798125 | D140: 0.03993980778 | F140: 0.01356604074 | G140: 0.04598185638 | H140: -3.095610794 | J140: 15 | M140: 0.02830810198 | N140: -1.570796325 | O140: 13.26319735 | P140: 1.495328108 | Q140: 8.924798302 | R140: 1.45851319 | S140: 0.9993086583 | T140: -0.03718659491 | U140: 0.9640746138 | V140: -0.2688589839 | X140: -3.642829011 | Y140: -113.3695313 | Z140: 66.63046867 | AC140: 1 | AD140: 13.22544532 | AE140: -0.0004404189953 | AF140: 0.00159844234 | AG140: 7529.935293 | AH140: -2700.33296 | AJ140: 22100 | AK140: 822.2027749 | AL140: 1 | AM140: 8.868597676 | AN140: 369.0023664 | AO140: -2450.330754 | AQ140: 0.8899172377 | AR140: -94.3312272 | AT140: -248024.7027 | AU140: -712711.1098 | AV140: -1.905689847 | AW140: -225346.7919 | AX140: -54459.23339 | AY140: -2.904470592 | BA140: 3.255064969 | BB140: 10.25119322 | BC140: 0.9987807449 | BD140: -122.7740786 | BF140: -3.570989599 | BG140: -117.8511299 | BH140: 62.14887014 | BI140: 62.14887014 | BJ140: 0 | BK140: 0 | BM140: -13.82218282 | BN140: -175.0770513 | BQ140: 27.15315402 | BT140: 1995.262 | BU140: 9.33494 | BV140: -254.804
A141: 53500 | B141: 53.5 | C141: 1.000813248 | D141: 0.04031619216 | F141: 0.01331052694 | G141: 0.04554111134 | H141: -3.096051539 | J141: 15 | M141: 0.02804354028 | N141: -1.570796325 | O141: 13.38761387 | P141: 1.496030781 | Q141: 9.00794234 | R141: 1.459553889 | S141: 0.9992955664 | T141: -0.03753708393 | U141: 0.9634304852 | V141: -0.271273303 | X141: -3.733689744 | Y141: -113.4317429 | Z141: 66.56825709 | AC141: 1 | AD141: 13.35021367 | AE141: -0.0004487679848 | AF141: 0.001613521985 | AG141: 7519.876682 | AH141: -2711.261417 | AJ141: 22100 | AK141: 829.9594049 | AL141: 1 | AM141: 8.952263692 | AN141: 363.9254929 | AO141: -2427.997572 | AQ141: 0.8733624454 | AR141: -93.44978166 | AT141: -246799.2096 | AU141: -705098.748 | AV141: -1.907489653 | AW141: -221130.7476 | AX141: -53459.90311 | AY141: -2.904387041 | BA141: 3.28369154 | BB141: 10.32724708 | BC141: 0.9968973877 | BD141: -122.881987 | BF141: -3.65996185 | BG141: -117.9627259 | BH141: 62.03727413 | BI141: 62.03727413 | BJ141: 0 | BK141: 0 | BM141: -13.98720893 | BN141: -175.0807389 | BQ141: 27.22920788 | BT141: 2041.738 | BU141: 9.08847 | BV141: -254.411
A142: 54000 | B142: 54 | C142: 1.000828514 | D142: 0.04069256512 | F142: 0.0130621928 | G142: 0.04510883457 | H142: -3.096483815 | J142: 15 | M142: 0.02778387787 | N142: -1.570796325 | O142: 13.51203688 | P142: 1.496720513 | Q142: 9.091095956 | R142: 1.460575552 | S142: 0.9992823521 | T142: -0.03788756373 | U142: 0.9627816161 | V142: -0.2736843839 | X142: -3.823740989 | Y142: -113.4951161 | Z142: 66.50488393 | AC142: 1 | AD142: 13.47498203 | AE142: -0.0004571953685 | AF142: 0.00162860163 | AG142: 7509.75084 | AH142: -2722.226984 | AJ142: 22100 | AK142: 837.7160348 | AL142: 1 | AM142: 9.035929707 | AN142: 358.9867146 | AO142: -2406.062684 | AQ142: 0.8572653236 | AR142: -92.58465495 | AT142: -245598.597 | AU142: -697621.3611 | AV142: -1.90929753 | AW142: -217029.414 | AX142: -52493.03484 | AY142: -2.904279702 | BA142: 3.31228014 | BB142: 10.40254121 | BC142: 0.9949821729 | BD142: -122.9917207 | BF142: -3.748118406 | BG142: -118.0756627 | BH142: 61.92433735 | BI142: 61.92433735 | BJ142: 0 | BK142: 0 | BM142: -14.15065962 | BN142: -175.0839419 | BQ142: 27.30450201 | BT142: 2089.296 | BU142: 8.96986 | BV142: -254.113
A143: 54500 | B143: 54.5 | C143: 1.000843921 | D143: 0.04106892655 | F143: 0.01282077084 | G143: 0.04468478168 | H143: -3.096907868 | J143: 15 | M143: 0.02752897991 | N143: -1.570796325 | O143: 13.6364662 | P143: 1.497397659 | Q143: 9.174258889 | R143: 1.461578693 | S143: 0.9992690154 | T143: -0.03823803421 | U143: 0.9621280386 | V143: -0.2760922054 | X143: -3.913000092 | Y143: -113.5596138 | Z143: 66.44038623 | AC143: 1 | AD143: 13.59975038 | AE143: -0.0004657011466 | AF143: 0.001643681274 | AG143: 7499.558418 | AH143: -2733.22634 | AJ143: 22100 | AK143: 845.4726648 | AL143: 1 | AM143: 9.119595723 | AN143: 354.181088 | AO143: -2384.515671 | AQ143: 0.8416091567 | AR143: -91.73539808 | AT143: -244421.9093 | AU143: -690275.2852 | AV143: -1.911113146 | AW143: -213038.694 | AX143: -51557.24398 | AY143: -2.904149122 | BA143: 3.340830197 | BB143: 10.47708805 | BC143: 0.9930359764 | BD143: -123.1032296 | BF143: -3.8354769 | BG143: -118.189904 | BH143: 61.81009598 | BI143: 61.81009598 | BJ143: 0 | BK143: 0 | BM143: -14.31256495 | BN143: -175.0866744 | BQ143: 27.37904885 | BT143: 2137.962 | BU143: 8.68736 | BV143: -254.34
A144: 55000 | B144: 55 | C144: 1.000859471 | D144: 0.04144527633 | F144: 0.01258600592 | G144: 0.04426871771 | H144: -3.097323932 | J144: 15 | M144: 0.02727871645 | N144: -1.570796325 | O144: 13.76090166 | P144: 1.498062558 | Q144: 9.257430887 | R144: 1.462563809 | S144: 0.9992555564 | T144: -0.0385884953 | U144: 0.961469785 | V144: -0.2784967461 | X144: -4.001483853 | Y144: -113.6252003 | Z144: 66.37479974 | AC144: 1 | AD144: 13.72451873 | AE144: -0.0004742853189 | AF144: 0.001658760919 | AG144: 7489.300068 | AH144: -2744.256281 | AJ144: 22100 | AK144: 853.2292947 | AL144: 1 | AM144: 9.203261739 | AN144: 349.5038881 | AO144: -2363.346467 | AQ144: 0.8263779853 | AR144: -90.90157838 | AT144: -243268.2347 | AU144: -683056.9902 | AV144: -1.912936183 | AW144: -209154.6709 | AX144: -50651.21773 | AY144: -2.903995827 | BA144: 3.369341144 | BB144: 10.55089971 | BC144: 0.9910596431 | BD144: -123.2164651 | BF144: -3.922054421 | BG144: -118.305415 | BH144: 61.69458497 | BI144: 61.69458497 | BJ144: 0 | BK144: 0 | BM144: -14.47295413 | BN144: -175.0889499 | BQ144: 27.45286051 | BT144: 2187.762 | BU144: 8.53088 | BV144: -253.785
A145: 55500 | B145: 55.5 | C145: 1.000875161 | D145: 0.04182161436 | F145: 0.01235765463 | G145: 0.04386041665 | H145: -3.097732233 | J145: 15 | M145: 0.02703296225 | N145: -1.570796325 | O145: 13.88534309 | P145: 1.498715539 | Q145: 9.34061171 | R145: 1.463531381 | S145: 0.999241975 | T145: -0.0389389469 | U145: 0.9608068876 | V145: -0.280897985 | X145: -4.089208549 | Y145: -113.691841 | Z145: 66.30815903 | AC145: 1 | AD145: 13.84928708 | AE145: -0.0004829478854 | AF145: 0.001673840564 | AG145: 7478.976445 | AH145: -2755.313713 | AJ145: 22100 | AK145: 860.9859247 | AL145: 1 | AM145: 9.286927755 | AN145: 344.9505969 | AO145: -2342.545347 | AQ145: 0.8115565655 | AR145: -90.08277877 | AT145: -242136.7032 | AU145: -675963.0735 | AV145: -1.914766334 | AW145: -205373.599 | AX145: -49773.71072 | AY145: -2.903820323 | BA145: 3.397812419 | BB145: 10.62398799 | BC145: 0.9890539887 | BD145: -123.3313807 | BF145: -4.007867535 | BG145: -118.4221619 | BH145: 61.57783809 | BI145: 61.57783809 | BJ145: 0 | BK145: 0 | BM145: -14.63185552 | BN145: -175.0907812 | BQ145: 27.52594879 | BT145: 2238.721 | BU145: 8.34969 | BV145: -253.783
A146: 56000 | B146: 56 | C146: 1.000890994 | D146: 0.04219794055 | F146: 0.01213548462 | G146: 0.04345966099 | H146: -3.098132989 | J146: 15 | M146: 0.02679159652 | N146: -1.570796325 | O146: 14.00979034 | P146: 1.49935692 | Q146: 9.423801123 | R146: 1.464481872 | S146: 0.9992282712 | T146: -0.03928938893 | U146: 0.9601393791 | V146: -0.2832959012 | X146: -4.176189954 | Y146: -113.7595025 | Z146: 66.24049752 | AC146: 1 | AD146: 13.97405543 | AE146: -0.0004916888463 | AF146: 0.001688920209 | AG146: 7468.588205 | AH146: -2766.39565 | AJ146: 22100 | AK146: 868.7425546 | AL146: 1 | AM146: 9.370593771 | AN146: 340.5168923 | AO146: -2322.102915 | AQ146: 0.7971303308 | AR146: -89.27859705 | AT146: -241026.4843 | AU146: -668990.2548 | AV146: -1.9166033 | AW146: -201691.8951 | AX146: -48923.54097 | AY146: -2.9036231 | BA146: 3.426243462 | BB146: 10.6963644 | BC146: 0.9870198001 | BD146: -123.4479311 | BF146: -4.092932308 | BG146: -118.540112 | BH146: 61.45988796 | BI146: 61.45988796 | BJ146: 0 | BK146: 0 | BM146: -14.78929671 | BN146: -175.0921809 | BQ146: 27.5983252 | BT146: 2290.868 | BU146: 8.28183 | BV146: -253.62
A147: 56500 | B147: 56.5 | C147: 1.000906969 | D147: 0.04257425477 | F147: 0.011919274 | G147: 0.04306624139 | H147: -3.098526409 | J147: 15 | M147: 0.02655450274 | N147: -1.570796325 | O147: 14.13424325 | P147: 1.499987007 | Q147: 9.506998901 | R147: 1.465415727 | S147: 0.9992144452 | T147: -0.03963982131 | U147: 0.959467292 | V147: -0.2856904742 | X147: -4.262443364 | Y147: -113.8281525 | Z147: 66.17184751 | AC147: 1 | AD147: 14.09882379 | AE147: -0.0005005082014 | AF147: 0.001703999853 | AG147: 7458.136003 | AH147: -2777.499204 | AJ147: 22100 | AK147: 876.4991846 | AL147: 1 | AM147: 9.454259786 | AN147: 336.1986385 | AO147: -2302.010084 | AQ147: 0.7830853563 | AR147: -88.48864526 | AT147: -239936.7847 | AU147: -662135.3701 | AV147: -1.918446794 | AW147: -198106.1298 | AX147: -48099.58609 | AY147: -2.903404632 | BA147: 3.454633723 | BB147: 10.76804016 | BC147: 0.9849578376 | BD147: -123.5660728 | BF147: -4.177264327 | BG147: -118.6592339 | BH147: 61.34076615 | BI147: 61.34076615 | BJ147: 0 | BK147: 0 | BM147: -14.94530449 | BN147: -175.093161 | BQ147: 27.67000096 | BT147: 2344.229 | BU147: 8.06623 | BV147: -253.171
A148: 57000 | B148: 57 | C148: 1.000923085 | D148: 0.04295055693 | F148: 0.0117088108 | G148: 0.04267995621 | H148: -3.098912694 | J148: 15 | M148: 0.02632156851 | N148: -1.570796325 | O148: 14.25870167 | P148: 1.500606094 | Q148: 9.590204826 | R148: 1.466333379 | S148: 0.9992004968 | T148: -0.03999024394 | U148: 0.9587906589 | V148: -0.2880816834 | X148: -4.347983612 | Y148: -113.8977598 | Z148: 66.10224024 | AC148: 1 | AD148: 14.22359214 | AE148: -0.0005094059507 | AF148: 0.001719079498 | AG148: 7447.620498 | AH148: -2788.621588 | AJ148: 22100 | AK148: 884.2558145 | AL148: 1 | AM148: 9.537925802 | AN148: 331.9918763 | AO148: -2282.258069 | AQ148: 0.769408325 | AR148: -87.71254905 | AT148: -238866.8466 | AU148: -655395.3669 | AV148: -1.920296538 | AW148: -194613.0197 | AX148: -47300.77984 | AY148: -2.903165373 | BA148: 3.48298265 | BB148: 10.83902622 | BC148: 0.9828688354 | BD148: -123.6857639 | BF148: -4.260878717 | BG148: -118.7794968 | BH148: 61.22050315 | BI148: 61.22050315 | BJ148: 0 | BK148: 0 | BM148: -15.09990494 | BN148: -175.093733 | BQ148: 27.74098702 | BT148: 2398.833 | BU148: 7.81402 | BV148: -252.658
A149: 57500 | B149: 57.5 | C149: 1.000939343 | D149: 0.04332684692 | F149: 0.01150389239 | G149: 0.04230061123 | H149: -3.099292039 | J149: 15 | M149: 0.0260926853 | N149: -1.570796325 | O149: 14.38316546 | P149: 1.501214468 | Q149: 9.673418688 | R149: 1.467235243 | S149: 0.999186426 | T149: -0.04034065676 | U149: 0.9581095128 | V149: -0.2904695088 | X149: -4.432825086 | Y149: -113.968294 | Z149: 66.03170595 | AC149: 1 | AD149: 14.34836049 | AE149: -0.0005183820944 | AF149: 0.001734159143 | AG149: 7437.042348 | AH149: -2799.760108 | AJ149: 22100 | AK149: 892.0124445 | AL149: 1 | AM149: 9.621591818 | AN149: 327.8928142 | AO149: -2262.838374 | AQ149: 0.7560864963 | AR149: -86.94994707 | AT149: -237815.9459 | AU149: -648767.2993 | AV149: -1.922152262 | AW149: -191209.4203 | AX149: -46526.10877 | AY149: -2.902905765 | BA149: 3.511289699 | BB149: 10.90933325 | BC149: 0.980753503 | BD149: -123.8069635 | BF149: -4.343790162 | BG149: -118.9008715 | BH149: 61.0991285 | BI149: 61.0991285 | BJ149: 0 | BK149: 0 | BM149: -15.25312341 | BN149: -175.093908 | BQ149: 27.81129405 | BT149: 2454.709 | BU149: 7.64239 | BV149: -251.974
A150: 58000 | B150: 58 | C150: 1.000955742 | D150: 0.04370312463 | F150: 0.01130432505 | G150: 0.04192801927 | H150: -3.099664631 | J150: 15 | M150: 0.02586774836 | N150: -1.570796325 | O150: 14.50763449 | P150: 1.501812402 | Q150: 9.756640283 | R150: 1.468121723 | S150: 0.9991722331 | T150: -0.04069105965 | U150: 0.9574238865 | V150: -0.2928539303 | X150: -4.51698175 | Y150: -114.0397261 | Z150: 65.96027389 | AC150: 1 | AD150: 14.47312884 | AE150: -0.0005274366323 | AF150: 0.001749238788 | AG150: 7426.402212 | AH150: -2810.912157 | AJ150: 22100 | AK150: 899.7690744 | AL150: 1 | AM150: 9.705257834 | AN150: 323.8978198 | AO150: -2243.742779 | AQ150: 0.7431076763 | AR150: -86.20049045 | AT150: =-AR150*AH150+AG150*AQ150 -> -236783.39 | AU150: =AQ150*AH150+AG150*AR150 -> -642248.3234 | AV150: -1.924013706 | AW150: -187892.3188 | AX150: -45774.60921 | AY150: -2.902626232 | BA150: 3.539554328 | BB150: 10.97897165 | BC150: 0.9786125261 | BD150: -123.9296324 | BF150: -4.426012918 | BG150: -119.0233293 | BH150: 60.97667074 | BI150: 60.97667074 | BJ150: 0 | BK150: 0 | BM150: -15.40498457 | BN150: -175.0936969 | BQ150: 27.88093245 | BT150: 2511.886 | BU150: 7.45716 | BV150: -252.252
A151: 58500 | B151: 58.5 | C151: 1.000972283 | D151: 0.04407938996 | F151: 0.01110992347 | G151: 0.04156199988 | H151: -3.10003065 | J151: 15 | M151: 0.02564665649 | N151: -1.570796325 | O151: 14.63210861 | P151: 1.502400163 | Q151: 9.839869417 | R151: 1.468993207 | S151: 0.9991579178 | T151: -0.04104145256 | U151: 0.956733813 | V151: -0.2952349281 | X151: -4.600467157 | Y151: -114.1120276 | Z151: 65.88797239 | AC151: 1 | AD151: 14.5978972 | AE151: -0.0005365695644 | AF151: 0.001764318432 | AG151: 7415.700752 | AH151: -2822.075217 | AJ151: 22100 | AK151: 907.5257044 | AL151: 1 | AM151: 9.78892385 | AN151: 320.0034121 | AO151: -2224.963328 | AQ151: 0.7304601899 | AR151: -85.46384222 | AT151: -235768.5169 | AU151: -635835.6926 | AV151: -1.925880618 | AW151: -184658.8274 | AX151: -45045.3644 | AY151: -2.902327186 | BA151: 3.567776 | BB151: 11.0479516 | BC151: 0.976446568 | BD151: -124.0537327 | BF151: -4.507560835 | BG151: -119.1468425 | BH151: 60.85315752 | BI151: 60.85315752 | BJ151: 0 | BK151: 0 | BM151: -15.55551243 | BN151: -175.0931098 | BQ151: 27.9499124 | BT151: 2570.396 | BU151: 7.31271 | BV151: -251.702
A152: 59000 | B152: 59 | C152: 1.000988966 | D152: 0.0444556428 | F152: 0.01092051029 | G152: 0.04120237903 | H152: -3.100390271 | J152: 15 | M152: 0.02542931195 | N152: -1.570796325 | O152: 14.75658771 | P152: 1.502978008 | Q152: 9.923105897 | R152: 1.469850072 | S152: 0.9991434803 | T152: -0.04139183537 | U152: 0.9560393253 | V152: -0.2976124826 | X152: -4.683294469 | Y152: -114.1851711 | Z152: 65.81482885 | AC152: 1 | AD152: 14.72266555 | AE152: -0.0005457808909 | AF152: 0.001779398077 | AG152: 7404.938629 | AH152: -2833.246853 | AJ152: 22100 | AK152: 915.2823343 | AL152: 1 | AM152: 9.872589865 | AN152: 316.2062539 | AO152: -2206.492323 | AQ152: 0.7181328546 | AR152: -84.73967684 | AT152: -234770.693 | AU152: -629526.7541 | AV152: -1.927752755 | AW152: -181506.1779 | AX152: -44337.50182 | AY152: -2.902009024 | BA152: 3.595954181 | BB152: 11.11628299 | BC152: 0.9742562699 | BD152: -124.1792275 | BF152: -4.588447371 | BG152: -119.2713844 | BH152: 60.72861563 | BI152: 60.72861563 | BJ152: 0 | BK152: 0 | BM152: -15.70473036 | BN152: -175.0921569 | BQ152: 28.01824379 | BT152: 2630.268 | BU152: 7.13504 | BV152: -251.401
A153: 59500 | B153: 59.5 | C153: 1.001005791 | D153: 0.04483188304 | F153: 0.01073591576 | G153: 0.04084898885 | H153: -3.100743661 | J153: 15 | M153: 0.02521562025 | N153: -1.570796325 | O153: 14.88107165 | P153: 1.503546186 | Q153: 10.00634954 | R153: 1.47069268 | S153: 0.9991289205 | T153: -0.04174220802 | U153: 0.9553404565 | V153: -0.2999865746 | X153: -4.765476467 | Y153: -114.2591302 | Z153: 65.74086985 | AC153: 1 | AD153: 14.8474339 | AE153: -0.0005550706116 | AF153: 0.001794477722 | AG153: 7394.116503 | AH153: -2844.424708 | AJ153: 22100 | AK153: 923.0389643 | AL153: 1 | AM153: 9.956255881 | AN153: 312.5031448 | AO153: -2188.322309 | AQ153: 0.7061149555 | AR153: -84.02767971 | AT153: -233789.3121 | AU153: -623318.9441 | AV153: -1.929629878 | AW153: -178431.7147 | AX153: -43650.19067 | AY153: -2.901672131 | BA153: 3.624088341 | BB153: 11.18397551 | BC153: 0.9720422523 | BD153: -124.3060814 | BF153: -4.668685604 | BG153: -119.396929 | BH153: 60.60307098 | BI153: 60.60307098 | BJ153: 0 | BK153: 0 | BM153: -15.85266111 | BN153: -175.0908476 | BQ153: 28.08593631 | BT153: 2691.535 | BU153: 6.88093 | BV153: -251.244
A154: 60000 | B154: 60 | C154: 1.001022758 | D154: 0.04520811059 | F154: 0.01055597729 | G154: 0.04050166733 | H154: -3.101090983 | J154: 15 | M154: 0.02500549008 | N154: -1.570796325 | O154: 15.00556031 | P154: 1.504104937 | Q154: 10.08960018 | R154: 1.471521384 | S154: 0.9991142386 | T154: -0.04209257042 | U154: 0.95463724 | V154: -0.3023571848 | X154: -4.847025568 | Y154: -114.3338789 | Z154: 65.6661211 | AC154: 1 | AD154: 14.97220225 | AE154: -0.0005644387266 | AF154: 0.001809557366 | AG154: 7383.235039 | AH154: -2855.606503 | AJ154: 22100 | AK154: 930.7955942 | AL154: 1 | AM154: 10.0399219 | AN154: 308.8910145 | AO154: -2170.446066 | AQ154: 0.6943962225 | AR154: -83.3275467 | AT154: -232823.7937 | AU154: -617209.7849 | AV154: -1.931511761 | AW154: -175432.8904 | AX154: -42982.63956 | AY154: -2.901316877 | BA154: 3.652177951 | BB154: 11.2510386 | BC154: 0.9698051158 | BD154: -124.4342599 | BF154: -4.748288248 | BG154: -119.5234513 | BH154: 60.47654869 | BI154: 60.47654869 | BJ154: 0 | BK154: 0 | BM154: -15.99932685 | BN154: -175.0891915 | BQ154: 28.1529994 | BT154: 2754.229 | BU154: 6.70094 | BV154: -251.051
A155: 60500 | B155: 60.5 | C155: 1.001039866 | D155: 0.04558432532 | F155: 0.01038053912 | G155: 0.04016025807 | H155: -3.101432392 | J155: 15 | M155: 0.02479883314 | N155: -1.570796325 | O155: 15.13005358 | P155: 1.504654493 | Q155: 10.17285762 | R155: 1.472336524 | S155: 0.9990994344 | T155: -0.04244292247 | U155: 0.9539297089 | V155: -0.3047242943 | X155: -4.927953839 | Y155: -114.4093925 | Z155: 65.59060754 | AC155: 1 | AD155: 15.0969706 | AE155: -0.0005738852358 | AF155: 0.001824637011 | AG155: 7372.294899 | AH155: -2866.790033 | AJ155: 22100 | AK155: 938.5522242 | AL155: 1 | AM155: 10.12358791 | AN155: 305.3669167 | AO155: -2152.856603 | AQ155: 0.6829668078 | AR155: -82.63898375 | AT155: -231873.5822 | AU155: -611196.8808 | AV155: -1.933398181 | AW155: -172507.26 | AX155: -42334.09434 | AY155: -2.900943622 | BA155: 3.680222488 | BB155: 11.3174815 | BC155: 0.9675454418 | BD155: -124.5637296 | BF155: -4.82726767 | BG155: -119.6509269 | BH155: 60.34907311 | BI155: 60.34907311 | BJ155: 0 | BK155: 0 | BM155: -16.14474917 | BN155: -175.0871973 | BQ155: 28.2194423 | BT155: 2818.383 | BU155: 6.53562 | BV155: -250.48
A156: 61000 | B156: 61 | C156: 1.001057115 | D156: 0.04596052715 | F156: 0.01020945195 | G156: 0.03982461005 | H156: -3.10176804 | J156: 15 | M156: 0.02459556402 | N156: -1.570796325 | O156: 15.25455135 | P156: 1.505195078 | Q156: 10.25612172 | R156: 1.47313843 | S156: 0.999084508 | T156: -0.0427932641 | U156: 0.9532178965 | V156: -0.3070878844 | X156: -5.008273008 | Y156: -114.4856467 | Z156: 65.51435332 | AC156: 1 | AD156: 15.22173896 | AE156: -0.0005834101393 | AF156: 0.001839716656 | AG156: 7361.296746 | AH156: -2877.973161 | AJ156: 22100 | AK156: 946.3088541 | AL156: 1 | AM156: 10.20725393 | AN156: 301.9280229 | AO156: -2135.547144 | AQ156: 0.6718172657 | AR156: -81.96170642 | AT156: -230938.1451 | AU156: -605277.9148 | AV156: -1.935288922 | AW156: -169652.4762 | AX156: -41703.83598 | AY156: -2.900552715 | BA156: 3.708221431 | BB156: 11.38331319 | BC156: 0.9652637932 | BD156: -124.6944585 | BF156: -4.905635898 | BG156: -119.7793322 | BH156: 60.22066784 | BI156: 60.22066784 | BJ156: 0 | BK156: 0 | BM156: -16.28894909 | BN156: -175.0848737 | BQ156: 28.28527399 | BT156: 2884.032 | BU156: 6.32652 | BV156: -250.202
A157: 61500 | B157: 61.5 | C157: 1.001074507 | D157: 0.04633671596 | F157: 0.01004257267 | G157: 0.0394945774 | H157: -3.102098073 | J157: 15 | M157: 0.02439560008 | N157: -1.570796325 | O157: 15.3790535 | P157: 1.505726911 | Q157: 10.33939231 | R157: 1.473927419 | S157: 0.9990694594 | T157: -0.04314359522 | U157: 0.9525018364 | V157: -0.3094479367 | X157: -5.087994481 | Y157: -114.5626181 | Z157: 65.43738188 | AC157: 1 | AD157: 15.34650731 | AE157: -0.0005930134371 | AF157: 0.001854796301 | AG157: 7350.241244 | AH157: -2889.153824 | AJ157: 22100 | AK157: 954.0654841 | AL157: 1 | AM157: 10.29091994 | AN157: 298.571617 | AO157: -2118.511124 | AQ157: 0.6609385327 | AR157: -81.29543952 | AT157: -230016.9723 | AU157: -599450.6457 | AV157: -1.937183777 | AW157: -166866.2845 | AX157: -41091.17872 | AY157: -2.900144492 | BA157: 3.736174262 | BB157: 11.44854249 | BC157: 0.9629607155 | BD157: -124.8264151 | BF157: -4.983404636 | BG157: -119.9086442 | BH157: 60.09135576 | BI157: 60.09135576 | BJ157: 0 | BK157: 0 | BM157: -16.43194712 | BN157: -175.0822291 | BQ157: 28.35050329 | BT157: 2951.209 | BU157: 6.18308 | BV157: -249.926
A158: 62000 | B158: 62 | C158: 1.00109204 | D158: 0.04671289164 | F158: 0.009879763992 | G158: 0.03917001916 | H158: -3.102422631 | J158: 15 | M158: 0.02419886137 | N158: -1.570796325 | O158: 15.50355993 | P158: 1.506250203 | Q158: 10.42266923 | R158: 1.4747038 | S158: 0.9990542887 | T158: -0.04349391574 | U158: 0.951781562 | V158: -0.3118044327 | X158: -5.167129346 | Y158: -114.6402841 | Z158: 65.35971594 | AC158: 1 | AD158: 15.47127566 | AE158: -0.0006026951291 | AF158: 0.001869875945 | AG158: 7339.129058 | AH158: -2900.330019 | AJ158: 22100 | AK158: 961.822114 | AL158: 1 | AM158: 10.37458596 | AN158: 295.2950899 | AO158: -2101.74218 | AQ158: 0.6503219093 | AR158: -80.63991676 | AT158: -229109.5749 | AU158: -593712.9045 | AV158: -1.939082542 | AW158: -164146.5195 | AX158: -40495.46824 | AY158: -2.899719279 | BA158: 3.764080465 | BB158: 11.51317798 | BC158: 0.960636737 | BD158: -124.9595693 | BF158: -5.060585273 | BG158: -120.0388409 | BH158: 59.96115906 | BI158: 59.96115906 | BJ158: 0 | BK158: 0 | BM158: -16.57376325 | BN158: -175.0792717 | BQ158: 28.41513878 | BT158: 3019.952 | BU158: 6.01306 | BV158: -249.651
A159: 62500 | B159: 62.5 | C159: 1.001109715 | D159: 0.04708905409 | F159: 0.009720894219 | G159: 0.03885079909 | H159: -3.102741851 | J159: 15 | M159: 0.02400527048 | N159: -1.570796325 | O159: 15.62807054 | P159: 1.506765156 | Q159: 10.50595233 | R159: 1.475467873 | S159: 0.9990389959 | T159: -0.04384422558 | U159: 0.9510571068 | V159: -0.3141573544 | X159: -5.245688393 | Y159: -114.7186225 | Z159: 65.28137752 | AC159: 1 | AD159: 15.59604401 | AE159: -0.0006124552155 | AF159: 0.00188495559 | AG159: 7327.960851 | AH159: -2911.49981 | AJ159: 22100 | AK159: 969.578744 | AL159: 1 | AM159: 10.45825198 | AN159: 292.0959345 | AO159: -2085.23414 | AQ159: 0.6399590426 | AR159: -79.99488033 | AT159: -228215.484 | AU159: -588062.5919 | AV159: -1.940985023 | AW159: -161491.0999 | AX159: -39916.07996 | AY159: -2.899277393 | BA159: 3.791939529 | BB159: 11.57722806 | BC159: 0.9582923699 | BD159: -125.0938916 | BF159: -5.1371889 | BG159: -120.1699007 | BH159: 59.83009928 | BI159: 59.83009928 | BJ159: 0 | BK159: 0 | BM159: -16.71441696 | BN159: -175.0760091 | BQ159: 28.47918886 | BT159: 3090.295 | BU159: 5.85449 | BV159: -248.418
A160: 63000 | B160: 63 | C160: 1.001127531 | D160: 0.04746520321 | F160: 0.009565836942 | G160: 0.03853678547 | H160: -3.103055865 | J160: 15 | M160: 0.02381475246 | N160: -1.570796325 | O160: 15.75258523 | P160: 1.507271968 | Q160: 10.58924147 | R160: 1.476219927 | S160: 0.9990235809 | T160: -0.04419452466 | U160: 0.9503285044 | V160: -0.3165066841 | X160: -5.323682117 | Y160: -114.797612 | Z160: 65.20238801 | AC160: 1 | AD160: 15.72081236 | AE160: -0.000622293696 | AF160: 0.001900035235 | AG160: 7316.737287 | AH160: -2922.661321 | AJ160: 22100 | AK160: 977.3353739 | AL160: 1 | AM160: 10.54191799 | AN160: 288.971741 | AO160: -2068.981022 | AQ160: 0.6298419097 | AR160: -79.36008062 | AT160: -227334.2503 | AU160: -582497.6755 | AV160: -1.942891028 | AW160: -158898.0253 | AX160: -39352.41748 | AY160: -2.898819139 | BA160: 3.819750943 | BB160: 11.64070094 | BC160: 0.9559281108 | BD160: -125.2293537 | BF160: -5.213226315 | BG160: -120.3018027 | BH160: 59.69819732 | BI160: 59.69819732 | BJ160: 0 | BK160: 0 | BM160: -16.85392725 | BN160: -175.072449 | BQ160: 28.54266174 | BT160: 3162.278 | BU160: 5.60993 | BV160: -248.626
A161: 63500 | B161: 63.5 | C161: 1.001145489 | D161: 0.04784133889 | F161: 0.0094144708 | G161: 0.0382278509 | H161: -3.103364799 | J161: 15 | M161: 0.02362723472 | N161: -1.570796325 | O161: 15.8771039 | P161: 1.507770831 | Q161: 10.67253651 | R161: 1.476960242 | S161: 0.9990080439 | T161: -0.04454481288 | U161: 0.9495957883 | V161: -0.3188524039 | X161: -5.401120734 | Y161: -114.8772319 | Z161: 65.12276815 | AC161: 1 | AD161: 15.84558072 | AE161: -0.0006322105709 | AF161: 0.001915114879 | AG161: 7305.459031 | AH161: -2933.812736 | AJ161: 22100 | AK161: 985.0920039 | AL161: 1 | AM161: 10.62558401 | AN161: 285.9201925 | AO161: -2052.977021 | AQ161: 0.6199628022 | AR161: -78.73527588 | AT161: -226465.4423 | AU161: -577016.187 | AV161: -1.944800373 | AW161: -156365.372 | AX161: -38803.91106 | AY161: -2.898344815 | BA161: 3.847514201 | BB161: 11.70360463 | BC161: 0.9535444413 | BD161: -125.3659279 | BF161: -5.288708035 | BG161: -120.4345265 | BH161: 59.56547346 | BI161: 59.56547346 | BJ161: 0 | BK161: 0 | BM161: -16.99231266 | BN161: -175.0685987 | BQ161: 28.60556543 | BT161: 3235.937 | BU161: 5.43209 | BV161: -248.575
A162: 64000 | B162: 64 | C162: 1.001163589 | D162: 0.04821746102 | F162: 0.009266679234 | G162: 0.03792387216 | H162: -3.103668778 | J162: 15 | M162: 0.02344264695 | N162: -1.570796325 | O162: 16.00162646 | P162: 1.50826193 | Q162: 10.7558373 | R162: 1.47768909 | S162: 0.9989923847 | T162: -0.04489509016 | U162: 0.9488589923 | V162: -0.3211944964 | X162: -5.47801419 | Y162: -114.9574619 | Z162: 65.04253807 | AC162: 1 | AD162: 15.97034907 | AE162: -0.00064220584 | AF162: 0.001930194524 | AG162: 7294.126747 | AH162: -2944.952295 | AJ162: 22100 | AK162: 992.8486339 | AL162: 1 | AM162: 10.70925002 | AN162: 282.9390607 | AO162: -2037.216508 | AQ162: 0.6103143119 | AR162: -78.12023192 | AT162: -225608.6464 | AU162: -571616.2197 | AV162: -1.946712879 | AW162: -153891.2898 | AX162: -38270.01625 | AY162: -2.897854707 | BA162: 3.875228798 | BB162: 11.76594698 | BC162: 0.9511418286 | BD162: -125.5035874 | BF162: -5.363644308 | BG162: -120.5680526 | BH162: 59.4319474 | BI162: 59.4319474 | BJ162: 0 | BK162: 0 | BM162: -17.12959129 | BN162: -175.0644652 | BQ162: 28.66790778 | BT162: 3311.311 | BU162: 5.23561 | BV162: -247.758
A163: 64500 | B163: 64.5 | C163: 1.00118183 | D163: 0.04859356949 | F163: 0.009122350264 | G163: 0.03762472999 | H163: -3.10396792 | J163: 15 | M163: 0.02326092101 | N163: -1.570796325 | O163: 16.12615282 | P163: 1.508745445 | Q163: 10.83914372 | R163: 1.478406736 | S163: 0.9989766035 | T163: -0.04524535642 | U163: 0.9481181502 | V163: -0.3235329445 | X163: -5.554372165 | Y163: -115.0382827 | Z163: 64.96171733 | AC163: 1 | AD163: 16.09511742 | AE163: -0.0006522795034 | AF163: 0.001945274169 | AG163: 7282.741099 | AH163: -2956.078294 | AJ163: 22100 | AK163: 1000.605264 | AL163: 1 | AM163: 10.79291604 | AN163: 280.0262016 | AO163: -2021.694018 | AQ163: 0.6008893162 | AR163: -77.51472179 | AT163: -224763.4653 | AU163: -566295.926 | AV163: -1.948628371 | AW163: -151473.9985 | AX163: -37750.21256 | AY163: -2.897349097 | BA163: 3.902894232 | BB163: 11.82773564 | BC163: 0.9487207258 | BD163: -125.6423064 | BF163: -5.43804512 | BG163: -120.7023617 | BH163: 59.29763827 | BI163: 59.29763827 | BJ163: 0 | BK163: 0 | BM163: -17.26578076 | BN163: -175.0600553 | BQ163: 28.72969644 | BT163: 3388.442 | BU163: 5.05282 | BV163: -247.756
A164: 65000 | B164: 65 | C164: 1.001200213 | D164: 0.04896966421 | F164: 0.008981376272 | G164: 0.03733030896 | H164: -3.104262341 | J164: 15 | M164: 0.02308199084 | N164: -1.570796325 | O164: 16.25068289 | P164: 1.509221549 | Q164: 10.92245564 | R164: 1.479113434 | S164: 0.9989607002 | T164: -0.04559561157 | U164: 0.9473732955 | V164: -0.3258677312 | X164: -5.63020409 | Y164: -115.1196751 | Z164: 64.8803249 | AC164: 1 | AD164: 16.21988577 | AE164: -0.000662431561 | AF164: 0.001960353814 | AG164: 7271.302751 | AH164: -2967.189082 | AJ164: 22100 | AK164: 1008.361894 | AL164: 1 | AM164: 10.87658206 | AN164: 277.1795521 | AO164: -2006.404249 | AQ164: 0.5916809656 | AR164: -76.91852553 | AT164: -223929.5177 | AU164: -561053.5156 | AV164: -1.95054668 | AW164: -149111.785 | AX164: -37244.0022 | AY164: -2.896828253 | BA164: 3.930510004 | BB164: 11.88897812 | BC164: 0.946281573 | BD164: -125.7820596 | BF164: -5.511920203 | BG164: -120.8374353 | BH164: 59.16256467 | BI164: 59.16256467 | BJ164: 0 | BK164: 0 | BM164: -17.40089832 | BN164: -175.0553758 | BQ164: 28.79093892 | BT164: 3467.369 | BU164: 4.9029 | BV164: -247.513
A165: 65500 | B165: 65.5 | C165: 1.001218738 | D165: 0.04934574507 | F165: 0.0088436538 | G165: 0.03704049732 | H165: -3.104552153 | J165: 15 | M165: 0.02290579244 | N165: -1.570796325 | O165: 16.37521659 | P165: 1.509690412 | Q165: 11.00577293 | R165: 1.479809432 | S165: 0.9989446749 | T165: -0.04594585552 | U165: 0.9466244622 | V165: -0.3281988395 | X165: -5.705519151 | Y165: -115.2016208 | Z165: 64.79837923 | AC165: 1 | AD165: 16.34465412 | AE165: -0.000672662013 | AF165: 0.001975433458 | AG165: 7259.812366 | AH165: -2978.283057 | AJ165: 22100 | AK165: 1016.118524 | AL165: 1 | AM165: 10.96024807 | AN165: 274.3971264 | AO165: -1991.342051 | AQ165: 0.582682671 | AR165: -76.3314299 | AT165: -223106.4376 | AU165: -555887.2526 | AV165: -1.952467642 | AW165: -146802.9998 | AX165: -36750.90897 | AY165: -2.896292439 | BA165: 3.958075616 | BB165: 11.94968174 | BC165: 0.9438247974 | BD165: -125.9228224 | BF165: -5.585279047 | BG165: -120.9732553 | BH165: 59.02674465 | BI165: 59.02674465 | BJ165: 0 | BK165: 0 | BM165: -17.53496078 | BN165: -175.0504329 | BQ165: 28.85164254 | BT165: 3548.134 | BU165: 4.65226 | BV165: -246.726
A166: =A165+500 -> 66000 | B166: 66 | C166: 1.001237404 | D166: 0.04972181196 | F166: 0.008709083355 | G166: 0.03675518683 | H166: -3.104837463 | J166: 15 | M166: 0.02273226371 | N166: -1.570796325 | O166: 16.49975384 | P166: 1.510152197 | Q166: 11.08909547 | R166: 1.480494972 | S166: 0.9989285275 | T166: -0.04629608819 | U166: 0.9458716839 | V166: -0.3305262529 | X166: -5.780326298 | Y166: -115.2841018 | Z166: 64.71589822 | AC166: 1 | AD166: 16.46942248 | AE166: -0.0006829708591 | AF166: 0.001990513103 | AG166: 7248.270607 | AH166: -2989.358671 | AJ166: 22100 | AK166: 1023.875154 | AL166: 1 | AM166: 11.04391409 | AN166: 271.677012 | AO166: -1976.502426 | AQ166: 0.5738880918 | AR166: -75.75322812 | AT166: -222293.8731 | AU166: -550795.4541 | AV166: -1.954391097 | AW166: -144546.0548 | AX166: -36270.47711 | AY166: -2.895741911 | BA166: 3.985590573 | BB166: 12.00985366 | BC166: 0.9413508136 | BD166: -126.0645713 | BF166: -5.658130905 | BG166: -121.1098042 | BH166: 58.89019579 | BI166: 58.89019579 | BJ166: 0 | BK166: 0 | BM166: -17.66798456 | BN166: -175.0452329 | BQ166: 28.91181446 | BT166: 3630.781 | BU166: 4.4951 | BV166: -246.212
A167: 66500 | B167: 66.5 | C167: 1.001256212 | D167: 0.05009786477 | F167: 0.008577569234 | G167: 0.03647427265 | H167: -3.105118377 | J167: 15 | M167: 0.02256134443 | N167: -1.570796325 | O167: 16.62429455 | P167: 1.510607063 | Q167: 11.17242315 | R167: 1.481170285 | S167: 0.9989122582 | T167: -0.0466463095 | U167: 0.9451149947 | V167: -0.3328499552 | X167: -5.854634251 | Y167: -115.3671007 | Z167: 64.63289928 | AC167: 1 | AD167: 16.59419083 | AE167: -0.0006933580996 | AF167: 0.002005592748 | AG167: 7236.678137 | AH167: -3000.41442 | AJ167: 22100 | AK167: 1031.631784 | AL167: 1 | AM167: 11.1275801 | AN167: 269.0173673 | AO167: -1961.88052 | AQ167: 0.5652911249 | AR167: -75.18371962 | AT167: -221491.4865 | AU167: -545776.4876 | AV167: -1.95631689 | AW167: -142339.4201 | AX167: -35802.27029 | AY167: -2.895176915 | BA167: 4.013054383 | BB167: 12.0695009 | BC167: 0.9388600248 | BD167: -126.207283 | BF167: -5.730484805 | BG167: -121.2470649 | BH167: 58.75293514 | BI167: 58.75293514 | BJ167: 0 | BK167: 0 | BM167: -17.79998571 | BN167: -175.0397819 | BQ167: 28.9714617 | BT167: 3715.352 | BU167: 4.3437 | BV167: -245.97
A168: 67000 | B168: 67 | C168: 1.001275161 | D168: 0.0504739034 | F168: 0.008449019346 | G168: 0.03619765319 | H168: -3.105394997 | J168: 15 | M168: 0.02239297619 | N168: -1.570796325 | O168: 16.74883865 | P168: 1.511055165 | Q168: 11.25575584 | R168: 1.4818356 | S168: 0.9988958668 | T168: -0.04699651936 | U168: 0.9443544283 | V168: -0.3351699299 | X168: -5.928451511 | Y168: -115.4506007 | Z168: 64.54939932 | AC168: 1 | AD168: 16.71895918 | AE168: -0.0007038237343 | AF168: 0.002020672392 | AG168: 7225.035617 | AH168: -3011.448848 | AJ168: 22100 | AK168: 1039.388414 | AL168: 1 | AM168: 11.21124612 | AN168: 266.4164177 | AO168: -1947.471615 | AQ168: 0.5568858941 | AR168: -74.62270981 | AT168: -220698.9531 | AU168: -540828.7696 | AV168: -1.958244871 | AW168: -140181.6218 | AX168: -35345.87065 | AY168: -2.894597693 | BA168: 4.040466555 | BB168: 12.12863033 | BC168: 0.9363528223 | BD168: -126.3509351 | BF168: -5.802349551 | BG168: -121.3850207 | BH168: 58.61497932 | BI168: 58.61497932 | BJ168: 0 | BK168: 0 | BM168: -17.93097988 | BN168: -175.0340856 | BQ168: 29.03059113 | BT168: 3801.894 | BU168: 4.14374 | BV168: -245.169
A169: 67500 | B169: 67.5 | C169: 1.001294252 | D169: 0.05084992774 | F169: 0.00832334505 | G169: 0.03592522999 | H169: -3.10566742 | J169: 15 | M169: 0.0222271023 | N169: -1.570796325 | O169: 16.87338606 | P169: 1.511496651 | Q169: 11.33909344 | R169: 1.482491135 | S169: 0.9988793535 | T169: -0.04734671768 | U169: 0.9435900186 | V169: -0.3374861614 | X169: -6.001786368 | Y169: -115.5345852 | Z169: 64.46541479 | AC169: 1 | AD169: 16.84372753 | AE169: -0.0007143677633 | AF169: 0.002035752037 | AG169: 7213.34371 | AH169: -3022.460545 | AJ169: 22100 | AK169: 1047.145044 | AL169: 1 | AM169: 11.29491213 | AN169: 263.8724532 | AO169: -1933.27113 | AQ169: 0.5486667398 | AR169: -74.07000988 | AT169: -219915.9607 | AU169: -535950.7634 | AV169: -1.960174892 | AW169: -138071.2393 | AX169: -34900.87783 | AY169: -2.894004478 | BA169: 4.067826601 | BB169: 12.18724864 | BC169: 0.9338295868 | BD169: -126.4955058 | BF169: -5.873733737 | BG169: -121.5236555 | BH169: 58.47634448 | BI169: 58.47634448 | BJ169: 0 | BK169: 0 | BM169: -18.06098238 | BN169: -175.0281497 | BQ169: 29.08920944 | BT169: 3890.451 | BU169: 3.9573 | BV169: -244.768
A170: 68000 | B170: 68 | C170: 1.001313484 | D170: 0.0512259377 | F170: 0.008200461005 | G170: 0.03565690758 | H170: -3.105935742 | J170: 15 | M170: 0.02206366772 | N170: -1.570796325 | O170: 16.99793672 | P170: 1.511931668 | Q170: 11.42243585 | R170: 1.483137105 | S170: 0.9988627183 | T170: -0.04769690438 | U170: 0.9428217995 | V170: -0.3397986337 | X170: -6.074646903 | Y170: -115.6190383 | Z170: 64.38096166 | AC170: 1 | AD170: 16.96849588 | AE170: -0.0007249901866 | AF170: 0.002050831682 | AG170: 7201.603076 | AH170: -3033.448143 | AJ170: 22100 | AK170: 1054.901673 | AL170: 1 | AM170: 11.37857815 | AN170: 261.3838256 | AO170: -1919.274613 | AQ170: 0.54062821 | AR170: -73.52543656 | AT170: -219142.2092 | AU170: -531140.9777 | AV170: -1.96210681 | AW170: -136006.9033 | AX170: -34466.90819 | AY170: -2.893397498 | BA170: 4.095134035 | BB170: 12.24536242 | BC170: 0.9312906881 | BD170: -126.640974 | BF170: -5.94464575 | BG170: -121.6629537 | BH170: 58.33704634 | BI170: 58.33704634 | BJ170: 0 | BK170: 0 | BM170: -18.19000817 | BN170: -175.0219796 | BQ170: 29.14732322 | BT170: 3981.072 | BU170: 3.89809 | BV170: -244.315
A171: 68500 | B171: 68.5 | C171: 1.001332858 | D171: 0.05160193315 | F171: 0.008080285017 | G171: 0.03539259341 | H171: -3.106200057 | J171: 15 | M171: 0.02190261905 | N171: -1.570796325 | O171: 17.12249054 | P171: 1.512360356 | Q171: 11.50578295 | R171: 1.483773716 | S171: 0.9988459611 | T171: -0.04804707938 | U171: 0.9420498049 | V171: -0.3421073314 | X171: -6.147040998 | Y171: -115.7039445 | Z171: 64.29605549 | AC171: 1 | AD171: 17.09326424 | AE171: -0.0007356910041 | AF171: 0.002065911327 | AG171: 7189.814375 | AH171: -3044.410317 | AJ171: 22100 | AK171: 1062.658303 | AL171: 1 | AM171: 11.46224417 | AN171: 258.9489454 | AO171: -1905.477735 | AQ171: 0.5327650506 | AR171: -72.98881193 | AT171: -218377.4103 | AU171: -526397.9647 | AV171: -1.964040488 | AW171: -133987.2934 | AX171: -34043.59391 | AY171: -2.892776974 | BA171: 4.122388372 | BB171: 12.30297809 | BC171: 0.9287364859 | BD171: -126.787319 | BF171: -6.015093777 | BG171: -121.8028998 | BH171: 58.1971002 | BI171: 58.1971002 | BJ171: 0 | BK171: 0 | BM171: -18.31807187 | BN171: -175.0155808 | BQ171: 29.20493889 | BT171: 4073.803 | BU171: 3.5601 | BV171: -244.142
A172: 69000 | B172: 69 | C172: 1.001352374 | D172: 0.051977914 | F172: 0.007962737904 | G172: 0.03513219769 | H172: -3.106460452 | J172: 15 | M172: 0.02174390442 | N172: -1.570796325 | O172: 17.24704746 | P172: 1.512782852 | Q172: 11.58913465 | R172: 1.48440117 | S172: 0.998829082 | T172: -0.04839724258 | U172: 0.9412740688 | V172: -0.3444122391 | X172: -6.218976342 | Y172: -115.7892886 | Z172: 64.21071138 | AC172: 1 | AD172: 17.21803259 | AE172: -0.0007464702159 | AF172: 0.002080990971 | AG172: 7177.978266 | AH172: -3055.345782 | AJ172: 22100 | AK172: 1070.414933 | AL172: 1 | AM172: 11.54591018 | AN172: 256.5662799 | AO172: -1891.87629 | AQ172: 0.5250721974 | AR172: -72.45996324 | AT172: -217621.2862 | AU172: -521720.3184 | AV172: -1.96597579 | AW172: -132011.1359 | AX172: -33630.58228 | AY172: -2.89214312 | BA172: 4.149589131 | BB172: 12.36010195 | BC172: 0.9261673301 | BD172: -126.9345208 | BF172: -6.085085812 | BG172: -121.943479 | BH172: 58.05652095 | BI172: 58.05652095 | BJ172: 0 | BK172: 0 | BM172: -18.44518776 | BN172: -175.0089582 | BQ172: 29.26206275 | BT172: 4168.694 | BU172: 3.40988 | BV172: -243.709
A173: 69500 | B173: 69.5 | C173: 1.001372031 | D173: 0.05235388015 | F173: 0.007847743366 | G173: 0.03487563333 | H173: -3.106717017 | J173: 15 | M173: 0.02158747345 | N173: -1.570796325 | O173: 17.37160742 | P173: 1.51319929 | Q173: 11.67249085 | R173: 1.485019663 | S173: 0.9988120811 | T173: -0.0487473939 | U173: 0.9404946251 | V173: -0.3467133418 | X173: -6.290460437 | Y173: -115.8750559 | Z173: 64.12494406 | AC173: 1 | AD173: 17.34280094 | AE173: -0.0007573278219 | AF173: 0.002096070616 | AG173: 7166.095407 | AH173: -3066.253292 | AJ173: 22100 | AK173: 1078.171563 | AL173: 1 | AM173: 11.6295762 | AN173: 254.2343504 | AO173: -1878.466186 | AQ173: 0.5175447676 | AR173: -71.9387227 | AT173: -216873.5701 | AU173: -517106.6737 | AV173: -1.967912585 | AW173: -130077.2021 | AX173: -33227.53491 | AY173: -2.891496146 | BA173: 4.176735831 | BB173: 12.41674016 | BC173: 0.923583561 | BD173: -127.0825599 | BF173: -6.154629664 | BG173: -122.0846769 | BH173: 57.91532311 | BI173: 57.91532311 | BJ173: 0 | BK173: 0 | BM173: -18.57136982 | BN173: -175.002117 | BQ173: 29.31870096 | BT173: 4265.795 | BU173: 3.2245 | BV173: -243.324
A174: 70000 | B174: 70 | C174: 1.00139183 | D174: 0.05272983148 | F174: 0.007735227856 | G174: 0.0346228158 | H174: -3.106969834 | J174: 15 | M174: 0.02143327721 | N174: -1.570796325 | O174: 17.49617035 | P174: 1.513609798 | Q174: 11.75585144 | R174: 1.485629384 | S174: 0.9987949582 | T174: -0.04909753327 | U174: 0.9397115077 | V174: -0.3490106245 | X174: -6.361500606 | Y174: -115.9612322 | Z174: 64.03876783 | AC174: 1 | AD174: 17.46756929 | AE174: -0.0007682638223 | AF174: 0.002111150261 | AG174: 7154.166455 | AH174: -3077.131641 | AJ174: 22100 | AK174: 1085.928193 | AL174: 1 | AM174: 11.71324221 | AN174: 251.95173 | AO174: -1865.243446 | AQ174: 0.5101780521 | AR174: -71.4249273 | AT174: -216134.005 | AU174: -512555.704 | AV174: -1.969850745 | AW174: -128184.3064 | AX174: -32834.12713 | AY174: -2.890836255 | BA174: 4.203827994 | BB174: 12.47289876 | BC174: 0.92098551 | BD174: -127.2314172 | BF174: -6.22373296 | BG174: -122.2264792 | BH174: 57.7735208 | BI174: 57.7735208 | BJ174: 0 | BK174: 0 | BM174: -18.69663172 | BN174: -174.995062 | BQ174: 29.37485956 | BT174: 4365.158 | BU174: 3.07782 | BV174: -242.172
A175: 70500 | B175: 70.5 | C175: 1.00141177 | D175: 0.05310576789 | F175: 0.007625120462 | G175: 0.03437366307 | H175: -3.107218987 | J175: 15 | M175: 0.02128126815 | N175: -1.570796325 | O175: 17.62073619 | P175: 1.514014501 | Q175: 11.83921635 | R175: 1.486230519 | S175: 0.9987777135 | T175: -0.04944766058 | U175: 0.9389247506 | V175: -0.3513040726 | X175: -6.432103992 | Y175: -116.0478034 | Z175: 63.95219661 | AC175: 1 | AD175: 17.59233765 | AE175: -0.0007792782169 | AF175: 0.002126229906 | AG175: 7142.192067 | AH175: -3087.979659 | AJ175: 22100 | AK175: 1093.684823 | AL175: 1 | AM175: 11.79690823 | AN175: 249.7170415 | AO175: -1852.204199 | AQ175: 0.5029675083 | AR175: -70.91841867 | AT175: -215402.3437 | AU175: -508066.1206 | AV175: -1.971790145 | AW175: -126331.3043 | AX175: -32450.04724 | AY175: -2.890163645 | BA175: 4.230865145 | BB175: 12.52858366 | BC175: 0.9183734995 | BD175: -127.3810744 | BF175: -6.292403149 | BG175: -122.3688722 | BH175: 57.63112779 | BI175: 57.63112779 | BJ175: 0 | BK175: 0 | BM175: -18.8209868 | BN175: -174.9877978 | BQ175: 29.43054446 | BT175: 4466.836 | BU175: 2.92332 | BV175: -240.903
A176: 71000 | B176: 71 | C176: 1.001431852 | D176: 0.05348168928 | F176: 0.007517352797 | G176: 0.03412809549 | H176: -3.107464555 | J176: 15 | M176: 0.02113140007 | N176: -1.570796325 | O176: 17.74530487 | P176: 1.514413524 | Q176: 11.92258547 | R176: 1.486823248 | S176: 0.998760347 | T176: -0.04979777576 | U176: 0.9381343876 | V176: -0.3535936716 | X176: -6.502277573 | Y176: -116.134756 | Z176: 63.86524397 | AC176: 1 | AD176: 17.717106 | AE176: -0.0007903710057 | AF176: 0.00214130955 | AG176: 7130.172897 | AH176: -3098.796212 | AJ176: 22100 | AK176: 1101.441453 | AL176: 1 | AM176: 11.88057424 | AN176: 247.5289556 | AO176: -1839.344681 | AQ176: 0.4959087528 | AR176: -70.4190429 | AT176: -214678.3482 | AU176: -503636.6712 | AV176: -1.973730665 | AW176: -124517.0909 | AX176: -32074.99597 | AY176: -2.889478508 | BA176: 4.257846808 | BB176: 12.58380064 | BC176: 0.9157478433 | BD176: -127.5315134 | BF176: -6.360647515 | BG176: -122.5118425 | BH176: 57.48815749 | BI176: 57.48815749 | BJ176: 0 | BK176: 0 | BM176: -18.94444815 | BN176: -174.9803291 | BQ176: 29.48576144 | BT176: 4570.882 | BU176: 2.72669 | BV176: -241.252
A177: 71500 | B177: 71.5 | C177: 1.001452075 | D177: 0.05385759554 | F177: 0.007411858888 | G177: 0.03388603572 | H177: -3.107706614 | J177: 15 | M177: 0.02098362804 | N177: -1.570796325 | O177: 17.86987634 | P177: 1.514806982 | Q177: 12.00595873 | R177: 1.487407744 | S177: 0.9987428586 | T177: -0.05014787873 | U177: 0.9373404528 | V177: -0.3558794072 | X177: -6.57202816 | Y177: -116.2220769 | Z177: 63.7779231 | AC177: 1 | AD177: 17.84187435 | AE177: -0.0008015421889 | AF177: 0.002156389195 | AG177: 7118.109599 | AH177: -3109.580202 | AJ177: 22100 | AK177: 1109.198083 | AL177: 1 | AM177: 11.96424026 | AN177: 245.3861881 | AO177: -1826.661228 | AQ177: 0.488997555 | AR177: -69.92665037 | AT177: -213961.7894 | AU177: -499266.1383 | AV177: -1.975672185 | AW177: -122740.5991 | AX177: -31708.68586 | AY177: -2.888781032 | BA177: 4.284772511 | BB177: 12.63855538 | BC177: 0.9131088471 | BD177: -127.6827168 | BF177: -6.428473173 | BG177: -122.655377 | BH177: 57.34462299 | BI177: 57.34462299 | BJ177: 0 | BK177: 0 | BM177: -19.06702856 | BN177: -174.9726602 | BQ177: 29.54051618 | BT177: 4677.351 | BU177: 2.54392 | BV177: -240.638
A178: 72000 | B178: 72 | C178: 1.00147244 | D178: 0.05423348657 | F178: 0.007308575077 | G178: 0.03364740864 | H178: -3.107945241 | J178: 15 | M178: 0.0208379084 | N178: -1.570796325 | O178: 17.99445053 | P178: 1.515194994 | Q178: 12.08933603 | R178: 1.487984178 | S178: 0.9987252485 | T178: -0.05049796939 | U178: 0.93654298 | V178: -0.3581612654 | X178: -6.641362404 | Y178: -116.3097532 | Z178: 63.69024684 | AC178: 1 | AD178: 17.9666427 | AE178: -0.0008127917663 | AF178: 0.00217146884 | AG178: 7106.002826 | AH178: -3120.330563 | AJ178: 22100 | AK178: 1116.954713 | AL178: 1 | AM178: 12.04790628 | AN178: 243.2874993 | AO178: -1814.150276 | AQ178: 0.4822298307 | AR178: -69.44109563 | AT178: -213252.4465 | AU178: -494953.3382 | AV178: -1.977614592 | AW178: -121000.7981 | AX178: -31350.84075 | AY178: -2.888071401 | BA178: 4.311641785 | BB178: 12.69285344 | BC178: 0.9104568088 | BD178: -127.8346674 | BF178: -6.49588708 | BG178: -122.799463 | BH178: 57.20053704 | BI178: 57.20053704 | BJ178: 0 | BK178: 0 | BM178: -19.18874052 | BN178: -174.9647956 | BQ178: 29.59481424 | BT178: 4786.301 | BU178: 2.53075 | BV178: -240.031
A179: 72500 | B179: 72.5 | C179: 1.001492946 | D179: 0.05460936225 | F179: 0.007207439925 | G179: 0.03341214129 | H179: -3.108180509 | J179: 15 | M179: 0.02069419869 | N179: -1.570796325 | O179: 18.1190274 | P179: 1.51557767 | Q179: 12.17271729 | R179: 1.488552716 | S179: 0.9987075165 | T179: -0.05084804766 | U179: 0.9357420032 | V179: -0.3604392323 | X179: -6.710286802 | Y179: -116.3977723 | Z179: 63.60222771 | AC179: 1 | AD179: 18.09141105 | AE179: -0.0008241197379 | AF179: 0.002186548484 | AG179: 7093.853229 | AH179: -3131.046264 | AJ179: 22100 | AK179: 1124.711343 | AL179: 1 | AM179: 12.13157229 | AN179: 241.2316909 | AO179: -1801.808354 | AQ179: 0.4756016361 | AR179: -68.96223723 | AT179: -212550.1071 | AU179: -490697.12 | AV179: -1.979557774 | AW179: -119296.6922 | AX179: -31001.19519 | AY179: -2.887349793 | BA179: 4.33845416 | BB179: 12.74670026 | BC179: 0.9077920186 | BD179: -127.9873486 | BF179: -6.562896039 | BG179: -122.9440879 | BH179: 57.05591206 | BI179: 57.05591206 | BJ179: 0 | BK179: 0 | BM179: -19.3095963 | BN179: -174.9567393 | BQ179: 29.64866106 | BT179: 4897.788 | BU179: 2.17956 | BV179: -239.481
A180: 73000 | B180: 73 | C180: 1.001513594 | D180: 0.05498522249 | F180: 0.007108394113 | G180: 0.03318016275 | H180: -3.108412487 | J180: 15 | M180: 0.0205524576 | N180: -1.570796325 | O180: 18.24360688 | P180: 1.515955119 | Q180: 12.25610244 | R180: 1.489113517 | S180: 0.9986896629 | T180: -0.05119811345 | U180: 0.9349375561 | V180: -0.3627132943 | X180: -6.778807701 | Y180: -116.4861221 | Z180: 63.5138779 | AC180: 1 | AD180: 18.21617941 | AE180: -0.0008355261039 | AF180: 0.002201628129 | AG180: 7081.661458 | AH180: -3141.726305 | AJ180: 22100 | AK180: 1132.467973 | AL180: 1 | AM180: 12.21523831 | AN180: 239.2176054 | AO180: -1789.632084 | AQ180: 0.4691091617 | AR180: -68.48993761 | AT180: -211854.5663 | AU180: -486496.364 | AV180: -1.981501621 | AW180: -117627.319 | AX180: -30659.49401 | AY180: -2.88661638 | BA180: 4.365209169 | BB180: 12.80010118 | BC180: 0.9051147591 | BD180: -128.1407443 | BF180: -6.629506701 | BG180: -123.0892398 | BH180: 56.91076021 | BI180: 56.91076021 | BJ180: 0 | BK180: 0 | BM180: -19.42960788 | BN180: -174.9484955 | BQ180: 29.70206198 | BT180: 5011.872 | BU180: 2.08934 | BV180: -238.507
A181: 73500 | B181: 73.5 | C181: 1.001534383 | D181: 0.05536106718 | F181: 0.007011380365 | G181: 0.03295140411 | H181: -3.108641246 | J181: 15 | M181: 0.02041264496 | N181: -1.570796325 | O181: 18.36818893 | P181: 1.516327448 | Q181: 12.33949138 | R181: 1.489666739 | S181: 0.9986716874 | T181: -0.05154816669 | U181: 0.9341296728 | V181: -0.364983438 | X181: -6.846931303 | Y181: -116.5747907 | Z181: 63.42520928 | AC181: 1 | AD181: 18.34094776 | AE181: -0.0008470108641 | AF181: 0.002216707774 | AG181: 7069.428161 | AH181: -3152.369716 | AJ181: 22100 | AK181: 1140.224603 | AL181: 1 | AM181: 12.29890432 | AN181: 237.2441237 | AO181: -1777.618176 | AQ181: 0.4627487274 | AR181: -68.02406293 | AT181: -211165.6271 | AU181: -482349.9812 | AV181: -1.983446027 | AW181: -115991.7482 | AX181: -30325.49184 | AY181: -2.885871333 | BA181: 4.391906349 | BB181: 12.85306142 | BC181: 0.902425306 | BD181: -128.2948386 | BF181: -6.695725572 | BG181: -123.2349067 | BH181: 56.76509331 | BI181: 56.76509331 | BJ181: 0 | BK181: 0 | BM181: -19.54878699 | BN181: -174.9400681 | BQ181: 29.75502222 | BT181: 5128.614 | BU181: 1.79547 | BV181: -237.881
A182: 74000 | B182: 74 | C182: 1.001555314 | D182: 0.05573689621 | F182: 0.006916343353 | G182: 0.03272579838 | H182: -3.108866852 | J182: 15 | M182: 0.02027472169 | N182: -1.570796325 | O182: 18.49277349 | P182: 1.516694761 | Q182: 12.42288405 | R182: 1.490212534 | S182: 0.9986535903 | T182: -0.05189820729 | U182: 0.933318387 | V182: -0.3672496502 | X182: -6.914663666 | Y182: -116.6637666 | Z182: 63.33623341 | AC182: 1 | AD182: 18.46571611 | AE182: -0.0008585740185 | AF182: 0.002231787419 | AG182: 7057.153985 | AH182: -3162.975558 | AJ182: 22100 | AK182: 1147.981233 | AL182: 1 | AM182: 12.38257034 | AN182: 235.3101642 | AO182: -1765.763427 | AQ182: 0.456516777 | AR182: -67.56448299 | AT182: -210483.0991 | AU182: -478256.9118 | AV182: -1.985390889 | AW182: -114389.0805 | AX182: -29998.95263 | AY182: -2.885114817 | BA182: 4.418545235 | BB182: 12.90558611 | BC182: 0.8997239281 | BD182: -128.4496161 | BF182: -6.761559017 | BG182: -123.3810771 | BH182: 56.61892292 | BI182: 56.61892292 | BJ182: 0 | BK182: 0 | BM182: -19.66714513 | BN182: -174.9314609 | BQ182: 29.80754691 | BT182: 5248.075 | BU182: 1.60241 | BV182: -238.28
A183: 74500 | B183: 74.5 | C183: 1.001576386 | D183: 0.05611270948 | F183: 0.006823229626 | G183: 0.03250328043 | H183: -3.10908937 | J183: 15 | M183: 0.02013864973 | N183: -1.570796325 | O183: 18.61736051 | P183: 1.517057158 | Q183: 12.50628038 | R183: 1.49075105 | S183: 0.9986353714 | T183: -0.05224823515 | U183: 0.9325037326 | V183: -0.3695119178 | X183: -6.982010714 | Y183: -116.7530384 | Z183: 63.24696158 | AC183: 1 | AD183: 18.59048446 | AE183: -0.0008702155673 | AF183: 0.002246867063 | AG183: 7044.839575 | AH183: -3173.542923 | AJ183: 22100 | AK183: 1155.737863 | AL183: 1 | AM183: 12.46623636 | AN183: 233.4146806 | AO183: -1754.064715 | AQ183: 0.450409873 | AR183: -67.11107107 | AT183: -209806.7994 | AU183: -474216.1245 | AV183: -1.987336105 | AW183: -112818.4462 | AX183: -29679.64929 | AY183: -2.884346992 | BA183: 4.445125367 | BB183: 12.95768028 | BC183: 0.8970108875 | BD183: -128.6050619 | BF183: -6.827013262 | BG183: -123.5277397 | BH183: 56.47226031 | BI183: 56.47226031 | BJ183: 0 | BK183: 0 | BM183: -19.78469354 | BN183: -174.9226778 | BQ183: 29.85964108 | BT183: 5370.318 | BU183: 1.48515 | BV183: -237.347
A184: 75000 | B184: 75 | C184: 1.0015976 | D184: 0.05648850688 | F184: 0.006731987532 | G184: 0.0322837869 | H184: -3.109308863 | J184: 15 | M184: 0.02000439207 | N184: -1.570796325 | O184: 18.74194995 | P184: 1.517414737 | Q184: 12.58968028 | R184: 1.491282431 | S184: 0.9986170309 | T184: -0.05259825021 | U184: 0.9316857434 | V184: -0.371770228 | X184: -7.048978237 | Y184: -116.8425953 | Z184: 63.15740475 | AC184: 1 | AD184: 18.71525281 | AE184: -0.0008819355103 | AF184: 0.002261946708 | AG184: 7032.485575 | AH184: -3184.070928 | AJ184: 22100 | AK184: 1163.494493 | AL184: 1 | AM184: 12.54990237 | AN184: 231.5566614 | AO184: -1742.519001 | AQ184: 0.4444246922 | AR184: -66.66370384 | AT184: -209136.5511 | AU184: -470226.6153 | AV184: -1.989281577 | AW184: -111279.0041 | AX184: -29367.36323 | AY184: -2.883568017 | BA184: 4.471646285 | BB184: 13.00934886 | BC184: 0.8942864398 | BD184: -128.7611613 | BF184: -6.892094402 | BG184: -123.6748835 | BH184: 56.32511651 | BI184: 56.32511651 | BJ184: 0 | BK184: 0 | BM184: -19.90144326 | BN184: -174.9137222 | BQ184: 29.91130966 | BT184: 5495.409 | BU184: 1.35836 | BV184: -235.612
A185: 75500 | B185: 75.5 | C185: 1.001618955 | D185: 0.05686428832 | F185: 0.006642567142 | G185: 0.03206725619 | H185: -3.109525394 | J185: 15 | M185: 0.01987191265 | N185: -1.570796325 | O185: 18.86654175 | P185: 1.517767593 | Q185: 12.67308369 | R185: 1.491806819 | S185: 0.9985985687 | T185: -0.05294825236 | U185: 0.930864453 | V185: -0.3740245682 | X185: -7.115571895 | Y185: -116.9324264 | Z185: 63.06757364 | AC185: 1 | AD185: 18.84002117 | AE185: -0.0008937338475 | AF185: 0.002277026353 | AG185: 7020.092627 | AH185: -3194.558721 | AJ185: 22100 | AK185: 1171.251123 | AL185: 1 | AM185: 12.63356839 | AN185: 229.7351275 | AO185: -1731.123322 | AQ185: 0.4385580212 | AR185: -66.22226121 | AT185: -208472.1841 | AU185: -466287.407 | AV185: -1.99122721 | AW185: -109769.9401 | AX185: -29061.88402 | AY185: -2.882778044 | BA185: 4.498107531 | BB185: 13.06059667 | BC185: 0.8915508346 | BD185: -128.9178999 | BF185: -6.9568084 | BG185: -123.8224977 | BH185: 56.17750228 | BI185: 56.17750228 | BJ185: 0 | BK185: 0 | BM185: -20.01740507 | BN185: -174.9045978 | BQ185: 29.96255747 | BT185: 5623.413 | BU185: 1.07298 | BV185: -235.138
A186: 76000 | B186: 76 | C186: 1.001640451 | D186: 0.05724005367 | F186: 0.006554920187 | G186: 0.03185362836 | H186: -3.109739022 | J186: 15 | M186: 0.01974117638 | N186: -1.570796325 | O186: 18.99113587 | P186: 1.518115819 | Q186: 12.75649054 | R186: 1.492324349 | S186: 0.9985799849 | T186: -0.05329824153 | U186: 0.9300398954 | V186: -0.3762749261 | X186: -7.181797223 | Y186: -117.0225213 | Z186: 62.9774787 | AC186: 1 | AD186: 18.96478952 | AE186: -0.0009056105791 | AF186: 0.002292105997 | AG186: 7007.66137 | AH186: -3205.005475 | AJ186: 22100 | AK186: 1179.007753 | AL186: 1 | AM186: 12.7172344 | AN186: 227.9491321 | AO186: -1719.874792 | AQ186: 0.4328067518 | AR186: -65.78662627 | AT186: -207813.5342 | AU186: -462397.5476 | AV186: -1.993172909 | AW186: -108290.4668 | AX186: -28763.00904 | AY186: -2.881977224 | BA186: 4.524508651 | BB186: 13.11142846 | BC186: 0.8888043154 | BD186: -129.0752639 | BF186: -7.021161095 | BG186: -123.9705719 | BH186: 56.02942811 | BI186: 56.02942811 | BJ186: 0 | BK186: 0 | BM186: -20.13258955 | BN186: -174.895308 | BQ186: 30.01338926 | BT186: 5754.399 | BU186: 0.869153 | BV186: -234.689
A187: 76500 | B187: 76.5 | C187: 1.001662089 | D187: 0.05761580285 | F187: 0.006468999987 | G187: 0.03164284508 | H187: -3.109949805 | J187: 15 | M187: 0.01961214908 | N187: -1.570796325 | O187: 19.11573226 | P187: 1.518459505 | Q187: 12.83990076 | R187: 1.492835155 | S187: 0.9985612795 | T187: -0.05364821763 | U187: 0.9292121041 | V187: -0.3785212895 | X187: -7.247659634 | Y187: -117.1128699 | Z187: 62.88713009 | AC187: 1 | AD187: 19.08955787 | AE187: -0.0009175657049 | AF187: 0.002307185642 | AG187: 6995.192443 | AH187: -3215.41039 | AJ187: 22100 | AK187: 1186.764383 | AL187: 1 | AM187: 12.80090042 | AN187: 226.1977583 | AO187: -1708.770596 | AQ187: 0.427167877 | AR187: -65.35668518 | AT187: -207160.4431 | AU187: -458556.1103 | AV187: -1.995118583 | AW187: -106839.8219 | AX187: -28470.5431 | AY187: -2.881165703 | BA187: 4.550849189 | BB187: 13.16184887 | BC187: 0.8860471197 | BD187: -129.2332395 | BF187: -7.085158203 | BG187: -124.1190957 | BH187: 55.88090428 | BI187: 55.88090428 | BJ187: 0 | BK187: 0 | BM187: -20.24700707 | BN187: -174.8858562 | BQ187: 30.06380967 | BT187: 5888.437 | BU187: 0.803236 | BV187: -233.954
A188: 77000 | B188: 77 | C188: 1.001683869 | D188: 0.05799153574 | F188: 0.006384761392 | G188: 0.0314348496 | H188: -3.1101578 | J188: 15 | M188: 0.01948479747 | N188: -1.570796325 | O188: 19.24033088 | P188: 1.51879874 | Q188: 12.92331429 | R188: 1.493339367 | S188: 0.9985424525 | T188: -0.05399818057 | U188: 0.9283811128 | V188: -0.3807636463 | X188: -7.313164422 | Y188: -117.2034623 | Z188: 62.79653774 | AC188: 1 | AD188: 19.21432622 | AE188: -0.0009295992249 | AF188: 0.002322265287 | AG188: 6982.686483 | AH188: -3225.772691 | AJ188: 22100 | AK188: 1194.521013 | AL188: 1 | AM188: 12.88456643 | AN188: 224.4801189 | AO188: -1697.807993 | AQ188: 0.4216384872 | AR188: -64.93232702 | AT188: -206512.7579 | AU188: -454762.1922 | AV188: -1.997064144 | AW188: -105417.2674 | AX188: -28184.29813 | AY188: -2.880343624 | BA188: 4.577128693 | BB188: 13.21186247 | BC188: 0.8832794796 | BD188: -129.3918136 | BF188: -7.148805319 | BG188: -124.2680592 | BH188: 55.73194083 | BI188: 55.73194083 | BJ188: 0 | BK188: 0 | BM188: -20.36066779 | BN188: -174.8762455 | BQ188: 30.11382327 | BT188: 6025.596 | BU188: 0.769928 | BV188: -234.147
A189: 77500 | B189: 77.5 | C189: 1.001705789 | D189: 0.05836725224 | F189: 0.006302160721 | G189: 0.03122958664 | H189: -3.110363063 | J189: 15 | M189: 0.0193590891 | N189: -1.570796325 | O189: 19.36493168 | P189: 1.51913361 | Q189: 13.00673106 | R189: 1.493837113 | S189: 0.9985235039 | T189: -0.05434813028 | U189: 0.9275469551 | V189: -0.3830019848 | X189: -7.378316767 | Y189: -117.2942887 | Z189: 62.70571134 | AC189: 1 | AD189: 19.33909457 | AE189: -0.0009417111393 | AF189: 0.002337344932 | AG189: 6970.144124 | AH189: -3236.091628 | AJ189: 22100 | AK189: 1202.277643 | AL189: 1 | AM189: 12.96823245 | AN189: 222.7953548 | AO189: -1686.984308 | AQ189: 0.4162157663 | AR189: -64.51344377 | AT189: -205870.3314 | AU189: -451014.9134 | AV189: -1.999009505 | AW189: -104022.0888 | AX189: -27904.09291 | AY189: -2.879511127 | BA189: 4.603346715 | BB189: 13.26147373 | BC189: 0.8805016218 | BD189: -129.5509732 | BF189: -7.212107927 | BG189: -124.4174524 | BH189: 55.58254757 | BI189: 55.58254757 | BJ189: 0 | BK189: 0 | BM189: -20.47358165 | BN189: -174.8664793 | BQ189: 30.16343453 | BT189: 6165.95 | BU189: 0.469478 | BV189: -232.056
A190: 78000 | B190: 78 | C190: 1.001727851 | D190: 0.05874295224 | F190: 0.006221155703 | G190: 0.03102700242 | H190: -3.110565648 | J190: 15 | M190: 0.01923499237 | N190: -1.570796325 | O190: 19.48953463 | P190: 1.519464198 | Q190: 13.09015101 | R190: 1.494328514 | S190: 0.9985044337 | T190: -0.05469806666 | U190: 0.9267096647 | V190: -0.3852362934 | X190: -7.443121737 | Y190: -117.3853397 | Z190: 62.61466033 | AC190: 1 | AD190: 19.46386293 | AE190: -0.0009539014479 | AF190: 0.002352424576 | AG190: 6957.565998 | AH190: -3246.366475 | AJ190: 22100 | AK190: 1210.034273 | AL190: 1 | AM190: 13.05189847 | AN190: 221.142634 | AO190: -1676.296933 | AQ190: 0.4108969881 | AR190: -64.09993015 | AT190: -205233.0214 | AU190: -447313.4167 | AV190: -2.00095458 | AW190: -102653.594 | AX190: -27629.75272 | AY190: -2.878668348 | BA190: 4.629502804 | BB190: 13.31068703 | BC190: 0.8777137676 | BD190: -129.7107054 | BF190: -7.275071394 | BG190: -124.5672659 | BH190: 55.43273409 | BI190: 55.43273409 | BJ190: 0 | BK190: 0 | BM190: -20.58575842 | BN190: -174.8565605 | BQ190: 30.21264783 | BT190: 6309.573 | BU190: 0.369853 | BV190: -231.369
A191: 78500 | B191: 78.5 | C191: 1.001750055 | D191: 0.05911863564 | F191: 0.006141705427 | G191: 0.03082704455 | H191: -3.110765605 | J191: 15 | M191: 0.0191124765 | N191: -1.570796325 | O191: 19.61413968 | P191: 1.519790586 | Q191: 13.17357409 | R191: 1.494813692 | S191: 0.998485242 | T191: -0.05504798964 | U191: 0.9258692749 | V191: -0.3874665608 | X191: -7.507584291 | Y191: -117.4766061 | Z191: 62.52339391 | AC191: 1 | AD191: 19.58863128 | AE191: -0.0009661701508 | AF191: 0.002367504221 | AG191: 6944.952736 | AH191: -3256.596531 | AJ191: 22100 | AK191: 1217.790902 | AL191: 1 | AM191: 13.13556448 | AN191: 219.5211505 | AO191: -1665.743325 | AQ191: 0.4056795132 | AR191: -63.69168357 | AT191: -204600.6907 | AU191: -443656.8666 | AV191: -2.002899288 | AW191: -101311.1128 | AX191: -27361.10912 | AY191: -2.877815421 | BA191: 4.655596514 | BB191: 13.35950669 | BC191: 0.8749161333 | BD191: -129.8709981 | BF191: -7.33770098 | BG191: -124.7174902 | BH191: 55.28250979 | BI191: 55.28250979 | BJ191: 0 | BK191: 0 | BM191: -20.69720767 | BN191: -174.8464921 | BQ191: 30.26146749 | BT191: 6456.542 | BU191: 0.127676 | BV191: -230.779
A192: 79000 | B192: 79 | C192: 1.0017724 | D192: 0.05949430233 | F192: 0.006063770286 | G192: 0.030629662 | H192: -3.110962988 | J192: 15 | M192: 0.01899151145 | N192: -1.570796325 | O192: 19.73874679 | P192: 1.520112853 | Q192: 13.25700022 | R192: 1.495292763 | S192: 0.9984659288 | T192: -0.05539789911 | U192: 0.9250258193 | V192: -0.3896927757 | X192: -7.571709281 | Y192: -117.5680789 | Z192: 62.43192108 | AC192: 1 | AD192: 19.71339963 | AE192: -0.0009785172479 | AF192: 0.002382583866 | AG192: 6932.304966 | AH192: -3266.781115 | AJ192: 22100 | AK192: 1225.547532 | AL192: 1 | AM192: 13.2192305 | AN192: 217.9301235 | AO192: -1655.321002 | AQ192: 0.4005607851 | AR192: -63.28860405 | AT192: -203973.207 | AU192: -440044.4485 | AV192: -2.004843547 | AW192: -99993.99565 | AX192: -27097.99961 | AY192: -2.876952478 | BA192: 4.6816274 | BB192: 13.40793692 | BC192: 0.8721089303 | BD192: -130.031839 | BF192: -7.40000184 | BG192: -124.8681162 | BH192: 55.13188383 | BI192: 55.13188383 | BJ192: 0 | BK192: 0 | BM192: -20.80793876 | BN192: -174.8362772 | BQ192: 30.30989773 | BT192: 6606.934 | BU192: 0.0369381 | BV192: -229.609
A193: 79500 | B193: 79.5 | C193: 1.001794886 | D193: 0.05986995221 | F193: 0.005987311928 | G193: 0.03043480507 | H193: -3.111157845 | J193: 15 | M193: 0.01887206799 | N193: -1.570796325 | O193: 19.86335593 | P193: 1.520431076 | Q193: 13.34042937 | R193: 1.495765842 | S193: 0.9984464941 | T193: -0.05574779502 | U193: 0.9241793314 | V193: -0.3919149272 | X193: -7.635501458 | Y193: -117.6597494 | Z193: 62.34025061 | AC193: 1 | AD193: 19.83816798 | AE193: -0.0009909427393 | AF193: 0.00239766351 | AG193: 6919.623314 | AH193: -3276.919571 | AJ193: 22100 | AK193: 1233.304162 | AL193: 1 | AM193: 13.30289651 | AN193: 216.3687965 | AO193: -1645.027546 | AQ193: 0.3955383277 | AR193: -62.8905941 | AT193: -203350.4424 | AU193: -436475.3685 | AV193: -2.006787279 | AW193: -98701.61316 | AX193: -26840.26748 | AY193: -2.876079645 | BA193: 4.70759502 | BB193: 13.45598189 | BC193: 0.8692923651 | BD193: -130.1932163 | BF193: -7.461979022 | BG193: -125.0191348 | BH193: 54.98086521 | BI193: 54.98086521 | BJ193: 0 | BK193: 0 | BM193: -20.91796092 | BN193: -174.8259185 | BQ193: 30.35794269 | BT193: 6760.83 | BU193: -0.0490191 | BV193: -229.1
A194: 80000 | B194: 80 | C194: 1.001817514 | D194: 0.06024558517 | F194: 0.00591229321 | G194: 0.03024242534 | H194: -3.111350225 | J194: 15 | M194: 0.01875411756 | N194: -1.570796325 | O194: 19.98796706 | P194: 1.520745332 | Q194: 13.42386145 | R194: 1.496233041 | S194: 0.9984269379 | T194: -0.05609767725 | U194: 0.9233298444 | V194: -0.3941330045 | X194: -7.698965473 | Y194: -117.7516089 | Z194: 62.24839106 | AC194: 1 | AD194: 19.96293634 | AE194: -0.001003446625 | AF194: 0.002412743155 | AG194: 6906.908404 | AH194: -3287.011264 | AJ194: 22100 | AK194: 1241.060792 | AL194: 1 | AM194: 13.38656253 | AN194: 214.8364361 | AO194: -1634.860594 | AQ194: 0.3906097418 | AR194: -62.49755869 | AT194: -202732.2737 | AU194: -432948.852 | AV194: -2.008730408 | AW194: -97433.35532 | AX194: -26587.76146 | AY194: -2.875197048 | BA194: 4.733498931 | BB194: 13.50364567 | BC194: 0.8664666399 | BD194: -130.3551184 | BF194: -7.523637476 | BG194: -125.1705373 | BH194: 54.82946271 | BI194: 54.82946271 | BJ194: 0 | BK194: 0 | BM194: -21.02728314 | BN194: -174.8154189 | BQ194: 30.40560647 | BT194: 6918.31 | BU194: -0.217983 | BV194: -228.376
A195: 80500 | B195: 80.5 | C195: 1.001840283 | D195: 0.06062120112 | F195: 0.00583867815 | G195: 0.03005247562 | H195: -3.111540174 | J195: 15 | M195: 0.01863763236 | N195: -1.570796325 | O195: 20.11258013 | P195: 1.521055693 | Q195: 13.50729644 | R195: 1.496694468 | S195: 0.9984072603 | T195: -0.05644754574 | U195: 0.9224773917 | V195: -0.3963469971 | X195: -7.762105877 | Y195: -117.8436492 | Z195: 62.15635077 | AC195: 1 | AD195: 20.08770469 | AE195: -0.001016028905 | AF195: 0.0024278228 | AG195: 6894.160858 | AH195: -3297.055579 | AJ195: 22100 | AK195: 1248.817422 | AL195: 1 | AM195: 13.47022855 | AN195: 213.3323317 | AO195: -1624.817841 | AQ195: 0.3857727027 | AR195: -62.10940514 | AT195: -202118.5817 | AU195: -429464.1439 | AV195: -2.010672857 | AW195: -96188.63076 | AX195: -26340.33559 | AY195: -2.874304809 | BA195: 4.759338695 | BB195: 13.55093224 | BC195: 0.863631952 | BD195: -130.517534 | BF195: -7.584982053 | BG195: -125.322315 | BH195: 54.67768495 | BI195: 54.67768495 | BJ195: 0 | BK195: 0 | BM195: -21.1359143 | BN195: -174.804781 | BQ195: 30.45289304 | BT195: 7079.458 | BU195: -0.384014 | BV195: -227.044
A196: 81000 | B196: 81 | C196: 1.001863193 | D196: 0.06099679994 | F196: 0.005766431887 | G196: 0.02986490991 | H196: -3.11172774 | J196: 15 | M196: 0.01852258525 | N196: -1.570796325 | O196: 20.23719512 | P196: 1.521362233 | Q196: 13.59073426 | R196: 1.49715023 | S196: 0.9983874612 | T196: -0.0567974004 | U196: 0.9216220065 | V196: -0.3985568945 | X196: -7.824927129 | Y196: -117.9358621 | Z196: 62.06413792 | AC196: 1 | AD196: 20.21247304 | AE196: -0.001028689579 | AF196: 0.002442902445 | AG196: 6881.381295 | AH196: -3307.051923 | AJ196: 22100 | AK196: 1256.574052 | AL196: 1 | AM196: 13.55389456 | AN196: 211.8557939 | AO196: -1614.89704 | AQ196: 0.3810249571 | AR196: -61.72604306 | AT196: -201509.2514 | AU196: -426020.5074 | AV196: -2.012614554 | AW196: -94966.86606 | AX196: -26097.84894 | AY196: -2.873403049 | BA196: 4.785113875 | BB196: 13.59784555 | BC196: 0.8607884947 | BD196: -130.6804521 | BF196: -7.646017508 | BG196: -125.4744596 | BH196: 54.52554036 | BI196: 54.52554036 | BJ196: 0 | BK196: 0 | BM196: -21.24386306 | BN196: -174.7940075 | BQ196: 30.49980635 | BT196: 7244.36 | BU196: -0.57486 | BV196: -226.239
A197: 81500 | B197: 81.5 | C197: 1.001886245 | D197: 0.06137238152 | F197: 0.005695520635 | G197: 0.02967968338 | H197: -3.111912967 | J197: 15 | M197: 0.01840894975 | N197: -1.570796325 | O197: 20.36181199 | P197: 1.52166502 | Q197: 13.67417487 | R197: 1.49760043 | S197: 0.9983675408 | T197: -0.05714724113 | U197: 0.920763722 | V197: -0.4007626867 | X197: -7.887433595 | Y197: -118.0282396 | Z197: 61.97176045 | AC197: 1 | AD197: 20.33724139 | AE197: -0.001041428648 | AF197: 0.002457982089 | AG197: 6868.570332 | AH197: -3316.999724 | AJ197: 22100 | AK197: 1264.330682 | AL197: 1 | AM197: 13.63756058 | AN197: 210.4061544 | AO197: -1605.095994 | AQ197: 0.3763643207 | AR197: -61.34738427 | AT197: -200904.1719 | AU197: -422617.2239 | AV197: -2.014555428 | AW197: -93767.50513 | AX197: -25860.16543 | AY197: -2.872491885 | BA197: 4.810824033 | BB197: 13.64438944 | BC197: 0.857936457 | BD197: -130.8438619 | BF197: -7.706748506 | BG197: -125.6269628 | BH197: 54.37303718 | BI197: 54.37303718 | BJ197: 0 | BK197: 0 | BM197: -21.35113794 | BN197: -174.783101 | BQ197: 30.54635024 | BT197: 7413.102 | BU197: -0.7333 | BV197: -225.834
A198: 82000 | B198: 82 | C198: 1.001909438 | D198: 0.06174794577 | F198: 0.005625911649 | G198: 0.02949675233 | H198: -3.112095898 | J198: 15 | M198: 0.01829670006 | N198: -1.570796325 | O198: 20.4864307 | P198: 1.521964124 | Q198: 13.75761822 | R198: 1.498045168 | S198: 0.9983474989 | T198: -0.05749706787 | U198: 0.9199025712 | V198: -0.4029643636 | X198: -7.949629551 | Y198: -118.1207739 | Z198: 61.87922615 | AC198: 1 | AD198: 20.46200974 | AE198: -0.00105424611 | AF198: 0.002473061734 | AG198: 6855.728583 | AH198: -3326.898427 | AJ198: 22100 | AK198: 1272.087312 | AL198: 1 | AM198: 13.72122659 | AN198: 208.9827649 | AO198: -1595.412559 | AQ198: 0.3717886753 | AR198: -60.97334275 | AT198: -200303.2358 | AU198: -419253.5919 | AV198: -2.016495408 | AW198: -92590.00857 | AX198: -25627.15361 | AY198: -2.871571432 | BA198: 4.836468738 | BB198: 13.6905677 | BC198: 0.855076024 | BD198: -131.0077526 | BF198: -7.767179617 | BG198: -125.7798165 | BH198: 54.2201835 | BI198: 54.2201835 | BJ198: 0 | BK198: 0 | BM198: -21.45774731 | BN198: -174.7720639 | BQ198: 30.5925285 | BT198: 7585.776 | BU198: -0.870902 | BV198: -224.429
A199: 82500 | B199: 82.5 | C199: 1.001932772 | D199: 0.06212349259 | F199: 0.005557573181 | G199: 0.02931607413 | H199: -3.112276576 | J199: 15 | M199: 0.01818581097 | N199: -1.570796325 | O199: 20.61105122 | P199: 1.522259611 | Q199: 13.84106426 | R199: 1.498484544 | S199: 0.9983273357 | T199: -0.05784688051 | U199: 0.9190385874 | V199: -0.4051619154 | X199: -8.011519186 | Y199: -118.2134574 | Z199: 61.7865426 | AC199: 1 | AD199: 20.5867781 | AE199: -0.001067141967 | AF199: 0.002488141379 | AG199: 6842.856661 | AH199: -3336.747498 | AJ199: 22100 | AK199: 1279.843942 | AL199: 1 | AM199: 13.80489261 | AN199: 207.5849967 | AO199: -1585.844644 | AQ199: 0.3672959671 | AR199: -60.60383457 | AT199: -199706.3397 | AU199: -415928.9269 | AV199: -2.018434427 | AW199: -91433.85309 | AX199: -25398.6865 | AY199: -2.870641803 | BA199: 4.862047556 | BB199: 13.73638405 | BC199: 0.8522073765 | BD199: -131.172114 | BF199: -7.827315326 | BG199: -125.9330127 | BH199: 54.06698726 | BI199: 54.06698726 | BJ199: 0 | BK199: 0 | BM199: -21.56369937 | BN199: -174.7608987 | BQ199: 30.63834485 | BT199: 7762.471 | BU199: -1.03486 | BV199: -223.255
A200: 83000 | B200: 83 | C200: 1.001956248 | D200: 0.06249902185 | F200: 0.005490474447 | G200: 0.0291376072 | H200: -3.112455043 | J200: 15 | M200: 0.01807625789 | N200: -1.570796325 | O200: 20.73567352 | P200: 1.522551546 | Q200: 13.92451294 | R200: 1.498918654 | S200: 0.9983070512 | T200: -0.05819667898 | U200: 0.9181718034 | V200: -0.4073553327 | X200: -8.073106604 | Y200: -118.3062828 | Z200: 61.69371721 | AC200: 1 | AD200: 20.71154645 | AE200: -0.001080116219 | AF200: 0.002503221024 | AG200: 6829.955174 | AH200: -3346.546421 | AJ200: 22100 | AK200: 1287.600572 | AL200: 1 | AM200: 13.88855862 | AN200: 206.2122394 | AO200: -1576.390204 | AQ200: 0.3628842037 | AR200: -60.23877781 | AT200: -199113.3834 | AU200: -412642.561 | AV200: -2.020372417 | AW200: -90298.53092 | AX200: -25174.64142 | AY200: -2.869703109 | BA200: 4.887560058 | BB200: 13.78184214 | BC200: 0.8493306918 | BD200: -131.3369359 | BF200: -7.887160032 | BG200: -126.0865438 | BH200: 53.9134562 | BI200: 53.9134562 | BJ200: 0 | BK200: 0 | BM200: -21.66900217 | BN200: -174.7496079 | BQ200: 30.68380294 | BT200: 7943.282 | BU200: -1.2308 | BV200: -223.135
A201: =A200+500 -> 83500 | B201: 83.5 | C201: =SQRT((A201/Fesr)^2+1) -> 1.001979865 | D201: =ATAN(A201/Fesr) -> 0.06287453347 | F201: =(Ro/(Ro+Rdcr))/SQRT((A201/(Q*Fo))^2+(1-(A201^2/Fo^2))^2) -> 0.005424585592 | G201: =-ATAN(A201*Fo/(Q*(Fo^2-A201^2))) -> 0.02896131101 | H201: =IF(G201>0,G201-Pi,G201) -> -3.112631339 | J201: =Vin/Vramp -> 15 | M201: =1/(2*Pi*_Rfb1*(Cc1ea_u+Cc2ea_u)*A201) -> 0.01796801683 | N201: =-Pi/2 -> -1.570796325 | O201: =SQRT(1+(A201/Fz1_u)^2) -> 20.86029756 | P201: =ATAN2(Fz1_u,A201) -> 1.522839992 | Q201: =SQRT(1+(A201/Fz2_u)^2) -> 14.00796421 | R201: =ATAN2(Fz2_u,A201) -> 1.499347591 | S201: =1/SQRT(1+(A201/Fp1_u)^2) -> 0.9982866453 | T201: =-ATAN2(Fp1_u,A201) -> -0.0585464632 | U201: =1/SQRT(1+(A201/Fp2_u)^2) -> 0.9173022521 | V201: =-ATAN2(Fp2_u,A201) -> -0.4095446059 | X201: -8.134395826 | Y201: =(180/Pi)*(D201+H201+N201+P201+R201+T201+V201) -> -118.3992428 | Z201: 61.60075724 | AC201: 1 | AD201: =Rcea1_u*Cc1ea_u*A201*2*Pi -> 20.8363148 | AE201: =-Rcea1_u*Cc1ea_u*Cc2ea_u*(A201*2*Pi)^2 -> -0.001093168864 | AF201: =(Cc2ea_u+Cc1ea_u)*A201*2*Pi -> 0.002518300668 | AG201: 6817.024731 | AH201: -3356.294699 | AJ201: =_Rfb1 -> 22100 | AK201: =_Rfb1*Rcea2_u*Cc3ea_u*A201*2*Pi -> 1295.357202 | AL201: 1 | AM201: =(_Rfb1+Rcea2_u)*Cc3ea_u*A201*2*Pi -> 13.97222464 | AN201: 204.863901 | AO201: -1567.047243 | AQ201: =Eadcg/(1+(Eadcg*A201/GBP)^2) -> 0.3585514521 | AR201: =-(A201*Eadcg*Eadcg/GBP)/(1+(Eadcg*A201/GBP)^2) -> -59.87809251 | AT201: -198524.2703 | AU201: -409393.8418 | AV201: -2.022309315 | AW201: -89183.54924 | AX201: -24954.89975 | AY201: -2.868755458 | BA201: =SQRT(AT201^2+AU201^2)/SQRT(AW201^2+AX201^2) -> 4.913005817 | BB201: 13.82694557 | BC201: 0.8464461434 | BD201: =BC201*180/Pi-180 -> -131.5022083 | BF201: =20*LOG(BA201*J201*F201*C201) -> -7.946718048 | BG201: =(180/Pi)*(D201+H201+BC201) -> -126.240402 | BH201: 53.75959796 | BI201: 53.75959796 | BJ201: =SUM((BF202<0)*(BF201>0))*A201 -> 0 | BK201: 0 | BM201: -21.77366361 | BN201: =(H201+D201)*180/Pi -> -174.7381937 | BQ201: 30.72890637 | BT201: 8128.305 | BU201: -1.35261 | BV201: -221.982
... 491 more rows

Sheet Schematic Management (hidden)
A2: =IF(RDSON_sense=1, "SCH_RDSON", "SCH_SHUNT") -> SCH_RDSON

Sheet Power Calculations (hidden)
A1: BUCK CONTROLLER POWER TOOL
AG3: =VsdBot -> 0.9 | AK3: =Iq -> 0.002
A6: Enter the values of your design and FET datasheet specifications below. Note that thermal resistance ("Theta JA") will change when components are placed on the PCB | BH6: 80 | BI6: 100 | BJ6: 120 | BK6: 140 | BL6: 160 | BM6: 180 | BN6: 20 | BO6: 30 | BP6: 40 | BQ6: 50
G7: Currents | N7: INDUCTOR | R7: Cout | U7: Cin | X7: HIGH SIDE FET losses | AD7: LOW SIDE FET Losses | AH7: Shunt | AI7: External Diode | AJ7: Diod/eFET | AK7: Part Losses | AO7: RESULSTS
A8: Input Parameters | G8: Step | H8: Iout | I8: Duty Cycle | J8: Current Ripple p-p | K8: Peak Inductor Current | L8: Valley Inductor Current | M8: SW node voltage at Q1 turn-on | N8: IRMS | O8: DCR Loss | P8: Core | Q8: Total Inductor Loss/Diss | R8: Irms | S8: Cout Esr Loss | T8: Total Cout Loss/Diss | U8: Irms | V8: Cin Esr Loss | W8: Total Cin Loss/Diss | X8: Irms | Y8: RDSON Loss | Z8: Transitional Loss (not including capacitive loss) | AA8: MOSFET Output Capacitance Loss | AB8: Dead Time Loss | AC8: Total Top FET Loss/Diss | AD8: Irms | AE8: RDSON Loss | AF8: DeadTime Loss | AG8: Total Bottom FET Diss/Loss | AH8: Shunt Loss (if applicable) | AI8: DeadTime Loss | AJ8: Reverse Recovery Loss | AK8: IQ Loss | AL8: Switching Current Loss | AM8: Switching Current Diss | AN8: Total Part Loss | AO8: Total Loss | AP8: OUTPUT POWER | AQ8: EFF | AR8: Top FET Temp Rise | AS8: Bottom FET Temp Rise | BF8: Qg | BH8: θJA=80 | BI8: θJA=100 | BJ8: θJA=120 | BK8: θJA=140 | BL8: θJA=160 | BM8: θJA=180 | BN8: θJA=20 | BO8: θJA=30 | BP8: θJA=40 | BQ8: θJA=50
A9: Design | B9: Input Value | C9: Units | D9: Description | G9: 0 | H9: =Iout*(G9/200) -> 0 | I9: =(Vout+Rdcr*H9+RdsonBot*H9)/(Vin-RdsonTop*H9+RdsonBot*H9) -> 0.234375 | J9: =(Vin-Vout)*I9/(Fsw*Lout2) -> 4.1015625 | K9: =H9+J9/2 -> 2.05078125 | L9: =H9-J9/2 -> -2.05078125 | M9: =IF(MIN(Vin, -L9/(CossTop+CossBot)*0.00000002)<0, 0, MIN(Vin, -L9/(CossTop+CossBot)*0.00000002)) -> 51.2 | N9: =SQRT(H9^2+(J9^2)/12) -> 1.184019107 | O9: =(N9^2*Rdcr*(1+Ltc*Ta-Ltc*25))/(1-N9^2*Rdcr*Ltc*ThetaCa) -> 0.008417071424 | P9: =Core_Loss -> 0.2 | Q9: =O9+P9 -> 0.2084170714 | R9: =J9/(2*SQRT(3)) -> 1.184019107 | S9: =RCoutEsr*R9^2 -> 0.001401901245 | T9: =S9 -> 0.001401901245 | U9: =SQRT(I9)*SQRT(H9^2+(J9^2)/12) -> 0.5732107852 | V9: =RCinEsr*U9^2 -> 0.0006571412086 | W9: =V9 -> 0.0006571412086 | X9: =SQRT(I9)*SQRT(H9^2+(J9^2)/12) -> 0.5732107852 | Y9: =RdsonTop*X9^2 -> 0.01708567142 | Z9: =IF(L9<0, (Vin*K9*Tf/2)*Fsw, (Vin*L9*Tr/2+Vin*K9*Tf/2)*Fsw) -> 0.03456 | AA9: =(0.5*CossTop*(Vin-M9)^2-0.5*CossBot*(Vin-M9)^2+(QossBot*(Vin-M9)/Vin)*Vin)*Fsw -> 0 | AB9: =IF(L9>0,0,-L9*VsdTop*Deadtime*Fsw) -> 0.0196875 | AC9: =(AB9+AA9+Z9+Y9*(1+RdsonTopTc*Ta-RdsonTopTc*25))/(1-Y9*RdsonTopTc*ThetaJaTop) -> 0.07160231362 | AD9: =SQRT(1-I9)*SQRT(H9^2+(J9^2)/12) -> 1.036016718 | AE9: =RdsonBot*AD9^2 -> 0.01073330641 | AF9: =IF(L9<0, Deadtime*Fsw*IF(VfdSky>0,0,VsdBot)*K9, Deadtime*Fsw*IF(VfdSky>0,0,VsdBot)*(K9+L9)) -> 0.0221484375 | AG9: =(AF9+AE9*(1+RdsonBotTc*Ta-RdsonBotTc*25))/(1-AE9*RdsonBotTc*ThetaJaBot) -> 0.03293830982 | AH9: =IF(RDSON_sense=1, 0, AD9^2*Rshunt) -> 0 | AI9: =2*Deadtime*Fsw*IF(VfdSky>0,VfdSky,0)*H9 -> 0 | AJ9: =IF(QrrSky>0,QrrSky,QrrBot)*Fsw*(Vin-H9*RdsonTop) -> 1.024 | AK9: =Iq*Vin -> 0.1024 | AL9: =IF(Ext_VCC=1, Vdd*(QgTop+QgBot)*Fsw, Vin*(QgTop+QgBot)*Fsw) -> 0.0486 | AM9: =(Vin-Vdd)*Fsw*(QgTop+QgBot)+(RdsonDRT+RdsonDRT2)*Fsw*QgTop*Vdd/(RdsonDRT+2*RGateTop+RdsonDRT2)+(RdsonDRB+RdsonDRB2)*Fsw*QgBot*Vdd/(RdsonDRB+2*RGateBot+RdsonDRB2) -> 0.3038192432 | AN9: =SUM(AK9:AL9) -> 0.151 | AO9: =SUM(Q9,T9,W9,AC9,AJ9,AI9,AG9,AN9, AH9) -> 1.490016737 | AP9: =Vout*H9 -> 0 | AQ9: =AP9/(AP9+AO9) -> 0 | AR9: =ThetaJaTop*AC9 -> 3.938127249 | AS9: =AG9*ThetaJaBot -> 1.317532393 | AU9: =AQ9*100 -> 0 | BC9: 250kHz / 5-1.2V /25A | BD9: 70 | BE9: 70 | BF9: 70 | BG9: =250000*(5-Vdd)*BF9/1000000000+((250000*BF9/1000000000*Vdd)*2.5/(2*4)) -> -0.002734375 | BH9: =BH$6*$BG9 -> -0.21875 | BI9: -0.2734375 | BJ9: -0.328125 | BK9: -0.3828125 | BL9: -0.4375 | BM9: -0.4921875 | BN9: -0.0546875 | BO9: -0.08203125 | BP9: -0.109375 | BQ9: -0.13671875
G10: 1 | H10: 0.1 | I10: =(Vout+Rdcr*H10+RdsonBot*H10)/(Vin-RdsonTop*H10+RdsonBot*H10) -> 0.2344254802 | J10: 4.102445904 | K10: =H10+J10/2 -> 2.151222952 | L10: =H10-J10/2 -> -1.951222952 | M10: 51.2 | N10: 1.18848862 | O10: =(N10^2*Rdcr*(1+Ltc*Ta-Ltc*25))/(1-N10^2*Rdcr*Ltc*ThetaCa) -> 0.008480781187 | P10: 0.2 | Q10: =O10+P10 -> 0.2084807812 | R10: =J10/(2*SQRT(3)) -> 1.184274123 | S10: =RCoutEsr*R10^2 -> 0.001402505199 | T10: =S10 -> 0.001402505199 | U10: 0.5754365384 | V10: =RCinEsr*U10^2 -> 0.0006622544194 | W10: =V10 -> 0.0006622544194 | X10: 0.5754365384 | Y10: =RdsonTop*X10^2 -> 0.0172186149 | Z10: 0.03625265504 | AA10: 0 | AB10: 0.01873174034 | AC10: 0.07247756219 | AD10: 1.039893259 | AE10: =RdsonBot*AD10^2 -> 0.0108137799 | AF10: 0.02323320788 | AG10: 0.03410599814 | AH10: 0 | AI10: 0 | AJ10: 1.023896 | AK10: 0.1024 | AL10: 0.0486 | AM10: 0.3038192432 | AN10: =SUM(AK10:AL10) -> 0.151 | AO10: 1.492025101 | AP10: 1.2 | AQ10: =AP10/(AP10+AO10) -> 0.4457610739 | AR10: 3.986265921 | AS10: =AG10*ThetaJaBot -> 1.364239926 | AU10: =AQ10*100 -> 44.57610739
